Workbook

Sheet Cover
B1: Registered User: | G1: Free Trial Version - Not For Commercial Use | AF1: © 2017 CivilWeb
B2: Your Logo / Company Details Here | G2: Project: | AF2: By:
G3: Calculation: | M3: Gable Frame Analysis
AF4: Approved:
G5: Sheet Number: | M5: Cover Sheet | T5: Date:
H7: Although all care and attention has been taken to ensure that this program is accurate, CivilWeb gives no guarentee that it is error free. In no event will Civil Web accept any responsibility for any errors or omissions from the program or from the user of the program, or for any special, incedental or consequential damages whatsoever arising from use of this program.
H14: This program should only be used by a suitably qualified Civil or Structural Engineer, and suitable efforts should be taken to verify the results.
H18: Reverse-engineering or decompiling of this program is not allowed.
H20: This program is registered to a single user, and should not be used by any other.
H23: Registered User;
H24: Free Trial Version
H26: By using this program you confirm your understanding and agreement with the above terms and conditions.
H29: This program remains the property of CivilWeb.
H30: www.civilweb-spreadsheets.com
H32: Revision Schedule
H34: Rev | J34: Changes | Z34: Date
H35: 0 | J35: Original | Z35: 2017-06-01

Sheet Gable Frame Analysis
B1: Registered User: | G1: Free Trial Version - Not For Commercial Use | AF1: © 2017 CivilWeb | CD1: CALCULATIONS: | FN1: Version 1.1
B2: Your Logo / Company Details Here | G2: Project: | AF2: By: | BU2: Results:
G3: Calculation: | M3: Gable Frame Analysis | CE3: Member Direction Cosines: | CJ3: Fixed | FF3: AISC Shape | FG3: A (in.^2) | FH3: Ix (in.^4) | FI3: Iy (in.^4) | FJ3: A (cm^2) | FK3: Ix (cm^4) | FL3: Iy (cm^4)
AF4: Approved: | BU4: Support Reactions: | CF4: Member No. | CG4: lx | CH4: ly | CJ4: Pinned | FF4: W44x335 | FG4: 98.3 | FH4: 31100 | FI4: 1200 | FJ4: =$FG4*(2.54)^2 -> 634.19228 | FK4: =$FH4*(2.54)^4 -> 1294479.734 | FL4: =$FI4*(2.54)^4 -> 49947.77107
G5: Sheet Number: | M5: 1 | T5: Date: | CF5: 1 | CG5: =($FY$13-$FY$12)/$GB$27 -> 0 | CH5: =($FZ$13-$FZ$12)/$GB$27 -> 1 | CJ5: X-Global | FF5: W44x290 | FG5: 85.8 | FH5: 27100 | FI5: 1050 | FJ5: =$FG5*(2.54)^2 -> 553.54728 | FK5: =$FH5*(2.54)^4 -> 1127987.163 | FL5: =$FI5*(2.54)^4 -> 43704.29969 | FO5: Caution: Do not use "Space Bar" to clear contents of
BU6: Joint No. | BV6: Rx (kN) | BW6: Ry (kN) | BX6: Mz (kN-m) | CF6: 2 | CG6: =($FY$14-$FY$13)/$GB$28 -> 0.9284766909 | CH6: =($FZ$14-$FZ$13)/$GB$28 -> 0.3713906764 | CJ6: X-Projected | FF6: W44x285 | FG6: 83.8 | FH6: 24600 | FI6: 490 | FJ6: 540.64 | FK6: 1023929.31 | FL6: 20395.34 | FO6: unused input cells for loadings. "Highlight" those
H7: Frame Details | BD7: Input Data: | BU7: 1 | BV7: =IF(AND($FY$21="Fixed",$FY$22="Fixed"),$CI$143,IF(AND($FY$21="Pinned",$FY$22="Pinned"),$CI$254,IF(AND($FY$21="Fixed",$FY$22="Pinned"),$CI$366,IF(AND($FY$21="Pinned",$FY$22="Fixed"),$CI$477))))*4.448222 -> -143.9430706 | BW7: =IF(AND($FY$21="Fixed",$FY$22="Fixed"),$CI$144,IF(AND($FY$21="Pinned",$FY$22="Pinned"),$CI$255,IF(AND($FY$21="Fixed",$FY$22="Pinned"),$CI$367,IF(AND($FY$21="Pinned",$FY$22="Fixed"),$CI$478))))*4.448222 -> -279.5300109 | BX7: =IF(AND($FY$21="Fixed",$FY$22="Fixed"),$CI$145/12,IF(AND($FY$21="Pinned",$FY$22="Pinned"),0,IF(AND($FY$21="Fixed",$FY$22="Pinned"),$CI$368/12,IF(AND($FY$21="Pinned",$FY$22="Fixed"),0))))*1.355818 -> 364.3779092 | CF7: 3 | CG7: =($FY$15-$FY$14)/$GB$29 -> 0.9284766909 | CH7: =($FZ$15-$FZ$14)/$GB$29 -> -0.3713906764 | CJ7: Y-Global | FF7: W44x262 | FG7: 77.2 | FH7: 24200 | FI7: 927 | FJ7: 498.06 | FK7: 1007280.05 | FL7: 38584.65 | FO7: cells which are to be cleared and click on the | FV7: Convert Metric Units Input Data back to English Units:
BL8: Fixed | BM8: Dead | BU8: 5 | BV8: =IF(AND($FY$21="Fixed",$FY$22="Fixed"),$CI$146,IF(AND($FY$21="Pinned",$FY$22="Pinned"),$CI$256,IF(AND($FY$21="Fixed",$FY$22="Pinned"),$CI$369,IF(AND($FY$21="Pinned",$FY$22="Fixed"),$CI$479))))*4.448222 -> 116.9430651 | BW8: =IF(AND($FY$21="Fixed",$FY$22="Fixed"),$CI$147,IF(AND($FY$21="Pinned",$FY$22="Pinned"),$CI$257,IF(AND($FY$21="Fixed",$FY$22="Pinned"),$CI$370,IF(AND($FY$21="Pinned",$FY$22="Fixed"),$CI$480))))*4.448222 -> -150.4701253 | BX8: =IF(AND($FY$21="Fixed",$FY$22="Fixed"),$CI$148/12,IF(AND($FY$21="Pinned",$FY$22="Pinned"),0,IF(AND($FY$21="Fixed",$FY$22="Pinned"),0,IF(AND($FY$21="Pinned",$FY$22="Fixed"),$CI$481/12))))*1.355818 -> -105.0572653 | CF8: 4 | CG8: =($FY$15-$FY$16)/$GB$30 -> 0 | CH8: =($FZ$15-$FZ$16)/$GB$30 -> 1 | CJ8: Y-Projected | FF8: W44x248 | FG8: 72.8 | FH8: 21400 | FI8: 435 | FJ8: 469.68 | FK8: 890735.25 | FL8: 18106.07 | FO8: Right Mouse Button and select "Clear Contents".
H9: Joint Co-ordinates | BD9: Joint Coordinates: | BL9: Pinned | BM9: Imposed | FF9: W44x230 | FG9: 67.7 | FH9: 20800 | FI9: 796 | FJ9: 436.77 | FK9: 865761.37 | FL9: 33132.02 | FV9: Joint Coordinates:
L10: X (m) | O10: Y (m) | BE10: =IF(AND($FY$12=$FY$13,$FY$15=$FY$16),"","Columns must be vertical !") ->  | BU10: Member End Forces: | FF10: W44x224 | FG10: 65.8 | FH10: 19200 | FI10: 391 | FJ10: 424.52 | FK10: 799164.34 | FL10: 16274.65
H11: Joint 1 | L11: 0 | O11: 0 | AO11: =($L11/MAX($L$11:$Q$14))*10 -> 0 | AP11: =($O11/MAX($L$11:$Q$14))*10 -> 0 | AR11: =AVERAGE(AO11:AO12) -> 0 | AS11: =AVERAGE(AP11:AP12) -> 3 | BE11: Joint No. | BG11: x (m) | BH11: y (m) | CC11: Member Loads: | FF11: W44x198 | FG11: 58 | FH11: 16700 | FI11: 336 | FJ11: 374.19 | FK11: 695106.48 | FL11: 13985.38 | FW11: Joint No. | FY11: x (ft.) | FZ11: y (ft.)
H12: Joint 2 | L12: =L11 -> 0 | O12: 6 | AO12: =($L12/MAX($L$11:$Q$14))*10 -> 0 | AP12: =($O12/MAX($L$11:$Q$14))*10 -> 6 | AR12: =AVERAGE(AO12:AO13) -> 2.5 | AS12: 7 | BE12: 1 | BG12: =L11 -> 0 | BH12: =O11 -> 0 | BU12: Member No. | BV12: Joint No. | BW12: Axial (kN) | BX12: Shear (kN) | BY12: Moment (kN-m) | FF12: W40x655 | FG12: 192 | FH12: 56500 | FI12: 2860 | FJ12: 1238.71 | FK12: 2351707.55 | FL12: 119042.19 | FW12: 1 | FY12: =BG12*3.28083 -> 0 | FZ12: 0
H13: Joint 3 | L13: 5 | O13: 8 | AO13: 5 | AP13: 8 | AR13: 7.5 | AS13: 7 | BE13: 2 | BG13: =L12 -> 0 | BH13: =O12 -> 6 | BU13: 1 | BV13: 1 | BW13: =IF(AND($FY$21="Fixed",$FY$22="Fixed"),$CQ$155,IF(AND($FY$21="Pinned",$FY$22="Pinned"),$CQ$268,IF(AND($FY$21="Fixed",$FY$22="Pinned"),$CQ$379,IF(AND($FY$21="Pinned",$FY$22="Fixed"),$CQ$490))))*4.448222 -> -251.5300138 | BX13: =IF(AND($FY$21="Fixed",$FY$22="Fixed"),$CQ$156,IF(AND($FY$21="Pinned",$FY$22="Pinned"),$CQ$269,IF(AND($FY$21="Fixed",$FY$22="Pinned"),$CQ$380,IF(AND($FY$21="Pinned",$FY$22="Fixed"),$CQ$491))))*4.448222 -> 129.943072 | BY13: =IF(AND($FY$21="Fixed",$FY$22="Fixed"),$CQ$157/12,IF(AND($FY$21="Pinned",$FY$22="Pinned"),$CQ$270/12,IF(AND($FY$21="Fixed",$FY$22="Pinned"),$CQ$381/12,IF(AND($FY$21="Pinned",$FY$22="Fixed"),$CQ$492/12))))*1.355818 -> 385.3779058 | CD13: Distributed Loads: | FF13: W40x593 | FG13: 174 | FH13: 50400 | FI13: 2520 | FJ13: 1122.58 | FK13: 2097806.39 | FL13: 104890.32 | FW13: 2 | FY13: 0 | FZ13: 19.68498
H14: Joint 4 | L14: 10 | O14: 6 | AO14: 10 | AP14: 6 | AR14: =AVERAGE(AO14:AO15) -> 10 | AS14: =AVERAGE(AP14:AP15) -> 3 | BE14: 3 | BG14: =L13 -> 5 | BH14: =O13 -> 8 | BV14: 2 | BW14: =IF(AND($FY$21="Fixed",$FY$22="Fixed"),$CQ$158,IF(AND($FY$21="Pinned",$FY$22="Pinned"),$CQ$271,IF(AND($FY$21="Fixed",$FY$22="Pinned"),$CQ$382,IF(AND($FY$21="Pinned",$FY$22="Fixed"),$CQ$493))))*4.448222 -> 251.5300138 | BX14: =IF(AND($FY$21="Fixed",$FY$22="Fixed"),$CQ$159,IF(AND($FY$21="Pinned",$FY$22="Pinned"),$CQ$272,IF(AND($FY$21="Fixed",$FY$22="Pinned"),$CQ$383,IF(AND($FY$21="Pinned",$FY$22="Fixed"),$CQ$494))))*4.448222 -> -117.9430786 | BY14: =IF(AND($FY$21="Fixed",$FY$22="Fixed"),$CQ$160/12,IF(AND($FY$21="Pinned",$FY$22="Pinned"),$CQ$273/12,IF(AND($FY$21="Fixed",$FY$22="Pinned"),$CQ$384/12,IF(AND($FY$21="Pinned",$FY$22="Fixed"),$CQ$495/12))))*1.355818 -> 353.7782915 | FF14: W40x531 | FG14: 156 | FH14: 44300 | FI14: 2200 | FJ14: 1006.45 | FK14: 1843905.22 | FL14: 91570.91 | FW14: 3 | FY14: 16.40415 | FZ14: 26.24664
H15: Joint 5 | L15: =L14 -> 10 | O15: =O11 -> 0 | AO15: 10 | AP15: 0 | BE15: 4 | BG15: =L14 -> 10 | BH15: =O14 -> 6 | BU15: 2 | BV15: 2 | BW15: =IF(AND($FY$21="Fixed",$FY$22="Fixed"),$CQ$163,IF(AND($FY$21="Pinned",$FY$22="Pinned"),$CQ$276,IF(AND($FY$21="Fixed",$FY$22="Pinned"),$CQ$387,IF(AND($FY$21="Pinned",$FY$22="Fixed"),$CQ$498))))*4.448222 -> -179.1543005 | BX15: =IF(AND($FY$21="Fixed",$FY$22="Fixed"),$CQ$164,IF(AND($FY$21="Pinned",$FY$22="Pinned"),$CQ$277,IF(AND($FY$21="Fixed",$FY$22="Pinned"),$CQ$388,IF(AND($FY$21="Pinned",$FY$22="Fixed"),$CQ$499))))*4.448222 -> -173.3956071 | BY15: =IF(AND($FY$21="Fixed",$FY$22="Fixed"),$CQ$165/12,IF(AND($FY$21="Pinned",$FY$22="Pinned"),$CQ$278/12,IF(AND($FY$21="Fixed",$FY$22="Pinned"),$CQ$389/12,IF(AND($FY$21="Pinned",$FY$22="Fixed"),$CQ$500/12))))*1.355818 -> -337.7782941 | CD15: Member No. | CE15: Distributed Load #1 | CI15: Distributed Load #2 | CM15: Distributed Load #3 | CQ15: Distributed Load #4 | CU15: Distributed Load #5 | FF15: W40x503 | FG15: 148 | FH15: 41700 | FI15: 2050 | FJ15: 954.84 | FK15: 1735685.04 | FL15: 85327.44 | FW15: 4 | FY15: 32.8083 | FZ15: 19.68498
BE16: 5 | BG16: =L15 -> 10 | BH16: =O15 -> 0 | BV16: 3 | BW16: =IF(AND($FY$21="Fixed",$FY$22="Fixed"),$CQ$166,IF(AND($FY$21="Pinned",$FY$22="Pinned"),$CQ$279,IF(AND($FY$21="Fixed",$FY$22="Pinned"),$CQ$390,IF(AND($FY$21="Pinned",$FY$22="Fixed"),$CQ$501))))*4.448222 -> -14.34033618 | BX16: =IF(AND($FY$21="Fixed",$FY$22="Fixed"),$CQ$167,IF(AND($FY$21="Pinned",$FY$22="Pinned"),$CQ$280,IF(AND($FY$21="Fixed",$FY$22="Pinned"),$CQ$391,IF(AND($FY$21="Pinned",$FY$22="Fixed"),$CQ$502))))*4.448222 -> 34.309731 | BY16: =IF(AND($FY$21="Fixed",$FY$22="Fixed"),$CQ$168/12,IF(AND($FY$21="Pinned",$FY$22="Pinned"),$CQ$281/12,IF(AND($FY$21="Fixed",$FY$22="Pinned"),$CQ$392/12,IF(AND($FY$21="Pinned",$FY$22="Fixed"),$CQ$503/12))))*1.355818 -> -174.1480893 | CE16: b (ft.) | CF16: wb (k/ft.) | CG16: e (ft.) | CH16: we (k/ft.) | CI16: b (ft.) | CJ16: wb (k/ft.) | CK16: e (ft.) | CL16: we (k/ft.) | CM16: b (ft.) | CN16: wb (k/ft.) | CO16: e (ft.) | CP16: we (k/ft.) | CQ16: b (ft.) | CR16: wb (k/ft.) | CS16: e (ft.) | CT16: we (k/ft.) | CU16: b (ft.) | CV16: wb (k/ft.) | CW16: e (ft.) | CX16: we (k/ft.) | FF16: W40x480 | FG16: 140 | FH16: 39500 | FI16: 1940 | FJ16: 903.22 | FK16: 1644114.13 | FL16: 80748.9 | FW16: 5 | FY16: 32.8083 | FZ16: 0
H17: Supports | AO17: -5 | AP17: 0 | BE17: =IF(AND($FZ$14>$FZ$13,$FZ$14>$FZ$15),"","Joint 3 must be above Joints 2 and 4 !") ->  | BU17: 3 | BV17: 3 | BW17: =IF(AND($FY$21="Fixed",$FY$22="Fixed"),$CQ$171,IF(AND($FY$21="Pinned",$FY$22="Pinned"),$CQ$284,IF(AND($FY$21="Fixed",$FY$22="Pinned"),$CQ$395,IF(AND($FY$21="Pinned",$FY$22="Fixed"),$CQ$506))))*4.448222 -> 34.04626482 | BX17: =IF(AND($FY$21="Fixed",$FY$22="Fixed"),$CQ$172,IF(AND($FY$21="Pinned",$FY$22="Pinned"),$CQ$285,IF(AND($FY$21="Fixed",$FY$22="Pinned"),$CQ$396,IF(AND($FY$21="Pinned",$FY$22="Fixed"),$CQ$507))))*4.448222 -> -14.9550906 | BY17: =IF(AND($FY$21="Fixed",$FY$22="Fixed"),$CQ$173/12,IF(AND($FY$21="Pinned",$FY$22="Pinned"),$CQ$286/12,IF(AND($FY$21="Fixed",$FY$22="Pinned"),$CQ$397/12,IF(AND($FY$21="Pinned",$FY$22="Fixed"),$CQ$508/12))))*1.355818 -> 174.1480893 | CD17: 1 (X) | CE17: =$FY$46*$GB$27 -> 3.28083 | CF17: =$FZ$46 -> 1.644528 | CG17: =$GA$46*$GB$27 -> 13.12332 | CH17: =$GB$46 -> 2.74088 | CI17: =$GC$46*$GB$27 -> 0 | CJ17: =$GD$46 -> -1.438962 | CK17: =$GE$46*$GB$27 -> 16.40415 | CL17: =$GF$46 -> -1.438962 | CM17: =$GG$46*$GB$27 -> 0 | CN17: =$GH$46 -> 0 | CO17: =$GI$46*$GB$27 -> 0 | CP17: =$GJ$46 -> 0 | CQ17: =$GK$46*$GB$27 -> 0 | CR17: =$GL$46 -> 0 | CS17: =$GM$46*$GB$27 -> 0 | CT17: =$GN$46 -> 0 | CU17: =$GO$46*$GB$27 -> 0 | CV17: =$GP$46 -> 0 | CW17: =$GQ$46*$GB$27 -> 0 | CX17: =$GR$46 -> 0 | FF17: W40x466 | FG17: 137 | FH17: 36300 | FI17: 1010 | FJ17: 883.87 | FK17: 1510920.07 | FL17: 42039.37
H18: Joint 1 | L18: Fixed | AO18: 20 | AP18: 0 | BD18: Support Constraints: | BF18: =IF($FZ$15=0,"Joint 4 must be above Joint 5 !","") ->  | BV18: 4 | BW18: =IF(AND($FY$21="Fixed",$FY$22="Fixed"),$CQ$174,IF(AND($FY$21="Pinned",$FY$22="Pinned"),$CQ$287,IF(AND($FY$21="Fixed",$FY$22="Pinned"),$CQ$398,IF(AND($FY$21="Pinned",$FY$22="Fixed"),$CQ$509))))*4.448222 -> 17.94844752 | BX18: =IF(AND($FY$21="Fixed",$FY$22="Fixed"),$CQ$175,IF(AND($FY$21="Pinned",$FY$22="Pinned"),$CQ$288,IF(AND($FY$21="Fixed",$FY$22="Pinned"),$CQ$399,IF(AND($FY$21="Pinned",$FY$22="Fixed"),$CQ$510))))*4.448222 -> -115.0316902 | BY18: =IF(AND($FY$21="Fixed",$FY$22="Fixed"),$CQ$176/12,IF(AND($FY$21="Pinned",$FY$22="Pinned"),$CQ$289/12,IF(AND($FY$21="Fixed",$FY$22="Pinned"),$CQ$400/12,IF(AND($FY$21="Pinned",$FY$22="Fixed"),$CQ$511/12))))*1.355818 -> 104.1003756 | CD18: 2 (Y) | CE18: =$FY$47*$GB$28 -> 3.28083 | CF18: =IF($FX$47="Y-Global",(-$FZ$47*$CG$6),IF($FX$47="Y-Projected",(-$FZ$47*$CG$6)*$CG$6)) -> -1.526905916 | CG18: =$GA$47*$GB$28 -> 13.12332 | CH18: =IF($FX$47="Y-Global",(-$GB$47*$CG$6),IF($FX$47="Y-Projected",(-$GB$47*$CG$6)*$CG$6)) -> -2.544843193 | CI18: =$GC$47*$GB$28 -> 0 | CJ18: =IF($FX$47="Y-Global",(-$GD$47*$CG$6),IF($FX$47="Y-Projected",(-$GD$47*$CG$6)*$CG$6)) -> -1.336042676 | CK18: =$GE$47*$GB$28 -> 16.40415 | CL18: =IF($FX$47="Y-Global",(-$GF$47*$CG$6),IF($FX$47="Y-Projected",(-$GF$47*$CG$6)*$CG$6)) -> -1.336042676 | CM18: =$GG$47*$GB$28 -> 0 | CN18: =IF($FX$47="Y-Global",(-$GH$47*$CG$6),IF($FX$47="Y-Projected",(-$GH$47*$CG$6)*$CG$6)) -> 0 | CO18: =$GI$47*$GB$28 -> 0 | CP18: =IF($FX$47="Y-Global",(-$GJ$47*$CG$6),IF($FX$47="Y-Projected",(-$GJ$47*$CG$6)*$CG$6)) -> 0 | CQ18: =$GK$47*$GB$28 -> 0 | CR18: =IF($FX$47="Y-Global",(-$GL$47*$CG$6),IF($FX$47="Y-Projected",(-$GL$47*$CG$6)*$CG$6)) -> 0 | CS18: =$GM$47*$GB$28 -> 0 | CT18: =IF($FX$47="Y-Global",(-$GN$47*$CG$6),IF($FX$47="Y-Projected",(-$GN$47*$CG$6)*$CG$6)) -> 0 | CU18: =$GO$47*$GB$28 -> 0 | CV18: =IF($FX$47="Y-Global",(-$GP$47*$CG$6),IF($FX$47="Y-Projected",(-$GP$47*$CG$6)*$CG$6)) -> 0 | CW18: =$GQ$47*$GB$28 -> 0 | CX18: =IF($FX$47="Y-Global",(-$GR$47*$CG$6),IF($FX$47="Y-Projected",(-$GR$47*$CG$6)*$CG$6)) -> 0 | FF18: W40x436 | FG18: 128 | FH18: 35400 | FI18: 1720 | FJ18: 825.8 | FK18: 1473459.25 | FL18: 71591.81 | FV18: Support Constraints:
H19: Joint 4 | L19: Fixed | BU19: 4 | BV19: 5 | BW19: =IF(AND($FY$21="Fixed",$FY$22="Fixed"),$CQ$179,IF(AND($FY$21="Pinned",$FY$22="Pinned"),$CQ$292,IF(AND($FY$21="Fixed",$FY$22="Pinned"),$CQ$403,IF(AND($FY$21="Pinned",$FY$22="Fixed"),$CQ$514))))*4.448222 -> -134.4701269 | BX19: =IF(AND($FY$21="Fixed",$FY$22="Fixed"),$CQ$180,IF(AND($FY$21="Pinned",$FY$22="Pinned"),$CQ$293,IF(AND($FY$21="Fixed",$FY$22="Pinned"),$CQ$404,IF(AND($FY$21="Pinned",$FY$22="Fixed"),$CQ$515))))*4.448222 -> -92.94306764 | BY19: =IF(AND($FY$21="Fixed",$FY$22="Fixed"),$CQ$181/12,IF(AND($FY$21="Pinned",$FY$22="Pinned"),$CQ$294/12,IF(AND($FY$21="Fixed",$FY$22="Pinned"),$CQ$405/12,IF(AND($FY$21="Pinned",$FY$22="Fixed"),$CQ$516/12))))*1.355818 -> -89.05726789 | CD19: 2 (Axial) | CE19: =$FY$47*$GB$28 -> 3.28083 | CF19: =IF($FX$47="Y-Global",(-$FZ$47*$CH$6),IF($FX$47="Y-Projected",(-$FZ$47*$CH$6)*$CG$6)) -> -0.6107623662 | CG19: =$GA$47*$GB$28 -> 13.12332 | CH19: =IF($FX$47="Y-Global",(-$GB$47*$CH$6),IF($FX$47="Y-Projected",(-$GB$47*$CH$6)*$CG$6)) -> -1.017937277 | CI19: =$GC$47*$GB$28 -> 0 | CJ19: =IF($FX$47="Y-Global",(-$GD$47*$CH$6),IF($FX$47="Y-Projected",(-$GD$47*$CH$6)*$CG$6)) -> -0.5344170704 | CK19: =$GE$47*$GB$28 -> 16.40415 | CL19: =IF($FX$47="Y-Global",(-$GF$47*$CH$6),IF($FX$47="Y-Projected",(-$GF$47*$CH$6)*$CG$6)) -> -0.5344170704 | CM19: =$GG$47*$GB$28 -> 0 | CN19: =IF($FX$47="Y-Global",(-$GH$47*$CH$6),IF($FX$47="Y-Projected",(-$GH$47*$CH$6)*$CG$6)) -> 0 | CO19: =$GI$47*$GB$28 -> 0 | CP19: =IF($FX$47="Y-Global",(-$GJ$47*$CH$6),IF($FX$47="Y-Projected",(-$GJ$47*$CH$6)*$CG$6)) -> 0 | CQ19: =$GK$47*$GB$28 -> 0 | CR19: =IF($FX$47="Y-Global",(-$GL$47*$CH$6),IF($FX$47="Y-Projected",(-$GL$47*$CH$6)*$CG$6)) -> 0 | CS19: =$GM$47*$GB$28 -> 0 | CT19: =IF($FX$47="Y-Global",(-$GN$47*$CH$6),IF($FX$47="Y-Projected",(-$GN$47*$CH$6)*$CG$6)) -> 0 | CU19: =$GO$47*$GB$28 -> 0 | CV19: =IF($FX$47="Y-Global",(-$GP$47*$CH$6),IF($FX$47="Y-Projected",(-$GP$47*$CH$6)*$CG$6)) -> 0 | CW19: =$GQ$47*$GB$28 -> 0 | CX19: =IF($FX$47="Y-Global",(-$GR$47*$CH$6),IF($FX$47="Y-Projected",(-$GR$47*$CH$6)*$CG$6)) -> 0 | FF19: W40x431 | FG19: 127 | FH19: 34800 | FI19: 1690 | FJ19: 819.35 | FK19: 1448485.36 | FL19: 70343.11
AN20: =MAX(L11:N15)-MIN(L11:N15)&"m" -> 10m | AO20: =MIN(AO11:AO15) -> 0 | AP20: -0.3 | BE20: Joint No. | BG20: Condition | BV20: 4 | BW20: =IF(AND($FY$21="Fixed",$FY$22="Fixed"),$CQ$182,IF(AND($FY$21="Pinned",$FY$22="Pinned"),$CQ$295,IF(AND($FY$21="Fixed",$FY$22="Pinned"),$CQ$406,IF(AND($FY$21="Pinned",$FY$22="Fixed"),$CQ$517))))*4.448222 -> 134.4701269 | BX20: =IF(AND($FY$21="Fixed",$FY$22="Fixed"),$CQ$183,IF(AND($FY$21="Pinned",$FY$22="Pinned"),$CQ$296,IF(AND($FY$21="Fixed",$FY$22="Pinned"),$CQ$407,IF(AND($FY$21="Pinned",$FY$22="Fixed"),$CQ$518))))*4.448222 -> -12.05698355 | BY20: =IF(AND($FY$21="Fixed",$FY$22="Fixed"),$CQ$184/12,IF(AND($FY$21="Pinned",$FY$22="Pinned"),$CQ$297/12,IF(AND($FY$21="Fixed",$FY$22="Pinned"),$CQ$408/12,IF(AND($FY$21="Pinned",$FY$22="Fixed"),$CQ$519/12))))*1.355818 -> -125.1003721 | CD20: 2 (X) | CE20: =$FY$48*$GB$28 -> 3.28083 | CF20: =IF($FX$48="X-Global",($FZ$48*$CH$6),IF($FX$48="X-Projected",($FZ$48*$CH$6)*$CH$6)) -> 0.6107623662 | CG20: =$GA$48*$GB$28 -> 16.40415 | CH20: =IF($FX$48="X-Global",($GB$48*$CH$6),IF($FX$48="X-Projected",($GB$48*$CH$6)*$CH$6)) -> 1.017937277 | CI20: =$GC$48*$GB$28 -> 0 | CJ20: =IF($FX$48="X-Global",($GD$48*$CH$6),IF($FX$48="X-Projected",($GD$48*$CH$6)*$CH$6)) -> 0 | CK20: =$GE$48*$GB$28 -> 0 | CL20: =IF($FX$48="X-Global",($GF$48*$CH$6),IF($FX$48="X-Projected",($GF$48*$CH$6)*$CH$6)) -> 0 | CM20: =$GG$48*$GB$28 -> 0 | CN20: =IF($FX$48="X-Global",($GH$48*$CH$6),IF($FX$48="X-Projected",($GH$48*$CH$6)*$CH$6)) -> 0 | CO20: =$GI$48*$GB$28 -> 0 | CP20: =IF($FX$48="X-Global",($GJ$48*$CH$6),IF($FX$48="X-Projected",($GJ$48*$CH$6)*$CH$6)) -> 0 | CQ20: =$GK$48*$GB$28 -> 0 | CR20: =IF($FX$48="X-Global",($GL$48*$CH$6),IF($FX$48="X-Projected",($GL$48*$CH$6)*$CH$6)) -> 0 | CS20: =$GM$48*$GB$28 -> 0 | CT20: =IF($FX$48="X-Global",($GN$48*$CH$6),IF($FX$48="X-Projected",($GN$48*$CH$6)*$CH$6)) -> 0 | CU20: =$GO$48*$GB$28 -> 0 | CV20: =IF($FX$48="X-Global",($GP$48*$CH$6),IF($FX$48="X-Projected",($GP$48*$CH$6)*$CH$6)) -> 0 | CW20: =$GQ$48*$GB$28 -> 0 | CX20: =IF($FX$48="X-Global",($GR$48*$CH$6),IF($FX$48="X-Projected",($GR$48*$CH$6)*$CH$6)) -> 0 | FF20: W40x397 | FG20: 117 | FH20: 32000 | FI20: 1540 | FJ20: 754.84 | FK20: 1331940.56 | FL20: 64099.64 | FW20: Joint No. | FY20: Condition
H21: Member Properties | AO21: =AVERAGE(AO20,AO22) -> 5 | AP21: =AVERAGE(AP20,AP22) -> -0.3 | BE21: 1 | BG21: =L18 -> Fixed | CD21: 2 (Axial) | CE21: =$FY$48*$GB$28 -> 3.28083 | CF21: =IF($FX$48="X-Global",($FZ$48*$CG$6),IF($FX$48="X-Projected",($FZ$48*$CG$6)*$CH$6)) -> 1.526905916 | CG21: =$GA$48*$GB$28 -> 16.40415 | CH21: =IF($FX$48="X-Global",($GB$48*$CG$6),IF($FX$48="X-Projected",($GB$48*$CG$6)*$CH$6)) -> 2.544843193 | CI21: =$GC$48*$GB$28 -> 0 | CJ21: =IF($FX$48="X-Global",($GD$48*$CG$6),IF($FX$48="X-Projected",($GD$48*$CG$6)*$CH$6)) -> 0 | CK21: =$GE$48*$GB$28 -> 0 | CL21: =IF($FX$48="X-Global",($GF$48*$CG$6),IF($FX$48="X-Projected",($GF$48*$CG$6)*$CH$6)) -> 0 | CM21: =$GG$48*$GB$28 -> 0 | CN21: =IF($FX$48="X-Global",($GH$48*$CG$6),IF($FX$48="X-Projected",($GH$48*$CG$6)*$CH$6)) -> 0 | CO21: =$GI$48*$GB$28 -> 0 | CP21: =IF($FX$48="X-Global",($GJ$48*$CG$6),IF($FX$48="X-Projected",($GJ$48*$CG$6)*$CH$6)) -> 0 | CQ21: =$GK$48*$GB$28 -> 0 | CR21: =IF($FX$48="X-Global",($GL$48*$CG$6),IF($FX$48="X-Projected",($GL$48*$CG$6)*$CH$6)) -> 0 | CS21: =$GM$48*$GB$28 -> 0 | CT21: =IF($FX$48="X-Global",($GN$48*$CG$6),IF($FX$48="X-Projected",($GN$48*$CG$6)*$CH$6)) -> 0 | CU21: =$GO$48*$GB$28 -> 0 | CV21: =IF($FX$48="X-Global",($GP$48*$CG$6),IF($FX$48="X-Projected",($GP$48*$CG$6)*$CH$6)) -> 0 | CW21: =$GQ$48*$GB$28 -> 0 | CX21: =IF($FX$48="X-Global",($GR$48*$CG$6),IF($FX$48="X-Projected",($GR$48*$CG$6)*$CH$6)) -> 0 | FF21: W40x392 | FG21: 115 | FH21: 29900 | FI21: 803 | FJ21: 741.93 | FK21: 1244531.96 | FL21: 33423.38 | FW21: 1 | FY21: =BG21 -> Fixed
L22: Section Area (cm²) | Q22: Inertia (cm⁴) | V22: Elasticity (MPa) | AB22: Length (m) | AO22: =MAX(AO11:AO15) -> 10 | AP22: -0.3 | BE22: 5 | BG22: =L19 -> Fixed | BU22: Member Maximum Moments: | CD22: 3 (Y) | CE22: =$FY$49*$GB$29 -> 0 | CF22: =IF($FX$49="Y-Global",(-$FZ$49*$CG$7),IF($FX$49="Y-Projected",(-$FZ$49*$CG$7)*$CG$7)) -> 0 | CG22: =$GA$49*$GB$29 -> 0 | CH22: =IF($FX$49="Y-Global",(-$GB$49*$CG$7),IF($FX$49="Y-Projected",(-$GB$49*$CG$7)*$CG$7)) -> 0 | CI22: =$GC$49*$GB$29 -> 0 | CJ22: =IF($FX$49="Y-Global",(-$GD$49*$CG$7),IF($FX$49="Y-Projected",(-$GD$49*$CG$7)*$CG$7)) -> -1.336042676 | CK22: =$GE$49*$GB$29 -> 16.40415 | CL22: =IF($FX$49="Y-Global",(-$GF$49*$CG$7),IF($FX$49="Y-Projected",(-$GF$49*$CG$7)*$CG$7)) -> -1.336042676 | CM22: =$GG$49*$GB$29 -> 0 | CN22: =IF($FX$49="Y-Global",(-$GH$49*$CG$7),IF($FX$49="Y-Projected",(-$GH$49*$CG$7)*$CG$7)) -> 0 | CO22: =$GI$49*$GB$29 -> 0 | CP22: =IF($FX$49="Y-Global",(-$GJ$49*$CG$7),IF($FX$49="Y-Projected",(-$GJ$49*$CG$7)*$CG$7)) -> 0 | CQ22: =$GK$49*$GB$29 -> 0 | CR22: =IF($FX$49="Y-Global",(-$GL$49*$CG$7),IF($FX$49="Y-Projected",(-$GL$49*$CG$7)*$CG$7)) -> 0 | CS22: =$GM$49*$GB$29 -> 0 | CT22: =IF($FX$49="Y-Global",(-$GN$49*$CG$7),IF($FX$49="Y-Projected",(-$GN$49*$CG$7)*$CG$7)) -> 0 | CU22: =$GO$49*$GB$29 -> 0 | CV22: =IF($FX$49="Y-Global",(-$GP$49*$CG$7),IF($FX$49="Y-Projected",(-$GP$49*$CG$7)*$CG$7)) -> 0 | CW22: =$GQ$49*$GB$29 -> 0 | CX22: =IF($FX$49="Y-Global",(-$GR$49*$CG$7),IF($FX$49="Y-Projected",(-$GR$49*$CG$7)*$CG$7)) -> 0 | FF22: W40x372 | FG22: 109 | FH22: 29600 | FI22: 1420 | FJ22: 703.22 | FK22: 1232045.02 | FL22: 59104.86 | FW22: 5 | FY22: =BG22 -> Fixed
CD23: 3 (Axial) | CE23: =$FY$49*$GB$29 -> 0 | CF23: =IF($FX$49="Y-Global",(-$FZ$49*$CH$7),IF($FX$49="Y-Projected",(-$FZ$49*$CH$7)*$CG$7)) -> 0 | CG23: =$GA$49*$GB$29 -> 0 | CH23: =IF($FX$49="Y-Global",(-$GB$49*$CH$7),IF($FX$49="Y-Projected",(-$GB$49*$CH$7)*$CG$7)) -> 0 | CI23: =$GC$49*$GB$29 -> 0 | CJ23: =IF($FX$49="Y-Global",(-$GD$49*$CH$7),IF($FX$49="Y-Projected",(-$GD$49*$CH$7)*$CG$7)) -> 0.5344170704 | CK23: =$GE$49*$GB$29 -> 16.40415 | CL23: =IF($FX$49="Y-Global",(-$GF$49*$CH$7),IF($FX$49="Y-Projected",(-$GF$49*$CH$7)*$CG$7)) -> 0.5344170704 | CM23: =$GG$49*$GB$29 -> 0 | CN23: =IF($FX$49="Y-Global",(-$GH$49*$CH$7),IF($FX$49="Y-Projected",(-$GH$49*$CH$7)*$CG$7)) -> 0 | CO23: =$GI$49*$GB$29 -> 0 | CP23: =IF($FX$49="Y-Global",(-$GJ$49*$CH$7),IF($FX$49="Y-Projected",(-$GJ$49*$CH$7)*$CG$7)) -> 0 | CQ23: =$GK$49*$GB$29 -> 0 | CR23: =IF($FX$49="Y-Global",(-$GL$49*$CH$7),IF($FX$49="Y-Projected",(-$GL$49*$CH$7)*$CG$7)) -> 0 | CS23: =$GM$49*$GB$29 -> 0 | CT23: =IF($FX$49="Y-Global",(-$GN$49*$CH$7),IF($FX$49="Y-Projected",(-$GN$49*$CH$7)*$CG$7)) -> 0 | CU23: =$GO$49*$GB$29 -> 0 | CV23: =IF($FX$49="Y-Global",(-$GP$49*$CH$7),IF($FX$49="Y-Projected",(-$GP$49*$CH$7)*$CG$7)) -> 0 | CW23: =$GQ$49*$GB$29 -> 0 | CX23: =IF($FX$49="Y-Global",(-$GR$49*$CH$7),IF($FX$49="Y-Projected",(-$GR$49*$CH$7)*$CG$7)) -> 0 | FF23: W40x362 | FG23: 107 | FH23: 28900 | FI23: 1380 | FJ23: 690.32 | FK23: 1202908.82 | FL23: 57439.94 | FO23: Steel Beam:
H24: Member 1 | L24: 100 | Q24: 30000 | V24: 200000 | AB24: =O12-O11 -> 6 | AN24: =O12-O11&"m" -> 6m | AO24: -0.5 | AP24: =MIN(O11:Q12) -> 0 | BD24: Member Properties and Data: | BU24: Member No. | BV24: +M or -M | BW24: M (kN-m) | BX24: x or y (m) | CD24: 3 (X) | CE24: =$FY$50*$GB$29 -> 0 | CF24: =IF($FX$50="X-Global",($FZ$50*$CH$7),IF($FX$50="X-Projected",($FZ$50*$CH$7)*ABS($CH$7))) -> 0 | CG24: =$GA$50*$GB$29 -> 0 | CH24: =IF($FX$50="X-Global",($GB$50*$CH$7),IF($FX$50="X-Projected",($GB$50*$CH$7)*ABS($CH$7))) -> 0 | CI24: =$GC$50*$GB$29 -> 0 | CJ24: =IF($FX$50="X-Global",($GD$50*$CH$7),IF($FX$50="X-Projected",($GD$50*$CH$7)*ABS($CH$7))) -> 0 | CK24: =$GE$50*$GB$29 -> 0 | CL24: =IF($FX$50="X-Global",($GF$50*$CH$7),IF($FX$50="X-Projected",($GF$50*$CH$7)*ABS($CH$7))) -> 0 | CM24: =$GG$50*$GB$29 -> 0 | CN24: =IF($FX$50="X-Global",($GH$50*$CH$7),IF($FX$50="X-Projected",($GH$50*$CH$7)*ABS($CH$7))) -> 0 | CO24: =$GI$50*$GB$29 -> 0 | CP24: =IF($FX$50="X-Global",($GJ$50*$CH$7),IF($FX$50="X-Projected",($GJ$50*$CH$7)*ABS($CH$7))) -> 0 | CQ24: =$GK$50*$GB$29 -> 0 | CR24: =IF($FX$50="X-Global",($GL$50*$CH$7),IF($FX$50="X-Projected",($GL$50*$CH$7)*ABS($CH$7))) -> 0 | CS24: =$GM$50*$GB$29 -> 0 | CT24: =IF($FX$50="X-Global",($GN$50*$CH$7),IF($FX$50="X-Projected",($GN$50*$CH$7)*ABS($CH$7))) -> 0 | CU24: =$GO$50*$GB$29 -> 0 | CV24: =IF($FX$50="X-Global",($GP$50*$CH$7),IF($FX$50="X-Projected",($GP$50*$CH$7)*ABS($CH$7))) -> 0 | CW24: =$GQ$50*$GB$29 -> 0 | CX24: =IF($FX$50="X-Global",($GR$50*$CH$7),IF($FX$50="X-Projected",($GR$50*$CH$7)*ABS($CH$7))) -> 0 | FF24: W40x331 | FG24: 97.5 | FH24: 24700 | FI24: 644 | FJ24: 629.03 | FK24: 1028091.62 | FL24: 26805.3 | FN24: Size: | FO24: W14x68 | FV24: Member Properties and Data:
H25: Member 2 | L25: 80 | Q25: 25000 | V25: 200000 | AB25: =SQRT(($L$13-$L$12)^2+($O$13-$O$12)^2) -> 5.385164807 | AO25: =AO24 -> -0.5 | AP25: =AVERAGE(AP24,AP26) -> 3 | BU25: 1 | BV25: +M(max) | BW25: =$EV$609*1.355818 -> 353.7782915 | BX25: =$EX$609*0.3048 -> 5.999981904 | CD25: 3 (Axial) | CE25: =$FY$50*$GB$29 -> 0 | CF25: =IF($FX$50="X-Global",($FZ$50*$CG$7),IF($FX$50="X-Projected",($FZ$50*$CG$7)*ABS($CH$7))) -> 0 | CG25: =$GA$50*$GB$29 -> 0 | CH25: =IF($FX$50="X-Global",($GB$50*$CG$7),IF($FX$50="X-Projected",($GB$50*$CG$7)*ABS($CH$7))) -> 0 | CI25: =$GC$50*$GB$29 -> 0 | CJ25: =IF($FX$50="X-Global",($GD$50*$CG$7),IF($FX$50="X-Projected",($GD$50*$CG$7)*ABS($CH$7))) -> 0 | CK25: =$GE$50*$GB$29 -> 0 | CL25: =IF($FX$50="X-Global",($GF$50*$CG$7),IF($FX$50="X-Projected",($GF$50*$CG$7)*ABS($CH$7))) -> 0 | CM25: =$GG$50*$GB$29 -> 0 | CN25: =IF($FX$50="X-Global",($GH$50*$CG$7),IF($FX$50="X-Projected",($GH$50*$CG$7)*ABS($CH$7))) -> 0 | CO25: =$GI$50*$GB$29 -> 0 | CP25: =IF($FX$50="X-Global",($GJ$50*$CG$7),IF($FX$50="X-Projected",($GJ$50*$CG$7)*ABS($CH$7))) -> 0 | CQ25: =$GK$50*$GB$29 -> 0 | CR25: =IF($FX$50="X-Global",($GL$50*$CG$7),IF($FX$50="X-Projected",($GL$50*$CG$7)*ABS($CH$7))) -> 0 | CS25: =$GM$50*$GB$29 -> 0 | CT25: =IF($FX$50="X-Global",($GN$50*$CG$7),IF($FX$50="X-Projected",($GN$50*$CG$7)*ABS($CH$7))) -> 0 | CU25: =$GO$50*$GB$29 -> 0 | CV25: =IF($FX$50="X-Global",($GP$50*$CG$7),IF($FX$50="X-Projected",($GP$50*$CG$7)*ABS($CH$7))) -> 0 | CW25: =$GQ$50*$GB$29 -> 0 | CX25: =IF($FX$50="X-Global",($GR$50*$CG$7),IF($FX$50="X-Projected",($GR$50*$CG$7)*ABS($CH$7))) -> 0 | FF25: W40x328 | FG25: 96.4 | FH25: 26800 | FI25: 1660 | FJ25: 621.93 | FK25: 1115500.22 | FL25: 69094.42 | FN25: A = | FO25: =VLOOKUP($FO$24,$FF$4:$FL$797,5,FALSE) -> 129.03 | FP25: cm^2
H26: Member 3 | L26: 100 | Q26: 30000 | V26: 200000 | AB26: =SQRT(($L$14-$L$13)^2+($O$14-$O$13)^2) -> 5.385164807 | AO26: -0.5 | AP26: =MAX(O11:Q12) -> 6 | BE26: Member No. | BG26: E (MPa) | BH26: A (cm^2) | BI26: I (cm^4) | BJ26: L (m) | BK26: lx | BL26: ly | BV26: -M(max) | BW26: =$EV$610*1.355818 -> -385.3779058 | BX26: =$EX$610*0.3048 -> 0 | CD26: 4 (X) | CE26: =$FY$51*$GB$30 -> 0 | CF26: =$FZ$51 -> 0 | CG26: =$GA$51*$GB$30 -> 0 | CH26: =$GB$51 -> 0 | CI26: =$GC$51*$GB$30 -> 0 | CJ26: =$GD$51 -> -1.438962 | CK26: =$GE$51*$GB$30 -> 16.40415 | CL26: =$GF$51 -> -1.438962 | CM26: =$GG$51*$GB$30 -> 0 | CN26: =$GH$51 -> 0 | CO26: =$GI$51*$GB$30 -> 0 | CP26: =$GJ$51 -> 0 | CQ26: =$GK$51*$GB$30 -> 0 | CR26: =$GL$51 -> 0 | CS26: =$GM$51*$GB$30 -> 0 | CT26: =$GN$51 -> 0 | CU26: =$GO$51*$GB$30 -> 0 | CV26: =$GP$51 -> 0 | CW26: =$GQ$51*$GB$30 -> 0 | CX26: =$GR$51 -> 0 | FF26: W40x327 | FG26: 96 | FH26: 24500 | FI26: 640 | FJ26: 619.35 | FK26: 1019766.99 | FL26: 26638.81 | FN26: Ix = | FO26: =VLOOKUP($FO$24,$FF$4:$FL$797,6,FALSE) -> 30051.91 | FP26: cm^4 | FW26: Member No. | FY26: E (ksi) | FZ26: A (in.^2) | GA26: I (in.^4) | GB26: L (ft.) | GC26: lx | GD26: ly
H27: Member 4 | L27: 100 | Q27: 30000 | V27: 200000 | AB27: =O14-O15 -> 6 | BE27: 1 | BG27: =V24 -> 200000 | BH27: =L24 -> 100 | BI27: =Q24 -> 30000 | BJ27: =AB24 -> 6 | BK27: =($BG$13-$BG$12)/$BJ$27 -> 0 | BL27: =($BH$13-$BH$12)/$BJ$27 -> 1 | BU27: 2 | BV27: +M(max) | BW27: =$EV$781*1.355818 -> 337.7782941 | BX27: =$EX$781*0.3048 -> 0 | FF27: W40x324 | FG27: 95.3 | FH27: 25600 | FI27: 1220 | FJ27: 614.84 | FK27: 1065552.45 | FL27: 50780.23 | FN27: Iy = | FO27: =VLOOKUP($FO$24,$FF$4:$FL$797,7,FALSE) -> 5036.4 | FP27: cm^4 | FW27: 1 | FY27: =BG27*0.1450377 -> 29007.54 | FZ27: =BH27*0.1550003 -> 15.50003 | GA27: =BI27*0.024025 -> 720.75 | GB27: =BJ27*3.28083 -> 19.68498 | GC27: =BK27 -> 0 | GD27: 1
AN28: =O14-O15&"m" -> 6m | AO28: 10.5 | AP28: =MIN(O14:Q15) -> 0 | BE28: 2 | BG28: =V25 -> 200000 | BH28: =L25 -> 80 | BI28: =Q25 -> 25000 | BJ28: =AB25 -> 5.385164807 | BK28: =($BG$14-$BG$13)/$BJ$28 -> 0.9284766909 | BL28: =($BH$14-$BH$13)/$BJ$28 -> 0.3713906764 | BV28: -M(max) | BW28: =$EV$782*1.355818 -> -174.1480893 | BX28: =$EX$782*0.3048 -> 5.385148566 | CD28: Point Loads: | FF28: W40x321 | FG28: 94.1 | FH28: 25100 | FI28: 1190 | FJ28: 607.1 | FK28: 1044740.88 | FL28: 49531.54 | FW28: 2 | FY28: =BG28*0.1450377 -> 29007.54 | FZ28: =BH28*0.1550003 -> 12.400024 | GA28: =BI28*0.024025 -> 600.625 | GB28: =BJ28*3.28083 -> 17.66781025 | GC28: 0.9284766909 | GD28: 0.3713906764
AO29: =AO28 -> 10.5 | AP29: =AVERAGE(AP28,AP30) -> 3 | BE29: 3 | BG29: =V26 -> 200000 | BH29: =L26 -> 100 | BI29: =Q26 -> 30000 | BJ29: =AB26 -> 5.385164807 | BK29: =($BG$15-$BG$14)/$BJ$29 -> 0.9284766909 | BL29: =($BH$15-$BH$14)/$BJ$29 -> -0.3713906764 | BU29: 3 | BV29: +M(max) | BW29: =$EV$953*1.355818 -> 104.1003756 | BX29: =$EX$953*0.3048 -> 5.385148566 | FF29: W40x298 | FG29: 87.6 | FH29: 24200 | FI29: 1490 | FJ29: 565.16 | FK29: 1007280.05 | FL29: 62018.48 | FW29: 3 | FY29: =BG29*0.1450377 -> 29007.54 | FZ29: =BH29*0.1550003 -> 15.50003 | GA29: =BI29*0.024025 -> 720.75 | GB29: =BJ29*3.28083 -> 17.66781025 | GC29: 0.9284766909 | GD29: -0.3713906764
AO30: 10.5 | AP30: =MAX(O14:Q15) -> 6 | BE30: 4 | BG30: =V27 -> 200000 | BH30: =L27 -> 100 | BI30: =Q27 -> 30000 | BJ30: =AB27 -> 6 | BK30: =($BG$15-$BG$16)/$BJ$30 -> 0 | BL30: =($BH$15-$BH$16)/$BJ$30 -> 1 | BV30: -M(max) | BW30: =$EV$954*1.355818 -> -179.8817223 | BX30: =$EX$954*0.3048 -> 0.7669929878 | CD30: Member No. | CE30: Point Load #1 | CG30: Point Load #2 | CI30: Point Load #3 | CK30: Point Load #4 | CM30: Point Load #5 | FF30: W40x297 | FG30: 87.4 | FH30: 23200 | FI30: 1090 | FJ30: 563.87 | FK30: 965656.91 | FL30: 45369.23 | FW30: 4 | FY30: =BG30*0.1450377 -> 29007.54 | FZ30: =BH30*0.1550003 -> 15.50003 | GA30: =BI30*0.024025 -> 720.75 | GB30: =BJ30*3.28083 -> 19.68498 | GC30: 0 | GD30: 1
BD31: Joint Loads: | BU31: 4 | BV31: +M(max) | BW31: =$EV$1125*1.355818 -> 89.05726789 | BX31: =$EX$1125*0.3048 -> 0 | CE31: a (ft.) | CF31: P (kips) | CG31: a (ft.) | CH31: P (kips) | CI31: a (ft.) | CJ31: P (kips) | CK31: a (ft.) | CL31: P (kips) | CM31: a (ft.) | CN31: P (kips) | FF31: W40x278 | FG31: 81.8 | FH31: 20500 | FI31: 521 | FJ31: 527.74 | FK31: 853274.42 | FL31: 21685.66 | FV31: Joint Loads:
AN32: =ROUND(AB25,3)&"m" -> 5.385m | AO32: =AO12 -> 0 | AP32: =AP12+0.5 -> 6.5 | BV32: -M(max) | BW32: =$EV$1126*1.355818 -> -140.6164173 | BX32: =$EX$1126*0.3048 -> 4.425839105 | CD32: 1 (X) | CE32: =$FY$57*$GB$27 -> 6.56166 | CF32: =$FZ$57 -> 4.7209869 | CG32: =$GA$57*$GB$27 -> 0 | CH32: =$GB$57 -> 0 | CI32: =$GC$57*$GB$27 -> 0 | CJ32: =$GD$57 -> 0 | CK32: =$GE$57*$GB$27 -> 0 | CL32: =$GF$57 -> 0 | CM32: =$GG$57*$GB$27 -> 0 | CN32: =$GH$57 -> 0 | FF32: W40x277 | FG32: 81.4 | FH32: 21900 | FI32: 1040 | FJ32: 525.16 | FK32: 911546.82 | FL32: 43288.07
AO33: =AVERAGE(AO32,AO34) -> 2.375 | AP33: =AVERAGE(AP32,AP34) -> 7.5 | BE33: Joint No. | BG33: Px (kN) | BH33: Py (kN) | BI33: Mz (kN-m) | CD33: 2 (Y) | CE33: =$FY$58*$GB$28 -> 0 | CF33: =(-$FZ$58*$CG$6) -> 0 | CG33: =$GA$58*$GB$28 -> 0 | CH33: =(-$GB$58*$CG$6) -> 0 | CI33: =$GC$58*$GB$28 -> 0 | CJ33: =(-$GD$58*$CG$6) -> 0 | CK33: =$GE$58*$GB$28 -> 0 | CL33: =(-$GF$58*$CG$6) -> 0 | CM33: =$GG$58*$GB$28 -> 0 | CN33: =(-$GH$58*$CG$6) -> 0 | FF33: W40x268 | FG33: 78.8 | FH33: 21500 | FI33: 1320 | FJ33: 508.39 | FK33: 894897.57 | FL33: 54942.55 | FW33: Joint No. | FY33: Px (kips) | FZ33: Py (kips) | GA33: Mz (ft-k)
AO34: =AO13-0.25 -> 4.75 | AP34: =AP13+0.5 -> 8.5 | BE34: 1 | BG34: =O66*$S$62+O67*$S$63 -> 14 | BH34: =T66*S62+T67*S63 -> 28 | BI34: =Y66*S62+Y67*S63 -> 21 | BU34: Joint Displacements: | CD34: 2 (Axial) | CE34: =$FY$58*$GB$28 -> 0 | CF34: =(-$FZ$58*$CH$6) -> 0 | CG34: =$GA$58*$GB$28 -> 0 | CH34: =(-$GB$58*$CH$6) -> 0 | CI34: =$GC$58*$GB$28 -> 0 | CJ34: =(-$GD$58*$CH$6) -> 0 | CK34: =$GE$58*$GB$28 -> 0 | CL34: =(-$GF$58*$CH$6) -> 0 | CM34: =$GG$58*$GB$28 -> 0 | CN34: =(-$GH$58*$CH$6) -> 0 | FF34: W40x264 | FG34: 77.6 | FH34: 19400 | FI34: 493 | FJ34: 500.64 | FK34: 807488.97 | FL34: 20520.21 | FW34: 1 | FY34: =BG34*0.2248089 -> 3.1473246 | FZ34: 6.2946492 | GA34: =BI34*0.737562 -> 15.488802
BE35: 2 | BG35: =O68*$S$62+O69*$S$63 -> 16 | BH35: =T68*$S$62+T69*$S$63 -> 24 | BI35: =Y68*$S$62+Y69*$S$63 -> 16 | CD35: 2 (X) | CE35: =$FY$59*$GB$28 -> 0 | CF35: =($FZ$59*$CH$6) -> 0 | CG35: =$GA$59*$GB$28 -> 0 | CH35: =($GB$59*$CH$6) -> 0 | CI35: =$GC$59*$GB$28 -> 0 | CJ35: =($GD$59*$CH$6) -> 0 | CK35: =$GE$59*$GB$28 -> 0 | CL35: =($GF$59*$CH$6) -> 0 | CM35: =$GG$59*$GB$28 -> 0 | CN35: =($GH$59*$CH$6) -> 0 | FF35: W40x249 | FG35: 73.3 | FH35: 19600 | FI35: 926 | FJ35: 472.9 | FK35: 815813.59 | FL35: 38543.03 | FW35: 2 | FY35: 3.5969424 | FZ35: 5.3954136 | GA35: =BI35*0.737562 -> 11.800992
AN36: =ROUND(AB26,3)&"m" -> 5.385m | AO36: =AO13+0.25 -> 5.25 | AP36: =AP13+0.5 -> 8.5 | BE36: 3 | BG36: =O70*$S$62+O71*$S$63 -> 0 | BH36: =T70*$S$62+T71*$S$63 -> 0 | BI36: =Y70*$S$62+Y71*$S$63 -> 0 | BU36: Joint No. | BV36: Dx (mm) | BW36: Dy (mm) | BX36: qz (rad.) | BY36: (deg.) | CD36: 2 (Axial) | CE36: =$FY$59*$GB$28 -> 0 | CF36: =($FZ$59*$CG$6) -> 0 | CG36: =$GA$59*$GB$28 -> 0 | CH36: =($GB$59*$CG$6) -> 0 | CI36: =$GC$59*$GB$28 -> 0 | CJ36: =($GD$59*$CG$6) -> 0 | CK36: =$GE$59*$GB$28 -> 0 | CL36: =($GF$59*$CG$6) -> 0 | CM36: =$GG$59*$GB$28 -> 0 | CN36: =($GH$59*$CG$6) -> 0 | FF36: W40x244 | FG36: 71.7 | FH36: 19200 | FI36: 1170 | FJ36: 462.58 | FK36: 799164.34 | FL36: 48699.08 | FW36: 3 | FY36: 0 | FZ36: 0 | GA36: =BI36*0.737562 -> 0
AO37: =AVERAGE(AO36,AO38) -> 7.625 | AP37: =AVERAGE(AP36,AP38) -> 7.5 | BE37: 4 | BG37: =O72*$S$62+O73*$S$63 -> -14 | BH37: =T72*$S$62+T73*$S$63 -> 21 | BI37: =Y72*$S$62+Y73*$S$63 -> -21 | BU37: 1 | BV37: =IF(AND($FY$21="Fixed",$FY$22="Fixed"),$CV$123,IF(AND($FY$21="Pinned",$FY$22="Pinned"),$CV$234,IF(AND($FY$21="Fixed",$FY$22="Pinned"),$CV$346,IF(AND($FY$21="Pinned",$FY$22="Fixed"),$CV$457))))*25.4 -> 0 | BW37: =IF(AND($FY$21="Fixed",$FY$22="Fixed"),$CV$124,IF(AND($FY$21="Pinned",$FY$22="Pinned"),$CV$235,IF(AND($FY$21="Fixed",$FY$22="Pinned"),$CV$347,IF(AND($FY$21="Pinned",$FY$22="Fixed"),$CV$458))))*25.4 -> 0 | BX37: =IF(AND($FY$21="Fixed",$FY$22="Fixed"),$CV$125,IF(AND($FY$21="Pinned",$FY$22="Pinned"),$CF$263,IF(AND($FY$21="Fixed",$FY$22="Pinned"),$CV$348,IF(AND($FY$21="Pinned",$FY$22="Fixed"),$CF$486)))) -> 0 | BY37: =BX37*180/PI() -> 0 | CD37: 3 (Y) | CE37: =$FY$60*$GB$29 -> 9.84249 | CF37: =(-$FZ$60*$CG$7) -> -7.305543824 | CG37: =$GA$60*$GB$29 -> 0 | CH37: =(-$GB$60*$CG$7) -> 0 | CI37: =$GC$60*$GB$29 -> 0 | CJ37: =(-$GD$60*$CG$7) -> 0 | CK37: =$GE$60*$GB$29 -> 0 | CL37: =(-$GF$60*$CG$7) -> 0 | CM37: =$GG$60*$GB$29 -> 0 | CN37: =(-$GH$60*$CG$7) -> 0 | FF37: W40x235 | FG37: 69 | FH37: 17400 | FI37: 444 | FJ37: 445.16 | FK37: 724242.68 | FL37: 18480.68 | FW37: 4 | FY37: -3.1473246 | FZ37: 4.7209869 | GA37: =BI37*0.737562 -> -15.488802
AO38: =AO14 -> 10 | AP38: =AP14+0.5 -> 6.5 | BE38: 5 | BG38: =O74*$S$62+O75*$S$63 -> -24 | BH38: =T74*$S$62+T75*$S$63 -> 16 | BI38: =Y74*$S$62+Y75*$S$63 -> 16 | BU38: 2 | BV38: =IF(AND($FY$21="Fixed",$FY$22="Fixed"),$CF$143,IF(AND($FY$21="Pinned",$FY$22="Pinned"),$CF$254,IF(AND($FY$21="Fixed",$FY$22="Pinned"),$CF$366,IF(AND($FY$21="Pinned",$FY$22="Fixed"),$CF$477))))*25.4 -> 34.75895975 | BW38: =IF(AND($FY$21="Fixed",$FY$22="Fixed"),$CF$144,IF(AND($FY$21="Pinned",$FY$22="Pinned"),$CF$255,IF(AND($FY$21="Fixed",$FY$22="Pinned"),$CF$367,IF(AND($FY$21="Pinned",$FY$22="Fixed"),$CF$478))))*25.4 -> 0.7545879454 | BX38: =IF(AND($FY$21="Fixed",$FY$22="Fixed"),$CF$145,IF(AND($FY$21="Pinned",$FY$22="Pinned"),$CF$256,IF(AND($FY$21="Fixed",$FY$22="Pinned"),$CF$368,IF(AND($FY$21="Pinned",$FY$22="Fixed"),$CF$479)))) -> 0.0004866803814 | BY38: =BX38*180/PI() -> 0.02788473183 | CD38: 3 (Axial) | CE38: =$FY$60*$GB$29 -> 9.84249 | CF38: =(-$FZ$60*$CH$7) -> 2.92221753 | CG38: =$GA$60*$GB$29 -> 0 | CH38: =(-$GB$60*$CH$7) -> 0 | CI38: =$GC$60*$GB$29 -> 0 | CJ38: =(-$GD$60*$CH$7) -> 0 | CK38: =$GE$60*$GB$29 -> 0 | CL38: =(-$GF$60*$CH$7) -> 0 | CM38: =$GG$60*$GB$29 -> 0 | CN38: =(-$GH$60*$CH$7) -> 0 | FF38: W40x221 | FG38: 64.8 | FH38: 16600 | FI38: 988 | FJ38: 418.06 | FK38: 690944.17 | FL38: 41123.66 | FW38: 5 | FY38: -5.3954136 | FZ38: 3.5969424 | GA38: =BI38*0.737562 -> 11.800992
BU39: 3 | BV39: =IF(AND($FY$21="Fixed",$FY$22="Fixed"),$CF$146,IF(AND($FY$21="Pinned",$FY$22="Pinned"),$CF$257,IF(AND($FY$21="Fixed",$FY$22="Pinned"),$CF$369,IF(AND($FY$21="Pinned",$FY$22="Fixed"),$CF$480))))*25.4 -> 24.31178781 | BW39: =IF(AND($FY$21="Fixed",$FY$22="Fixed"),$CF$147,IF(AND($FY$21="Pinned",$FY$22="Pinned"),$CF$258,IF(AND($FY$21="Fixed",$FY$22="Pinned"),$CF$370,IF(AND($FY$21="Pinned",$FY$22="Fixed"),$CF$481))))*25.4 -> 27.71953017 | BX39: =IF(AND($FY$21="Fixed",$FY$22="Fixed"),$CF$148,IF(AND($FY$21="Pinned",$FY$22="Pinned"),$CF$259,IF(AND($FY$21="Fixed",$FY$22="Pinned"),$CF$371,IF(AND($FY$21="Pinned",$FY$22="Fixed"),$CF$482)))) -> 0.00121310464 | BY39: =BX39*180/PI() -> 0.069505776 | CD39: 3 (X) | CE39: =$FY$61*$GB$29 -> 0 | CF39: =($FZ$61*$CH$7) -> 0 | CG39: =$GA$61*$GB$29 -> 0 | CH39: =($GB$61*$CH$7) -> 0 | CI39: =$GC$61*$GB$29 -> 0 | CJ39: =($GD$61*$CH$7) -> 0 | CK39: =$GE$61*$GB$29 -> 0 | CL39: =($GF$61*$CH$7) -> 0 | CM39: =$GG$61*$GB$29 -> 0 | CN39: =($GH$61*$CH$7) -> 0 | FF39: W40x215 | FG39: 63.4 | FH39: 16700 | FI39: 796 | FJ39: 409.03 | FK39: 695106.48 | FL39: 33132.02
BD40: Member Loads: | BU40: 4 | BV40: =IF(AND($FY$21="Fixed",$FY$22="Fixed"),$CF$149,IF(AND($FY$21="Pinned",$FY$22="Pinned"),$CF$260,IF(AND($FY$21="Fixed",$FY$22="Pinned"),$CF$372,IF(AND($FY$21="Pinned",$FY$22="Fixed"),$CF$483))))*25.4 -> 13.36309661 | BW40: =IF(AND($FY$21="Fixed",$FY$22="Fixed"),$CF$150,IF(AND($FY$21="Pinned",$FY$22="Pinned"),$CF$261,IF(AND($FY$21="Fixed",$FY$22="Pinned"),$CF$373,IF(AND($FY$21="Pinned",$FY$22="Fixed"),$CF$484))))*25.4 -> 0.4034092602 | BX40: =IF(AND($FY$21="Fixed",$FY$22="Fixed"),$CF$151,IF(AND($FY$21="Pinned",$FY$22="Pinned"),$CF$262,IF(AND($FY$21="Fixed",$FY$22="Pinned"),$CF$374,IF(AND($FY$21="Pinned",$FY$22="Fixed"),$CF$485)))) -> -0.008035483138 | BY40: =BX40*180/PI() -> -0.4603992701 | CD40: 3 (Axial) | CE40: =$FY$61*$GB$29 -> 0 | CF40: =($FZ$61*$CG$7) -> 0 | CG40: =$GA$61*$GB$29 -> 0 | CH40: =($GB$61*$CG$7) -> 0 | CI40: =$GC$61*$GB$29 -> 0 | CJ40: =($GD$61*$CG$7) -> 0 | CK40: =$GE$61*$GB$29 -> 0 | CL40: =($GF$61*$CG$7) -> 0 | CM40: =$GG$61*$GB$29 -> 0 | CN40: =($GH$61*$CG$7) -> 0 | FF40: W40x211 | FG40: 62 | FH40: 15500 | FI40: 390 | FJ40: 400 | FK40: 645158.71 | FL40: 16233.03 | FV40: Member Loads:
BU41: 5 | BV41: =IF(AND($FY$21="Fixed",$FY$22="Fixed"),$CV$126,IF(AND($FY$21="Pinned",$FY$22="Pinned"),$CV$236,IF(AND($FY$21="Fixed",$FY$22="Pinned"),$CV$349,IF(AND($FY$21="Pinned",$FY$22="Fixed"),$CV$459)))) -> 0 | BW41: =IF(AND($FY$21="Fixed",$FY$22="Fixed"),$CV$127,IF(AND($FY$21="Pinned",$FY$22="Pinned"),$CV$237,IF(AND($FY$21="Fixed",$FY$22="Pinned"),$CV$350,IF(AND($FY$21="Pinned",$FY$22="Fixed"),$CV$460))))*25.4 -> 0 | BX41: =IF(AND($FY$21="Fixed",$FY$22="Fixed"),$CV$128,IF(AND($FY$21="Pinned",$FY$22="Pinned"),$CF$264,IF(AND($FY$21="Fixed",$FY$22="Pinned"),$CF$375,IF(AND($FY$21="Pinned",$FY$22="Fixed"),$CV$461)))) -> 0 | BY41: =BX41*180/PI() -> 0 | CD41: 4 (X) | CE41: =$FY$62*$GB$30 -> 0 | CF41: =$FZ$62 -> 0 | CG41: =$GA$62*$GB$30 -> 0 | CH41: =$GB$62 -> 0 | CI41: =$GC$62*$GB$30 -> 0 | CJ41: =$GD$62 -> 0 | CK41: =$GE$62*$GB$30 -> 0 | CL41: =$GF$62 -> 0 | CM41: =$GG$62*$GB$30 -> 0 | CN41: =$GH$62 -> 0 | FF41: W40x199 | FG41: 58.5 | FH41: 14900 | FI41: 695 | FJ41: 377.42 | FK41: 620184.82 | FL41: 28928.08
BE42: Distributed Loads: | FF42: W40x192 | FG42: 56.5 | FH42: 13500 | FI42: 770 | FJ42: 364.52 | FK42: 561912.42 | FL42: 32049.82 | FW42: Distributed Loads:
CD43: Applied Moments: | FF43: W40x183 | FG43: 53.8 | FH43: 13300 | FI43: 336 | FJ43: 347.1 | FK43: 553587.8 | FL43: 13985.38
BE44: Member | BG44: Distributed Load #1 | BK44: Distributed Load #2 | BO44: Distributed Load #3 | BS44: Distributed Load #4 | BW44: Distributed Load #5 | FF44: W40x174 | FG44: 51.1 | FH44: 12200 | FI44: 541 | FJ44: 329.68 | FK44: 507802.34 | FL44: 22518.12 | FW44: Member | FY44: Distributed Load #1 | GC44: Distributed Load #2 | GG44: Distributed Load #3 | GK44: Distributed Load #4 | GO44: Distributed Load #5
BE45: No. | BF45: Load Direct. | BG45: b/L | BH45: wb (kN/m) | BI45: e/L | BJ45: we (kN/m) | BK45: b/L | BL45: wb (kN/m) | BM45: e/L | BN45: we (kN/m) | BO45: b/L | BP45: wb (kN/m) | BQ45: e/L | BR45: we (kN/m) | BS45: b/L | BT45: wb (kN/m) | BU45: e/L | BV45: we (kN/m) | BW45: b/L | BX45: wb (kN/m) | BY45: e/L | BZ45: we (kN/m) | CD45: Member No. | CE45: Moment #1 | CG45: Moment #2 | CI45: Moment #3 | CK45: Moment #4 | CM45: Moment #5 | FF45: W40x167 | FG45: 49.2 | FH45: 11600 | FI45: 283 | FJ45: 317.42 | FK45: 482828.45 | FL45: 11779.35 | FW45: No. | FX45: Load Direct. | FY45: b/L | FZ45: wb (k/ft.) | GA45: e/L | GB45: we (k/ft.) | GC45: b/L | GD45: wb (k/ft.) | GE45: e/L | GF45: we (k/ft.) | GG45: b/L | GH45: wb (k/ft.) | GI45: e/L | GJ45: we (k/ft.) | GK45: b/L | GL45: wb (k/ft.) | GM45: e/L | GN45: we (k/ft.) | GO45: b/L | GP45: wb (k/ft.) | GQ45: e/L | GR45: we (k/ft.)
BE46: 1 | BF46: X-Global | BG46: =P113/AB24 -> 0.1666666667 | BH46: =IF($P$111="Dead",R113*$S$62,R113*$S$63) -> 24 | BI46: =T113/AB24 -> 0.6666666667 | BJ46: =IF($P$111="Dead",V113*$S$62,V113*$S$63) -> 40 | BK46: =X113/AB24 -> 0 | BL46: =IF($X$111="Dead",Z113*$S$62,Z113*$S$63) -> -21 | BM46: =AB113/AB24 -> 0.8333333333 | BN46: =IF($X$111="Dead",AD113*$S$62,AD113*$S$63) -> -21 | BO46: =P123/AB24 -> 0 | BP46: =IF($P$121="Dead",R123*$S$62,R123*$S$63) -> 0 | BQ46: =T123/AB24 -> 0 | BR46: =IF($P$121="Dead",V123*$S$62,V123*$S$63) -> 0 | BS46: =X123/AB24 -> 0 | BT46: =IF($X$121="Dead",Z123*$S$62,Z123*$S$63) -> 0 | BU46: =AB123/AB24 -> 0 | BV46: =IF($X$121="Dead",AD123*$S$62,AD123*$S$63) -> 0 | BW46: =P133/AB24 -> 0 | BX46: =IF($P$131="Dead",R133*$S$62,R133*$S$63) -> 0 | BY46: =T133/AB24 -> 0 | BZ46: =IF($P$131="Dead",V133*$S$62,V133*$S$63) -> 0 | CE46: c (ft.) | CF46: M (ft-kips) | CG46: c (ft.) | CH46: M (ft-kips) | CI46: c (ft.) | CJ46: M (ft-kips) | CK46: c (ft.) | CL46: M (ft-kips) | CM46: c (ft.) | CN46: M (ft-kips) | FF46: W40x149 | FG46: 43.8 | FH46: 9800 | FI46: 229 | FJ46: 282.58 | FK46: 407906.8 | FL46: 9531.7 | FW46: 1 | FX46: =BF46 -> X-Global | FY46: 0.1666666667 | FZ46: =BH46*0.068522 -> 1.644528 | GA46: =BI46 -> 0.6666666667 | GB46: =BJ46*0.068522 -> 2.74088 | GC46: =BK46 -> 0 | GD46: =BL46*0.068522 -> -1.438962 | GE46: =BM46 -> 0.8333333333 | GF46: =BN46*0.068522 -> -1.438962 | GG46: =BO46 -> 0 | GH46: =BP46*0.068522 -> 0 | GI46: =BQ46 -> 0 | GJ46: =BR46*0.068522 -> 0 | GK46: =BS46 -> 0 | GL46: =BT46*0.068522 -> 0 | GM46: =BU46 -> 0 | GN46: =BV46*0.068522 -> 0 | GO46: =BW46 -> 0 | GP46: =BX46*0.068522 -> 0 | GQ46: =BY46 -> 0 | GR46: =BZ46*0.068522 -> 0
BE47: 2 | BF47: Y-Global | BG47: =P114/AB25 -> 0.1856953382 | BH47: 24 | BI47: =T114/AB25 -> 0.7427813527 | BJ47: 40 | BK47: =X114/AB25 -> 0 | BL47: 21 | BM47: =AB114/AB25 -> 0.9284766909 | BN47: 21 | BO47: =P124/AB25 -> 0 | BP47: 0 | BQ47: =T124/AB25 -> 0 | BR47: 0 | BS47: =X124/AB25 -> 0 | BT47: 0 | BU47: =AB124/AB25 -> 0 | BV47: 0 | BW47: =P134/AB25 -> 0 | BX47: 0 | BY47: =T134/AB25 -> 0 | BZ47: 0 | CD47: 1 | CE47: =IF($FY$68*$GB$27=0,$FY$68*$GB$27+0.000000001,IF($FY$68*$GB$27=$GB$27,$FY$68*$GB$27-0.000000001,$FY$68*$GB$27)) -> 1e-09 | CF47: =$FZ$68 -> 0 | CG47: =IF($GA$68*$GB$27=0,$GA$68*$GB$27+0.000000001,IF($GA$68*$GB$27=$GB$27,$GA$68*$GB$27-0.000000001,$GA$68*$GB$27)) -> 1e-09 | CH47: =$GB$68 -> 0 | CI47: =IF($GC$68*$GB$27=0,$GC$68*$GB$27+0.000000001,IF($GC$68*$GB$27=$GB$27,$GC$68*$GB$27-0.000000001,$GC$68*$GB$27)) -> 1e-09 | CJ47: =$GD$68 -> 0 | CK47: =IF($GE$68*$GB$27=0,$GE$68*$GB$27+0.000000001,IF($GE$68*$GB$27=$GB$27,$GE$68*$GB$27-0.000000001,$GE$68*$GB$27)) -> 1e-09 | CL47: =$GF$68 -> 0 | CM47: =IF($GG68*$GB$27=0,$GG68*$GB$27+0.000000001,IF($GG68*$GB$27=$GB$27,$GG68*$GB$27-0.000000001,$GG68*$GB$27)) -> 1e-09 | CN47: =$GH68 -> 0 | FF47: W36x848 | FG47: 249 | FH47: 67400 | FI47: 4550 | FJ47: 1606.45 | FK47: 2805399.81 | FL47: 189385.3 | FW47: 2 | FX47: Y-Global | FY47: 0.1856953382 | FZ47: 1.644528 | GA47: 0.7427813527 | GB47: 2.74088 | GC47: 0 | GD47: 1.438962 | GE47: 0.9284766909 | GF47: 1.438962 | GG47: 0 | GH47: 0 | GI47: 0 | GJ47: 0 | GK47: 0 | GL47: 0 | GM47: 0 | GN47: 0 | GO47: 0 | GP47: 0 | GQ47: 0 | GR47: 0
BE48: 2 | BF48: X-Global | BG48: =P115/AB25 -> 0.1856953382 | BH48: 24 | BI48: =T115/AB25 -> 0.9284766909 | BJ48: 40 | BK48: =X115/AB25 -> 0 | BL48: 0 | BM48: =AB115/AB25 -> 0 | BN48: 0 | BO48: =P125/AB25 -> 0 | BP48: 0 | BQ48: =T125/AB25 -> 0 | BR48: 0 | BS48: =X125/AB25 -> 0 | BT48: 0 | BU48: =AB125/AB25 -> 0 | BV48: 0 | BW48: =P135/AB25 -> 0 | BX48: 0 | BY48: =T135/AB25 -> 0 | BZ48: 0 | CD48: 2 | CE48: =IF($FY$69*$GB$28=0,$FY$69*$GB$28+0.000000001,IF($FY$69*$GB$28=$GB$28,$FY$69*$GB$28-0.000000001,$FY$69*$GB$28)) -> 1e-09 | CF48: =$FZ$69 -> 0 | CG48: =IF($GA$69*$GB$28=0,$GA$69*$GB$28+0.000000001,IF($GA$69*$GB$28=$GB$28,$GA$69*$GB$28-0.000000001,$GA$69*$GB$28)) -> 1e-09 | CH48: =$GB$69 -> 0 | CI48: =IF($GC$69*$GB$28=0,$GC$69*$GB$28+0.000000001,IF($GC$69*$GB$28=$GB$28,$GC$69*$GB$28-0.000000001,$GC$69*$GB$28)) -> 1e-09 | CJ48: =$GD$69 -> 0 | CK48: =IF($GE$69*$GB$28=0,$GE$69*$GB$28+0.000000001,IF($GE$69*$GB$28=$GB$28,$GE$69*$GB$28-0.000000001,$GE$69*$GB$28)) -> 1e-09 | CL48: =$GF$69 -> 0 | CM48: =IF($GG69*$GB$27=0,$GG69*$GB$27+0.000000001,IF($GG69*$GB$27=$GB$27,$GG69*$GB$27-0.000000001,$GG69*$GB$27)) -> 1e-09 | CN48: =$GH69 -> 0 | FF48: W36x798 | FG48: 235 | FH48: 62600 | FI48: 4200 | FJ48: 1516.13 | FK48: 2605608.72 | FL48: 174817.2 | FW48: 2 | FX48: X-Global | FY48: 0.1856953382 | FZ48: 1.644528 | GA48: 0.9284766909 | GB48: 2.74088 | GC48: 0 | GD48: 0 | GE48: 0 | GF48: 0 | GG48: 0 | GH48: 0 | GI48: 0 | GJ48: 0 | GK48: 0 | GL48: 0 | GM48: 0 | GN48: 0 | GO48: 0 | GP48: 0 | GQ48: 0 | GR48: 0
BE49: 3 | BF49: Y-Global | BG49: =P116/AB26 -> 0 | BH49: 0 | BI49: =T116/AB26 -> 0 | BJ49: 0 | BK49: =X116/AB26 -> 0 | BL49: 21 | BM49: =AB116/AB26 -> 0.9284766909 | BN49: 21 | BO49: =P126/AB26 -> 0 | BP49: 0 | BQ49: =T126/AB26 -> 0 | BR49: 0 | BS49: =X126/AB26 -> 0 | BT49: 0 | BU49: =AB126/AB26 -> 0 | BV49: 0 | BW49: =P136/AB26 -> 0 | BX49: 0 | BY49: =T136/AB26 -> 0 | BZ49: 0 | CD49: 3 | CE49: =IF($FY$70*$GB$29=0,$FY$70*$GB$29+0.000000001,IF($FY$70*$GB$29=$GB$29,$FY$70*$GB$29-0.000000001,$FY$70*$GB$29)) -> 1e-09 | CF49: =$FZ$70 -> 0 | CG49: =IF($GA$70*$GB$29=0,$GA$70*$GB$29+0.000000001,IF($GA$70*$GB$29=$GB$29,$GA$70*$GB$29-0.000000001,$GA$70*$GB$29)) -> 1e-09 | CH49: =$GB$70 -> 0 | CI49: =IF($GC$70*$GB$29=0,$GC$70*$GB$29+0.000000001,IF($GC$70*$GB$29=$GB$29,$GC$70*$GB$29-0.000000001,$GC$70*$GB$29)) -> 1e-09 | CJ49: =$GD$70 -> 0 | CK49: =IF($GE$70*$GB$29=0,$GE$70*$GB$29+0.000000001,IF($GE$70*$GB$29=$GB$29,$GE$70*$GB$29-0.000000001,$GE$70*$GB$29)) -> 1e-09 | CL49: =$GF$70 -> 0 | CM49: =IF($GG70*$GB$27=0,$GG70*$GB$27+0.000000001,IF($GG70*$GB$27=$GB$27,$GG70*$GB$27-0.000000001,$GG70*$GB$27)) -> 1e-09 | CN49: =$GH70 -> 0 | FF49: W36x720 | FG49: 211 | FH49: 55300 | FI49: 3680 | FJ49: 1361.29 | FK49: 2301759.78 | FL49: 153173.16 | FW49: 3 | FX49: Y-Global | FY49: 0 | FZ49: 0 | GA49: 0 | GB49: 0 | GC49: 0 | GD49: 1.438962 | GE49: 0.9284766909 | GF49: 1.438962 | GG49: 0 | GH49: 0 | GI49: 0 | GJ49: 0 | GK49: 0 | GL49: 0 | GM49: 0 | GN49: 0 | GO49: 0 | GP49: 0 | GQ49: 0 | GR49: 0
BE50: 3 | BF50: X-Global | BG50: =P117/AB26 -> 0 | BH50: 0 | BI50: =T117/AB26 -> 0 | BJ50: 0 | BK50: =X117/AB26 -> 0 | BL50: 0 | BM50: =AB117/AB26 -> 0 | BN50: 0 | BO50: =P127/AB26 -> 0 | BP50: 0 | BQ50: =T127/AB26 -> 0 | BR50: 0 | BS50: =X127/AB26 -> 0 | BT50: 0 | BU50: =AB127/AB26 -> 0 | BV50: 0 | BW50: =P137/AB26 -> 0 | BX50: 0 | BY50: =T137/AB26 -> 0 | BZ50: 0 | CD50: 4 | CE50: =IF($FY$71*$GB$30=0,$FY$71*$GB$30+0.000000001,IF($FY$71*$GB$30=$GB$30,$FY$71*$GB$30-0.000000001,$FY$71*$GB$30)) -> 6.56166 | CF50: =$FZ$71 -> 17.701488 | CG50: =IF($GA$71*$GB$30=0,$GA$71*$GB$30+0.000000001,IF($GA$71*$GB$30=$GB$30,$GA$71*$GB$30-0.000000001,$GA$71*$GB$30)) -> 1e-09 | CH50: =$GB$71 -> 0 | CI50: =IF($GC$71*$GB$30=0,$GC$71*$GB$30+0.000000001,IF($GC$71*$GB$30=$GB$30,$GC$71*$GB$30-0.000000001,$GC$71*$GB$30)) -> 1e-09 | CJ50: =$GD$71 -> 0 | CK50: =IF($GE$71*$GB$30=0,$GE$71*$GB$30+0.000000001,IF($GE$71*$GB$30=$GB$30,$GE$71*$GB$30-0.000000001,$GE$71*$GB$30)) -> 1e-09 | CL50: =$GF$71 -> 0 | CM50: =IF($GG71*$GB$27=0,$GG71*$GB$27+0.000000001,IF($GG71*$GB$27=$GB$27,$GG71*$GB$27-0.000000001,$GG71*$GB$27)) -> 1e-09 | CN50: =$GH71 -> 0 | FF50: W36x650 | FG50: 191 | FH50: 48900 | FI50: 3230 | FJ50: 1232.26 | FK50: 2035371.67 | FL50: 134442.75 | FW50: 3 | FX50: X-Global | FY50: 0 | FZ50: 0 | GA50: 0 | GB50: 0 | GC50: 0 | GD50: 0 | GE50: 0 | GF50: 0 | GG50: 0 | GH50: 0 | GI50: 0 | GJ50: 0 | GK50: 0 | GL50: 0 | GM50: 0 | GN50: 0 | GO50: 0 | GP50: 0 | GQ50: 0 | GR50: 0
BE51: 4 | BF51: X-Global | BG51: =P118/AB27 -> 0 | BH51: 0 | BI51: =T118/AB27 -> 0 | BJ51: 0 | BK51: =X118/AB27 -> 0 | BL51: -21 | BM51: =AB118/AB27 -> 0.8333333333 | BN51: -21 | BO51: =P128/AB27 -> 0 | BP51: 0 | BQ51: =T128/4 -> 0 | BR51: 0 | BS51: =X128/AB27 -> 0 | BT51: 0 | BU51: =AB128/AB27 -> 0 | BV51: 0 | BW51: =P138/AB27 -> 0 | BX51: 0 | BY51: =T138/AB27 -> 0 | BZ51: 0 | FF51: W36x588 | FG51: 172 | FH51: 43500 | FI51: 2850 | FJ51: 1109.68 | FK51: 1810606.7 | FL51: 118625.96 | FW51: 4 | FX51: X-Global | FY51: 0 | FZ51: 0 | GA51: 0 | GB51: 0 | GC51: 0 | GD51: -1.438962 | GE51: 0.8333333333 | GF51: -1.438962 | GG51: 0 | GH51: 0 | GI51: 0 | GJ51: 0 | GK51: 0 | GL51: 0 | GM51: 0 | GN51: 0 | GO51: 0 | GP51: 0 | GQ51: 0 | GR51: 0
FF52: W36x527 | FG52: 155 | FH52: 38300 | FI52: 2490 | FJ52: 1000 | FK52: 1594166.36 | FL52: 103641.62
BE53: Point Loads: | CD53: Determine Fixed End Moments for Members: | FF53: W36x485 | FG53: 142 | FH53: 34700 | FI53: 2250 | FJ53: 916.13 | FK53: 1444323.05 | FL53: 93652.07 | FW53: Point Loads:
B54: Your Logo / Company Details Here | G54: Project: | M54: =IF(M2="","",M2) ->  | AF54: By: | CD54: For Distributed Load #1 | CL54: For Distributed Load #2 | CT54: For Distributed Load #3 | DB54: For Distributed Load #4 | DJ54: For Distributed Load #5 | DR54: For All 10 Point Loads | DZ54: For All 4 Applied Moments | EH54: Summations of Loading Functions for All Loads | EP54: Initial Beam Parameters at Left End | ET54: Member | EU54: Fixed End | EV54: Dist. From Left | FF54: W36x439 | FG54: 129 | FH54: 31000 | FI54: 1990 | FJ54: 832.26 | FK54: 1290317.42 | FL54: 82830.05
G55: Calculation: | M55: =IF(M3="","",M3) -> Gable Frame Analysis | BE55: Member | BG55: Point Load #1 | BI55: Point Load #2 | BK55: Point Load #3 | BM55: Point Load #4 | BO55: Point Load #5 | CD55: Loading Functions Evaluated at x = L | CH55: Loading Functions Evaluated at x | CL55: Loading Functions Evaluated at x = L | CP55: Loading Functions Evaluated at x | CT55: Loading Functions Evaluated at x = L | CX55: Loading Functions Evaluated at x | DB55: Loading Functions Evaluated at x = L | DF55: Loading Functions Evaluated at x | DJ55: Loading Functions Evaluated at x = L | DN55: Loading Functions Evaluated at x | DR55: Loading Functions Evaluated at x = L | DV55: Loading Functions Evaluated at x | DZ55: Loading Functions Evaluated at x = L | ED55: Loading Functions Evaluated at x | EH55: For Loading Functions Evaluated at x = L | EL55: For Loading Functions Evaluated at x | EP55: with Loading Functions Evaluated at x = L | ET55: End Reaction | EU55: Moments | EV55: End of Member | FF55: W36x393 | FG55: 116 | FH55: 27500 | FI55: 1750 | FJ55: 748.39 | FK55: 1144636.42 | FL55: 72840.5 | FW55: Member | FY55: Point Load #1 | GA55: Point Load #2 | GC55: Point Load #3 | GE55: Point Load #4 | GG55: Point Load #5
AF56: Approved: | BE56: No. | BF56: Load Direct. | BG56: a/L | BH56: P (kN) | BI56: a/L | BJ56: P (kN) | BK56: a/L | BL56: P (kN) | BM56: a/L | BN56: P (kN) | BO56: a/L | BP56: P (kN) | CC56: Points: | CD56: FvL | CE56: FmL | CF56: FqL | CG56: FDL | CH56: Fvx | CI56: Fmx | CJ56: Fqx | CK56: FDx | CL56: FvL | CM56: FmL | CN56: FqL | CO56: FDL | CP56: Fvx | CQ56: Fmx | CR56: Fqx | CS56: FDx | CT56: FvL | CU56: FmL | CV56: FqL | CW56: FDL | CX56: Fvx | CY56: Fmx | CZ56: Fqx | DA56: FDx | DB56: FvL | DC56: FmL | DD56: FqL | DE56: FDL | DF56: Fvx | DG56: Fmx | DH56: Fqx | DI56: FDx | DJ56: FvL | DK56: FmL | DL56: FqL | DM56: FDL | DN56: Fvx | DO56: Fmx | DP56: Fqx | DQ56: FDx | DR56: FvL | DS56: FmL | DT56: FqL | DU56: FDL | DV56: Fvx | DW56: Fmx | DX56: Fqx | DY56: FDx | DZ56: FvL | EA56: FmL | EB56: FqL | EC56: FDL | ED56: Fvx | EE56: Fmx | EF56: Fqx | EG56: FDx | EH56: SFvL | EI56: SFmL | EJ56: SFqL | EK56: SFDL | EL56: SFvx | EM56: SFmx | EN56: SFqx | EO56: SFDx | EP56: Vo | EQ56: Mo | ER56: qo | ES56: Do | ET56: (kips) | EU56: (ft-kips) | EV56: x (ft.) | EW56: Points: | FF56: W36x359 | FG56: 105 | FH56: 24800 | FI56: 1570 | FJ56: 677.42 | FK56: 1032253.94 | FL56: 65348.33 | FW56: No. | FX56: Load Direct. | FY56: a/L | FZ56: P (kips) | GA56: a/L | GB56: P (kips) | GC56: a/L | GD56: P (kips) | GE56: a/L | GF56: P (kips) | GG56: a/L | GH56: P (kips)
G57: Sheet Number: | M57: 2 | T57: Date: | BE57: 1 | BF57: X-Global | BG57: =P82/AB24 -> 0.3333333333 | BH57: =IF($P$80="Dead",R82*$S$62,R82*$S$63) -> 21 | BI57: =T82/AB24 -> 0 | BJ57: =IF($T$80="Dead",V82*$S$62,V82*$S$63) -> 0 | BK57: =X82/AB24 -> 0 | BL57: =IF($X$80="Dead",Z82*$S$62,Z82*$S$63) -> 0 | BM57: =P92/AB24 -> 0 | BN57: =IF($P$90="Dead",R92*$S$62,R92*$S$63) -> 0 | BO57: =T92/AB24 -> 0 | BP57: =IF($T$90="Dead",V92*$S$62,V92*$S$63) -> 0 | CC57: Member #1(X) FEM(L): | CD57: =IF($CE$17=$CG$17,"---",IF(AND($CE$17="",$CF$17="",$CG$17="",$CH$17=""),"---",(-$CF$17*($GB$27-$CE$17-($GB$27-$CG$17)))+(-1/2*($CH$17-$CF$17)/($CG$17-$CE$17)*(($GB$27-$CE$17)^2-($GB$27-$CG$17)^2)+($CH$17-$CF$17)*($GB$27-$CG$17)))) -> -21.58166719 | CE57: =IF($CE$17=$CG$17,"---",IF(AND($CE$17="",$CF$17="",$CG$17="",$CH$17=""),"---",(-$CF$17/2*(($GB$27-$CE$17)^2-($GB$27-$CG$17)^2))+(-1/6*($CH$17-$CF$17)/($CG$17-$CE$17)*(($GB$27-$CE$17)^3-($GB$27-$CG$17)^3)+($CH$17-$CF$17)/2*($GB$27-$CG$17)^2))) -> -238.9695115 | CF57: =IF($CE$17=$CG$17,"---",IF(AND($CE$17="",$CF$17="",$CG$17="",$CH$17=""),"---",(-$CF$17/(6*$FY$27*$GA$27)*(($GB$27-$CE$17)^3-($GB$27-$CG$17)^3))+(-1/(24*$FY$27*$GA$27)*($CH$17-$CF$17)/($CG$17-$CE$17)*(($GB$27-$CE$17)^4-($GB$27-$CG$17)^4)+($CH$17-$CF$17)/(6*$FY$27*$GA$27)*($GB$27-$CG$17)^3))) -> -6.736101877e-05 | CG57: =IF($CE$17=$CG$17,"---",IF(AND($CE$17="",$CF$17="",$CG$17="",$CH$17=""),"---",($CF$17/(24*$FY$27*$GA$27)*(($GB$27-$CE$17)^4-($GB$27-$CG$17)^4))+(1/(120*$FY$27*$GA$27)*($CH$17-$CF$17)/($CG$17-$CE$17)*(($GB$27-$CE$17)^5-($GB$27-$CG$17)^5)-($CH$17-$CF$17)/(24*$FY$27*$GA$27)*($GB$27-$CG$17)^4))) -> 0.000279401783 | CH57: =IF($CE$17=$CG$17,"---",IF(AND($CE$17="",$CF$17="",$CG$17="",$CH$17=""),"---",(IF($EV57>=$CG$17,-$CF$17*($EV57-$CE$17-($EV57-$CG$17)),IF($EV57>=$CE$17,-$CF$17*($EV57-$CE$17),0)))+(IF($EV57>=$CG$17,-1/2*($CH$17-$CF$17)/($CG$17-$CE$17)*(($EV57-$CE$17)^2-($EV57-$CG$17)^2)+($CH$17-$CF$17)*($EV57-$CG$17),IF($EV57>=$CE$17,-1/2*($CH$17-$CF$17)/($CG$17-$CE$17)*($EV57-$CE$17)^2,0))))) -> 0 | CI57: =IF($CE$17=$CG$17,"---",IF(AND($CE$17="",$CF$17="",$CG$17="",$CH$17=""),"---",(IF($EV57>=$CG$17,-$CF$17/2*(($EV57-$CE$17)^2-($EV57-$CG$17)^2),IF($EV57>=$CE$17,-$CF$17/2*($EV57-$CE$17)^2,0)))+(IF($EV57>=$CG$17,-1/6*($CH$17-$CF$17)/($CG$17-$CE$17)*(($EV57-$CE$17)^3-($EV57-$CG$17)^3)+($CH$17-$CF$17)/2*($EV57-$CG$17)^2,IF($EV57>=$CE$17,-1/6*($CH$17-$CF$17)/($CG$17-$CE$17)*($EV57-$CE$17)^3,0))))) -> 0 | CJ57: =IF($CE$17=$CG$17,"---",IF(AND($CE$17="",$CF$17="",$CG$17="",$CH$17=""),"---",(IF($EV57>=$CG$17,-$CF$17/(6*$FY$27*$GA$27)*(($EV57-$CE$17)^3-($EV57-$CG$17)^3),IF($EV57>=$CE$17,-$CF$17/(6*$FY$27*$GA$27)*($EV57-$CE$17)^3,0)))+(IF($EV57>=$CG$17,-1/(24*$FY$27*$GA$27)*($CH$17-$CF$17)/($CG$17-$CE$17)*(($EV57-$CE$17)^4-($EV57-$CG$17)^4)+($CH$17-$CF$17)/(6*$FY$27*$GA$27)*($EV57-$CG$17)^3,IF($EV57>=$CE$17,-1/(24*$FY$27*$GA$27)*($CH$17-$CF$17)/($CG$17-$CE$17)*($EV57-$CE$17)^4,0))))) -> 0 | CK57: =IF($CE$17=$CG$17,"---",IF(AND($CE$17="",$CF$17="",$CG$17="",$CH$17=""),"---",(IF($EV57>=$CG$17,$CF$17/(24*$FY$27*$GA$27)*(($EV57-$CE$17)^4-($EV57-$CG$17)^4),IF($EV57>=$CE$17,$CF$17/(24*$FY$27*$GA$27)*($EV57-$CE$17)^4,0)))+(IF($EV57>=$CG$17,1/(120*$FY$27*$GA$27)*($CH$17-$CF$17)/($CG$17-$CE$17)*(($EV57-$CE$17)^5-($EV57-$CG$17)^5)-($CH$17-$CF$17)/(24*$FY$27*$GA$27)*($EV57-$CG$17)^4,IF($EV57>=$CE$17,1/(120*$FY$27*$GA$27)*($CH$17-$CF$17)/($CG$17-$CE$17)*($EV57-$CE$17)^5,0))))) -> 0 | CL57: =IF($CI$17=$CK$17,"---",IF(AND($CI$17="",$CJ$17="",$CK$17="",$CL$17=""),"---",(-$CJ$17*($GB$27-$CI$17-($GB$27-$CK$17)))+(-1/2*($CL$17-$CJ$17)/($CK$17-$CI$17)*(($GB$27-$CI$17)^2-($GB$27-$CK$17)^2)+($CL$17-$CJ$17)*($GB$27-$CK$17)))) -> 23.60494849 | CM57: =IF($CI$17=$CK$17,"---",IF(AND($CI$17="",$CJ$17="",$CK$17="",$CL$17=""),"---",(-$CJ$17/2*(($GB$27-$CI$17)^2-($GB$27-$CK$17)^2))+(-1/6*($CL$17-$CJ$17)/($CK$17-$CI$17)*(($GB$27-$CI$17)^3-($GB$27-$CK$17)^3)+($CL$17-$CJ$17)/2*($GB$27-$CK$17)^2))) -> 271.0533811 | CN57: =IF($CI$17=$CK$17,"---",IF(AND($CI$17="",$CJ$17="",$CK$17="",$CL$17=""),"---",(-$CJ$17/(6*$FY$27*$GA$27)*(($GB$27-$CI$17)^3-($GB$27-$CK$17)^3))+(-1/(24*$FY$27*$GA$27)*($CL$17-$CJ$17)/($CK$17-$CI$17)*(($GB$27-$CI$17)^4-($GB$27-$CK$17)^4)+($CL$17-$CJ$17)/(6*$FY$27*$GA$27)*($GB$27-$CK$17)^3))) -> 8.709478802e-05 | CO57: =IF($CI$17=$CK$17,"---",IF(AND($CI$17="",$CJ$17="",$CK$17="",$CL$17=""),"---",($CJ$17/(24*$FY$27*$GA$27)*(($GB$27-$CI$17)^4-($GB$27-$CK$17)^4))+(1/(120*$FY$27*$GA$27)*($CL$17-$CJ$17)/($CK$17-$CI$17)*(($GB$27-$CI$17)^5-($GB$27-$CK$17)^5)-($CL$17-$CJ$17)/(24*$FY$27*$GA$27)*($GB$27-$CK$17)^4))) -> -0.0004302760877 | CP57: =IF($CI$17=$CK$17,"---",IF(AND($CI$17="",$CJ$17="",$CK$17="",$CL$17=""),"---",(IF($EV57>=$CK$17,-$CJ$17*($EV57-$CI$17-($EV57-$CK$17)),IF($EV57>=$CI$17,-$CJ$17*($EV57-$CI$17),0)))+(IF($EV57>=$CK$17,-1/2*($CL$17-$CJ$17)/($CK$17-$CI$17)*(($EV57-$CI$17)^2-($EV57-$CK$17)^2)+($CL$17-$CJ$17)*($EV57-$CK$17),IF($EV57>=$CI$17,-1/2*($CL$17-$CJ$17)/($CK$17-$CI$17)*($EV57-$CI$17)^2,0))))) -> 0 | CQ57: =IF($CI$17=$CK$17,"---",IF(AND($CI$17="",$CJ$17="",$CK$17="",$CL$17=""),"---",(IF($EV57>=$CK$17,-$CJ$17/2*(($EV57-$CI$17)^2-($EV57-$CK$17)^2),IF($EV57>=$CI$17,-$CJ$17/2*($EV57-$CI$17)^2,0)))+(IF($EV57>=$CK$17,-1/6*($CL$17-$CJ$17)/($CK$17-$CI$17)*(($EV57-$CI$17)^3-($EV57-$CK$17)^3)+($CL$17-$CJ$17)/2*($EV57-$CK$17)^2,IF($EV57>=$CI$17,-1/6*($CL$17-$CJ$17)/($CK$17-$CI$17)*($EV57-$CI$17)^3,0))))) -> 0 | CR57: =IF($CI$17=$CK$17,"---",IF(AND($CI$17="",$CJ$17="",$CK$17="",$CL$17=""),"---",(IF($EV57>=$CK$17,-$CJ$17/(6*$FY$27*$GA$27)*(($EV57-$CI$17)^3-($EV57-$CK$17)^3),IF($EV57>=$CI$17,-$CJ$17/(6*$FY$27*$GA$27)*($EV57-$CI$17)^3,0)))+(IF($EV57>=$CK$17,-1/(24*$FY$27*$GA$27)*($CL$17-$CJ$17)/($CK$17-$CI$17)*(($EV57-$CI$17)^4-($EV57-$CK$17)^4)+($CL$17-$CJ$17)/(6*$FY$27*$GA$27)*($EV57-$CK$17)^3,IF($EV57>=$CI$17,-1/(24*$FY$27*$GA$27)*($CL$17-$CJ$17)/($CK$17-$CI$17)*($EV57-$CI$17)^4,0))))) -> 0 | CS57: =IF($CI$17=$CK$17,"---",IF(AND($CI$17="",$CJ$17="",$CK$17="",$CL$17=""),"---",(IF($EV57>=$CK$17,$CJ$17/(24*$FY$27*$GA$27)*(($EV57-$CI$17)^4-($EV57-$CK$17)^4),IF($EV57>=$CI$17,$CJ$17/(24*$FY$27*$GA$27)*($EV57-$CI$17)^4,0)))+(IF($EV57>=$CK$17,1/(120*$FY$27*$GA$27)*($CL$17-$CJ$17)/($CK$17-$CI$17)*(($EV57-$CI$17)^5-($EV57-$CK$17)^5)-($CL$17-$CJ$17)/(24*$FY$27*$GA$27)*($EV57-$CK$17)^4,IF($EV57>=$CI$17,1/(120*$FY$27*$GA$27)*($CL$17-$CJ$17)/($CK$17-$CI$17)*($EV57-$CI$17)^5,0))))) -> 0 | CT57: =IF($CM$17=$CO$17,"---",IF(AND($CM$17="",$CN$17="",$CO$17="",$CP$17=""),"---",(-$CN$17*($GB$27-$CM$17-($GB$27-$CO$17)))+(-1/2*($CP$17-$CN$17)/($CO$17-$CM$17)*(($GB$27-$CM$17)^2-($GB$27-$CO$17)^2)+($CP$17-$CN$17)*($GB$27-$CO$17)))) -> --- | CU57: =IF($CM$17=$CO$17,"---",IF(AND($CM$17="",$CN$17="",$CO$17="",$CP$17=""),"---",(-$CN$17/2*(($GB$27-$CM$17)^2-($GB$27-$CO$17)^2))+(-1/6*($CP$17-$CN$17)/($CO$17-$CM$17)*(($GB$27-$CM$17)^3-($GB$27-$CO$17)^3)+($CP$17-$CN$17)/2*($GB$27-$CO$17)^2))) -> --- | CV57: =IF($CM$17=$CO$17,"---",IF(AND($CM$17="",$CN$17="",$CO$17="",$CP$17=""),"---",(-$CN$17/(6*$FY$27*$GA$27)*(($GB$27-$CM$17)^3-($GB$27-$CO$17)^3))+(-1/(24*$FY$27*$GA$27)*($CP$17-$CN$17)/($CO$17-$CM$17)*(($GB$27-$CM$17)^4-($GB$27-$CO$17)^4)+($CP$17-$CN$17)/(6*$FY$27*$GA$27)*($GB$27-$CO$17)^3))) -> --- | CW57: =IF($CM$17=$CO$17,"---",IF(AND($CM$17="",$CN$17="",$CO$17="",$CP$17=""),"---",($CN$17/(24*$FY$27*$GA$27)*(($GB$27-$CM$17)^4-($GB$27-$CO$17)^4))+(1/(120*$FY$27*$GA$27)*($CP$17-$CN$17)/($CO$17-$CM$17)*(($GB$27-$CM$17)^5-($GB$27-$CO$17)^5)-($CP$17-$CN$17)/(24*$FY$27*$GA$27)*($GB$27-$CO$17)^4))) -> --- | CX57: =IF($CM$17=$CO$17,"---",IF(AND($CM$17="",$CN$17="",$CO$17="",$CP$17=""),"---",(IF($EV57>=$CO$17,-$CN$17*($EV57-$CM$17-($EV57-$CO$17)),IF($EV57>=$CM$17,-$CN$17*($EV57-$CM$17),0)))+(IF($EV57>=$CO$17,-1/2*($CP$17-$CN$17)/($CO$17-$CM$17)*(($EV57-$CM$17)^2-($EV57-$CO$17)^2)+($CP$17-$CN$17)*($EV57-$CO$17),IF($EV57>=$CM$17,-1/2*($CP$17-$CN$17)/($CO$17-$CM$17)*($EV57-$CM$17)^2,0))))) -> --- | CY57: =IF($CM$17=$CO$17,"---",IF(AND($CM$17="",$CN$17="",$CO$17="",$CP$17=""),"---",(IF($EV57>=$CO$17,-$CN$17/2*(($EV57-$CM$17)^2-($EV57-$CO$17)^2),IF($EV57>=$CM$17,-$CN$17/2*($EV57-$CM$17)^2,0)))+(IF($EV57>=$CO$17,-1/6*($CP$17-$CN$17)/($CO$17-$CM$17)*(($EV57-$CM$17)^3-($EV57-$CO$17)^3)+($CP$17-$CN$17)/2*($EV57-$CO$17)^2,IF($EV57>=$CM$17,-1/6*($CP$17-$CN$17)/($CO$17-$CM$17)*($EV57-$CM$17)^3,0))))) -> --- | CZ57: =IF($CM$17=$CO$17,"---",IF(AND($CM$17="",$CN$17="",$CO$17="",$CP$17=""),"---",(IF($EV57>=$CO$17,-$CN$17/(6*$FY$27*$GA$27)*(($EV57-$CM$17)^3-($EV57-$CO$17)^3),IF($EV57>=$CM$17,-$CN$17/(6*$FY$27*$GA$27)*($EV57-$CM$17)^3,0)))+(IF($EV57>=$CO$17,-1/(24*$FY$27*$GA$27)*($CP$17-$CN$17)/($CO$17-$CM$17)*(($EV57-$CM$17)^4-($EV57-$CO$17)^4)+($CP$17-$CN$17)/(6*$FY$27*$GA$27)*($EV57-$CO$17)^3,IF($EV57>=$CM$17,-1/(24*$FY$27*$GA$27)*($CP$17-$CN$17)/($CO$17-$CM$17)*($EV57-$CM$17)^4,0))))) -> --- | DA57: =IF($CM$17=$CO$17,"---",IF(AND($CM$17="",$CN$17="",$CO$17="",$CP$17=""),"---",(IF($EV57>=$CO$17,$CN$17/(24*$FY$27*$GA$27)*(($EV57-$CM$17)^4-($EV57-$CO$17)^4),IF($EV57>=$CM$17,$CN$17/(24*$FY$27*$GA$27)*($EV57-$CM$17)^4,0)))+(IF($EV57>=$CO$17,1/(120*$FY$27*$GA$27)*($CP$17-$CN$17)/($CO$17-$CM$17)*(($EV57-$CM$17)^5-($EV57-$CO$17)^5)-($CP$17-$CN$17)/(24*$FY$27*$GA$27)*($EV57-$CO$17)^4,IF($EV57>=$CM$17,1/(120*$FY$27*$GA$27)*($CP$17-$CN$17)/($CO$17-$CM$17)*($EV57-$CM$17)^5,0))))) -> --- | DB57: =IF($CQ$17=$CS$17,"---",IF(AND($CQ$17="",$CR$17="",$CS$17="",$CT$17=""),"---",(-$CR$17*($GB$27-$CQ$17-($GB$27-$CS$17)))+(-1/2*($CT$17-$CR$17)/($CS$17-$CQ$17)*(($GB$27-$CQ$17)^2-($GB$27-$CS$17)^2)+($CT$17-$CR$17)*($GB$27-$CS$17)))) -> --- | DC57: =IF($CQ$17=$CS$17,"---",IF(AND($CQ$17="",$CR$17="",$CS$17="",$CT$17=""),"---",(-$CR$17/2*(($GB$27-$CQ$17)^2-($GB$27-$CS$17)^2))+(-1/6*($CT$17-$CR$17)/($CS$17-$CQ$17)*(($GB$27-$CQ$17)^3-($GB$27-$CS$17)^3)+($CT$17-$CR$17)/2*($GB$27-$CS$17)^2))) -> --- | DD57: =IF($CQ$17=$CS$17,"---",IF(AND($CQ$17="",$CR$17="",$CS$17="",$CT$17=""),"---",(-$CR$17/(6*$FY$27*$GA$27)*(($GB$27-$CQ$17)^3-($GB$27-$CS$17)^3))+(-1/(24*$FY$27*$GA$27)*($CT$17-$CR$17)/($CS$17-$CQ$17)*(($GB$27-$CQ$17)^4-($GB$27-$CS$17)^4)+($CT$17-$CR$17)/(6*$FY$27*$GA$27)*($GB$27-$CS$17)^3))) -> --- | DE57: =IF($CQ$17=$CS$17,"---",IF(AND($CQ$17="",$CR$17="",$CS$17="",$CT$17=""),"---",($CR$17/(24*$FY$27*$GA$27)*(($GB$27-$CQ$17)^4-($GB$27-$CS$17)^4))+(1/(120*$FY$27*$GA$27)*($CT$17-$CR$17)/($CS$17-$CQ$17)*(($GB$27-$CQ$17)^5-($GB$27-$CS$17)^5)-($CT$17-$CR$17)/(24*$FY$27*$GA$27)*($GB$27-$CS$17)^4))) -> --- | DF57: =IF($CQ$17=$CS$17,"---",IF(AND($CQ$17="",$CR$17="",$CS$17="",$CT$17=""),"---",(IF($EV57>=$CS$17,-$CR$17*($EV57-$CQ$17-($EV57-$CS$17)),IF($EV57>=$CQ$17,-$CR$17*($EV57-$CQ$17),0)))+(IF($EV57>=$CS$17,-1/2*($CT$17-$CR$17)/($CS$17-$CQ$17)*(($EV57-$CQ$17)^2-($EV57-$CS$17)^2)+($CT$17-$CR$17)*($EV57-$CS$17),IF($EV57>=$CQ$17,-1/2*($CT$17-$CR$17)/($CS$17-$CQ$17)*($EV57-$CQ$17)^2,0))))) -> --- | DG57: =IF($CQ$17=$CS$17,"---",IF(AND($CQ$17="",$CR$17="",$CS$17="",$CT$17=""),"---",(IF($EV57>=$CS$17,-$CR$17/2*(($EV57-$CQ$17)^2-($EV57-$CS$17)^2),IF($EV57>=$CQ$17,-$CR$17/2*($EV57-$CQ$17)^2,0)))+(IF($EV57>=$CS$17,-1/6*($CT$17-$CR$17)/($CS$17-$CQ$17)*(($EV57-$CQ$17)^3-($EV57-$CS$17)^3)+($CT$17-$CR$17)/2*($EV57-$CS$17)^2,IF($EV57>=$CQ$17,-1/6*($CT$17-$CR$17)/($CS$17-$CQ$17)*($EV57-$CQ$17)^3,0))))) -> --- | DH57: =IF($CQ$17=$CS$17,"---",IF(AND($CQ$17="",$CR$17="",$CS$17="",$CT$17=""),"---",(IF($EV57>=$CS$17,-$CR$17/(6*$FY$27*$GA$27)*(($EV57-$CQ$17)^3-($EV57-$CS$17)^3),IF($EV57>=$CQ$17,-$CR$17/(6*$FY$27*$GA$27)*($EV57-$CQ$17)^3,0)))+(IF($EV57>=$CS$17,-1/(24*$FY$27*$GA$27)*($CT$17-$CR$17)/($CS$17-$CQ$17)*(($EV57-$CQ$17)^4-($EV57-$CS$17)^4)+($CT$17-$CR$17)/(6*$FY$27*$GA$27)*($EV57-$CS$17)^3,IF($EV57>=$CQ$17,-1/(24*$FY$27*$GA$27)*($CT$17-$CR$17)/($CS$17-$CQ$17)*($EV57-$CQ$17)^4,0))))) -> --- | DI57: =IF($CQ$17=$CS$17,"---",IF(AND($CQ$17="",$CR$17="",$CS$17="",$CT$17=""),"---",(IF($EV57>=$CS$17,$CR$17/(24*$FY$27*$GA$27)*(($EV57-$CQ$17)^4-($EV57-$CS$17)^4),IF($EV57>=$CQ$17,$CR$17/(24*$FY$27*$GA$27)*($EV57-$CQ$17)^4,0)))+(IF($EV57>=$CS$17,1/(120*$FY$27*$GA$27)*($CT$17-$CR$17)/($CS$17-$CQ$17)*(($EV57-$CQ$17)^5-($EV57-$CS$17)^5)-($CT$17-$CR$17)/(24*$FY$27*$GA$27)*($EV57-$CS$17)^4,IF($EV57>=$CQ$17,1/(120*$FY$27*$GA$27)*($CT$17-$CR$17)/($CS$17-$CQ$17)*($EV57-$CQ$17)^5,0))))) -> --- | DJ57: =IF($CU$17=$CW$17,"---",IF(AND($CU$17="",$CV$17="",$CW$17="",$CX$17=""),"---",(-$CV$17*($GB$27-$CU$17-($GB$27-$CW$17)))+(-1/2*($CX$17-$CV$17)/($CW$17-$CU$17)*(($GB$27-$CU$17)^2-($GB$27-$CW$17)^2)+($CX$17-$CV$17)*($GB$27-$CW$17)))) -> --- | DK57: =IF($CU$17=$CW$17,"---",IF(AND($CU$17="",$CV$17="",$CW$17="",$CX$17=""),"---",(-$CV$17/2*(($GB$27-$CU$17)^2-($GB$27-$CW$17)^2))+(-1/6*($CX$17-$CV$17)/($CW$17-$CU$17)*(($GB$27-$CU$17)^3-($GB$27-$CW$17)^3)+($CX$17-$CV$17)/2*($GB$27-$CW$17)^2))) -> --- | DL57: =IF($CU$17=$CW$17,"---",IF(AND($CU$17="",$CV$17="",$CW$17="",$CX$17=""),"---",(-$CV$17/(6*$FY$27*$GA$27)*(($GB$27-$CU$17)^3-($GB$27-$CW$17)^3))+(-1/(24*$FY$27*$GA$27)*($CX$17-$CV$17)/($CW$17-$CU$17)*(($GB$27-$CU$17)^4-($GB$27-$CW$17)^4)+($CX$17-$CV$17)/(6*$FY$27*$GA$27)*($GB$27-$CW$17)^3))) -> --- | DM57: =IF($CU$17=$CW$17,"---",IF(AND($CU$17="",$CV$17="",$CW$17="",$CX$17=""),"---",($CV$17/(24*$FY$27*$GA$27)*(($GB$27-$CU$17)^4-($GB$27-$CW$17)^4))+(1/(120*$FY$27*$GA$27)*($CX$17-$CV$17)/($CW$17-$CU$17)*(($GB$27-$CU$17)^5-($GB$27-$CW$17)^5)-($CX$17-$CV$17)/(24*$FY$27*$GA$27)*($GB$27-$CW$17)^4))) -> --- | DN57: =IF($CU$17=$CW$17,"---",IF(AND($CU$17="",$CV$17="",$CW$17="",$CX$17=""),"---",(IF($EV57>=$CW$17,-$CV$17*($EV57-$CU$17-($EV57-$CW$17)),IF($EV57>=$CU$17,-$CV$17*($EV57-$CU$17),0)))+(IF($EV57>=$CW$17,-1/2*($CX$17-$CV$17)/($CW$17-$CU$17)*(($EV57-$CU$17)^2-($EV57-$CW$17)^2)+($CX$17-$CV$17)*($EV57-$CW$17),IF($EV57>=$CU$17,-1/2*($CX$17-$CV$17)/($CW$17-$CU$17)*($EV57-$CU$17)^2,0))))) -> --- | DO57: =IF($CU$17=$CW$17,"---",IF(AND($CU$17="",$CV$17="",$CW$17="",$CX$17=""),"---",(IF($EV57>=$CW$17,-$CV$17/2*(($EV57-$CU$17)^2-($EV57-$CW$17)^2),IF($EV57>=$CU$17,-$CV$17/2*($EV57-$CU$17)^2,0)))+(IF($EV57>=$CW$17,-1/6*($CX$17-$CV$17)/($CW$17-$CU$17)*(($EV57-$CU$17)^3-($EV57-$CW$17)^3)+($CX$17-$CV$17)/2*($EV57-$CW$17)^2,IF($EV57>=$CU$17,-1/6*($CX$17-$CV$17)/($CW$17-$CU$17)*($EV57-$CU$17)^3,0))))) -> --- | DP57: =IF($CU$17=$CW$17,"---",IF(AND($CU$17="",$CV$17="",$CW$17="",$CX$17=""),"---",(IF($EV57>=$CW$17,-$CV$17/(6*$FY$27*$GA$27)*(($EV57-$CU$17)^3-($EV57-$CW$17)^3),IF($EV57>=$CU$17,-$CV$17/(6*$FY$27*$GA$27)*($EV57-$CU$17)^3,0)))+(IF($EV57>=$CW$17,-1/(24*$FY$27*$GA$27)*($CX$17-$CV$17)/($CW$17-$CU$17)*(($EV57-$CU$17)^4-($EV57-$CW$17)^4)+($CX$17-$CV$17)/(6*$FY$27*$GA$27)*($EV57-$CW$17)^3,IF($EV57>=$CU$17,-1/(24*$FY$27*$GA$27)*($CX$17-$CV$17)/($CW$17-$CU$17)*($EV57-$CU$17)^4,0))))) -> --- | DQ57: =IF($CU$17=$CW$17,"---",IF(AND($CU$17="",$CV$17="",$CW$17="",$CX$17=""),"---",(IF($EV57>=$CW$17,$CV$17/(24*$FY$27*$GA$27)*(($EV57-$CU$17)^4-($EV57-$CW$17)^4),IF($EV57>=$CU$17,$CV$17/(24*$FY$27*$GA$27)*($EV57-$CU$17)^4,0)))+(IF($EV57>=$CW$17,1/(120*$FY$27*$GA$27)*($CX$17-$CV$17)/($CW$17-$CU$17)*(($EV57-$CU$17)^5-($EV57-$CW$17)^5)-($CX$17-$CV$17)/(24*$FY$27*$GA$27)*($EV57-$CW$17)^4,IF($EV57>=$CU$17,1/(120*$FY$27*$GA$27)*($CX$17-$CV$17)/($CW$17-$CU$17)*($EV57-$CU$17)^5,0))))) -> --- | DR57: =-$CF$32+-$CH$32+-$CJ$32+-$CL$32+-$CN$32 -> -4.7209869 | DS57: =-$CF$32*($GB$27-$CE$32)+-$CH$32*($GB$27-$CG$32)+-$CJ$32*($GB$27-$CI$32)+-$CL$32*($GB$27-$CK$32)+-$CN$32*($GB$27-$CM$32) -> -61.9550218 | DT57: =-$CF$32*($GB$27-$CE$32)^2/(2*$FY$27*$GA$27)+-$CH$32*($GB$27-$CG$32)^2/(2*$FY$27*$GA$27)+-$CJ$32*($GB$27-$CI$32)^2/(2*$FY$27*$GA$27)+-$CL$32*($GB$27-$CK$32)^2/(2*$FY$27*$GA$27)+-$CN$32*($GB$27-$CM$32)^2/(2*$FY$27*$GA$27) -> -1.944440626e-05 | DU57: =$CF$32*($GB$27-$CE$32)^3/(6*$FY$27*$GA$27)+$CH$32*($GB$27-$CG$32)^3/(6*$FY$27*$GA$27)+$CJ$32*($GB$27-$CI$32)^3/(6*$FY$27*$GA$27)+$CL$32*($GB$27-$CK$32)^3/(6*$FY$27*$GA$27)+$CN$32*($GB$27-$CM$32)^3/(6*$FY$27*$GA$27) -> 8.505838854e-05 | DV57: =IF($EV57>$CE$32,-$CF$32,0)+IF($EV57>$CG$32,-$CH$32,0)+IF($EV57>$CI$32,-$CJ$32,0)+IF($EV57>$CK$32,-$CL$32,0)+IF($EV57>$CM$32,-$CN$32,0) -> 0 | DW57: =IF($EV57>$CE$32,-$CF$32*($EV57-$CE$32),0)+IF($EV57>$CG$32,-$CH$32*($EV57-$CG$32),0)+IF($EV57>$CI$32,-$CJ$32*($EV57-$CI$32),0)+IF($EV57>$CK$32,-$CL$32*($EV57-$CK$32),0)+IF($EV57>$CM$32,-$CN$32*($EV57-$CM$32),0) -> 0 | DX57: =IF($EV57>$CE$32,-$CF$32*($EV57-$CE$32)^2/(2*$FY$27*$GA$27),0)+IF($EV57>$CG$32,-$CH$32*($EV57-$CG$32)^2/(2*$FY$27*$GA$27),0)+IF($EV57>$CI$32,-$CJ$32*($EV57-$CI$32)^2/(2*$FY$27*$GA$27),0)+IF($EV57>$CK$32,-$CL$32*($EV57-$CK$32)^2/(2*$FY$27*$GA$27),0)+IF($EV57>$CM$32,-$CN$32*($EV57-$CM$32)^2/(2*$FY$27*$GA$27),0) -> 0 | DY57: =IF($EV57>$CE$32,$CF$32*($EV57-$CE$32)^3/(6*$FY$27*$GA$27),0)+IF($EV57>$CG$32,$CH$32*($EV57-$CG$32)^3/(6*$FY$27*$GA$27),0)+IF($EV57>$CI$32,$CJ$32*($EV57-$CI$32)^3/(6*$FY$27*$GA$27),0)+IF($EV57>$CK$32,$CL$32*($EV57-$CK$32)^3/(6*$FY$27*$GA$27),0)+IF($EV57>$CM$32,$CN$32*($EV57-$CM$32)^3/(6*$FY$27*$GA$27),0) -> 0 | DZ57: =0+0+0+0 -> 0 | EA57: =-$CF$47+-$CH$47+-$CJ$47+-$CL$47+-$CN$47 -> 0 | EB57: =-$CF$47*($GB$27-$CE$47)/($FY$27*$GA$27)+-$CH$47*($GB$27-$CG$47)/($FY$27*$GA$27)+-$CJ$47*($GB$27-$CI$47)/($FY$27*$GA$27)+-$CL$47*($GB$27-$CK$47)/($FY$27*$GA$27)+-$CN$47*($GB$27-$CM$47)/($FY$27*$GA$27) -> 0 | EC57: =$CF$47*($GB$27-$CE$47)^2/(2*$FY$27*$GA$27)+$CH$47*($GB$27-$CG$47)^2/(2*$FY$27*$GA$27)+$CJ$47*($GB$27-$CI$47)^2/(2*$FY$27*$GA$27)+$CL$47*($GB$27-$CK$47)^2/(2*$FY$27*$GA$27)+$CN$47*($GB$27-$CM$47)^2/(2*$FY$27*$GA$27) -> 0 | ED57: =IF($EV57>=IF($CE$47=$GB$27,$CE$47+0.000000001,$CE$47),0,0)+IF($EV57>=IF($CG$47=$GB$27,$CG$47+0.000000001,$CG$47),0,0)+IF($EV57>=IF($CI$47=$GB$27,$CI$47+0.000000001,$CI$47),0,0)+IF($EV57>=IF($CK$47=$GB$27,$CK$47+0.000000001,$CK$47),0,0)+IF($EV57>=IF($CM$47=$GB$27,$CM$47+0.000000001,$CM$47),0,0) -> 0 | EE57: =IF($EV57>=IF($CE$47=$GB$27,$CE$47+0.000000001,$CE$47),-$CF$47,0)+IF($EV57>=IF($CG$47=$GB$27,$CG$47+0.000000001,$CG$47),-$CH$47,0)+IF($EV57>=IF($CI$47=$GB$27,$CI$47+0.000000001,$CI$47),-$CJ$47,0)+IF($EV57>=IF($CK$47=$GB$27,$CK$47+0.000000001,$CK$47),-$CL$47,0)+IF($EV57>=IF($CM$47=$GB$27,$CM$47+0.000000001,$CM$47),-$CN$47,0) -> 0 | EF57: =IF($EV57>=IF($CE$47=$GB$27,$CE$47+0.000000001,$CE$47),-$CF$47*($EV57-$CE$47)/($FY$27*$GA$27),0)+IF($EV57>=IF($CG$47=$GB$27,$CG$47+0.000000001,$CG$47),-$CH$47*($EV57-$CG$47)/($FY$27*$GA$27),0)+IF($EV57>=IF($CI$47=$GB$27,$CI$47+0.000000001,$CI$47),-$CJ$47*($EV57-$CI$47)/($FY$27*$GA$27),0)+IF($EV57>=IF($CK$47=$GB$27,$CK$47+0.000000001,$CK$47),-$CL$47*($EV57-$CK$47)/($FY$27*$GA$27),0)+IF($EV57>=IF($CM$47=$GB$27,$CM$47+0.000000001,$CM$47),-$CN$47*($EV57-$CM$47)/($FY$27*$GA$27),0) -> 0 | EG57: =IF($EV57>=IF($CE$47=$GB$27,$CE$47+0.000000001,$CE$47),$CF$47*($EV57-$CE$47)^2/(2*$FY$27*$GA$27),0)+IF($EV57>=IF($CG$47=$GB$27,$CG$47+0.000000001,$CG$47),$CH$47*($EV57-$CG$47)^2/(2*$FY$27*$GA$27),0)+IF($EV57>=IF($CI$47=$GB$27,$CI$47+0.000000001,$CI$47),$CJ$47*($EV57-$CI$47)^2/(2*$FY$27*$GA$27),0)+IF($EV57>=IF($CK$47=$GB$27,$CK$47+0.000000001,$CK$47),$CL$47*($EV57-$CK$47)^2/(2*$FY$27*$GA$27),0)+IF($EV57>=IF($CM$47=$GB$27,$CM$47+0.000000001,$CM$47),$CN$47*($EV57-$CM$47)^2/(2*$FY$27*$GA$27),0) -> 0 | EH57: =SUM(CD57,CL57,CT57,DB57,DJ57,DR57,DZ57) -> -2.697705601 | EI57: =SUM(CE57,CM57,CU57,DC57,DK57,DS57,EA57) -> -29.87115221 | EJ57: =SUM(CF57,CN57,CV57,DD57,DL57,DT57,EB57) -> 2.893629813e-07 | EK57: =SUM(CG57,CO57,CW57,DE57,DM57,DU57,EC57) -> -6.581591619e-05 | EL57: =SUM(CH57,CP57,CX57,DF57,DN57,DV57,ED57) -> 0 | EM57: =SUM(CI57,CQ57,CY57,DG57,DO57,DW57,EE57) -> 0 | EN57: =SUM(CJ57,CR57,CZ57,DH57,DP57,DX57,EF57) -> 0 | EO57: =SUM(CK57,CS57,DA57,DI57,DQ57,DY57,EG57) -> 0 | EP57: =-12*$FY$27*$GA$27/$GB$27^3*$EK57-6*$FY$27*$GA$27/$GB$27^2*$EJ57 -> 2.071051146 | EQ57: =6*$FY$27*$GA$27/$GB$27^2*$EK57+2*$FY$27*$GA$27/$GB$27*$EJ57 -> -20.69162919 | ER57: =0 -> 0 | ES57: =0 -> 0 | ET57: =$EP57+$EL57 -> 2.071051146 | EU57: =$EQ57+$EP57*$EV57+$EM57 -> -20.69162919 | EV57: =0 -> 0 | EW57: Member #1 FEM(L): | FF57: W36x328 | FG57: 96.4 | FH57: 22500 | FI57: 1420 | FJ57: 621.93 | FK57: 936520.71 | FL57: 59104.86 | FW57: 1 | FX57: =BF57 -> X-Global | FY57: 0.3333333333 | FZ57: =BH57*0.2248089 -> 4.7209869 | GA57: =BI57 -> 0 | GB57: =BJ57*0.2248089 -> 0 | GC57: =BK57 -> 0 | GD57: =BL57*0.2248089 -> 0 | GE57: =BM57 -> 0 | GF57: =BN57*0.2248089 -> 0 | GG57: =BO57 -> 0 | GH57: =BP57*0.2248089 -> 0
BE58: 2 | BF58: Y-Global | BG58: =P83/AB25 -> 0 | BH58: 0 | BI58: =T83/AB25 -> 0 | BJ58: 0 | BK58: =X83/AB25 -> 0 | BL58: 0 | BM58: =P93/AB25 -> 0 | BN58: 0 | BO58: =T93/AB25 -> 0 | BP58: 0 | CC58: Member #1(X) FEM(R): | CD58: =$CD$57 -> -21.58166719 | CE58: =$CE$57 -> -238.9695115 | CF58: =$CF$57 -> -6.736101877e-05 | CG58: =$CG$57 -> 0.000279401783 | CH58: =IF($CE$17=$CG$17,"---",IF(AND($CE$17="",$CF$17="",$CG$17="",$CH$17=""),"---",(IF($EV58>=$CG$17,-$CF$17*($EV58-$CE$17-($EV58-$CG$17)),IF($EV58>=$CE$17,-$CF$17*($EV58-$CE$17),0)))+(IF($EV58>=$CG$17,-1/2*($CH$17-$CF$17)/($CG$17-$CE$17)*(($EV58-$CE$17)^2-($EV58-$CG$17)^2)+($CH$17-$CF$17)*($EV58-$CG$17),IF($EV58>=$CE$17,-1/2*($CH$17-$CF$17)/($CG$17-$CE$17)*($EV58-$CE$17)^2,0))))) -> -21.58166719 | CI58: =IF($CE$17=$CG$17,"---",IF(AND($CE$17="",$CF$17="",$CG$17="",$CH$17=""),"---",(IF($EV58>=$CG$17,-$CF$17/2*(($EV58-$CE$17)^2-($EV58-$CG$17)^2),IF($EV58>=$CE$17,-$CF$17/2*($EV58-$CE$17)^2,0)))+(IF($EV58>=$CG$17,-1/6*($CH$17-$CF$17)/($CG$17-$CE$17)*(($EV58-$CE$17)^3-($EV58-$CG$17)^3)+($CH$17-$CF$17)/2*($EV58-$CG$17)^2,IF($EV58>=$CE$17,-1/6*($CH$17-$CF$17)/($CG$17-$CE$17)*($EV58-$CE$17)^3,0))))) -> -238.9695115 | CJ58: =IF($CE$17=$CG$17,"---",IF(AND($CE$17="",$CF$17="",$CG$17="",$CH$17=""),"---",(IF($EV58>=$CG$17,-$CF$17/(6*$FY$27*$GA$27)*(($EV58-$CE$17)^3-($EV58-$CG$17)^3),IF($EV58>=$CE$17,-$CF$17/(6*$FY$27*$GA$27)*($EV58-$CE$17)^3,0)))+(IF($EV58>=$CG$17,-1/(24*$FY$27*$GA$27)*($CH$17-$CF$17)/($CG$17-$CE$17)*(($EV58-$CE$17)^4-($EV58-$CG$17)^4)+($CH$17-$CF$17)/(6*$FY$27*$GA$27)*($EV58-$CG$17)^3,IF($EV58>=$CE$17,-1/(24*$FY$27*$GA$27)*($CH$17-$CF$17)/($CG$17-$CE$17)*($EV58-$CE$17)^4,0))))) -> -6.736101877e-05 | CK58: =IF($CE$17=$CG$17,"---",IF(AND($CE$17="",$CF$17="",$CG$17="",$CH$17=""),"---",(IF($EV58>=$CG$17,$CF$17/(24*$FY$27*$GA$27)*(($EV58-$CE$17)^4-($EV58-$CG$17)^4),IF($EV58>=$CE$17,$CF$17/(24*$FY$27*$GA$27)*($EV58-$CE$17)^4,0)))+(IF($EV58>=$CG$17,1/(120*$FY$27*$GA$27)*($CH$17-$CF$17)/($CG$17-$CE$17)*(($EV58-$CE$17)^5-($EV58-$CG$17)^5)-($CH$17-$CF$17)/(24*$FY$27*$GA$27)*($EV58-$CG$17)^4,IF($EV58>=$CE$17,1/(120*$FY$27*$GA$27)*($CH$17-$CF$17)/($CG$17-$CE$17)*($EV58-$CE$17)^5,0))))) -> 0.000279401783 | CL58: =$CL$57 -> 23.60494849 | CM58: =$CM$57 -> 271.0533811 | CN58: =$CN$57 -> 8.709478802e-05 | CO58: =$CO$57 -> -0.0004302760877 | CP58: =IF($CI$17=$CK$17,"---",IF(AND($CI$17="",$CJ$17="",$CK$17="",$CL$17=""),"---",(IF($EV58>=$CK$17,-$CJ$17*($EV58-$CI$17-($EV58-$CK$17)),IF($EV58>=$CI$17,-$CJ$17*($EV58-$CI$17),0)))+(IF($EV58>=$CK$17,-1/2*($CL$17-$CJ$17)/($CK$17-$CI$17)*(($EV58-$CI$17)^2-($EV58-$CK$17)^2)+($CL$17-$CJ$17)*($EV58-$CK$17),IF($EV58>=$CI$17,-1/2*($CL$17-$CJ$17)/($CK$17-$CI$17)*($EV58-$CI$17)^2,0))))) -> 23.60494849 | CQ58: =IF($CI$17=$CK$17,"---",IF(AND($CI$17="",$CJ$17="",$CK$17="",$CL$17=""),"---",(IF($EV58>=$CK$17,-$CJ$17/2*(($EV58-$CI$17)^2-($EV58-$CK$17)^2),IF($EV58>=$CI$17,-$CJ$17/2*($EV58-$CI$17)^2,0)))+(IF($EV58>=$CK$17,-1/6*($CL$17-$CJ$17)/($CK$17-$CI$17)*(($EV58-$CI$17)^3-($EV58-$CK$17)^3)+($CL$17-$CJ$17)/2*($EV58-$CK$17)^2,IF($EV58>=$CI$17,-1/6*($CL$17-$CJ$17)/($CK$17-$CI$17)*($EV58-$CI$17)^3,0))))) -> 271.0533811 | CR58: =IF($CI$17=$CK$17,"---",IF(AND($CI$17="",$CJ$17="",$CK$17="",$CL$17=""),"---",(IF($EV58>=$CK$17,-$CJ$17/(6*$FY$27*$GA$27)*(($EV58-$CI$17)^3-($EV58-$CK$17)^3),IF($EV58>=$CI$17,-$CJ$17/(6*$FY$27*$GA$27)*($EV58-$CI$17)^3,0)))+(IF($EV58>=$CK$17,-1/(24*$FY$27*$GA$27)*($CL$17-$CJ$17)/($CK$17-$CI$17)*(($EV58-$CI$17)^4-($EV58-$CK$17)^4)+($CL$17-$CJ$17)/(6*$FY$27*$GA$27)*($EV58-$CK$17)^3,IF($EV58>=$CI$17,-1/(24*$FY$27*$GA$27)*($CL$17-$CJ$17)/($CK$17-$CI$17)*($EV58-$CI$17)^4,0))))) -> 8.709478802e-05 | CS58: =IF($CI$17=$CK$17,"---",IF(AND($CI$17="",$CJ$17="",$CK$17="",$CL$17=""),"---",(IF($EV58>=$CK$17,$CJ$17/(24*$FY$27*$GA$27)*(($EV58-$CI$17)^4-($EV58-$CK$17)^4),IF($EV58>=$CI$17,$CJ$17/(24*$FY$27*$GA$27)*($EV58-$CI$17)^4,0)))+(IF($EV58>=$CK$17,1/(120*$FY$27*$GA$27)*($CL$17-$CJ$17)/($CK$17-$CI$17)*(($EV58-$CI$17)^5-($EV58-$CK$17)^5)-($CL$17-$CJ$17)/(24*$FY$27*$GA$27)*($EV58-$CK$17)^4,IF($EV58>=$CI$17,1/(120*$FY$27*$GA$27)*($CL$17-$CJ$17)/($CK$17-$CI$17)*($EV58-$CI$17)^5,0))))) -> -0.0004302760877 | CT58: =$CT$57 -> --- | CU58: =$CU$57 -> --- | CV58: =$CV$57 -> --- | CW58: =$CW$57 -> --- | CX58: =IF($CM$17=$CO$17,"---",IF(AND($CM$17="",$CN$17="",$CO$17="",$CP$17=""),"---",(IF($EV58>=$CO$17,-$CN$17*($EV58-$CM$17-($EV58-$CO$17)),IF($EV58>=$CM$17,-$CN$17*($EV58-$CM$17),0)))+(IF($EV58>=$CO$17,-1/2*($CP$17-$CN$17)/($CO$17-$CM$17)*(($EV58-$CM$17)^2-($EV58-$CO$17)^2)+($CP$17-$CN$17)*($EV58-$CO$17),IF($EV58>=$CM$17,-1/2*($CP$17-$CN$17)/($CO$17-$CM$17)*($EV58-$CM$17)^2,0))))) -> --- | CY58: =IF($CM$17=$CO$17,"---",IF(AND($CM$17="",$CN$17="",$CO$17="",$CP$17=""),"---",(IF($EV58>=$CO$17,-$CN$17/2*(($EV58-$CM$17)^2-($EV58-$CO$17)^2),IF($EV58>=$CM$17,-$CN$17/2*($EV58-$CM$17)^2,0)))+(IF($EV58>=$CO$17,-1/6*($CP$17-$CN$17)/($CO$17-$CM$17)*(($EV58-$CM$17)^3-($EV58-$CO$17)^3)+($CP$17-$CN$17)/2*($EV58-$CO$17)^2,IF($EV58>=$CM$17,-1/6*($CP$17-$CN$17)/($CO$17-$CM$17)*($EV58-$CM$17)^3,0))))) -> --- | CZ58: =IF($CM$17=$CO$17,"---",IF(AND($CM$17="",$CN$17="",$CO$17="",$CP$17=""),"---",(IF($EV58>=$CO$17,-$CN$17/(6*$FY$27*$GA$27)*(($EV58-$CM$17)^3-($EV58-$CO$17)^3),IF($EV58>=$CM$17,-$CN$17/(6*$FY$27*$GA$27)*($EV58-$CM$17)^3,0)))+(IF($EV58>=$CO$17,-1/(24*$FY$27*$GA$27)*($CP$17-$CN$17)/($CO$17-$CM$17)*(($EV58-$CM$17)^4-($EV58-$CO$17)^4)+($CP$17-$CN$17)/(6*$FY$27*$GA$27)*($EV58-$CO$17)^3,IF($EV58>=$CM$17,-1/(24*$FY$27*$GA$27)*($CP$17-$CN$17)/($CO$17-$CM$17)*($EV58-$CM$17)^4,0))))) -> --- | DA58: =IF($CM$17=$CO$17,"---",IF(AND($CM$17="",$CN$17="",$CO$17="",$CP$17=""),"---",(IF($EV58>=$CO$17,$CN$17/(24*$FY$27*$GA$27)*(($EV58-$CM$17)^4-($EV58-$CO$17)^4),IF($EV58>=$CM$17,$CN$17/(24*$FY$27*$GA$27)*($EV58-$CM$17)^4,0)))+(IF($EV58>=$CO$17,1/(120*$FY$27*$GA$27)*($CP$17-$CN$17)/($CO$17-$CM$17)*(($EV58-$CM$17)^5-($EV58-$CO$17)^5)-($CP$17-$CN$17)/(24*$FY$27*$GA$27)*($EV58-$CO$17)^4,IF($EV58>=$CM$17,1/(120*$FY$27*$GA$27)*($CP$17-$CN$17)/($CO$17-$CM$17)*($EV58-$CM$17)^5,0))))) -> --- | DB58: =$DB$57 -> --- | DC58: =$DC$57 -> --- | DD58: =$DD$57 -> --- | DE58: =$DE$57 -> --- | DF58: =IF($CQ$17=$CS$17,"---",IF(AND($CQ$17="",$CR$17="",$CS$17="",$CT$17=""),"---",(IF($EV58>=$CS$17,-$CR$17*($EV58-$CQ$17-($EV58-$CS$17)),IF($EV58>=$CQ$17,-$CR$17*($EV58-$CQ$17),0)))+(IF($EV58>=$CS$17,-1/2*($CT$17-$CR$17)/($CS$17-$CQ$17)*(($EV58-$CQ$17)^2-($EV58-$CS$17)^2)+($CT$17-$CR$17)*($EV58-$CS$17),IF($EV58>=$CQ$17,-1/2*($CT$17-$CR$17)/($CS$17-$CQ$17)*($EV58-$CQ$17)^2,0))))) -> --- | DG58: =IF($CQ$17=$CS$17,"---",IF(AND($CQ$17="",$CR$17="",$CS$17="",$CT$17=""),"---",(IF($EV58>=$CS$17,-$CR$17/2*(($EV58-$CQ$17)^2-($EV58-$CS$17)^2),IF($EV58>=$CQ$17,-$CR$17/2*($EV58-$CQ$17)^2,0)))+(IF($EV58>=$CS$17,-1/6*($CT$17-$CR$17)/($CS$17-$CQ$17)*(($EV58-$CQ$17)^3-($EV58-$CS$17)^3)+($CT$17-$CR$17)/2*($EV58-$CS$17)^2,IF($EV58>=$CQ$17,-1/6*($CT$17-$CR$17)/($CS$17-$CQ$17)*($EV58-$CQ$17)^3,0))))) -> --- | DH58: =IF($CQ$17=$CS$17,"---",IF(AND($CQ$17="",$CR$17="",$CS$17="",$CT$17=""),"---",(IF($EV58>=$CS$17,-$CR$17/(6*$FY$27*$GA$27)*(($EV58-$CQ$17)^3-($EV58-$CS$17)^3),IF($EV58>=$CQ$17,-$CR$17/(6*$FY$27*$GA$27)*($EV58-$CQ$17)^3,0)))+(IF($EV58>=$CS$17,-1/(24*$FY$27*$GA$27)*($CT$17-$CR$17)/($CS$17-$CQ$17)*(($EV58-$CQ$17)^4-($EV58-$CS$17)^4)+($CT$17-$CR$17)/(6*$FY$27*$GA$27)*($EV58-$CS$17)^3,IF($EV58>=$CQ$17,-1/(24*$FY$27*$GA$27)*($CT$17-$CR$17)/($CS$17-$CQ$17)*($EV58-$CQ$17)^4,0))))) -> --- | DI58: =IF($CQ$17=$CS$17,"---",IF(AND($CQ$17="",$CR$17="",$CS$17="",$CT$17=""),"---",(IF($EV58>=$CS$17,$CR$17/(24*$FY$27*$GA$27)*(($EV58-$CQ$17)^4-($EV58-$CS$17)^4),IF($EV58>=$CQ$17,$CR$17/(24*$FY$27*$GA$27)*($EV58-$CQ$17)^4,0)))+(IF($EV58>=$CS$17,1/(120*$FY$27*$GA$27)*($CT$17-$CR$17)/($CS$17-$CQ$17)*(($EV58-$CQ$17)^5-($EV58-$CS$17)^5)-($CT$17-$CR$17)/(24*$FY$27*$GA$27)*($EV58-$CS$17)^4,IF($EV58>=$CQ$17,1/(120*$FY$27*$GA$27)*($CT$17-$CR$17)/($CS$17-$CQ$17)*($EV58-$CQ$17)^5,0))))) -> --- | DJ58: =$DJ$57 -> --- | DK58: =$DK$57 -> --- | DL58: =$DL$57 -> --- | DM58: =$DM$57 -> --- | DN58: =IF($CU$17=$CW$17,"---",IF(AND($CU$17="",$CV$17="",$CW$17="",$CX$17=""),"---",(IF($EV58>=$CW$17,-$CV$17*($EV58-$CU$17-($EV58-$CW$17)),IF($EV58>=$CU$17,-$CV$17*($EV58-$CU$17),0)))+(IF($EV58>=$CW$17,-1/2*($CX$17-$CV$17)/($CW$17-$CU$17)*(($EV58-$CU$17)^2-($EV58-$CW$17)^2)+($CX$17-$CV$17)*($EV58-$CW$17),IF($EV58>=$CU$17,-1/2*($CX$17-$CV$17)/($CW$17-$CU$17)*($EV58-$CU$17)^2,0))))) -> --- | DO58: =IF($CU$17=$CW$17,"---",IF(AND($CU$17="",$CV$17="",$CW$17="",$CX$17=""),"---",(IF($EV58>=$CW$17,-$CV$17/2*(($EV58-$CU$17)^2-($EV58-$CW$17)^2),IF($EV58>=$CU$17,-$CV$17/2*($EV58-$CU$17)^2,0)))+(IF($EV58>=$CW$17,-1/6*($CX$17-$CV$17)/($CW$17-$CU$17)*(($EV58-$CU$17)^3-($EV58-$CW$17)^3)+($CX$17-$CV$17)/2*($EV58-$CW$17)^2,IF($EV58>=$CU$17,-1/6*($CX$17-$CV$17)/($CW$17-$CU$17)*($EV58-$CU$17)^3,0))))) -> --- | DP58: =IF($CU$17=$CW$17,"---",IF(AND($CU$17="",$CV$17="",$CW$17="",$CX$17=""),"---",(IF($EV58>=$CW$17,-$CV$17/(6*$FY$27*$GA$27)*(($EV58-$CU$17)^3-($EV58-$CW$17)^3),IF($EV58>=$CU$17,-$CV$17/(6*$FY$27*$GA$27)*($EV58-$CU$17)^3,0)))+(IF($EV58>=$CW$17,-1/(24*$FY$27*$GA$27)*($CX$17-$CV$17)/($CW$17-$CU$17)*(($EV58-$CU$17)^4-($EV58-$CW$17)^4)+($CX$17-$CV$17)/(6*$FY$27*$GA$27)*($EV58-$CW$17)^3,IF($EV58>=$CU$17,-1/(24*$FY$27*$GA$27)*($CX$17-$CV$17)/($CW$17-$CU$17)*($EV58-$CU$17)^4,0))))) -> --- | DQ58: =IF($CU$17=$CW$17,"---",IF(AND($CU$17="",$CV$17="",$CW$17="",$CX$17=""),"---",(IF($EV58>=$CW$17,$CV$17/(24*$FY$27*$GA$27)*(($EV58-$CU$17)^4-($EV58-$CW$17)^4),IF($EV58>=$CU$17,$CV$17/(24*$FY$27*$GA$27)*($EV58-$CU$17)^4,0)))+(IF($EV58>=$CW$17,1/(120*$FY$27*$GA$27)*($CX$17-$CV$17)/($CW$17-$CU$17)*(($EV58-$CU$17)^5-($EV58-$CW$17)^5)-($CX$17-$CV$17)/(24*$FY$27*$GA$27)*($EV58-$CW$17)^4,IF($EV58>=$CU$17,1/(120*$FY$27*$GA$27)*($CX$17-$CV$17)/($CW$17-$CU$17)*($EV58-$CU$17)^5,0))))) -> --- | DR58: =$DR$57 -> -4.7209869 | DS58: =$DS$57 -> -61.9550218 | DT58: =$DT$57 -> -1.944440626e-05 | DU58: =$DU$57 -> 8.505838854e-05 | DV58: =IF($EV58>$CE$32,-$CF$32,0)+IF($EV58>$CG$32,-$CH$32,0)+IF($EV58>$CI$32,-$CJ$32,0)+IF($EV58>$CK$32,-$CL$32,0)+IF($EV58>$CM$32,-$CN$32,0)+IF($EV58>$CO$32,-$CP$32,0)+IF($EV58>$CQ$32,-$CR$32,0)+IF($EV58>$CS$32,-$CT$32,0)+IF($EV58>$CU$32,-$CV$32,0)+IF($EV58>$CW$32,-$CX$32,0) -> -4.7209869 | DW58: =IF($EV58>$CE$32,-$CF$32*($EV58-$CE$32),0)+IF($EV58>$CG$32,-$CH$32*($EV58-$CG$32),0)+IF($EV58>$CI$32,-$CJ$32*($EV58-$CI$32),0)+IF($EV58>$CK$32,-$CL$32*($EV58-$CK$32),0)+IF($EV58>$CM$32,-$CN$32*($EV58-$CM$32),0)+IF($EV58>$CO$32,-$CP$32*($EV58-$CO$32),0)+IF($EV58>$CQ$32,-$CR$32*($EV58-$CQ$32),0)+IF($EV58>$CS$32,-$CT$32*($EV58-$CS$32),0)+IF($EV58>$CU$32,-$CV$32*($EV58-$CU$32),0)+IF($EV58>$CW$32,-$CX$32*($EV58-$CW$32),0) -> -61.9550218 | DX58: =IF($EV58>$CE$32,-$CF$32*($EV58-$CE$32)^2/(2*$FY$27*$GA$27),0)+IF($EV58>$CG$32,-$CH$32*($EV58-$CG$32)^2/(2*$FY$27*$GA$27),0)+IF($EV58>$CI$32,-$CJ$32*($EV58-$CI$32)^2/(2*$FY$27*$GA$27),0)+IF($EV58>$CK$32,-$CL$32*($EV58-$CK$32)^2/(2*$FY$27*$GA$27),0)+IF($EV58>$CM$32,-$CN$32*($EV58-$CM$32)^2/(2*$FY$27*$GA$27),0)+IF($EV58>$CO$32,-$CP$32*($EV58-$CO$32)^2/(2*$FY$27*$GA$27),0)+IF($EV58>$CQ$32,-$CR$32*($EV58-$CQ$32)^2/(2*$FY$27*$GA$27),0)+IF($EV58>$CS$32,-$CT$32*($EV58-$CS$32)^2/(2*$FY$27*$GA$27),0)+IF($EV58>$CU$32,-$CV$32*($EV58-$CU$32)^2/(2*$FY$27*$GA$27),0)+IF($EV58>$CW$32,-$CX$32*($EV58-$CW$32)^2/(2*$FY$27*$GA$27),0) -> -1.944440626e-05 | DY58: =IF($EV58>$CE$32,$CF$32*($EV58-$CE$32)^3/(6*$FY$27*$GA$27),0)+IF($EV58>$CG$32,$CH$32*($EV58-$CG$32)^3/(6*$FY$27*$GA$27),0)+IF($EV58>$CI$32,$CJ$32*($EV58-$CI$32)^3/(6*$FY$27*$GA$27),0)+IF($EV58>$CK$32,$CL$32*($EV58-$CK$32)^3/(6*$FY$27*$GA$27),0)+IF($EV58>$CM$32,$CN$32*($EV58-$CM$32)^3/(6*$FY$27*$GA$27),0)+IF($EV58>$CO$32,$CP$32*($EV58-$CO$32)^3/(6*$FY$27*$GA$27),0)+IF($EV58>$CQ$32,$CR$32*($EV58-$CQ$32)^3/(6*$FY$27*$GA$27),0)+IF($EV58>$CS$32,$CT$32*($EV58-$CS$32)^3/(6*$FY$27*$GA$27),0)+IF($EV58>$CU$32,$CV$32*($EV58-$CU$32)^3/(6*$FY$27*$GA$27),0)+IF($EV58>$CW$32,$CX$32*($EV58-$CW$32)^3/(6*$FY$27*$GA$27),0) -> 8.505838854e-05 | DZ58: =$DZ$57 -> 0 | EA58: =$EA$57 -> 0 | EB58: =$EB$57 -> 0 | EC58: =$EC$57 -> 0 | ED58: =IF($EV58>=IF($CE$47=$GB$27,$CE$47+0.000000001,$CE$47),0,0)+IF($EV58>=IF($CG$47=$GB$27,$CG$47+0.000000001,$CG$47),0,0)+IF($EV58>=IF($CI$47=$GB$27,$CI$47+0.000000001,$CI$47),0,0)+IF($EV58>=IF($CK$47=$GB$27,$CK$47+0.000000001,$CK$47),0,0)+IF($EV58>=IF($CM$47=$GB$27,$CM$47+0.000000001,$CM$47),0,0) -> 0 | EE58: =IF($EV58>=IF($CE$47=$GB$27,$CE$47+0.000000001,$CE$47),-$CF$47,0)+IF($EV58>=IF($CG$47=$GB$27,$CG$47+0.000000001,$CG$47),-$CH$47,0)+IF($EV58>=IF($CI$47=$GB$27,$CI$47+0.000000001,$CI$47),-$CJ$47,0)+IF($EV58>=IF($CK$47=$GB$27,$CK$47+0.000000001,$CK$47),-$CL$47,0)+IF($EV58>=IF($CM$47=$GB$27,$CM$47+0.000000001,$CM$47),-$CN$47,0) -> 0 | EF58: =IF($EV58>=IF($CE$47=$GB$27,$CE$47+0.000000001,$CE$47),-$CF$47*($EV58-$CE$47)/($FY$27*$GA$27),0)+IF($EV58>=IF($CG$47=$GB$27,$CG$47+0.000000001,$CG$47),-$CH$47*($EV58-$CG$47)/($FY$27*$GA$27),0)+IF($EV58>=IF($CI$47=$GB$27,$CI$47+0.000000001,$CI$47),-$CJ$47*($EV58-$CI$47)/($FY$27*$GA$27),0)+IF($EV58>=IF($CK$47=$GB$27,$CK$47+0.000000001,$CK$47),-$CL$47*($EV58-$CK$47)/($FY$27*$GA$27),0)+IF($EV58>=IF($CM$47=$GB$27,$CM$47+0.000000001,$CM$47),-$CN$47*($EV58-$CM$47)/($FY$27*$GA$27),0) -> 0 | EG58: =IF($EV58>=IF($CE$47=$GB$27,$CE$47+0.000000001,$CE$47),$CF$47*($EV58-$CE$47)^2/(2*$FY$27*$GA$27),0)+IF($EV58>=IF($CG$47=$GB$27,$CG$47+0.000000001,$CG$47),$CH$47*($EV58-$CG$47)^2/(2*$FY$27*$GA$27),0)+IF($EV58>=IF($CI$47=$GB$27,$CI$47+0.000000001,$CI$47),$CJ$47*($EV58-$CI$47)^2/(2*$FY$27*$GA$27),0)+IF($EV58>=IF($CK$47=$GB$27,$CK$47+0.000000001,$CK$47),$CL$47*($EV58-$CK$47)^2/(2*$FY$27*$GA$27),0)+IF($EV58>=IF($CM$47=$GB$27,$CM$47+0.000000001,$CM$47),$CN$47*($EV58-$CM$47)^2/(2*$FY$27*$GA$27),0) -> 0 | EH58: -2.697705601 | EI58: -29.87115221 | EJ58: 2.893629813e-07 | EK58: -6.581591619e-05 | EL58: -2.697705601 | EM58: -29.87115221 | EN58: 2.893629811e-07 | EO58: -6.581591619e-05 | EP58: =$EP$57 -> 2.071051146 | EQ58: =$EQ$57 -> -20.69162919 | ER58: =$ER$57 -> 0 | ES58: =$ES$57 -> 0 | ET58: =-($EP58+$EL58) -> 0.6266544547 | EU58: -9.794181015 | EV58: =$GB$27+0.0000000001 -> 19.68498 | EW58: Member #1 FEM(R): | FF58: W36x300 | FG58: 88.3 | FH58: 20300 | FI58: 1300 | FJ58: 569.68 | FK58: 844949.79 | FL58: 54110.09 | FW58: 2 | FX58: Y-Global | FY58: 0 | FZ58: 0 | GA58: 0 | GB58: 0 | GC58: 0 | GD58: 0 | GE58: 0 | GF58: 0 | GG58: 0 | GH58: 0
H59: Loading Details | BE59: 2 | BF59: X-Global | BG59: =P84/AB25 -> 0 | BH59: 0 | BI59: =T84/AB25 -> 0 | BJ59: 0 | BK59: =X84/AB25 -> 0 | BL59: 0 | BM59: =P94/AB25 -> 0 | BN59: 0 | BO59: =T94/AB25 -> 0 | BP59: 0 | CC59: Member #2(Y) FEM(L): | CD59: =IF($CE$18=$CG$18,"---",IF(AND($CE$18="",$CF$18="",$CG$18="",$CH$18=""),"---",(-$CF$18*($GB$28-$CE$18-($GB$28-$CG$18)))+(-1/2*($CH$18-$CF$18)/($CG$18-$CE$18)*(($GB$28-$CE$18)^2-($GB$28-$CG$18)^2)+($CH$18-$CF$18)*($GB$28-$CG$18)))) -> 20.03807494 | CE59: =IF($CE$18=$CG$18,"---",IF(AND($CE$18="",$CF$18="",$CG$18="",$CH$18=""),"---",(-$CF$18/2*(($GB$28-$CE$18)^2-($GB$28-$CG$18)^2))+(-1/6*($CH$18-$CF$18)/($CG$18-$CE$18)*(($GB$28-$CE$18)^3-($GB$28-$CG$18)^3)+($CH$18-$CF$18)/2*($GB$28-$CG$18)^2))) -> 181.4574227 | CF59: =IF($CE$18=$CG$18,"---",IF(AND($CE$18="",$CF$18="",$CG$18="",$CH$18=""),"---",(-$CF$18/(6*$FY$28*$GA$28)*(($GB$28-$CE$18)^3-($GB$28-$CG$18)^3))+(-1/(24*$FY$28*$GA$28)*($CH$18-$CF$18)/($CG$18-$CE$18)*(($GB$28-$CE$18)^4-($GB$28-$CG$18)^4)+($CH$18-$CF$18)/(6*$FY$28*$GA$28)*($GB$28-$CG$18)^3))) -> 5.170298782e-05 | CG59: =IF($CE$18=$CG$18,"---",IF(AND($CE$18="",$CF$18="",$CG$18="",$CH$18=""),"---",($CF$18/(24*$FY$28*$GA$28)*(($GB$28-$CE$18)^4-($GB$28-$CG$18)^4))+(1/(120*$FY$28*$GA$28)*($CH$18-$CF$18)/($CG$18-$CE$18)*(($GB$28-$CE$18)^5-($GB$28-$CG$18)^5)-($CH$18-$CF$18)/(24*$FY$28*$GA$28)*($GB$28-$CG$18)^4))) -> -0.0001842453885 | CH59: =IF($CE$18=$CG$18,"---",IF(AND($CE$18="",$CF$18="",$CG$18="",$CH$18=""),"---",(IF($EV59>=$CG$18,-$CF$18*($EV59-$CE$18-($EV59-$CG$18)),IF($EV59>=$CE$18,-$CF$18*($EV59-$CE$18),0)))+(IF($EV59>=$CG$18,-1/2*($CH$18-$CF$18)/($CG$18-$CE$18)*(($EV59-$CE$18)^2-($EV59-$CG$18)^2)+($CH$18-$CF$18)*($EV59-$CG$18),IF($EV59>=$CE$18,-1/2*($CH$18-$CF$18)/($CG$18-$CE$18)*($EV59-$CE$18)^2,0))))) -> 0 | CI59: =IF($CE$18=$CG$18,"---",IF(AND($CE$18="",$CF$18="",$CG$18="",$CH$18=""),"---",(IF($EV59>=$CG$18,-$CF$18/2*(($EV59-$CE$18)^2-($EV59-$CG$18)^2),IF($EV59>=$CE$18,-$CF$18/2*($EV59-$CE$18)^2,0)))+(IF($EV59>=$CG$18,-1/6*($CH$18-$CF$18)/($CG$18-$CE$18)*(($EV59-$CE$18)^3-($EV59-$CG$18)^3)+($CH$18-$CF$18)/2*($EV59-$CG$18)^2,IF($EV59>=$CE$18,-1/6*($CH$18-$CF$18)/($CG$18-$CE$18)*($EV59-$CE$18)^3,0))))) -> 0 | CJ59: =IF($CE$18=$CG$18,"---",IF(AND($CE$18="",$CF$18="",$CG$18="",$CH$18=""),"---",(IF($EV59>=$CG$18,-$CF$18/(6*$FY$28*$GA$28)*(($EV59-$CE$18)^3-($EV59-$CG$18)^3),IF($EV59>=$CE$18,-$CF$18/(6*$FY$28*$GA$28)*($EV59-$CE$18)^3,0)))+(IF($EV59>=$CG$18,-1/(24*$FY$28*$GA$28)*($CH$18-$CF$18)/($CG$18-$CE$18)*(($EV59-$CE$18)^4-($EV59-$CG$18)^4)+($CH$18-$CF$18)/(6*$FY$28*$GA$28)*($EV59-$CG$18)^3,IF($EV59>=$CE$18,-1/(24*$FY$28*$GA$28)*($CH$18-$CF$18)/($CG$18-$CE$18)*($EV59-$CE$18)^4,0))))) -> 0 | CK59: =IF($CE$18=$CG$18,"---",IF(AND($CE$18="",$CF$18="",$CG$18="",$CH$18=""),"---",(IF($EV59>=$CG$18,$CF$18/(24*$FY$28*$GA$28)*(($EV59-$CE$18)^4-($EV59-$CG$18)^4),IF($EV59>=$CE$18,$CF$18/(24*$FY$28*$GA$28)*($EV59-$CE$18)^4,0)))+(IF($EV59>=$CG$18,1/(120*$FY$28*$GA$28)*($CH$18-$CF$18)/($CG$18-$CE$18)*(($EV59-$CE$18)^5-($EV59-$CG$18)^5)-($CH$18-$CF$18)/(24*$FY$28*$GA$28)*($EV59-$CG$18)^4,IF($EV59>=$CE$18,1/(120*$FY$28*$GA$28)*($CH$18-$CF$18)/($CG$18-$CE$18)*($EV59-$CE$18)^5,0))))) -> 0 | CL59: =IF($CI$18=$CK$18,"---",IF(AND($CI$18="",$CJ$18="",$CK$18="",$CL$18=""),"---",(-$CJ$18*($GB$28-$CI$18-($GB$28-$CK$18)))+(-1/2*($CL$18-$CJ$18)/($CK$18-$CI$18)*(($GB$28-$CI$18)^2-($GB$28-$CK$18)^2)+($CL$18-$CJ$18)*($GB$28-$CK$18)))) -> 21.91664446 | CM59: =IF($CI$18=$CK$18,"---",IF(AND($CI$18="",$CJ$18="",$CK$18="",$CL$18=""),"---",(-$CJ$18/2*(($GB$28-$CI$18)^2-($GB$28-$CK$18)^2))+(-1/6*($CL$18-$CJ$18)/($CK$18-$CI$18)*(($GB$28-$CI$18)^3-($GB$28-$CK$18)^3)+($CL$18-$CJ$18)/2*($GB$28-$CK$18)^2))) -> 207.4571542 | CN59: =IF($CI$18=$CK$18,"---",IF(AND($CI$18="",$CJ$18="",$CK$18="",$CL$18=""),"---",(-$CJ$18/(6*$FY$28*$GA$28)*(($GB$28-$CI$18)^3-($GB$28-$CK$18)^3))+(-1/(24*$FY$28*$GA$28)*($CL$18-$CJ$18)/($CK$18-$CI$18)*(($GB$28-$CI$18)^4-($GB$28-$CK$18)^4)+($CL$18-$CJ$18)/(6*$FY$28*$GA$28)*($GB$28-$CK$18)^3))) -> 7.046022482e-05 | CO59: =IF($CI$18=$CK$18,"---",IF(AND($CI$18="",$CJ$18="",$CK$18="",$CL$18=""),"---",($CJ$18/(24*$FY$28*$GA$28)*(($GB$28-$CI$18)^4-($GB$28-$CK$18)^4))+(1/(120*$FY$28*$GA$28)*($CL$18-$CJ$18)/($CK$18-$CI$18)*(($GB$28-$CI$18)^5-($GB$28-$CK$18)^5)-($CL$18-$CJ$18)/(24*$FY$28*$GA$28)*($GB$28-$CK$18)^4))) -> -0.000311325235 | CP59: =IF($CI$18=$CK$18,"---",IF(AND($CI$18="",$CJ$18="",$CK$18="",$CL$18=""),"---",(IF($EV59>=$CK$18,-$CJ$18*($EV59-$CI$18-($EV59-$CK$18)),IF($EV59>=$CI$18,-$CJ$18*($EV59-$CI$18),0)))+(IF($EV59>=$CK$18,-1/2*($CL$18-$CJ$18)/($CK$18-$CI$18)*(($EV59-$CI$18)^2-($EV59-$CK$18)^2)+($CL$18-$CJ$18)*($EV59-$CK$18),IF($EV59>=$CI$18,-1/2*($CL$18-$CJ$18)/($CK$18-$CI$18)*($EV59-$CI$18)^2,0))))) -> 0 | CQ59: =IF($CI$18=$CK$18,"---",IF(AND($CI$18="",$CJ$18="",$CK$18="",$CL$18=""),"---",(IF($EV59>=$CK$18,-$CJ$18/2*(($EV59-$CI$18)^2-($EV59-$CK$18)^2),IF($EV59>=$CI$18,-$CJ$18/2*($EV59-$CI$18)^2,0)))+(IF($EV59>=$CK$18,-1/6*($CL$18-$CJ$18)/($CK$18-$CI$18)*(($EV59-$CI$18)^3-($EV59-$CK$18)^3)+($CL$18-$CJ$18)/2*($EV59-$CK$18)^2,IF($EV59>=$CI$18,-1/6*($CL$18-$CJ$18)/($CK$18-$CI$18)*($EV59-$CI$18)^3,0))))) -> 0 | CR59: =IF($CI$18=$CK$18,"---",IF(AND($CI$18="",$CJ$18="",$CK$18="",$CL$18=""),"---",(IF($EV59>=$CK$18,-$CJ$18/(6*$FY$28*$GA$28)*(($EV59-$CI$18)^3-($EV59-$CK$18)^3),IF($EV59>=$CI$18,-$CJ$18/(6*$FY$28*$GA$28)*($EV59-$CI$18)^3,0)))+(IF($EV59>=$CK$18,-1/(24*$FY$28*$GA$28)*($CL$18-$CJ$18)/($CK$18-$CI$18)*(($EV59-$CI$18)^4-($EV59-$CK$18)^4)+($CL$18-$CJ$18)/(6*$FY$28*$GA$28)*($EV59-$CK$18)^3,IF($EV59>=$CI$18,-1/(24*$FY$28*$GA$28)*($CL$18-$CJ$18)/($CK$18-$CI$18)*($EV59-$CI$18)^4,0))))) -> 0 | CS59: =IF($CI$18=$CK$18,"---",IF(AND($CI$18="",$CJ$18="",$CK$18="",$CL$18=""),"---",(IF($EV59>=$CK$18,$CJ$18/(24*$FY$28*$GA$28)*(($EV59-$CI$18)^4-($EV59-$CK$18)^4),IF($EV59>=$CI$18,$CJ$18/(24*$FY$28*$GA$28)*($EV59-$CI$18)^4,0)))+(IF($EV59>=$CK$18,1/(120*$FY$28*$GA$28)*($CL$18-$CJ$18)/($CK$18-$CI$18)*(($EV59-$CI$18)^5-($EV59-$CK$18)^5)-($CL$18-$CJ$18)/(24*$FY$28*$GA$28)*($EV59-$CK$18)^4,IF($EV59>=$CI$18,1/(120*$FY$28*$GA$28)*($CL$18-$CJ$18)/($CK$18-$CI$18)*($EV59-$CI$18)^5,0))))) -> 0 | CT59: =IF($CM$18=$CO$18,"---",IF(AND($CM$18="",$CN$18="",$CO$18="",$CP$18=""),"---",(-$CN$18*($GB$28-$CM$18-($GB$28-$CO$18)))+(-1/2*($CP$18-$CN$18)/($CO$18-$CM$18)*(($GB$28-$CM$18)^2-($GB$28-$CO$18)^2)+($CP$18-$CN$18)*($GB$28-$CO$18)))) -> --- | CU59: =IF($CM$18=$CO$18,"---",IF(AND($CM$18="",$CN$18="",$CO$18="",$CP$18=""),"---",(-$CN$18/2*(($GB$28-$CM$18)^2-($GB$28-$CO$18)^2))+(-1/6*($CP$18-$CN$18)/($CO$18-$CM$18)*(($GB$28-$CM$18)^3-($GB$28-$CO$18)^3)+($CP$18-$CN$18)/2*($GB$28-$CO$18)^2))) -> --- | CV59: =IF($CM$18=$CO$18,"---",IF(AND($CM$18="",$CN$18="",$CO$18="",$CP$18=""),"---",(-$CN$18/(6*$FY$28*$GA$28)*(($GB$28-$CM$18)^3-($GB$28-$CO$18)^3))+(-1/(24*$FY$28*$GA$28)*($CP$18-$CN$18)/($CO$18-$CM$18)*(($GB$28-$CM$18)^4-($GB$28-$CO$18)^4)+($CP$18-$CN$18)/(6*$FY$28*$GA$28)*($GB$28-$CO$18)^3))) -> --- | CW59: =IF($CM$18=$CO$18,"---",IF(AND($CM$18="",$CN$18="",$CO$18="",$CP$18=""),"---",($CN$18/(24*$FY$28*$GA$28)*(($GB$28-$CM$18)^4-($GB$28-$CO$18)^4))+(1/(120*$FY$28*$GA$28)*($CP$18-$CN$18)/($CO$18-$CM$18)*(($GB$28-$CM$18)^5-($GB$28-$CO$18)^5)-($CP$18-$CN$18)/(24*$FY$28*$GA$28)*($GB$28-$CO$18)^4))) -> --- | CX59: =IF($CM$18=$CO$18,"---",IF(AND($CM$18="",$CN$18="",$CO$18="",$CP$18=""),"---",(IF($EV59>=$CO$18,-$CN$18*($EV59-$CM$18-($EV59-$CO$18)),IF($EV59>=$CM$18,-$CN$18*($EV59-$CM$18),0)))+(IF($EV59>=$CO$18,-1/2*($CP$18-$CN$18)/($CO$18-$CM$18)*(($EV59-$CM$18)^2-($EV59-$CO$18)^2)+($CP$18-$CN$18)*($EV59-$CO$18),IF($EV59>=$CM$18,-1/2*($CP$18-$CN$18)/($CO$18-$CM$18)*($EV59-$CM$18)^2,0))))) -> --- | CY59: =IF($CM$18=$CO$18,"---",IF(AND($CM$18="",$CN$18="",$CO$18="",$CP$18=""),"---",(IF($EV59>=$CO$18,-$CN$18/2*(($EV59-$CM$18)^2-($EV59-$CO$18)^2),IF($EV59>=$CM$18,-$CN$18/2*($EV59-$CM$18)^2,0)))+(IF($EV59>=$CO$18,-1/6*($CP$18-$CN$18)/($CO$18-$CM$18)*(($EV59-$CM$18)^3-($EV59-$CO$18)^3)+($CP$18-$CN$18)/2*($EV59-$CO$18)^2,IF($EV59>=$CM$18,-1/6*($CP$18-$CN$18)/($CO$18-$CM$18)*($EV59-$CM$18)^3,0))))) -> --- | CZ59: =IF($CM$18=$CO$18,"---",IF(AND($CM$18="",$CN$18="",$CO$18="",$CP$18=""),"---",(IF($EV59>=$CO$18,-$CN$18/(6*$FY$28*$GA$28)*(($EV59-$CM$18)^3-($EV59-$CO$18)^3),IF($EV59>=$CM$18,-$CN$18/(6*$FY$28*$GA$28)*($EV59-$CM$18)^3,0)))+(IF($EV59>=$CO$18,-1/(24*$FY$28*$GA$28)*($CP$18-$CN$18)/($CO$18-$CM$18)*(($EV59-$CM$18)^4-($EV59-$CO$18)^4)+($CP$18-$CN$18)/(6*$FY$28*$GA$28)*($EV59-$CO$18)^3,IF($EV59>=$CM$18,-1/(24*$FY$28*$GA$28)*($CP$18-$CN$18)/($CO$18-$CM$18)*($EV59-$CM$18)^4,0))))) -> --- | DA59: =IF($CM$18=$CO$18,"---",IF(AND($CM$18="",$CN$18="",$CO$18="",$CP$18=""),"---",(IF($EV59>=$CO$18,$CN$18/(24*$FY$28*$GA$28)*(($EV59-$CM$18)^4-($EV59-$CO$18)^4),IF($EV59>=$CM$18,$CN$18/(24*$FY$28*$GA$28)*($EV59-$CM$18)^4,0)))+(IF($EV59>=$CO$18,1/(120*$FY$28*$GA$28)*($CP$18-$CN$18)/($CO$18-$CM$18)*(($EV59-$CM$18)^5-($EV59-$CO$18)^5)-($CP$18-$CN$18)/(24*$FY$28*$GA$28)*($EV59-$CO$18)^4,IF($EV59>=$CM$18,1/(120*$FY$28*$GA$28)*($CP$18-$CN$18)/($CO$18-$CM$18)*($EV59-$CM$18)^5,0))))) -> --- | DB59: =IF($CQ$18=$CS$18,"---",IF(AND($CQ$18="",$CR$18="",$CS$18="",$CT$18=""),"---",(-$CR$18*($GB$28-$CQ$18-($GB$28-$CS$18)))+(-1/2*($CT$18-$CR$18)/($CS$18-$CQ$18)*(($GB$28-$CQ$18)^2-($GB$28-$CS$18)^2)+($CT$18-$CR$18)*($GB$28-$CS$18)))) -> --- | DC59: =IF($CQ$18=$CS$18,"---",IF(AND($CQ$18="",$CR$18="",$CS$18="",$CT$18=""),"---",(-$CR$18/2*(($GB$28-$CQ$18)^2-($GB$28-$CS$18)^2))+(-1/6*($CT$18-$CR$18)/($CS$18-$CQ$18)*(($GB$28-$CQ$18)^3-($GB$28-$CS$18)^3)+($CT$18-$CR$18)/2*($GB$28-$CS$18)^2))) -> --- | DD59: =IF($CQ$18=$CS$18,"---",IF(AND($CQ$18="",$CR$18="",$CS$18="",$CT$18=""),"---",(-$CR$18/(6*$FY$28*$GA$28)*(($GB$28-$CQ$18)^3-($GB$28-$CS$18)^3))+(-1/(24*$FY$28*$GA$28)*($CT$18-$CR$18)/($CS$18-$CQ$18)*(($GB$28-$CQ$18)^4-($GB$28-$CS$18)^4)+($CT$18-$CR$18)/(6*$FY$28*$GA$28)*($GB$28-$CS$18)^3))) -> --- | DE59: =IF($CQ$18=$CS$18,"---",IF(AND($CQ$18="",$CR$18="",$CS$18="",$CT$18=""),"---",($CR$18/(24*$FY$28*$GA$28)*(($GB$28-$CQ$18)^4-($GB$28-$CS$18)^4))+(1/(120*$FY$28*$GA$28)*($CT$18-$CR$18)/($CS$18-$CQ$18)*(($GB$28-$CQ$18)^5-($GB$28-$CS$18)^5)-($CT$18-$CR$18)/(24*$FY$28*$GA$28)*($GB$28-$CS$18)^4))) -> --- | DF59: =IF($CQ$18=$CS$18,"---",IF(AND($CQ$18="",$CR$18="",$CS$18="",$CT$18=""),"---",(IF($EV59>=$CS$18,-$CR$18*($EV59-$CQ$18-($EV59-$CS$18)),IF($EV59>=$CQ$18,-$CR$18*($EV59-$CQ$18),0)))+(IF($EV59>=$CS$18,-1/2*($CT$18-$CR$18)/($CS$18-$CQ$18)*(($EV59-$CQ$18)^2-($EV59-$CS$18)^2)+($CT$18-$CR$18)*($EV59-$CS$18),IF($EV59>=$CQ$18,-1/2*($CT$18-$CR$18)/($CS$18-$CQ$18)*($EV59-$CQ$18)^2,0))))) -> --- | DG59: =IF($CQ$18=$CS$18,"---",IF(AND($CQ$18="",$CR$18="",$CS$18="",$CT$18=""),"---",(IF($EV59>=$CS$18,-$CR$18/2*(($EV59-$CQ$18)^2-($EV59-$CS$18)^2),IF($EV59>=$CQ$18,-$CR$18/2*($EV59-$CQ$18)^2,0)))+(IF($EV59>=$CS$18,-1/6*($CT$18-$CR$18)/($CS$18-$CQ$18)*(($EV59-$CQ$18)^3-($EV59-$CS$18)^3)+($CT$18-$CR$18)/2*($EV59-$CS$18)^2,IF($EV59>=$CQ$18,-1/6*($CT$18-$CR$18)/($CS$18-$CQ$18)*($EV59-$CQ$18)^3,0))))) -> --- | DH59: =IF($CQ$18=$CS$18,"---",IF(AND($CQ$18="",$CR$18="",$CS$18="",$CT$18=""),"---",(IF($EV59>=$CS$18,-$CR$18/(6*$FY$28*$GA$28)*(($EV59-$CQ$18)^3-($EV59-$CS$18)^3),IF($EV59>=$CQ$18,-$CR$18/(6*$FY$28*$GA$28)*($EV59-$CQ$18)^3,0)))+(IF($EV59>=$CS$18,-1/(24*$FY$28*$GA$28)*($CT$18-$CR$18)/($CS$18-$CQ$18)*(($EV59-$CQ$18)^4-($EV59-$CS$18)^4)+($CT$18-$CR$18)/(6*$FY$28*$GA$28)*($EV59-$CS$18)^3,IF($EV59>=$CQ$18,-1/(24*$FY$28*$GA$28)*($CT$18-$CR$18)/($CS$18-$CQ$18)*($EV59-$CQ$18)^4,0))))) -> --- | DI59: =IF($CQ$18=$CS$18,"---",IF(AND($CQ$18="",$CR$18="",$CS$18="",$CT$18=""),"---",(IF($EV59>=$CS$18,$CR$18/(24*$FY$28*$GA$28)*(($EV59-$CQ$18)^4-($EV59-$CS$18)^4),IF($EV59>=$CQ$18,$CR$18/(24*$FY$28*$GA$28)*($EV59-$CQ$18)^4,0)))+(IF($EV59>=$CS$18,1/(120*$FY$28*$GA$28)*($CT$18-$CR$18)/($CS$18-$CQ$18)*(($EV59-$CQ$18)^5-($EV59-$CS$18)^5)-($CT$18-$CR$18)/(24*$FY$28*$GA$28)*($EV59-$CS$18)^4,IF($EV59>=$CQ$18,1/(120*$FY$28*$GA$28)*($CT$18-$CR$18)/($CS$18-$CQ$18)*($EV59-$CQ$18)^5,0))))) -> --- | DJ59: =IF($CU$18=$CW$18,"---",IF(AND($CU$18="",$CV$18="",$CW$18="",$CX$18=""),"---",(-$CV$18*($GB$28-$CU$18-($GB$28-$CW$18)))+(-1/2*($CX$18-$CV$18)/($CW$18-$CU$18)*(($GB$28-$CU$18)^2-($GB$28-$CW$18)^2)+($CX$18-$CV$18)*($GB$28-$CW$18)))) -> --- | DK59: =IF($CU$18=$CW$18,"---",IF(AND($CU$18="",$CV$18="",$CW$18="",$CX$18=""),"---",(-$CV$18/2*(($GB$28-$CU$18)^2-($GB$28-$CW$18)^2))+(-1/6*($CX$18-$CV$18)/($CW$18-$CU$18)*(($GB$28-$CU$18)^3-($GB$28-$CW$18)^3)+($CX$18-$CV$18)/2*($GB$28-$CW$18)^2))) -> --- | DL59: =IF($CU$18=$CW$18,"---",IF(AND($CU$18="",$CV$18="",$CW$18="",$CX$18=""),"---",(-$CV$18/(6*$FY$28*$GA$28)*(($GB$28-$CU$18)^3-($GB$28-$CW$18)^3))+(-1/(24*$FY$28*$GA$28)*($CX$18-$CV$18)/($CW$18-$CU$18)*(($GB$28-$CU$18)^4-($GB$28-$CW$18)^4)+($CX$18-$CV$18)/(6*$FY$28*$GA$28)*($GB$28-$CW$18)^3))) -> --- | DM59: =IF($CU$18=$CW$18,"---",IF(AND($CU$18="",$CV$18="",$CW$18="",$CX$18=""),"---",($CV$18/(24*$FY$28*$GA$28)*(($GB$28-$CU$18)^4-($GB$28-$CW$18)^4))+(1/(120*$FY$28*$GA$28)*($CX$18-$CV$18)/($CW$18-$CU$18)*(($GB$28-$CU$18)^5-($GB$28-$CW$18)^5)-($CX$18-$CV$18)/(24*$FY$28*$GA$28)*($GB$28-$CW$18)^4))) -> --- | DN59: =IF($CU$18=$CW$18,"---",IF(AND($CU$18="",$CV$18="",$CW$18="",$CX$18=""),"---",(IF($EV59>=$CW$18,-$CV$18*($EV59-$CU$18-($EV59-$CW$18)),IF($EV59>=$CU$18,-$CV$18*($EV59-$CU$18),0)))+(IF($EV59>=$CW$18,-1/2*($CX$18-$CV$18)/($CW$18-$CU$18)*(($EV59-$CU$18)^2-($EV59-$CW$18)^2)+($CX$18-$CV$18)*($EV59-$CW$18),IF($EV59>=$CU$18,-1/2*($CX$18-$CV$18)/($CW$18-$CU$18)*($EV59-$CU$18)^2,0))))) -> --- | DO59: =IF($CU$18=$CW$18,"---",IF(AND($CU$18="",$CV$18="",$CW$18="",$CX$18=""),"---",(IF($EV59>=$CW$18,-$CV$18/2*(($EV59-$CU$18)^2-($EV59-$CW$18)^2),IF($EV59>=$CU$18,-$CV$18/2*($EV59-$CU$18)^2,0)))+(IF($EV59>=$CW$18,-1/6*($CX$18-$CV$18)/($CW$18-$CU$18)*(($EV59-$CU$18)^3-($EV59-$CW$18)^3)+($CX$18-$CV$18)/2*($EV59-$CW$18)^2,IF($EV59>=$CU$18,-1/6*($CX$18-$CV$18)/($CW$18-$CU$18)*($EV59-$CU$18)^3,0))))) -> --- | DP59: =IF($CU$18=$CW$18,"---",IF(AND($CU$18="",$CV$18="",$CW$18="",$CX$18=""),"---",(IF($EV59>=$CW$18,-$CV$18/(6*$FY$28*$GA$28)*(($EV59-$CU$18)^3-($EV59-$CW$18)^3),IF($EV59>=$CU$18,-$CV$18/(6*$FY$28*$GA$28)*($EV59-$CU$18)^3,0)))+(IF($EV59>=$CW$18,-1/(24*$FY$28*$GA$28)*($CX$18-$CV$18)/($CW$18-$CU$18)*(($EV59-$CU$18)^4-($EV59-$CW$18)^4)+($CX$18-$CV$18)/(6*$FY$28*$GA$28)*($EV59-$CW$18)^3,IF($EV59>=$CU$18,-1/(24*$FY$28*$GA$28)*($CX$18-$CV$18)/($CW$18-$CU$18)*($EV59-$CU$18)^4,0))))) -> --- | DQ59: =IF($CU$18=$CW$18,"---",IF(AND($CU$18="",$CV$18="",$CW$18="",$CX$18=""),"---",(IF($EV59>=$CW$18,$CV$18/(24*$FY$28*$GA$28)*(($EV59-$CU$18)^4-($EV59-$CW$18)^4),IF($EV59>=$CU$18,$CV$18/(24*$FY$28*$GA$28)*($EV59-$CU$18)^4,0)))+(IF($EV59>=$CW$18,1/(120*$FY$28*$GA$28)*($CX$18-$CV$18)/($CW$18-$CU$18)*(($EV59-$CU$18)^5-($EV59-$CW$18)^5)-($CX$18-$CV$18)/(24*$FY$28*$GA$28)*($EV59-$CW$18)^4,IF($EV59>=$CU$18,1/(120*$FY$28*$GA$28)*($CX$18-$CV$18)/($CW$18-$CU$18)*($EV59-$CU$18)^5,0))))) -> --- | DR59: =-$CF$33+-$CH$33+-$CJ$33+-$CL$33+-$CN$33+-$CP$33+-$CR$33+-$CT$33+-$CV$33+-$CX$33 -> 0 | DS59: =-$CF$33*($GB$28-$CE$33)+-$CH$33*($GB$28-$CG$33)+-$CJ$33*($GB$28-$CI$33)+-$CL$33*($GB$28-$CK$33)+-$CN$33*($GB$28-$CM$33)+-$CP$33*($GB$28-$CO$33)+-$CR$33*($GB$28-$CQ$33)+-$CT$33*($GB$28-$CS$33)+-$CV$33*($GB$28-$CU$33)+-$CX$33*($GB$28-$CW$33) -> 0 | DT59: =-$CF$33*($GB$28-$CE$33)^2/(2*$FY$28*$GA$28)+-$CH$33*($GB$28-$CG$33)^2/(2*$FY$28*$GA$28)+-$CJ$33*($GB$28-$CI$33)^2/(2*$FY$28*$GA$28)+-$CL$33*($GB$28-$CK$33)^2/(2*$FY$28*$GA$28)+-$CN$33*($GB$28-$CM$33)^2/(2*$FY$28*$GA$28)+-$CP$33*($GB$28-$CO$33)^2/(2*$FY$28*$GA$28)+-$CR$33*($GB$28-$CQ$33)^2/(2*$FY$28*$GA$28)+-$CT$33*($GB$28-$CS$33)^2/(2*$FY$28*$GA$28)+-$CV$33*($GB$28-$CU$33)^2/(2*$FY$28*$GA$28)+-$CX$33*($GB$28-$CW$33)^2/(2*$FY$28*$GA$28) -> 0 | DU59: =$CF$33*($GB$28-$CE$33)^3/(6*$FY$28*$GA$28)+$CH$33*($GB$28-$CG$33)^3/(6*$FY$28*$GA$28)+$CJ$33*($GB$28-$CI$33)^3/(6*$FY$28*$GA$28)+$CL$33*($GB$28-$CK$33)^3/(6*$FY$28*$GA$28)+$CN$33*($GB$28-$CM$33)^3/(6*$FY$28*$GA$28)+$CP$33*($GB$28-$CO$33)^3/(6*$FY$28*$GA$28)+$CR$33*($GB$28-$CQ$33)^3/(6*$FY$28*$GA$28)+$CT$33*($GB$28-$CS$33)^3/(6*$FY$28*$GA$28)+$CV$33*($GB$28-$CU$33)^3/(6*$FY$28*$GA$28)+$CX$33*($GB$28-$CW$33)^3/(6*$FY$28*$GA$28) -> 0 | DV59: =IF($EV59>$CE$33,-$CF$33,0)+IF($EV59>$CG$33,-$CH$33,0)+IF($EV59>$CI$33,-$CJ$33,0)+IF($EV59>$CK$33,-$CL$33,0)+IF($EV59>$CM$33,-$CN$33,0)+IF($EV59>$CO$33,-$CP$33,0)+IF($EV59>$CQ$33,-$CR$33,0)+IF($EV59>$CS$33,-$CT$33,0)+IF($EV59>$CU$33,-$CV$33,0)+IF($EV59>$CW$33,-$CX$33,0) -> 0 | DW59: =IF($EV59>$CE$33,-$CF$33*($EV59-$CE$33),0)+IF($EV59>$CG$33,-$CH$33*($EV59-$CG$33),0)+IF($EV59>$CI$33,-$CJ$33*($EV59-$CI$33),0)+IF($EV59>$CK$33,-$CL$33*($EV59-$CK$33),0)+IF($EV59>$CM$33,-$CN$33*($EV59-$CM$33),0)+IF($EV59>$CO$33,-$CP$33*($EV59-$CO$33),0)+IF($EV59>$CQ$33,-$CR$33*($EV59-$CQ$33),0)+IF($EV59>$CS$33,-$CT$33*($EV59-$CS$33),0)+IF($EV59>$CU$33,-$CV$33*($EV59-$CU$33),0)+IF($EV59>$CW$33,-$CX$33*($EV59-$CW$33),0) -> 0 | DX59: =IF($EV59>$CE$33,-$CF$33*($EV59-$CE$33)^2/(2*$FY$28*$GA$28),0)+IF($EV59>$CG$33,-$CH$33*($EV59-$CG$33)^2/(2*$FY$28*$GA$28),0)+IF($EV59>$CI$33,-$CJ$33*($EV59-$CI$33)^2/(2*$FY$28*$GA$28),0)+IF($EV59>$CK$33,-$CL$33*($EV59-$CK$33)^2/(2*$FY$28*$GA$28),0)+IF($EV59>$CM$33,-$CN$33*($EV59-$CM$33)^2/(2*$FY$28*$GA$28),0)+IF($EV59>$CO$33,-$CP$33*($EV59-$CO$33)^2/(2*$FY$28*$GA$28),0)+IF($EV59>$CQ$33,-$CR$33*($EV59-$CQ$33)^2/(2*$FY$28*$GA$28),0)+IF($EV59>$CS$33,-$CT$33*($EV59-$CS$33)^2/(2*$FY$28*$GA$28),0)+IF($EV59>$CU$33,-$CV$33*($EV59-$CU$33)^2/(2*$FY$28*$GA$28),0)+IF($EV59>$CW$33,-$CX$33*($EV59-$CW$33)^2/(2*$FY$28*$GA$28),0) -> 0 | DY59: =IF($EV59>$CE$33,$CF$33*($EV59-$CE$33)^3/(6*$FY$28*$GA$28),0)+IF($EV59>$CG$33,$CH$33*($EV59-$CG$33)^3/(6*$FY$28*$GA$28),0)+IF($EV59>$CI$33,$CJ$33*($EV59-$CI$33)^3/(6*$FY$28*$GA$28),0)+IF($EV59>$CK$33,$CL$33*($EV59-$CK$33)^3/(6*$FY$28*$GA$28),0)+IF($EV59>$CM$33,$CN$33*($EV59-$CM$33)^3/(6*$FY$28*$GA$28),0)+IF($EV59>$CO$33,$CP$33*($EV59-$CO$33)^3/(6*$FY$28*$GA$28),0)+IF($EV59>$CQ$33,$CR$33*($EV59-$CQ$33)^3/(6*$FY$28*$GA$28),0)+IF($EV59>$CS$33,$CT$33*($EV59-$CS$33)^3/(6*$FY$28*$GA$28),0)+IF($EV59>$CU$33,$CV$33*($EV59-$CU$33)^3/(6*$FY$28*$GA$28),0)+IF($EV59>$CW$33,$CX$33*($EV59-$CW$33)^3/(6*$FY$28*$GA$28),0) -> 0 | DZ59: =0+0+0+0 -> 0 | EA59: =-$CF$48+-$CH$48+-$CJ$48+-$CL$48+-$CN$48 -> 0 | EB59: =-$CF$48*($GB$28-$CE$48)/($FY$28*$GA$28)+-$CH$48*($GB$28-$CG$48)/($FY$28*$GA$28)+-$CJ$48*($GB$28-$CI$48)/($FY$28*$GA$28)+-$CL$48*($GB$28-$CK$48)/($FY$28*$GA$28)+-$CN$48*($GB$28-$CM$48)/($FY$28*$GA$28) -> 0 | EC59: =$CF$48*($GB$28-$CE$48)^2/(2*$FY$28*$GA$28)+$CH$48*($GB$28-$CG$48)^2/(2*$FY$28*$GA$28)+$CJ$48*($GB$28-$CI$48)^2/(2*$FY$28*$GA$28)+$CL$48*($GB$28-$CK$48)^2/(2*$FY$28*$GA$28)+$CN$48*($GB$28-$CM$48)^2/(2*$FY$28*$GA$28) -> 0 | ED59: =IF($EV59>=IF($CE$48=$GB$28,$CE$48+0.000000001,$CE$48),0,0)+IF($EV59>=IF($CG$48=$GB$28,$CG$48+0.000000001,$CG$48),0,0)+IF($EV59>=IF($CI$48=$GB$28,$CI$48+0.000000001,$CI$48),0,0)+IF($EV59>=IF($CK$48=$GB$28,$CK$48+0.000000001,$CK$48),0,0)+IF($EV59>=IF($CM$48=$GB$28,$CM$48+0.000000001,$CM$48),0,0) -> 0 | EE59: =IF($EV59>=IF($CE$48=$GB$28,$CE$48+0.000000001,$CE$48),-$CF$48,0)+IF($EV59>=IF($CG$48=$GB$28,$CG$48+0.000000001,$CG$48),-$CH$48,0)+IF($EV59>=IF($CI$48=$GB$28,$CI$48+0.000000001,$CI$48),-$CJ$48,0)+IF($EV59>=IF($CK$48=$GB$28,$CK$48+0.000000001,$CK$48),-$CL$48,0)+IF($EV59>=IF($CM$48=$GB$28,$CM$48+0.000000001,$CM$48),-$CN$48,0) -> 0 | EF59: =IF($EV59>=IF($CE$48=$GB$28,$CE$48+0.000000001,$CE$48),-$CF$48*($EV59-$CE$48)/($FY$28*$GA$28),0)+IF($EV59>=IF($CG$48=$GB$28,$CG$48+0.000000001,$CG$48),-$CH$48*($EV59-$CG$48)/($FY$28*$GA$28),0)+IF($EV59>=IF($CI$48=$GB$28,$CI$48+0.000000001,$CI$48),-$CJ$48*($EV59-$CI$48)/($FY$28*$GA$28),0)+IF($EV59>=IF($CK$48=$GB$28,$CK$48+0.000000001,$CK$48),-$CL$48*($EV59-$CK$48)/($FY$28*$GA$28),0)+IF($EV59>=IF($CM$48=$GB$28,$CM$48+0.000000001,$CM$48),-$CN$48*($EV59-$CM$48)/($FY$28*$GA$28),0) -> 0 | EG59: =IF($EV59>=IF($CE$48=$GB$28,$CE$48+0.000000001,$CE$48),$CF$48*($EV59-$CE$48)^2/(2*$FY$28*$GA$28),0)+IF($EV59>=IF($CG$48=$GB$28,$CG$48+0.000000001,$CG$48),$CH$48*($EV59-$CG$48)^2/(2*$FY$28*$GA$28),0)+IF($EV59>=IF($CI$48=$GB$28,$CI$48+0.000000001,$CI$48),$CJ$48*($EV59-$CI$48)^2/(2*$FY$28*$GA$28),0)+IF($EV59>=IF($CK$48=$GB$28,$CK$48+0.000000001,$CK$48),$CL$48*($EV59-$CK$48)^2/(2*$FY$28*$GA$28),0)+IF($EV59>=IF($CM$48=$GB$28,$CM$48+0.000000001,$CM$48),$CN$48*($EV59-$CM$48)^2/(2*$FY$28*$GA$28),0) -> 0 | EH59: 41.9547194 | EI59: 388.9145769 | EJ59: 0.0001221632126 | EK59: -0.0004955706236 | EL59: 0 | EM59: 0 | EN59: 0 | EO59: 0 | EP59: =-12*$FY$28*$GA$28/$GB$28^3*$EK59-6*$FY$28*$GA$28/$GB$28^2*$EJ59 -> -22.12423768 | EQ59: =6*$FY$28*$GA$28/$GB$28^2*$EK59+2*$FY$28*$GA$28/$GB$28*$EJ59 -> 74.975327 | ER59: =0 -> 0 | ES59: =0 -> 0 | ET59: =$EP59+$EL59 -> -22.12423768 | EU59: 74.975327 | EV59: =0 -> 0 | EW59: Member #2(Y) FEM(L): | FF59: W36x280 | FG59: 82.4 | FH59: 18900 | FI59: 1200 | FJ59: 531.61 | FK59: 786677.39 | FL59: 49947.77 | FW59: 2 | FX59: X-Global | FY59: 0 | FZ59: 0 | GA59: 0 | GB59: 0 | GC59: 0 | GD59: 0 | GE59: 0 | GF59: 0 | GG59: 0 | GH59: 0
BE60: 3 | BF60: Y-Global | BG60: =P85/AB26 -> 0.5570860145 | BH60: 35 | BI60: =T85/AB26 -> 0 | BJ60: 0 | BK60: =X85/AB26 -> 0 | BL60: 0 | BM60: =P95/AB26 -> 0 | BN60: 0 | BO60: =T95/AB26 -> 0 | BP60: 0 | CC60: Member #2(Y) FEM(R): | CD60: =$CD$59 -> 20.03807494 | CE60: =$CE$59 -> 181.4574227 | CF60: =$CF$59 -> 5.170298782e-05 | CG60: =$CG$59 -> -0.0001842453885 | CH60: =IF($CE$18=$CG$18,"---",IF(AND($CE$18="",$CF$18="",$CG$18="",$CH$18=""),"---",(IF($EV60>=$CG$18,-$CF$18*($EV60-$CE$18-($EV60-$CG$18)),IF($EV60>=$CE$18,-$CF$18*($EV60-$CE$18),0)))+(IF($EV60>=$CG$18,-1/2*($CH$18-$CF$18)/($CG$18-$CE$18)*(($EV60-$CE$18)^2-($EV60-$CG$18)^2)+($CH$18-$CF$18)*($EV60-$CG$18),IF($EV60>=$CE$18,-1/2*($CH$18-$CF$18)/($CG$18-$CE$18)*($EV60-$CE$18)^2,0))))) -> 20.03807494 | CI60: =IF($CE$18=$CG$18,"---",IF(AND($CE$18="",$CF$18="",$CG$18="",$CH$18=""),"---",(IF($EV60>=$CG$18,-$CF$18/2*(($EV60-$CE$18)^2-($EV60-$CG$18)^2),IF($EV60>=$CE$18,-$CF$18/2*($EV60-$CE$18)^2,0)))+(IF($EV60>=$CG$18,-1/6*($CH$18-$CF$18)/($CG$18-$CE$18)*(($EV60-$CE$18)^3-($EV60-$CG$18)^3)+($CH$18-$CF$18)/2*($EV60-$CG$18)^2,IF($EV60>=$CE$18,-1/6*($CH$18-$CF$18)/($CG$18-$CE$18)*($EV60-$CE$18)^3,0))))) -> 181.4574227 | CJ60: =IF($CE$18=$CG$18,"---",IF(AND($CE$18="",$CF$18="",$CG$18="",$CH$18=""),"---",(IF($EV60>=$CG$18,-$CF$18/(6*$FY$28*$GA$28)*(($EV60-$CE$18)^3-($EV60-$CG$18)^3),IF($EV60>=$CE$18,-$CF$18/(6*$FY$28*$GA$28)*($EV60-$CE$18)^3,0)))+(IF($EV60>=$CG$18,-1/(24*$FY$28*$GA$28)*($CH$18-$CF$18)/($CG$18-$CE$18)*(($EV60-$CE$18)^4-($EV60-$CG$18)^4)+($CH$18-$CF$18)/(6*$FY$28*$GA$28)*($EV60-$CG$18)^3,IF($EV60>=$CE$18,-1/(24*$FY$28*$GA$28)*($CH$18-$CF$18)/($CG$18-$CE$18)*($EV60-$CE$18)^4,0))))) -> 5.170298782e-05 | CK60: =IF($CE$18=$CG$18,"---",IF(AND($CE$18="",$CF$18="",$CG$18="",$CH$18=""),"---",(IF($EV60>=$CG$18,$CF$18/(24*$FY$28*$GA$28)*(($EV60-$CE$18)^4-($EV60-$CG$18)^4),IF($EV60>=$CE$18,$CF$18/(24*$FY$28*$GA$28)*($EV60-$CE$18)^4,0)))+(IF($EV60>=$CG$18,1/(120*$FY$28*$GA$28)*($CH$18-$CF$18)/($CG$18-$CE$18)*(($EV60-$CE$18)^5-($EV60-$CG$18)^5)-($CH$18-$CF$18)/(24*$FY$28*$GA$28)*($EV60-$CG$18)^4,IF($EV60>=$CE$18,1/(120*$FY$28*$GA$28)*($CH$18-$CF$18)/($CG$18-$CE$18)*($EV60-$CE$18)^5,0))))) -> -0.0001842453885 | CL60: =$CL$59 -> 21.91664446 | CM60: =$CM$59 -> 207.4571542 | CN60: =$CN$59 -> 7.046022482e-05 | CO60: =$CO$59 -> -0.000311325235 | CP60: =IF($CI$18=$CK$18,"---",IF(AND($CI$18="",$CJ$18="",$CK$18="",$CL$18=""),"---",(IF($EV60>=$CK$18,-$CJ$18*($EV60-$CI$18-($EV60-$CK$18)),IF($EV60>=$CI$18,-$CJ$18*($EV60-$CI$18),0)))+(IF($EV60>=$CK$18,-1/2*($CL$18-$CJ$18)/($CK$18-$CI$18)*(($EV60-$CI$18)^2-($EV60-$CK$18)^2)+($CL$18-$CJ$18)*($EV60-$CK$18),IF($EV60>=$CI$18,-1/2*($CL$18-$CJ$18)/($CK$18-$CI$18)*($EV60-$CI$18)^2,0))))) -> 21.91664446 | CQ60: =IF($CI$18=$CK$18,"---",IF(AND($CI$18="",$CJ$18="",$CK$18="",$CL$18=""),"---",(IF($EV60>=$CK$18,-$CJ$18/2*(($EV60-$CI$18)^2-($EV60-$CK$18)^2),IF($EV60>=$CI$18,-$CJ$18/2*($EV60-$CI$18)^2,0)))+(IF($EV60>=$CK$18,-1/6*($CL$18-$CJ$18)/($CK$18-$CI$18)*(($EV60-$CI$18)^3-($EV60-$CK$18)^3)+($CL$18-$CJ$18)/2*($EV60-$CK$18)^2,IF($EV60>=$CI$18,-1/6*($CL$18-$CJ$18)/($CK$18-$CI$18)*($EV60-$CI$18)^3,0))))) -> 207.4571542 | CR60: =IF($CI$18=$CK$18,"---",IF(AND($CI$18="",$CJ$18="",$CK$18="",$CL$18=""),"---",(IF($EV60>=$CK$18,-$CJ$18/(6*$FY$28*$GA$28)*(($EV60-$CI$18)^3-($EV60-$CK$18)^3),IF($EV60>=$CI$18,-$CJ$18/(6*$FY$28*$GA$28)*($EV60-$CI$18)^3,0)))+(IF($EV60>=$CK$18,-1/(24*$FY$28*$GA$28)*($CL$18-$CJ$18)/($CK$18-$CI$18)*(($EV60-$CI$18)^4-($EV60-$CK$18)^4)+($CL$18-$CJ$18)/(6*$FY$28*$GA$28)*($EV60-$CK$18)^3,IF($EV60>=$CI$18,-1/(24*$FY$28*$GA$28)*($CL$18-$CJ$18)/($CK$18-$CI$18)*($EV60-$CI$18)^4,0))))) -> 7.046022482e-05 | CS60: =IF($CI$18=$CK$18,"---",IF(AND($CI$18="",$CJ$18="",$CK$18="",$CL$18=""),"---",(IF($EV60>=$CK$18,$CJ$18/(24*$FY$28*$GA$28)*(($EV60-$CI$18)^4-($EV60-$CK$18)^4),IF($EV60>=$CI$18,$CJ$18/(24*$FY$28*$GA$28)*($EV60-$CI$18)^4,0)))+(IF($EV60>=$CK$18,1/(120*$FY$28*$GA$28)*($CL$18-$CJ$18)/($CK$18-$CI$18)*(($EV60-$CI$18)^5-($EV60-$CK$18)^5)-($CL$18-$CJ$18)/(24*$FY$28*$GA$28)*($EV60-$CK$18)^4,IF($EV60>=$CI$18,1/(120*$FY$28*$GA$28)*($CL$18-$CJ$18)/($CK$18-$CI$18)*($EV60-$CI$18)^5,0))))) -> -0.000311325235 | CT60: =$CT$59 -> --- | CU60: =$CU$59 -> --- | CV60: =$CV$59 -> --- | CW60: =$CW$59 -> --- | CX60: =IF($CM$18=$CO$18,"---",IF(AND($CM$18="",$CN$18="",$CO$18="",$CP$18=""),"---",(IF($EV60>=$CO$18,-$CN$18*($EV60-$CM$18-($EV60-$CO$18)),IF($EV60>=$CM$18,-$CN$18*($EV60-$CM$18),0)))+(IF($EV60>=$CO$18,-1/2*($CP$18-$CN$18)/($CO$18-$CM$18)*(($EV60-$CM$18)^2-($EV60-$CO$18)^2)+($CP$18-$CN$18)*($EV60-$CO$18),IF($EV60>=$CM$18,-1/2*($CP$18-$CN$18)/($CO$18-$CM$18)*($EV60-$CM$18)^2,0))))) -> --- | CY60: =IF($CM$18=$CO$18,"---",IF(AND($CM$18="",$CN$18="",$CO$18="",$CP$18=""),"---",(IF($EV60>=$CO$18,-$CN$18/2*(($EV60-$CM$18)^2-($EV60-$CO$18)^2),IF($EV60>=$CM$18,-$CN$18/2*($EV60-$CM$18)^2,0)))+(IF($EV60>=$CO$18,-1/6*($CP$18-$CN$18)/($CO$18-$CM$18)*(($EV60-$CM$18)^3-($EV60-$CO$18)^3)+($CP$18-$CN$18)/2*($EV60-$CO$18)^2,IF($EV60>=$CM$18,-1/6*($CP$18-$CN$18)/($CO$18-$CM$18)*($EV60-$CM$18)^3,0))))) -> --- | CZ60: =IF($CM$18=$CO$18,"---",IF(AND($CM$18="",$CN$18="",$CO$18="",$CP$18=""),"---",(IF($EV60>=$CO$18,-$CN$18/(6*$FY$28*$GA$28)*(($EV60-$CM$18)^3-($EV60-$CO$18)^3),IF($EV60>=$CM$18,-$CN$18/(6*$FY$28*$GA$28)*($EV60-$CM$18)^3,0)))+(IF($EV60>=$CO$18,-1/(24*$FY$28*$GA$28)*($CP$18-$CN$18)/($CO$18-$CM$18)*(($EV60-$CM$18)^4-($EV60-$CO$18)^4)+($CP$18-$CN$18)/(6*$FY$28*$GA$28)*($EV60-$CO$18)^3,IF($EV60>=$CM$18,-1/(24*$FY$28*$GA$28)*($CP$18-$CN$18)/($CO$18-$CM$18)*($EV60-$CM$18)^4,0))))) -> --- | DA60: =IF($CM$18=$CO$18,"---",IF(AND($CM$18="",$CN$18="",$CO$18="",$CP$18=""),"---",(IF($EV60>=$CO$18,$CN$18/(24*$FY$28*$GA$28)*(($EV60-$CM$18)^4-($EV60-$CO$18)^4),IF($EV60>=$CM$18,$CN$18/(24*$FY$28*$GA$28)*($EV60-$CM$18)^4,0)))+(IF($EV60>=$CO$18,1/(120*$FY$28*$GA$28)*($CP$18-$CN$18)/($CO$18-$CM$18)*(($EV60-$CM$18)^5-($EV60-$CO$18)^5)-($CP$18-$CN$18)/(24*$FY$28*$GA$28)*($EV60-$CO$18)^4,IF($EV60>=$CM$18,1/(120*$FY$28*$GA$28)*($CP$18-$CN$18)/($CO$18-$CM$18)*($EV60-$CM$18)^5,0))))) -> --- | DB60: =$DB$59 -> --- | DC60: =$DC$59 -> --- | DD60: =$DD$59 -> --- | DE60: =$DE$59 -> --- | DF60: =IF($CQ$18=$CS$18,"---",IF(AND($CQ$18="",$CR$18="",$CS$18="",$CT$18=""),"---",(IF($EV60>=$CS$18,-$CR$18*($EV60-$CQ$18-($EV60-$CS$18)),IF($EV60>=$CQ$18,-$CR$18*($EV60-$CQ$18),0)))+(IF($EV60>=$CS$18,-1/2*($CT$18-$CR$18)/($CS$18-$CQ$18)*(($EV60-$CQ$18)^2-($EV60-$CS$18)^2)+($CT$18-$CR$18)*($EV60-$CS$18),IF($EV60>=$CQ$18,-1/2*($CT$18-$CR$18)/($CS$18-$CQ$18)*($EV60-$CQ$18)^2,0))))) -> --- | DG60: =IF($CQ$18=$CS$18,"---",IF(AND($CQ$18="",$CR$18="",$CS$18="",$CT$18=""),"---",(IF($EV60>=$CS$18,-$CR$18/2*(($EV60-$CQ$18)^2-($EV60-$CS$18)^2),IF($EV60>=$CQ$18,-$CR$18/2*($EV60-$CQ$18)^2,0)))+(IF($EV60>=$CS$18,-1/6*($CT$18-$CR$18)/($CS$18-$CQ$18)*(($EV60-$CQ$18)^3-($EV60-$CS$18)^3)+($CT$18-$CR$18)/2*($EV60-$CS$18)^2,IF($EV60>=$CQ$18,-1/6*($CT$18-$CR$18)/($CS$18-$CQ$18)*($EV60-$CQ$18)^3,0))))) -> --- | DH60: =IF($CQ$18=$CS$18,"---",IF(AND($CQ$18="",$CR$18="",$CS$18="",$CT$18=""),"---",(IF($EV60>=$CS$18,-$CR$18/(6*$FY$28*$GA$28)*(($EV60-$CQ$18)^3-($EV60-$CS$18)^3),IF($EV60>=$CQ$18,-$CR$18/(6*$FY$28*$GA$28)*($EV60-$CQ$18)^3,0)))+(IF($EV60>=$CS$18,-1/(24*$FY$28*$GA$28)*($CT$18-$CR$18)/($CS$18-$CQ$18)*(($EV60-$CQ$18)^4-($EV60-$CS$18)^4)+($CT$18-$CR$18)/(6*$FY$28*$GA$28)*($EV60-$CS$18)^3,IF($EV60>=$CQ$18,-1/(24*$FY$28*$GA$28)*($CT$18-$CR$18)/($CS$18-$CQ$18)*($EV60-$CQ$18)^4,0))))) -> --- | DI60: =IF($CQ$18=$CS$18,"---",IF(AND($CQ$18="",$CR$18="",$CS$18="",$CT$18=""),"---",(IF($EV60>=$CS$18,$CR$18/(24*$FY$28*$GA$28)*(($EV60-$CQ$18)^4-($EV60-$CS$18)^4),IF($EV60>=$CQ$18,$CR$18/(24*$FY$28*$GA$28)*($EV60-$CQ$18)^4,0)))+(IF($EV60>=$CS$18,1/(120*$FY$28*$GA$28)*($CT$18-$CR$18)/($CS$18-$CQ$18)*(($EV60-$CQ$18)^5-($EV60-$CS$18)^5)-($CT$18-$CR$18)/(24*$FY$28*$GA$28)*($EV60-$CS$18)^4,IF($EV60>=$CQ$18,1/(120*$FY$28*$GA$28)*($CT$18-$CR$18)/($CS$18-$CQ$18)*($EV60-$CQ$18)^5,0))))) -> --- | DJ60: =$DJ$59 -> --- | DK60: =$DK$59 -> --- | DL60: =$DL$59 -> --- | DM60: =$DM$59 -> --- | DN60: =IF($CU$18=$CW$18,"---",IF(AND($CU$18="",$CV$18="",$CW$18="",$CX$18=""),"---",(IF($EV60>=$CW$18,-$CV$18*($EV60-$CU$18-($EV60-$CW$18)),IF($EV60>=$CU$18,-$CV$18*($EV60-$CU$18),0)))+(IF($EV60>=$CW$18,-1/2*($CX$18-$CV$18)/($CW$18-$CU$18)*(($EV60-$CU$18)^2-($EV60-$CW$18)^2)+($CX$18-$CV$18)*($EV60-$CW$18),IF($EV60>=$CU$18,-1/2*($CX$18-$CV$18)/($CW$18-$CU$18)*($EV60-$CU$18)^2,0))))) -> --- | DO60: =IF($CU$18=$CW$18,"---",IF(AND($CU$18="",$CV$18="",$CW$18="",$CX$18=""),"---",(IF($EV60>=$CW$18,-$CV$18/2*(($EV60-$CU$18)^2-($EV60-$CW$18)^2),IF($EV60>=$CU$18,-$CV$18/2*($EV60-$CU$18)^2,0)))+(IF($EV60>=$CW$18,-1/6*($CX$18-$CV$18)/($CW$18-$CU$18)*(($EV60-$CU$18)^3-($EV60-$CW$18)^3)+($CX$18-$CV$18)/2*($EV60-$CW$18)^2,IF($EV60>=$CU$18,-1/6*($CX$18-$CV$18)/($CW$18-$CU$18)*($EV60-$CU$18)^3,0))))) -> --- | DP60: =IF($CU$18=$CW$18,"---",IF(AND($CU$18="",$CV$18="",$CW$18="",$CX$18=""),"---",(IF($EV60>=$CW$18,-$CV$18/(6*$FY$28*$GA$28)*(($EV60-$CU$18)^3-($EV60-$CW$18)^3),IF($EV60>=$CU$18,-$CV$18/(6*$FY$28*$GA$28)*($EV60-$CU$18)^3,0)))+(IF($EV60>=$CW$18,-1/(24*$FY$28*$GA$28)*($CX$18-$CV$18)/($CW$18-$CU$18)*(($EV60-$CU$18)^4-($EV60-$CW$18)^4)+($CX$18-$CV$18)/(6*$FY$28*$GA$28)*($EV60-$CW$18)^3,IF($EV60>=$CU$18,-1/(24*$FY$28*$GA$28)*($CX$18-$CV$18)/($CW$18-$CU$18)*($EV60-$CU$18)^4,0))))) -> --- | DQ60: =IF($CU$18=$CW$18,"---",IF(AND($CU$18="",$CV$18="",$CW$18="",$CX$18=""),"---",(IF($EV60>=$CW$18,$CV$18/(24*$FY$28*$GA$28)*(($EV60-$CU$18)^4-($EV60-$CW$18)^4),IF($EV60>=$CU$18,$CV$18/(24*$FY$28*$GA$28)*($EV60-$CU$18)^4,0)))+(IF($EV60>=$CW$18,1/(120*$FY$28*$GA$28)*($CX$18-$CV$18)/($CW$18-$CU$18)*(($EV60-$CU$18)^5-($EV60-$CW$18)^5)-($CX$18-$CV$18)/(24*$FY$28*$GA$28)*($EV60-$CW$18)^4,IF($EV60>=$CU$18,1/(120*$FY$28*$GA$28)*($CX$18-$CV$18)/($CW$18-$CU$18)*($EV60-$CU$18)^5,0))))) -> --- | DR60: =$DR$59 -> 0 | DS60: =$DS$59 -> 0 | DT60: =$DT$59 -> 0 | DU60: =$DU$59 -> 0 | DV60: =IF($EV60>$CE$33,-$CF$33,0)+IF($EV60>$CG$33,-$CH$33,0)+IF($EV60>$CI$33,-$CJ$33,0)+IF($EV60>$CK$33,-$CL$33,0)+IF($EV60>$CM$33,-$CN$33,0)+IF($EV60>$CO$33,-$CP$33,0)+IF($EV60>$CQ$33,-$CR$33,0)+IF($EV60>$CS$33,-$CT$33,0)+IF($EV60>$CU$33,-$CV$33,0)+IF($EV60>$CW$33,-$CX$33,0) -> 0 | DW60: =IF($EV60>$CE$33,-$CF$33*($EV60-$CE$33),0)+IF($EV60>$CG$33,-$CH$33*($EV60-$CG$33),0)+IF($EV60>$CI$33,-$CJ$33*($EV60-$CI$33),0)+IF($EV60>$CK$33,-$CL$33*($EV60-$CK$33),0)+IF($EV60>$CM$33,-$CN$33*($EV60-$CM$33),0)+IF($EV60>$CO$33,-$CP$33*($EV60-$CO$33),0)+IF($EV60>$CQ$33,-$CR$33*($EV60-$CQ$33),0)+IF($EV60>$CS$33,-$CT$33*($EV60-$CS$33),0)+IF($EV60>$CU$33,-$CV$33*($EV60-$CU$33),0)+IF($EV60>$CW$33,-$CX$33*($EV60-$CW$33),0) -> 0 | DX60: =IF($EV60>$CE$33,-$CF$33*($EV60-$CE$33)^2/(2*$FY$28*$GA$28),0)+IF($EV60>$CG$33,-$CH$33*($EV60-$CG$33)^2/(2*$FY$28*$GA$28),0)+IF($EV60>$CI$33,-$CJ$33*($EV60-$CI$33)^2/(2*$FY$28*$GA$28),0)+IF($EV60>$CK$33,-$CL$33*($EV60-$CK$33)^2/(2*$FY$28*$GA$28),0)+IF($EV60>$CM$33,-$CN$33*($EV60-$CM$33)^2/(2*$FY$28*$GA$28),0)+IF($EV60>$CO$33,-$CP$33*($EV60-$CO$33)^2/(2*$FY$28*$GA$28),0)+IF($EV60>$CQ$33,-$CR$33*($EV60-$CQ$33)^2/(2*$FY$28*$GA$28),0)+IF($EV60>$CS$33,-$CT$33*($EV60-$CS$33)^2/(2*$FY$28*$GA$28),0)+IF($EV60>$CU$33,-$CV$33*($EV60-$CU$33)^2/(2*$FY$28*$GA$28),0)+IF($EV60>$CW$33,-$CX$33*($EV60-$CW$33)^2/(2*$FY$28*$GA$28),0) -> 0 | DY60: =IF($EV60>$CE$33,$CF$33*($EV60-$CE$33)^3/(6*$FY$28*$GA$28),0)+IF($EV60>$CG$33,$CH$33*($EV60-$CG$33)^3/(6*$FY$28*$GA$28),0)+IF($EV60>$CI$33,$CJ$33*($EV60-$CI$33)^3/(6*$FY$28*$GA$28),0)+IF($EV60>$CK$33,$CL$33*($EV60-$CK$33)^3/(6*$FY$28*$GA$28),0)+IF($EV60>$CM$33,$CN$33*($EV60-$CM$33)^3/(6*$FY$28*$GA$28),0)+IF($EV60>$CO$33,$CP$33*($EV60-$CO$33)^3/(6*$FY$28*$GA$28),0)+IF($EV60>$CQ$33,$CR$33*($EV60-$CQ$33)^3/(6*$FY$28*$GA$28),0)+IF($EV60>$CS$33,$CT$33*($EV60-$CS$33)^3/(6*$FY$28*$GA$28),0)+IF($EV60>$CU$33,$CV$33*($EV60-$CU$33)^3/(6*$FY$28*$GA$28),0)+IF($EV60>$CW$33,$CX$33*($EV60-$CW$33)^3/(6*$FY$28*$GA$28),0) -> 0 | DZ60: =$DZ$59 -> 0 | EA60: =$EA$59 -> 0 | EB60: =$EB$59 -> 0 | EC60: =$EC$59 -> 0 | ED60: =IF($EV60>=IF($CE$48=$GB$28,$CE$48+0.000000001,$CE$48),0,0)+IF($EV60>=IF($CG$48=$GB$28,$CG$48+0.000000001,$CG$48),0,0)+IF($EV60>=IF($CI$48=$GB$28,$CI$48+0.000000001,$CI$48),0,0)+IF($EV60>=IF($CK$48=$GB$28,$CK$48+0.000000001,$CK$48),0,0)+IF($EV60>=IF($CM$48=$GB$28,$CM$48+0.000000001,$CM$48),0,0) -> 0 | EE60: =IF($EV60>=IF($CE$48=$GB$28,$CE$48+0.000000001,$CE$48),-$CF$48,0)+IF($EV60>=IF($CG$48=$GB$28,$CG$48+0.000000001,$CG$48),-$CH$48,0)+IF($EV60>=IF($CI$48=$GB$28,$CI$48+0.000000001,$CI$48),-$CJ$48,0)+IF($EV60>=IF($CK$48=$GB$28,$CK$48+0.000000001,$CK$48),-$CL$48,0)+IF($EV60>=IF($CM$48=$GB$28,$CM$48+0.000000001,$CM$48),-$CN$48,0) -> 0 | EF60: =IF($EV60>=IF($CE$48=$GB$28,$CE$48+0.000000001,$CE$48),-$CF$48*($EV60-$CE$48)/($FY$28*$GA$28),0)+IF($EV60>=IF($CG$48=$GB$28,$CG$48+0.000000001,$CG$48),-$CH$48*($EV60-$CG$48)/($FY$28*$GA$28),0)+IF($EV60>=IF($CI$48=$GB$28,$CI$48+0.000000001,$CI$48),-$CJ$48*($EV60-$CI$48)/($FY$28*$GA$28),0)+IF($EV60>=IF($CK$48=$GB$28,$CK$48+0.000000001,$CK$48),-$CL$48*($EV60-$CK$48)/($FY$28*$GA$28),0)+IF($EV60>=IF($CM$48=$GB$28,$CM$48+0.000000001,$CM$48),-$CN$48*($EV60-$CM$48)/($FY$28*$GA$28),0) -> 0 | EG60: =IF($EV60>=IF($CE$48=$GB$28,$CE$48+0.000000001,$CE$48),$CF$48*($EV60-$CE$48)^2/(2*$FY$28*$GA$28),0)+IF($EV60>=IF($CG$48=$GB$28,$CG$48+0.000000001,$CG$48),$CH$48*($EV60-$CG$48)^2/(2*$FY$28*$GA$28),0)+IF($EV60>=IF($CI$48=$GB$28,$CI$48+0.000000001,$CI$48),$CJ$48*($EV60-$CI$48)^2/(2*$FY$28*$GA$28),0)+IF($EV60>=IF($CK$48=$GB$28,$CK$48+0.000000001,$CK$48),$CL$48*($EV60-$CK$48)^2/(2*$FY$28*$GA$28),0)+IF($EV60>=IF($CM$48=$GB$28,$CM$48+0.000000001,$CM$48),$CN$48*($EV60-$CM$48)^2/(2*$FY$28*$GA$28),0) -> 0 | EH60: 41.9547194 | EI60: 388.9145769 | EJ60: 0.0001221632126 | EK60: -0.0004955706236 | EL60: 41.9547194 | EM60: 388.9145769 | EN60: 0.0001221632126 | EO60: -0.0004955706236 | EP60: =$EP$59 -> -22.12423768 | EQ60: =$EQ$59 -> 74.975327 | ER60: =$ER$59 -> 0 | ES60: =$ES$59 -> 0 | ET60: =-($EP60+$EL60) -> -19.83048172 | EU60: 73.0030705 | EV60: =$GB$28+0.0000000001 -> 17.66781025 | EW60: Member #2(Y) FEM(R): | FF60: W36x260 | FG60: 76.5 | FH60: 17300 | FI60: 1090 | FJ60: 493.55 | FK60: 720080.37 | FL60: 45369.23 | FW60: 3 | FX60: Y-Global | FY60: 0.5570860145 | FZ60: 7.8683115 | GA60: 0 | GB60: 0 | GC60: 0 | GD60: 0 | GE60: 0 | GF60: 0 | GG60: 0 | GH60: 0
H61: Factor of Safety | BE61: 3 | BF61: X-Global | BG61: =P86/AB26 -> 0 | BH61: 0 | BI61: =T86/AB26 -> 0 | BJ61: 0 | BK61: =X86/AB26 -> 0 | BL61: 0 | BM61: =P96/AB26 -> 0 | BN61: 0 | BO61: =T96/AB26 -> 0 | BP61: 0 | CC61: Member #2(Y) Axial(L): | CD61: =IF($CE$19=$CG$19,"---",IF(AND($CE$19="",$CF$19="",$CG$19="",$CH$19=""),"---",(-$CF$19*($GB$28-$CE$19-($GB$28-$CG$19)))+(-1/2*($CH$19-$CF$19)/($CG$19-$CE$19)*(($GB$28-$CE$19)^2-($GB$28-$CG$19)^2)+($CH$19-$CF$19)*($GB$28-$CG$19)))) -> 8.015229976 | CE61: =IF($CE$19=$CG$19,"---",IF(AND($CE$19="",$CF$19="",$CG$19="",$CH$19=""),"---",(-$CF$19/2*(($GB$28-$CE$19)^2-($GB$28-$CG$19)^2))+(-1/6*($CH$19-$CF$19)/($CG$19-$CE$19)*(($GB$28-$CE$19)^3-($GB$28-$CG$19)^3)+($CH$19-$CF$19)/2*($GB$28-$CG$19)^2))) -> 72.58296908 | CF61: =IF($CE$19=$CG$19,"---",IF(AND($CE$19="",$CF$19="",$CG$19="",$CH$19=""),"---",(-$CF$19/(6*$FY$28*$GA$28)*(($GB$28-$CE$19)^3-($GB$28-$CG$19)^3))+(-1/(24*$FY$28*$GA$28)*($CH$19-$CF$19)/($CG$19-$CE$19)*(($GB$28-$CE$19)^4-($GB$28-$CG$19)^4)+($CH$19-$CF$19)/(6*$FY$28*$GA$28)*($GB$28-$CG$19)^3))) -> 2.068119513e-05 | CG61: =IF($CE$19=$CG$19,"---",IF(AND($CE$19="",$CF$19="",$CG$19="",$CH$19=""),"---",($CF$19/(24*$FY$28*$GA$28)*(($GB$28-$CE$19)^4-($GB$28-$CG$19)^4))+(1/(120*$FY$28*$GA$28)*($CH$19-$CF$19)/($CG$19-$CE$19)*(($GB$28-$CE$19)^5-($GB$28-$CG$19)^5)-($CH$19-$CF$19)/(24*$FY$28*$GA$28)*($GB$28-$CG$19)^4))) -> -7.369815542e-05 | CH61: =IF($CE$19=$CG$19,"---",IF(AND($CE$19="",$CF$19="",$CG$19="",$CH$19=""),"---",(IF($EV61>=$CG$19,-$CF$19*($EV61-$CE$19-($EV61-$CG$19)),IF($EV61>=$CE$19,-$CF$19*($EV61-$CE$19),0)))+(IF($EV61>=$CG$19,-1/2*($CH$19-$CF$19)/($CG$19-$CE$19)*(($EV61-$CE$19)^2-($EV61-$CG$19)^2)+($CH$19-$CF$19)*($EV61-$CG$19),IF($EV61>=$CE$19,-1/2*($CH$19-$CF$19)/($CG$19-$CE$19)*($EV61-$CE$19)^2,0))))) -> 0 | CI61: =IF($CE$19=$CG$19,"---",IF(AND($CE$19="",$CF$19="",$CG$19="",$CH$19=""),"---",(IF($EV61>=$CG$19,-$CF$19/2*(($EV61-$CE$19)^2-($EV61-$CG$19)^2),IF($EV61>=$CE$19,-$CF$19/2*($EV61-$CE$19)^2,0)))+(IF($EV61>=$CG$19,-1/6*($CH$19-$CF$19)/($CG$19-$CE$19)*(($EV61-$CE$19)^3-($EV61-$CG$19)^3)+($CH$19-$CF$19)/2*($EV61-$CG$19)^2,IF($EV61>=$CE$19,-1/6*($CH$19-$CF$19)/($CG$19-$CE$19)*($EV61-$CE$19)^3,0))))) -> 0 | CJ61: =IF($CE$19=$CG$19,"---",IF(AND($CE$19="",$CF$19="",$CG$19="",$CH$19=""),"---",(IF($EV61>=$CG$19,-$CF$19/(6*$FY$28*$GA$28)*(($EV61-$CE$19)^3-($EV61-$CG$19)^3),IF($EV61>=$CE$19,-$CF$19/(6*$FY$28*$GA$28)*($EV61-$CE$19)^3,0)))+(IF($EV61>=$CG$19,-1/(24*$FY$28*$GA$28)*($CH$19-$CF$19)/($CG$19-$CE$19)*(($EV61-$CE$19)^4-($EV61-$CG$19)^4)+($CH$19-$CF$19)/(6*$FY$28*$GA$28)*($EV61-$CG$19)^3,IF($EV61>=$CE$19,-1/(24*$FY$28*$GA$28)*($CH$19-$CF$19)/($CG$19-$CE$19)*($EV61-$CE$19)^4,0))))) -> 0 | CK61: =IF($CE$19=$CG$19,"---",IF(AND($CE$19="",$CF$19="",$CG$19="",$CH$19=""),"---",(IF($EV61>=$CG$19,$CF$19/(24*$FY$28*$GA$28)*(($EV61-$CE$19)^4-($EV61-$CG$19)^4),IF($EV61>=$CE$19,$CF$19/(24*$FY$28*$GA$28)*($EV61-$CE$19)^4,0)))+(IF($EV61>=$CG$19,1/(120*$FY$28*$GA$28)*($CH$19-$CF$19)/($CG$19-$CE$19)*(($EV61-$CE$19)^5-($EV61-$CG$19)^5)-($CH$19-$CF$19)/(24*$FY$28*$GA$28)*($EV61-$CG$19)^4,IF($EV61>=$CE$19,1/(120*$FY$28*$GA$28)*($CH$19-$CF$19)/($CG$19-$CE$19)*($EV61-$CE$19)^5,0))))) -> 0 | CL61: =IF($CI$19=$CK$19,"---",IF(AND($CI$19="",$CJ$19="",$CK$19="",$CL$19=""),"---",(-$CJ$19*($GB$28-$CI$19-($GB$28-$CK$19)))+(-1/2*($CL$19-$CJ$19)/($CK$19-$CI$19)*(($GB$28-$CI$19)^2-($GB$28-$CK$19)^2)+($CL$19-$CJ$19)*($GB$28-$CK$19)))) -> 8.766657786 | CM61: =IF($CI$19=$CK$19,"---",IF(AND($CI$19="",$CJ$19="",$CK$19="",$CL$19=""),"---",(-$CJ$19/2*(($GB$28-$CI$19)^2-($GB$28-$CK$19)^2))+(-1/6*($CL$19-$CJ$19)/($CK$19-$CI$19)*(($GB$28-$CI$19)^3-($GB$28-$CK$19)^3)+($CL$19-$CJ$19)/2*($GB$28-$CK$19)^2))) -> 82.98286167 | CN61: =IF($CI$19=$CK$19,"---",IF(AND($CI$19="",$CJ$19="",$CK$19="",$CL$19=""),"---",(-$CJ$19/(6*$FY$28*$GA$28)*(($GB$28-$CI$19)^3-($GB$28-$CK$19)^3))+(-1/(24*$FY$28*$GA$28)*($CL$19-$CJ$19)/($CK$19-$CI$19)*(($GB$28-$CI$19)^4-($GB$28-$CK$19)^4)+($CL$19-$CJ$19)/(6*$FY$28*$GA$28)*($GB$28-$CK$19)^3))) -> 2.818408993e-05 | CO61: =IF($CI$19=$CK$19,"---",IF(AND($CI$19="",$CJ$19="",$CK$19="",$CL$19=""),"---",($CJ$19/(24*$FY$28*$GA$28)*(($GB$28-$CI$19)^4-($GB$28-$CK$19)^4))+(1/(120*$FY$28*$GA$28)*($CL$19-$CJ$19)/($CK$19-$CI$19)*(($GB$28-$CI$19)^5-($GB$28-$CK$19)^5)-($CL$19-$CJ$19)/(24*$FY$28*$GA$28)*($GB$28-$CK$19)^4))) -> -0.000124530094 | CP61: =IF($CI$19=$CK$19,"---",IF(AND($CI$19="",$CJ$19="",$CK$19="",$CL$19=""),"---",(IF($EV61>=$CK$19,-$CJ$19*($EV61-$CI$19-($EV61-$CK$19)),IF($EV61>=$CI$19,-$CJ$19*($EV61-$CI$19),0)))+(IF($EV61>=$CK$19,-1/2*($CL$19-$CJ$19)/($CK$19-$CI$19)*(($EV61-$CI$19)^2-($EV61-$CK$19)^2)+($CL$19-$CJ$19)*($EV61-$CK$19),IF($EV61>=$CI$19,-1/2*($CL$19-$CJ$19)/($CK$19-$CI$19)*($EV61-$CI$19)^2,0))))) -> 0 | CQ61: =IF($CI$19=$CK$19,"---",IF(AND($CI$19="",$CJ$19="",$CK$19="",$CL$19=""),"---",(IF($EV61>=$CK$19,-$CJ$19/2*(($EV61-$CI$19)^2-($EV61-$CK$19)^2),IF($EV61>=$CI$19,-$CJ$19/2*($EV61-$CI$19)^2,0)))+(IF($EV61>=$CK$19,-1/6*($CL$19-$CJ$19)/($CK$19-$CI$19)*(($EV61-$CI$19)^3-($EV61-$CK$19)^3)+($CL$19-$CJ$19)/2*($EV61-$CK$19)^2,IF($EV61>=$CI$19,-1/6*($CL$19-$CJ$19)/($CK$19-$CI$19)*($EV61-$CI$19)^3,0))))) -> 0 | CR61: =IF($CI$19=$CK$19,"---",IF(AND($CI$19="",$CJ$19="",$CK$19="",$CL$19=""),"---",(IF($EV61>=$CK$19,-$CJ$19/(6*$FY$28*$GA$28)*(($EV61-$CI$19)^3-($EV61-$CK$19)^3),IF($EV61>=$CI$19,-$CJ$19/(6*$FY$28*$GA$28)*($EV61-$CI$19)^3,0)))+(IF($EV61>=$CK$19,-1/(24*$FY$28*$GA$28)*($CL$19-$CJ$19)/($CK$19-$CI$19)*(($EV61-$CI$19)^4-($EV61-$CK$19)^4)+($CL$19-$CJ$19)/(6*$FY$28*$GA$28)*($EV61-$CK$19)^3,IF($EV61>=$CI$19,-1/(24*$FY$28*$GA$28)*($CL$19-$CJ$19)/($CK$19-$CI$19)*($EV61-$CI$19)^4,0))))) -> 0 | CS61: =IF($CI$19=$CK$19,"---",IF(AND($CI$19="",$CJ$19="",$CK$19="",$CL$19=""),"---",(IF($EV61>=$CK$19,$CJ$19/(24*$FY$28*$GA$28)*(($EV61-$CI$19)^4-($EV61-$CK$19)^4),IF($EV61>=$CI$19,$CJ$19/(24*$FY$28*$GA$28)*($EV61-$CI$19)^4,0)))+(IF($EV61>=$CK$19,1/(120*$FY$28*$GA$28)*($CL$19-$CJ$19)/($CK$19-$CI$19)*(($EV61-$CI$19)^5-($EV61-$CK$19)^5)-($CL$19-$CJ$19)/(24*$FY$28*$GA$28)*($EV61-$CK$19)^4,IF($EV61>=$CI$19,1/(120*$FY$28*$GA$28)*($CL$19-$CJ$19)/($CK$19-$CI$19)*($EV61-$CI$19)^5,0))))) -> 0 | CT61: =IF($CM$19=$CO$19,"---",IF(AND($CM$19="",$CN$19="",$CO$19="",$CP$19=""),"---",(-$CN$19*($GB$28-$CM$19-($GB$28-$CO$19)))+(-1/2*($CP$19-$CN$19)/($CO$19-$CM$19)*(($GB$28-$CM$19)^2-($GB$28-$CO$19)^2)+($CP$19-$CN$19)*($GB$28-$CO$19)))) -> --- | CU61: =IF($CM$19=$CO$19,"---",IF(AND($CM$19="",$CN$19="",$CO$19="",$CP$19=""),"---",(-$CN$19/2*(($GB$28-$CM$19)^2-($GB$28-$CO$19)^2))+(-1/6*($CP$19-$CN$19)/($CO$19-$CM$19)*(($GB$28-$CM$19)^3-($GB$28-$CO$19)^3)+($CP$19-$CN$19)/2*($GB$28-$CO$19)^2))) -> --- | CV61: =IF($CM$19=$CO$19,"---",IF(AND($CM$19="",$CN$19="",$CO$19="",$CP$19=""),"---",(-$CN$19/(6*$FY$28*$GA$28)*(($GB$28-$CM$19)^3-($GB$28-$CO$19)^3))+(-1/(24*$FY$28*$GA$28)*($CP$19-$CN$19)/($CO$19-$CM$19)*(($GB$28-$CM$19)^4-($GB$28-$CO$19)^4)+($CP$19-$CN$19)/(6*$FY$28*$GA$28)*($GB$28-$CO$19)^3))) -> --- | CW61: =IF($CM$19=$CO$19,"---",IF(AND($CM$19="",$CN$19="",$CO$19="",$CP$19=""),"---",($CN$19/(24*$FY$28*$GA$28)*(($GB$28-$CM$19)^4-($GB$28-$CO$19)^4))+(1/(120*$FY$28*$GA$28)*($CP$19-$CN$19)/($CO$19-$CM$19)*(($GB$28-$CM$19)^5-($GB$28-$CO$19)^5)-($CP$19-$CN$19)/(24*$FY$28*$GA$28)*($GB$28-$CO$19)^4))) -> --- | CX61: =IF($CM$19=$CO$19,"---",IF(AND($CM$19="",$CN$19="",$CO$19="",$CP$19=""),"---",(IF($EV61>=$CO$19,-$CN$19*($EV61-$CM$19-($EV61-$CO$19)),IF($EV61>=$CM$19,-$CN$19*($EV61-$CM$19),0)))+(IF($EV61>=$CO$19,-1/2*($CP$19-$CN$19)/($CO$19-$CM$19)*(($EV61-$CM$19)^2-($EV61-$CO$19)^2)+($CP$19-$CN$19)*($EV61-$CO$19),IF($EV61>=$CM$19,-1/2*($CP$19-$CN$19)/($CO$19-$CM$19)*($EV61-$CM$19)^2,0))))) -> --- | CY61: =IF($CM$19=$CO$19,"---",IF(AND($CM$19="",$CN$19="",$CO$19="",$CP$19=""),"---",(IF($EV61>=$CO$19,-$CN$19/2*(($EV61-$CM$19)^2-($EV61-$CO$19)^2),IF($EV61>=$CM$19,-$CN$19/2*($EV61-$CM$19)^2,0)))+(IF($EV61>=$CO$19,-1/6*($CP$19-$CN$19)/($CO$19-$CM$19)*(($EV61-$CM$19)^3-($EV61-$CO$19)^3)+($CP$19-$CN$19)/2*($EV61-$CO$19)^2,IF($EV61>=$CM$19,-1/6*($CP$19-$CN$19)/($CO$19-$CM$19)*($EV61-$CM$19)^3,0))))) -> --- | CZ61: =IF($CM$19=$CO$19,"---",IF(AND($CM$19="",$CN$19="",$CO$19="",$CP$19=""),"---",(IF($EV61>=$CO$19,-$CN$19/(6*$FY$28*$GA$28)*(($EV61-$CM$19)^3-($EV61-$CO$19)^3),IF($EV61>=$CM$19,-$CN$19/(6*$FY$28*$GA$28)*($EV61-$CM$19)^3,0)))+(IF($EV61>=$CO$19,-1/(24*$FY$28*$GA$28)*($CP$19-$CN$19)/($CO$19-$CM$19)*(($EV61-$CM$19)^4-($EV61-$CO$19)^4)+($CP$19-$CN$19)/(6*$FY$28*$GA$28)*($EV61-$CO$19)^3,IF($EV61>=$CM$19,-1/(24*$FY$28*$GA$28)*($CP$19-$CN$19)/($CO$19-$CM$19)*($EV61-$CM$19)^4,0))))) -> --- | DA61: =IF($CM$19=$CO$19,"---",IF(AND($CM$19="",$CN$19="",$CO$19="",$CP$19=""),"---",(IF($EV61>=$CO$19,$CN$19/(24*$FY$28*$GA$28)*(($EV61-$CM$19)^4-($EV61-$CO$19)^4),IF($EV61>=$CM$19,$CN$19/(24*$FY$28*$GA$28)*($EV61-$CM$19)^4,0)))+(IF($EV61>=$CO$19,1/(120*$FY$28*$GA$28)*($CP$19-$CN$19)/($CO$19-$CM$19)*(($EV61-$CM$19)^5-($EV61-$CO$19)^5)-($CP$19-$CN$19)/(24*$FY$28*$GA$28)*($EV61-$CO$19)^4,IF($EV61>=$CM$19,1/(120*$FY$28*$GA$28)*($CP$19-$CN$19)/($CO$19-$CM$19)*($EV61-$CM$19)^5,0))))) -> --- | DB61: =IF($CQ$19=$CS$19,"---",IF(AND($CQ$19="",$CR$19="",$CS$19="",$CT$19=""),"---",(-$CR$19*($GB$28-$CQ$19-($GB$28-$CS$19)))+(-1/2*($CT$19-$CR$19)/($CS$19-$CQ$19)*(($GB$28-$CQ$19)^2-($GB$28-$CS$19)^2)+($CT$19-$CR$19)*($GB$28-$CS$19)))) -> --- | DC61: =IF($CQ$19=$CS$19,"---",IF(AND($CQ$19="",$CR$19="",$CS$19="",$CT$19=""),"---",(-$CR$19/2*(($GB$28-$CQ$19)^2-($GB$28-$CS$19)^2))+(-1/6*($CT$19-$CR$19)/($CS$19-$CQ$19)*(($GB$28-$CQ$19)^3-($GB$28-$CS$19)^3)+($CT$19-$CR$19)/2*($GB$28-$CS$19)^2))) -> --- | DD61: =IF($CQ$19=$CS$19,"---",IF(AND($CQ$19="",$CR$19="",$CS$19="",$CT$19=""),"---",(-$CR$19/(6*$FY$28*$GA$28)*(($GB$28-$CQ$19)^3-($GB$28-$CS$19)^3))+(-1/(24*$FY$28*$GA$28)*($CT$19-$CR$19)/($CS$19-$CQ$19)*(($GB$28-$CQ$19)^4-($GB$28-$CS$19)^4)+($CT$19-$CR$19)/(6*$FY$28*$GA$28)*($GB$28-$CS$19)^3))) -> --- | DE61: =IF($CQ$19=$CS$19,"---",IF(AND($CQ$19="",$CR$19="",$CS$19="",$CT$19=""),"---",($CR$19/(24*$FY$28*$GA$28)*(($GB$28-$CQ$19)^4-($GB$28-$CS$19)^4))+(1/(120*$FY$28*$GA$28)*($CT$19-$CR$19)/($CS$19-$CQ$19)*(($GB$28-$CQ$19)^5-($GB$28-$CS$19)^5)-($CT$19-$CR$19)/(24*$FY$28*$GA$28)*($GB$28-$CS$19)^4))) -> --- | DF61: =IF($CQ$19=$CS$19,"---",IF(AND($CQ$19="",$CR$19="",$CS$19="",$CT$19=""),"---",(IF($EV61>=$CS$19,-$CR$19*($EV61-$CQ$19-($EV61-$CS$19)),IF($EV61>=$CQ$19,-$CR$19*($EV61-$CQ$19),0)))+(IF($EV61>=$CS$19,-1/2*($CT$19-$CR$19)/($CS$19-$CQ$19)*(($EV61-$CQ$19)^2-($EV61-$CS$19)^2)+($CT$19-$CR$19)*($EV61-$CS$19),IF($EV61>=$CQ$19,-1/2*($CT$19-$CR$19)/($CS$19-$CQ$19)*($EV61-$CQ$19)^2,0))))) -> --- | DG61: =IF($CQ$19=$CS$19,"---",IF(AND($CQ$19="",$CR$19="",$CS$19="",$CT$19=""),"---",(IF($EV61>=$CS$19,-$CR$19/2*(($EV61-$CQ$19)^2-($EV61-$CS$19)^2),IF($EV61>=$CQ$19,-$CR$19/2*($EV61-$CQ$19)^2,0)))+(IF($EV61>=$CS$19,-1/6*($CT$19-$CR$19)/($CS$19-$CQ$19)*(($EV61-$CQ$19)^3-($EV61-$CS$19)^3)+($CT$19-$CR$19)/2*($EV61-$CS$19)^2,IF($EV61>=$CQ$19,-1/6*($CT$19-$CR$19)/($CS$19-$CQ$19)*($EV61-$CQ$19)^3,0))))) -> --- | DH61: =IF($CQ$19=$CS$19,"---",IF(AND($CQ$19="",$CR$19="",$CS$19="",$CT$19=""),"---",(IF($EV61>=$CS$19,-$CR$19/(6*$FY$28*$GA$28)*(($EV61-$CQ$19)^3-($EV61-$CS$19)^3),IF($EV61>=$CQ$19,-$CR$19/(6*$FY$28*$GA$28)*($EV61-$CQ$19)^3,0)))+(IF($EV61>=$CS$19,-1/(24*$FY$28*$GA$28)*($CT$19-$CR$19)/($CS$19-$CQ$19)*(($EV61-$CQ$19)^4-($EV61-$CS$19)^4)+($CT$19-$CR$19)/(6*$FY$28*$GA$28)*($EV61-$CS$19)^3,IF($EV61>=$CQ$19,-1/(24*$FY$28*$GA$28)*($CT$19-$CR$19)/($CS$19-$CQ$19)*($EV61-$CQ$19)^4,0))))) -> --- | DI61: =IF($CQ$19=$CS$19,"---",IF(AND($CQ$19="",$CR$19="",$CS$19="",$CT$19=""),"---",(IF($EV61>=$CS$19,$CR$19/(24*$FY$28*$GA$28)*(($EV61-$CQ$19)^4-($EV61-$CS$19)^4),IF($EV61>=$CQ$19,$CR$19/(24*$FY$28*$GA$28)*($EV61-$CQ$19)^4,0)))+(IF($EV61>=$CS$19,1/(120*$FY$28*$GA$28)*($CT$19-$CR$19)/($CS$19-$CQ$19)*(($EV61-$CQ$19)^5-($EV61-$CS$19)^5)-($CT$19-$CR$19)/(24*$FY$28*$GA$28)*($EV61-$CS$19)^4,IF($EV61>=$CQ$19,1/(120*$FY$28*$GA$28)*($CT$19-$CR$19)/($CS$19-$CQ$19)*($EV61-$CQ$19)^5,0))))) -> --- | DJ61: =IF($CU$19=$CW$19,"---",IF(AND($CU$19="",$CV$19="",$CW$19="",$CX$19=""),"---",(-$CV$19*($GB$28-$CU$19-($GB$28-$CW$19)))+(-1/2*($CX$19-$CV$19)/($CW$19-$CU$19)*(($GB$28-$CU$19)^2-($GB$28-$CW$19)^2)+($CX$19-$CV$19)*($GB$28-$CW$19)))) -> --- | DK61: =IF($CU$19=$CW$19,"---",IF(AND($CU$19="",$CV$19="",$CW$19="",$CX$19=""),"---",(-$CV$19/2*(($GB$28-$CU$19)^2-($GB$28-$CW$19)^2))+(-1/6*($CX$19-$CV$19)/($CW$19-$CU$19)*(($GB$28-$CU$19)^3-($GB$28-$CW$19)^3)+($CX$19-$CV$19)/2*($GB$28-$CW$19)^2))) -> --- | DL61: =IF($CU$19=$CW$19,"---",IF(AND($CU$19="",$CV$19="",$CW$19="",$CX$19=""),"---",(-$CV$19/(6*$FY$28*$GA$28)*(($GB$28-$CU$19)^3-($GB$28-$CW$19)^3))+(-1/(24*$FY$28*$GA$28)*($CX$19-$CV$19)/($CW$19-$CU$19)*(($GB$28-$CU$19)^4-($GB$28-$CW$19)^4)+($CX$19-$CV$19)/(6*$FY$28*$GA$28)*($GB$28-$CW$19)^3))) -> --- | DM61: =IF($CU$19=$CW$19,"---",IF(AND($CU$19="",$CV$19="",$CW$19="",$CX$19=""),"---",($CV$19/(24*$FY$28*$GA$28)*(($GB$28-$CU$19)^4-($GB$28-$CW$19)^4))+(1/(120*$FY$28*$GA$28)*($CX$19-$CV$19)/($CW$19-$CU$19)*(($GB$28-$CU$19)^5-($GB$28-$CW$19)^5)-($CX$19-$CV$19)/(24*$FY$28*$GA$28)*($GB$28-$CW$19)^4))) -> --- | DN61: =IF($CU$19=$CW$19,"---",IF(AND($CU$19="",$CV$19="",$CW$19="",$CX$19=""),"---",(IF($EV61>=$CW$19,-$CV$19*($EV61-$CU$19-($EV61-$CW$19)),IF($EV61>=$CU$19,-$CV$19*($EV61-$CU$19),0)))+(IF($EV61>=$CW$19,-1/2*($CX$19-$CV$19)/($CW$19-$CU$19)*(($EV61-$CU$19)^2-($EV61-$CW$19)^2)+($CX$19-$CV$19)*($EV61-$CW$19),IF($EV61>=$CU$19,-1/2*($CX$19-$CV$19)/($CW$19-$CU$19)*($EV61-$CU$19)^2,0))))) -> --- | DO61: =IF($CU$19=$CW$19,"---",IF(AND($CU$19="",$CV$19="",$CW$19="",$CX$19=""),"---",(IF($EV61>=$CW$19,-$CV$19/2*(($EV61-$CU$19)^2-($EV61-$CW$19)^2),IF($EV61>=$CU$19,-$CV$19/2*($EV61-$CU$19)^2,0)))+(IF($EV61>=$CW$19,-1/6*($CX$19-$CV$19)/($CW$19-$CU$19)*(($EV61-$CU$19)^3-($EV61-$CW$19)^3)+($CX$19-$CV$19)/2*($EV61-$CW$19)^2,IF($EV61>=$CU$19,-1/6*($CX$19-$CV$19)/($CW$19-$CU$19)*($EV61-$CU$19)^3,0))))) -> --- | DP61: =IF($CU$19=$CW$19,"---",IF(AND($CU$19="",$CV$19="",$CW$19="",$CX$19=""),"---",(IF($EV61>=$CW$19,-$CV$19/(6*$FY$28*$GA$28)*(($EV61-$CU$19)^3-($EV61-$CW$19)^3),IF($EV61>=$CU$19,-$CV$19/(6*$FY$28*$GA$28)*($EV61-$CU$19)^3,0)))+(IF($EV61>=$CW$19,-1/(24*$FY$28*$GA$28)*($CX$19-$CV$19)/($CW$19-$CU$19)*(($EV61-$CU$19)^4-($EV61-$CW$19)^4)+($CX$19-$CV$19)/(6*$FY$28*$GA$28)*($EV61-$CW$19)^3,IF($EV61>=$CU$19,-1/(24*$FY$28*$GA$28)*($CX$19-$CV$19)/($CW$19-$CU$19)*($EV61-$CU$19)^4,0))))) -> --- | DQ61: =IF($CU$19=$CW$19,"---",IF(AND($CU$19="",$CV$19="",$CW$19="",$CX$19=""),"---",(IF($EV61>=$CW$19,$CV$19/(24*$FY$28*$GA$28)*(($EV61-$CU$19)^4-($EV61-$CW$19)^4),IF($EV61>=$CU$19,$CV$19/(24*$FY$28*$GA$28)*($EV61-$CU$19)^4,0)))+(IF($EV61>=$CW$19,1/(120*$FY$28*$GA$28)*($CX$19-$CV$19)/($CW$19-$CU$19)*(($EV61-$CU$19)^5-($EV61-$CW$19)^5)-($CX$19-$CV$19)/(24*$FY$28*$GA$28)*($EV61-$CW$19)^4,IF($EV61>=$CU$19,1/(120*$FY$28*$GA$28)*($CX$19-$CV$19)/($CW$19-$CU$19)*($EV61-$CU$19)^5,0))))) -> --- | DR61: =-$CF$34+-$CH$34+-$CJ$34+-$CL$34+-$CN$34+-$CP$34+-$CR$34+-$CT$34+-$CV$34+-$CX$34 -> 0 | DS61: =-$CF$34*($GB$28-$CE$34)+-$CH$34*($GB$28-$CG$34)+-$CJ$34*($GB$28-$CI$34)+-$CL$34*($GB$28-$CK$34)+-$CN$34*($GB$28-$CM$34)+-$CP$34*($GB$28-$CO$34)+-$CR$34*($GB$28-$CQ$34)+-$CT$34*($GB$28-$CS$34)+-$CV$34*($GB$28-$CU$34)+-$CX$34*($GB$28-$CW$34) -> 0 | DT61: =-$CF$34*($GB$28-$CE$34)^2/(2*$FY$28*$GA$28)+-$CH$34*($GB$28-$CG$34)^2/(2*$FY$28*$GA$28)+-$CJ$34*($GB$28-$CI$34)^2/(2*$FY$28*$GA$28)+-$CL$34*($GB$28-$CK$34)^2/(2*$FY$28*$GA$28)+-$CN$34*($GB$28-$CM$34)^2/(2*$FY$28*$GA$28)+-$CP$34*($GB$28-$CO$34)^2/(2*$FY$28*$GA$28)+-$CR$34*($GB$28-$CQ$34)^2/(2*$FY$28*$GA$28)+-$CT$34*($GB$28-$CS$34)^2/(2*$FY$28*$GA$28)+-$CV$34*($GB$28-$CU$34)^2/(2*$FY$28*$GA$28)+-$CX$34*($GB$28-$CW$34)^2/(2*$FY$28*$GA$28) -> 0 | DU61: =$CF$34*($GB$28-$CE$34)^3/(6*$FY$28*$GA$28)+$CH$34*($GB$28-$CG$34)^3/(6*$FY$28*$GA$28)+$CJ$34*($GB$28-$CI$34)^3/(6*$FY$28*$GA$28)+$CL$34*($GB$28-$CK$34)^3/(6*$FY$28*$GA$28)+$CN$34*($GB$28-$CM$34)^3/(6*$FY$28*$GA$28)+$CP$34*($GB$28-$CO$34)^3/(6*$FY$28*$GA$28)+$CR$34*($GB$28-$CQ$34)^3/(6*$FY$28*$GA$28)+$CT$34*($GB$28-$CS$34)^3/(6*$FY$28*$GA$28)+$CV$34*($GB$28-$CU$34)^3/(6*$FY$28*$GA$28)+$CX$34*($GB$28-$CW$34)^3/(6*$FY$28*$GA$28) -> 0 | DV61: =IF($EV59>$CE$34,-$CF$34,0)+IF($EV59>$CG$34,-$CH$34,0)+IF($EV59>$CI$34,-$CJ$34,0)+IF($EV59>$CK$34,-$CL$34,0)+IF($EV59>$CM$34,-$CN$34,0)+IF($EV59>$CO$34,-$CP$34,0)+IF($EV59>$CQ$34,-$CR$34,0)+IF($EV59>$CS$34,-$CT$34,0)+IF($EV59>$CU$34,-$CV$34,0)+IF($EV59>$CW$34,-$CX$34,0) -> 0 | DW61: =IF($EV59>$CE$34,-$CF$34*($EV59-$CE$34),0)+IF($EV59>$CG$34,-$CH$34*($EV59-$CG$34),0)+IF($EV59>$CI$34,-$CJ$34*($EV59-$CI$34),0)+IF($EV59>$CK$34,-$CL$34*($EV59-$CK$34),0)+IF($EV59>$CM$34,-$CN$34*($EV59-$CM$34),0)+IF($EV59>$CO$34,-$CP$34*($EV59-$CO$34),0)+IF($EV59>$CQ$34,-$CR$34*($EV59-$CQ$34),0)+IF($EV59>$CS$34,-$CT$34*($EV59-$CS$34),0)+IF($EV59>$CU$34,-$CV$34*($EV59-$CU$34),0)+IF($EV59>$CW$34,-$CX$34*($EV59-$CW$34),0) -> 0 | DX61: =IF($EV59>$CE$34,-$CF$34*($EV59-$CE$34)^2/(2*$FY$28*$GA$28),0)+IF($EV59>$CG$34,-$CH$34*($EV59-$CG$34)^2/(2*$FY$28*$GA$28),0)+IF($EV59>$CI$34,-$CJ$34*($EV59-$CI$34)^2/(2*$FY$28*$GA$28),0)+IF($EV59>$CK$34,-$CL$34*($EV59-$CK$34)^2/(2*$FY$28*$GA$28),0)+IF($EV59>$CM$34,-$CN$34*($EV59-$CM$34)^2/(2*$FY$28*$GA$28),0)+IF($EV59>$CO$34,-$CP$34*($EV59-$CO$34)^2/(2*$FY$28*$GA$28),0)+IF($EV59>$CQ$34,-$CR$34*($EV59-$CQ$34)^2/(2*$FY$28*$GA$28),0)+IF($EV59>$CS$34,-$CT$34*($EV59-$CS$34)^2/(2*$FY$28*$GA$28),0)+IF($EV59>$CU$34,-$CV$34*($EV59-$CU$34)^2/(2*$FY$28*$GA$28),0)+IF($EV59>$CW$34,-$CX$34*($EV59-$CW$34)^2/(2*$FY$28*$GA$28),0) -> 0 | DY61: =IF($EV59>$CE$34,$CF$34*($EV59-$CE$34)^3/(6*$FY$28*$GA$28),0)+IF($EV59>$CG$34,$CH$34*($EV59-$CG$34)^3/(6*$FY$28*$GA$28),0)+IF($EV59>$CI$34,$CJ$34*($EV59-$CI$34)^3/(6*$FY$28*$GA$28),0)+IF($EV59>$CK$34,$CL$34*($EV59-$CK$34)^3/(6*$FY$28*$GA$28),0)+IF($EV59>$CM$34,$CN$34*($EV59-$CM$34)^3/(6*$FY$28*$GA$28),0)+IF($EV59>$CO$34,$CP$34*($EV59-$CO$34)^3/(6*$FY$28*$GA$28),0)+IF($EV59>$CQ$34,$CR$34*($EV59-$CQ$34)^3/(6*$FY$28*$GA$28),0)+IF($EV59>$CS$34,$CT$34*($EV59-$CS$34)^3/(6*$FY$28*$GA$28),0)+IF($EV59>$CU$34,$CV$34*($EV59-$CU$34)^3/(6*$FY$28*$GA$28),0)+IF($EV59>$CW$34,$CX$34*($EV59-$CW$34)^3/(6*$FY$28*$GA$28),0) -> 0 | DZ61: =0+0+0+0 -> 0 | EA61: 0 | EB61: 0 | EC61: 0 | ED61: 0 | EE61: 0 | EF61: 0 | EG61: 0 | EH61: 16.78188776 | EI61: 155.5658307 | EJ61: 4.886528505e-05 | EK61: -0.0001982282494 | EL61: 0 | EM61: 0 | EN61: 0 | EO61: 0 | EP61: =-12*$FY$28*$GA$28/$GB$28^3*$EK61-6*$FY$28*$GA$28/$GB$28^2*$EJ61 -> -8.849695072 | EQ61: =6*$FY$28*$GA$28/$GB$28^2*$EK61+2*$FY$28*$GA$28/$GB$28*$EJ61 -> 29.9901308 | ER61: =0 -> 0 | ES61: =0 -> 0 | ET61: =$EP61+$EL61 -> -8.849695072 | EU61: 29.9901308 | EV61: =0 -> 0 | EW61: Member #2(Y) Axial(L): | FF61: W36x256 | FG61: 75.4 | FH61: 16800 | FI61: 528 | FJ61: 486.45 | FK61: 699268.8 | FL61: 21977.02 | FW61: 3 | FX61: X-Global | FY61: 0 | FZ61: 0 | GA61: 0 | GB61: 0 | GC61: 0 | GD61: 0 | GE61: 0 | GF61: 0 | GG61: 0 | GH61: 0
H62: Factor of Safety (Dead) | S62: 1.4 | BE62: 4 | BF62: X-Global | BG62: =P87/AB27 -> 0 | BH62: 0 | BI62: =T87/AB27 -> 0 | BJ62: 0 | BK62: =X87/AB27 -> 0 | BL62: 0 | BM62: =P97/AB27 -> 0 | BN62: 0 | BO62: =T97/AB27 -> 0 | BP62: 0 | CC62: Member #2(Y) Axial(R): | CD62: =$CD$61 -> 8.015229976 | CE62: =$CE$61 -> 72.58296908 | CF62: =$CF$61 -> 2.068119513e-05 | CG62: =$CG$61 -> -7.369815542e-05 | CH62: =IF($CE$19=$CG$19,"---",IF(AND($CE$19="",$CF$19="",$CG$19="",$CH$19=""),"---",(IF($EV62>=$CG$19,-$CF$19*($EV62-$CE$19-($EV62-$CG$19)),IF($EV62>=$CE$19,-$CF$19*($EV62-$CE$19),0)))+(IF($EV62>=$CG$19,-1/2*($CH$19-$CF$19)/($CG$19-$CE$19)*(($EV62-$CE$19)^2-($EV62-$CG$19)^2)+($CH$19-$CF$19)*($EV62-$CG$19),IF($EV62>=$CE$19,-1/2*($CH$19-$CF$19)/($CG$19-$CE$19)*($EV62-$CE$19)^2,0))))) -> 8.015229976 | CI62: =IF($CE$19=$CG$19,"---",IF(AND($CE$19="",$CF$19="",$CG$19="",$CH$19=""),"---",(IF($EV62>=$CG$19,-$CF$19/2*(($EV62-$CE$19)^2-($EV62-$CG$19)^2),IF($EV62>=$CE$19,-$CF$19/2*($EV62-$CE$19)^2,0)))+(IF($EV62>=$CG$19,-1/6*($CH$19-$CF$19)/($CG$19-$CE$19)*(($EV62-$CE$19)^3-($EV62-$CG$19)^3)+($CH$19-$CF$19)/2*($EV62-$CG$19)^2,IF($EV62>=$CE$19,-1/6*($CH$19-$CF$19)/($CG$19-$CE$19)*($EV62-$CE$19)^3,0))))) -> 72.58296908 | CJ62: =IF($CE$19=$CG$19,"---",IF(AND($CE$19="",$CF$19="",$CG$19="",$CH$19=""),"---",(IF($EV62>=$CG$19,-$CF$19/(6*$FY$28*$GA$28)*(($EV62-$CE$19)^3-($EV62-$CG$19)^3),IF($EV62>=$CE$19,-$CF$19/(6*$FY$28*$GA$28)*($EV62-$CE$19)^3,0)))+(IF($EV62>=$CG$19,-1/(24*$FY$28*$GA$28)*($CH$19-$CF$19)/($CG$19-$CE$19)*(($EV62-$CE$19)^4-($EV62-$CG$19)^4)+($CH$19-$CF$19)/(6*$FY$28*$GA$28)*($EV62-$CG$19)^3,IF($EV62>=$CE$19,-1/(24*$FY$28*$GA$28)*($CH$19-$CF$19)/($CG$19-$CE$19)*($EV62-$CE$19)^4,0))))) -> 2.068119513e-05 | CK62: =IF($CE$19=$CG$19,"---",IF(AND($CE$19="",$CF$19="",$CG$19="",$CH$19=""),"---",(IF($EV62>=$CG$19,$CF$19/(24*$FY$28*$GA$28)*(($EV62-$CE$19)^4-($EV62-$CG$19)^4),IF($EV62>=$CE$19,$CF$19/(24*$FY$28*$GA$28)*($EV62-$CE$19)^4,0)))+(IF($EV62>=$CG$19,1/(120*$FY$28*$GA$28)*($CH$19-$CF$19)/($CG$19-$CE$19)*(($EV62-$CE$19)^5-($EV62-$CG$19)^5)-($CH$19-$CF$19)/(24*$FY$28*$GA$28)*($EV62-$CG$19)^4,IF($EV62>=$CE$19,1/(120*$FY$28*$GA$28)*($CH$19-$CF$19)/($CG$19-$CE$19)*($EV62-$CE$19)^5,0))))) -> -7.369815542e-05 | CL62: =$CL$61 -> 8.766657786 | CM62: =$CM$61 -> 82.98286167 | CN62: =$CN$61 -> 2.818408993e-05 | CO62: =$CO$61 -> -0.000124530094 | CP62: =IF($CI$19=$CK$19,"---",IF(AND($CI$19="",$CJ$19="",$CK$19="",$CL$19=""),"---",(IF($EV62>=$CK$19,-$CJ$19*($EV62-$CI$19-($EV62-$CK$19)),IF($EV62>=$CI$19,-$CJ$19*($EV62-$CI$19),0)))+(IF($EV62>=$CK$19,-1/2*($CL$19-$CJ$19)/($CK$19-$CI$19)*(($EV62-$CI$19)^2-($EV62-$CK$19)^2)+($CL$19-$CJ$19)*($EV62-$CK$19),IF($EV62>=$CI$19,-1/2*($CL$19-$CJ$19)/($CK$19-$CI$19)*($EV62-$CI$19)^2,0))))) -> 8.766657786 | CQ62: =IF($CI$19=$CK$19,"---",IF(AND($CI$19="",$CJ$19="",$CK$19="",$CL$19=""),"---",(IF($EV62>=$CK$19,-$CJ$19/2*(($EV62-$CI$19)^2-($EV62-$CK$19)^2),IF($EV62>=$CI$19,-$CJ$19/2*($EV62-$CI$19)^2,0)))+(IF($EV62>=$CK$19,-1/6*($CL$19-$CJ$19)/($CK$19-$CI$19)*(($EV62-$CI$19)^3-($EV62-$CK$19)^3)+($CL$19-$CJ$19)/2*($EV62-$CK$19)^2,IF($EV62>=$CI$19,-1/6*($CL$19-$CJ$19)/($CK$19-$CI$19)*($EV62-$CI$19)^3,0))))) -> 82.98286167 | CR62: =IF($CI$19=$CK$19,"---",IF(AND($CI$19="",$CJ$19="",$CK$19="",$CL$19=""),"---",(IF($EV62>=$CK$19,-$CJ$19/(6*$FY$28*$GA$28)*(($EV62-$CI$19)^3-($EV62-$CK$19)^3),IF($EV62>=$CI$19,-$CJ$19/(6*$FY$28*$GA$28)*($EV62-$CI$19)^3,0)))+(IF($EV62>=$CK$19,-1/(24*$FY$28*$GA$28)*($CL$19-$CJ$19)/($CK$19-$CI$19)*(($EV62-$CI$19)^4-($EV62-$CK$19)^4)+($CL$19-$CJ$19)/(6*$FY$28*$GA$28)*($EV62-$CK$19)^3,IF($EV62>=$CI$19,-1/(24*$FY$28*$GA$28)*($CL$19-$CJ$19)/($CK$19-$CI$19)*($EV62-$CI$19)^4,0))))) -> 2.818408993e-05 | CS62: =IF($CI$19=$CK$19,"---",IF(AND($CI$19="",$CJ$19="",$CK$19="",$CL$19=""),"---",(IF($EV62>=$CK$19,$CJ$19/(24*$FY$28*$GA$28)*(($EV62-$CI$19)^4-($EV62-$CK$19)^4),IF($EV62>=$CI$19,$CJ$19/(24*$FY$28*$GA$28)*($EV62-$CI$19)^4,0)))+(IF($EV62>=$CK$19,1/(120*$FY$28*$GA$28)*($CL$19-$CJ$19)/($CK$19-$CI$19)*(($EV62-$CI$19)^5-($EV62-$CK$19)^5)-($CL$19-$CJ$19)/(24*$FY$28*$GA$28)*($EV62-$CK$19)^4,IF($EV62>=$CI$19,1/(120*$FY$28*$GA$28)*($CL$19-$CJ$19)/($CK$19-$CI$19)*($EV62-$CI$19)^5,0))))) -> -0.000124530094 | CT62: =$CT$61 -> --- | CU62: =$CU$61 -> --- | CV62: =$CV$61 -> --- | CW62: =$CW$61 -> --- | CX62: =IF($CM$19=$CO$19,"---",IF(AND($CM$19="",$CN$19="",$CO$19="",$CP$19=""),"---",(IF($EV62>=$CO$19,-$CN$19*($EV62-$CM$19-($EV62-$CO$19)),IF($EV62>=$CM$19,-$CN$19*($EV62-$CM$19),0)))+(IF($EV62>=$CO$19,-1/2*($CP$19-$CN$19)/($CO$19-$CM$19)*(($EV62-$CM$19)^2-($EV62-$CO$19)^2)+($CP$19-$CN$19)*($EV62-$CO$19),IF($EV62>=$CM$19,-1/2*($CP$19-$CN$19)/($CO$19-$CM$19)*($EV62-$CM$19)^2,0))))) -> --- | CY62: =IF($CM$19=$CO$19,"---",IF(AND($CM$19="",$CN$19="",$CO$19="",$CP$19=""),"---",(IF($EV62>=$CO$19,-$CN$19/2*(($EV62-$CM$19)^2-($EV62-$CO$19)^2),IF($EV62>=$CM$19,-$CN$19/2*($EV62-$CM$19)^2,0)))+(IF($EV62>=$CO$19,-1/6*($CP$19-$CN$19)/($CO$19-$CM$19)*(($EV62-$CM$19)^3-($EV62-$CO$19)^3)+($CP$19-$CN$19)/2*($EV62-$CO$19)^2,IF($EV62>=$CM$19,-1/6*($CP$19-$CN$19)/($CO$19-$CM$19)*($EV62-$CM$19)^3,0))))) -> --- | CZ62: =IF($CM$19=$CO$19,"---",IF(AND($CM$19="",$CN$19="",$CO$19="",$CP$19=""),"---",(IF($EV62>=$CO$19,-$CN$19/(6*$FY$28*$GA$28)*(($EV62-$CM$19)^3-($EV62-$CO$19)^3),IF($EV62>=$CM$19,-$CN$19/(6*$FY$28*$GA$28)*($EV62-$CM$19)^3,0)))+(IF($EV62>=$CO$19,-1/(24*$FY$28*$GA$28)*($CP$19-$CN$19)/($CO$19-$CM$19)*(($EV62-$CM$19)^4-($EV62-$CO$19)^4)+($CP$19-$CN$19)/(6*$FY$28*$GA$28)*($EV62-$CO$19)^3,IF($EV62>=$CM$19,-1/(24*$FY$28*$GA$28)*($CP$19-$CN$19)/($CO$19-$CM$19)*($EV62-$CM$19)^4,0))))) -> --- | DA62: =IF($CM$19=$CO$19,"---",IF(AND($CM$19="",$CN$19="",$CO$19="",$CP$19=""),"---",(IF($EV62>=$CO$19,$CN$19/(24*$FY$28*$GA$28)*(($EV62-$CM$19)^4-($EV62-$CO$19)^4),IF($EV62>=$CM$19,$CN$19/(24*$FY$28*$GA$28)*($EV62-$CM$19)^4,0)))+(IF($EV62>=$CO$19,1/(120*$FY$28*$GA$28)*($CP$19-$CN$19)/($CO$19-$CM$19)*(($EV62-$CM$19)^5-($EV62-$CO$19)^5)-($CP$19-$CN$19)/(24*$FY$28*$GA$28)*($EV62-$CO$19)^4,IF($EV62>=$CM$19,1/(120*$FY$28*$GA$28)*($CP$19-$CN$19)/($CO$19-$CM$19)*($EV62-$CM$19)^5,0))))) -> --- | DB62: =$DB$61 -> --- | DC62: =$DC$61 -> --- | DD62: =$DD$61 -> --- | DE62: =$DE$61 -> --- | DF62: =IF($CQ$19=$CS$19,"---",IF(AND($CQ$19="",$CR$19="",$CS$19="",$CT$19=""),"---",(IF($EV62>=$CS$19,-$CR$19*($EV62-$CQ$19-($EV62-$CS$19)),IF($EV62>=$CQ$19,-$CR$19*($EV62-$CQ$19),0)))+(IF($EV62>=$CS$19,-1/2*($CT$19-$CR$19)/($CS$19-$CQ$19)*(($EV62-$CQ$19)^2-($EV62-$CS$19)^2)+($CT$19-$CR$19)*($EV62-$CS$19),IF($EV62>=$CQ$19,-1/2*($CT$19-$CR$19)/($CS$19-$CQ$19)*($EV62-$CQ$19)^2,0))))) -> --- | DG62: =IF($CQ$19=$CS$19,"---",IF(AND($CQ$19="",$CR$19="",$CS$19="",$CT$19=""),"---",(IF($EV62>=$CS$19,-$CR$19/2*(($EV62-$CQ$19)^2-($EV62-$CS$19)^2),IF($EV62>=$CQ$19,-$CR$19/2*($EV62-$CQ$19)^2,0)))+(IF($EV62>=$CS$19,-1/6*($CT$19-$CR$19)/($CS$19-$CQ$19)*(($EV62-$CQ$19)^3-($EV62-$CS$19)^3)+($CT$19-$CR$19)/2*($EV62-$CS$19)^2,IF($EV62>=$CQ$19,-1/6*($CT$19-$CR$19)/($CS$19-$CQ$19)*($EV62-$CQ$19)^3,0))))) -> --- | DH62: =IF($CQ$19=$CS$19,"---",IF(AND($CQ$19="",$CR$19="",$CS$19="",$CT$19=""),"---",(IF($EV62>=$CS$19,-$CR$19/(6*$FY$28*$GA$28)*(($EV62-$CQ$19)^3-($EV62-$CS$19)^3),IF($EV62>=$CQ$19,-$CR$19/(6*$FY$28*$GA$28)*($EV62-$CQ$19)^3,0)))+(IF($EV62>=$CS$19,-1/(24*$FY$28*$GA$28)*($CT$19-$CR$19)/($CS$19-$CQ$19)*(($EV62-$CQ$19)^4-($EV62-$CS$19)^4)+($CT$19-$CR$19)/(6*$FY$28*$GA$28)*($EV62-$CS$19)^3,IF($EV62>=$CQ$19,-1/(24*$FY$28*$GA$28)*($CT$19-$CR$19)/($CS$19-$CQ$19)*($EV62-$CQ$19)^4,0))))) -> --- | DI62: =IF($CQ$19=$CS$19,"---",IF(AND($CQ$19="",$CR$19="",$CS$19="",$CT$19=""),"---",(IF($EV62>=$CS$19,$CR$19/(24*$FY$28*$GA$28)*(($EV62-$CQ$19)^4-($EV62-$CS$19)^4),IF($EV62>=$CQ$19,$CR$19/(24*$FY$28*$GA$28)*($EV62-$CQ$19)^4,0)))+(IF($EV62>=$CS$19,1/(120*$FY$28*$GA$28)*($CT$19-$CR$19)/($CS$19-$CQ$19)*(($EV62-$CQ$19)^5-($EV62-$CS$19)^5)-($CT$19-$CR$19)/(24*$FY$28*$GA$28)*($EV62-$CS$19)^4,IF($EV62>=$CQ$19,1/(120*$FY$28*$GA$28)*($CT$19-$CR$19)/($CS$19-$CQ$19)*($EV62-$CQ$19)^5,0))))) -> --- | DJ62: =$DJ$61 -> --- | DK62: =$DK$61 -> --- | DL62: =$DL$61 -> --- | DM62: =$DM$61 -> --- | DN62: =IF($CU$19=$CW$19,"---",IF(AND($CU$19="",$CV$19="",$CW$19="",$CX$19=""),"---",(IF($EV62>=$CW$19,-$CV$19*($EV62-$CU$19-($EV62-$CW$19)),IF($EV62>=$CU$19,-$CV$19*($EV62-$CU$19),0)))+(IF($EV62>=$CW$19,-1/2*($CX$19-$CV$19)/($CW$19-$CU$19)*(($EV62-$CU$19)^2-($EV62-$CW$19)^2)+($CX$19-$CV$19)*($EV62-$CW$19),IF($EV62>=$CU$19,-1/2*($CX$19-$CV$19)/($CW$19-$CU$19)*($EV62-$CU$19)^2,0))))) -> --- | DO62: =IF($CU$19=$CW$19,"---",IF(AND($CU$19="",$CV$19="",$CW$19="",$CX$19=""),"---",(IF($EV62>=$CW$19,-$CV$19/2*(($EV62-$CU$19)^2-($EV62-$CW$19)^2),IF($EV62>=$CU$19,-$CV$19/2*($EV62-$CU$19)^2,0)))+(IF($EV62>=$CW$19,-1/6*($CX$19-$CV$19)/($CW$19-$CU$19)*(($EV62-$CU$19)^3-($EV62-$CW$19)^3)+($CX$19-$CV$19)/2*($EV62-$CW$19)^2,IF($EV62>=$CU$19,-1/6*($CX$19-$CV$19)/($CW$19-$CU$19)*($EV62-$CU$19)^3,0))))) -> --- | DP62: =IF($CU$19=$CW$19,"---",IF(AND($CU$19="",$CV$19="",$CW$19="",$CX$19=""),"---",(IF($EV62>=$CW$19,-$CV$19/(6*$FY$28*$GA$28)*(($EV62-$CU$19)^3-($EV62-$CW$19)^3),IF($EV62>=$CU$19,-$CV$19/(6*$FY$28*$GA$28)*($EV62-$CU$19)^3,0)))+(IF($EV62>=$CW$19,-1/(24*$FY$28*$GA$28)*($CX$19-$CV$19)/($CW$19-$CU$19)*(($EV62-$CU$19)^4-($EV62-$CW$19)^4)+($CX$19-$CV$19)/(6*$FY$28*$GA$28)*($EV62-$CW$19)^3,IF($EV62>=$CU$19,-1/(24*$FY$28*$GA$28)*($CX$19-$CV$19)/($CW$19-$CU$19)*($EV62-$CU$19)^4,0))))) -> --- | DQ62: =IF($CU$19=$CW$19,"---",IF(AND($CU$19="",$CV$19="",$CW$19="",$CX$19=""),"---",(IF($EV62>=$CW$19,$CV$19/(24*$FY$28*$GA$28)*(($EV62-$CU$19)^4-($EV62-$CW$19)^4),IF($EV62>=$CU$19,$CV$19/(24*$FY$28*$GA$28)*($EV62-$CU$19)^4,0)))+(IF($EV62>=$CW$19,1/(120*$FY$28*$GA$28)*($CX$19-$CV$19)/($CW$19-$CU$19)*(($EV62-$CU$19)^5-($EV62-$CW$19)^5)-($CX$19-$CV$19)/(24*$FY$28*$GA$28)*($EV62-$CW$19)^4,IF($EV62>=$CU$19,1/(120*$FY$28*$GA$28)*($CX$19-$CV$19)/($CW$19-$CU$19)*($EV62-$CU$19)^5,0))))) -> --- | DR62: =$DR$61 -> 0 | DS62: =$DS$61 -> 0 | DT62: =$DT$61 -> 0 | DU62: =$DU$61 -> 0 | DV62: =IF($EV60>$CE$34,-$CF$34,0)+IF($EV60>$CG$34,-$CH$34,0)+IF($EV60>$CI$34,-$CJ$34,0)+IF($EV60>$CK$34,-$CL$34,0)+IF($EV60>$CM$34,-$CN$34,0)+IF($EV60>$CO$34,-$CP$34,0)+IF($EV60>$CQ$34,-$CR$34,0)+IF($EV60>$CS$34,-$CT$34,0)+IF($EV60>$CU$34,-$CV$34,0)+IF($EV60>$CW$34,-$CX$34,0) -> 0 | DW62: =IF($EV60>$CE$34,-$CF$34*($EV60-$CE$34),0)+IF($EV60>$CG$34,-$CH$34*($EV60-$CG$34),0)+IF($EV60>$CI$34,-$CJ$34*($EV60-$CI$34),0)+IF($EV60>$CK$34,-$CL$34*($EV60-$CK$34),0)+IF($EV60>$CM$34,-$CN$34*($EV60-$CM$34),0)+IF($EV60>$CO$34,-$CP$34*($EV60-$CO$34),0)+IF($EV60>$CQ$34,-$CR$34*($EV60-$CQ$34),0)+IF($EV60>$CS$34,-$CT$34*($EV60-$CS$34),0)+IF($EV60>$CU$34,-$CV$34*($EV60-$CU$34),0)+IF($EV60>$CW$34,-$CX$34*($EV60-$CW$34),0) -> 0 | DX62: =IF($EV60>$CE$34,-$CF$34*($EV60-$CE$34)^2/(2*$FY$28*$GA$28),0)+IF($EV60>$CG$34,-$CH$34*($EV60-$CG$34)^2/(2*$FY$28*$GA$28),0)+IF($EV60>$CI$34,-$CJ$34*($EV60-$CI$34)^2/(2*$FY$28*$GA$28),0)+IF($EV60>$CK$34,-$CL$34*($EV60-$CK$34)^2/(2*$FY$28*$GA$28),0)+IF($EV60>$CM$34,-$CN$34*($EV60-$CM$34)^2/(2*$FY$28*$GA$28),0)+IF($EV60>$CO$34,-$CP$34*($EV60-$CO$34)^2/(2*$FY$28*$GA$28),0)+IF($EV60>$CQ$34,-$CR$34*($EV60-$CQ$34)^2/(2*$FY$28*$GA$28),0)+IF($EV60>$CS$34,-$CT$34*($EV60-$CS$34)^2/(2*$FY$28*$GA$28),0)+IF($EV60>$CU$34,-$CV$34*($EV60-$CU$34)^2/(2*$FY$28*$GA$28),0)+IF($EV60>$CW$34,-$CX$34*($EV60-$CW$34)^2/(2*$FY$28*$GA$28),0) -> 0 | DY62: =IF($EV60>$CE$34,$CF$34*($EV60-$CE$34)^3/(6*$FY$28*$GA$28),0)+IF($EV60>$CG$34,$CH$34*($EV60-$CG$34)^3/(6*$FY$28*$GA$28),0)+IF($EV60>$CI$34,$CJ$34*($EV60-$CI$34)^3/(6*$FY$28*$GA$28),0)+IF($EV60>$CK$34,$CL$34*($EV60-$CK$34)^3/(6*$FY$28*$GA$28),0)+IF($EV60>$CM$34,$CN$34*($EV60-$CM$34)^3/(6*$FY$28*$GA$28),0)+IF($EV60>$CO$34,$CP$34*($EV60-$CO$34)^3/(6*$FY$28*$GA$28),0)+IF($EV60>$CQ$34,$CR$34*($EV60-$CQ$34)^3/(6*$FY$28*$GA$28),0)+IF($EV60>$CS$34,$CT$34*($EV60-$CS$34)^3/(6*$FY$28*$GA$28),0)+IF($EV60>$CU$34,$CV$34*($EV60-$CU$34)^3/(6*$FY$28*$GA$28),0)+IF($EV60>$CW$34,$CX$34*($EV60-$CW$34)^3/(6*$FY$28*$GA$28),0) -> 0 | DZ62: =$DZ$61 -> 0 | EA62: =$EA$61 -> 0 | EB62: =$EB$61 -> 0 | EC62: =$EC$61 -> 0 | ED62: =0+0+0+0 -> 0 | EE62: 0 | EF62: 0 | EG62: 0 | EH62: 16.78188776 | EI62: 155.5658307 | EJ62: 4.886528505e-05 | EK62: -0.0001982282494 | EL62: 16.78188776 | EM62: 155.5658307 | EN62: 4.886528506e-05 | EO62: -0.0001982282494 | EP62: =$EP$61 -> -8.849695072 | EQ62: =$EQ$61 -> 29.9901308 | ER62: =$ER$61 -> 0 | ES62: =$ES$61 -> 0 | ET62: =-($EP62+$EL62) -> -7.932192689 | EU62: 29.2012282 | EV62: =$GB$28+0.0000000001 -> 17.66781025 | EW62: Member #2(Y) Axial(R): | FF62: W36x245 | FG62: 72.1 | FH62: 16100 | FI62: 1010 | FJ62: 465.16 | FK62: 670132.6 | FL62: 42039.37 | FW62: 4 | FX62: X-Global | FY62: 0 | FZ62: 0 | GA62: 0 | GB62: 0 | GC62: 0 | GD62: 0 | GE62: 0 | GF62: 0 | GG62: 0 | GH62: 0
H63: Factor of Safety (Imposed) | S63: 1.6 | CC63: Member #2(X) FEM(L): | CD63: =IF($CE$20=$CG$20,"---",IF(AND($CE$20="",$CF$20="",$CG$20="",$CH$20=""),"---",(-$CF$20*($GB$28-$CE$20-($GB$28-$CG$20)))+(-1/2*($CH$20-$CF$20)/($CG$20-$CE$20)*(($GB$28-$CE$20)^2-($GB$28-$CG$20)^2)+($CH$20-$CF$20)*($GB$28-$CG$20)))) -> -10.6869733 | CE63: =IF($CE$20=$CG$20,"---",IF(AND($CE$20="",$CF$20="",$CG$20="",$CH$20=""),"---",(-$CF$20/2*(($GB$28-$CE$20)^2-($GB$28-$CG$20)^2))+(-1/6*($CH$20-$CF$20)/($CG$20-$CE$20)*(($GB$28-$CE$20)^3-($GB$28-$CG$20)^3)+($CH$20-$CF$20)/2*($GB$28-$CG$20)^2))) -> -77.78529819 | CF63: =IF($CE$20=$CG$20,"---",IF(AND($CE$20="",$CF$20="",$CG$20="",$CH$20=""),"---",(-$CF$20/(6*$FY$28*$GA$28)*(($GB$28-$CE$20)^3-($GB$28-$CG$20)^3))+(-1/(24*$FY$28*$GA$28)*($CH$20-$CF$20)/($CG$20-$CE$20)*(($GB$28-$CE$20)^4-($GB$28-$CG$20)^4)+($CH$20-$CF$20)/(6*$FY$28*$GA$28)*($GB$28-$CG$20)^3))) -> -2.05578143e-05 | CG63: =IF($CE$20=$CG$20,"---",IF(AND($CE$20="",$CF$20="",$CG$20="",$CH$20=""),"---",($CF$20/(24*$FY$28*$GA$28)*(($GB$28-$CE$20)^4-($GB$28-$CG$20)^4))+(1/(120*$FY$28*$GA$28)*($CH$20-$CF$20)/($CG$20-$CE$20)*(($GB$28-$CE$20)^5-($GB$28-$CG$20)^5)-($CH$20-$CF$20)/(24*$FY$28*$GA$28)*($GB$28-$CG$20)^4))) -> 7.171950625e-05 | CH63: =IF($CE$20=$CG$20,"---",IF(AND($CE$20="",$CF$20="",$CG$20="",$CH$20=""),"---",(IF($EV63>=$CG$20,-$CF$20*($EV63-$CE$20-($EV63-$CG$20)),IF($EV63>=$CE$20,-$CF$20*($EV63-$CE$20),0)))+(IF($EV63>=$CG$20,-1/2*($CH$20-$CF$20)/($CG$20-$CE$20)*(($EV63-$CE$20)^2-($EV63-$CG$20)^2)+($CH$20-$CF$20)*($EV63-$CG$20),IF($EV63>=$CE$20,-1/2*($CH$20-$CF$20)/($CG$20-$CE$20)*($EV63-$CE$20)^2,0))))) -> 0 | CI63: =IF($CE$20=$CG$20,"---",IF(AND($CE$20="",$CF$20="",$CG$20="",$CH$20=""),"---",(IF($EV63>=$CG$20,-$CF$20/2*(($EV63-$CE$20)^2-($EV63-$CG$20)^2),IF($EV63>=$CE$20,-$CF$20/2*($EV63-$CE$20)^2,0)))+(IF($EV63>=$CG$20,-1/6*($CH$20-$CF$20)/($CG$20-$CE$20)*(($EV63-$CE$20)^3-($EV63-$CG$20)^3)+($CH$20-$CF$20)/2*($EV63-$CG$20)^2,IF($EV63>=$CE$20,-1/6*($CH$20-$CF$20)/($CG$20-$CE$20)*($EV63-$CE$20)^3,0))))) -> 0 | CJ63: =IF($CE$20=$CG$20,"---",IF(AND($CE$20="",$CF$20="",$CG$20="",$CH$20=""),"---",(IF($EV63>=$CG$20,-$CF$20/(6*$FY$28*$GA$28)*(($EV63-$CE$20)^3-($EV63-$CG$20)^3),IF($EV63>=$CE$20,-$CF$20/(6*$FY$28*$GA$28)*($EV63-$CE$20)^3,0)))+(IF($EV63>=$CG$20,-1/(24*$FY$28*$GA$28)*($CH$20-$CF$20)/($CG$20-$CE$20)*(($EV63-$CE$20)^4-($EV63-$CG$20)^4)+($CH$20-$CF$20)/(6*$FY$28*$GA$28)*($EV63-$CG$20)^3,IF($EV63>=$CE$20,-1/(24*$FY$28*$GA$28)*($CH$20-$CF$20)/($CG$20-$CE$20)*($EV63-$CE$20)^4,0))))) -> 0 | CK63: =IF($CE$20=$CG$20,"---",IF(AND($CE$20="",$CF$20="",$CG$20="",$CH$20=""),"---",(IF($EV63>=$CG$20,$CF$20/(24*$FY$28*$GA$28)*(($EV63-$CE$20)^4-($EV63-$CG$20)^4),IF($EV63>=$CE$20,$CF$20/(24*$FY$28*$GA$28)*($EV63-$CE$20)^4,0)))+(IF($EV63>=$CG$20,1/(120*$FY$28*$GA$28)*($CH$20-$CF$20)/($CG$20-$CE$20)*(($EV63-$CE$20)^5-($EV63-$CG$20)^5)-($CH$20-$CF$20)/(24*$FY$28*$GA$28)*($EV63-$CG$20)^4,IF($EV63>=$CE$20,1/(120*$FY$28*$GA$28)*($CH$20-$CF$20)/($CG$20-$CE$20)*($EV63-$CE$20)^5,0))))) -> 0 | CL63: =IF($CI$20=$CK$20,"---",IF(AND($CI$20="",$CJ$20="",$CK$20="",$CL$20=""),"---",(-$CJ$20*($GB$28-$CI$20-($GB$28-$CK$20)))+(-1/2*($CL$20-$CJ$20)/($CK$20-$CI$20)*(($GB$28-$CI$20)^2-($GB$28-$CK$20)^2)+($CL$20-$CJ$20)*($GB$28-$CK$20)))) -> --- | CM63: =IF($CI$20=$CK$20,"---",IF(AND($CI$20="",$CJ$20="",$CK$20="",$CL$20=""),"---",(-$CJ$20/2*(($GB$28-$CI$20)^2-($GB$28-$CK$20)^2))+(-1/6*($CL$20-$CJ$20)/($CK$20-$CI$20)*(($GB$28-$CI$20)^3-($GB$28-$CK$20)^3)+($CL$20-$CJ$20)/2*($GB$28-$CK$20)^2))) -> --- | CN63: =IF($CI$20=$CK$20,"---",IF(AND($CI$20="",$CJ$20="",$CK$20="",$CL$20=""),"---",(-$CJ$20/(6*$FY$28*$GA$28)*(($GB$28-$CI$20)^3-($GB$28-$CK$20)^3))+(-1/(24*$FY$28*$GA$28)*($CL$20-$CJ$20)/($CK$20-$CI$20)*(($GB$28-$CI$20)^4-($GB$28-$CK$20)^4)+($CL$20-$CJ$20)/(6*$FY$28*$GA$28)*($GB$28-$CK$20)^3))) -> --- | CO63: =IF($CI$20=$CK$20,"---",IF(AND($CI$20="",$CJ$20="",$CK$20="",$CL$20=""),"---",($CJ$20/(24*$FY$28*$GA$28)*(($GB$28-$CI$20)^4-($GB$28-$CK$20)^4))+(1/(120*$FY$28*$GA$28)*($CL$20-$CJ$20)/($CK$20-$CI$20)*(($GB$28-$CI$20)^5-($GB$28-$CK$20)^5)-($CL$20-$CJ$20)/(24*$FY$28*$GA$28)*($GB$28-$CK$20)^4))) -> --- | CP63: =IF($CI$20=$CK$20,"---",IF(AND($CI$20="",$CJ$20="",$CK$20="",$CL$20=""),"---",(IF($EV63>=$CK$20,-$CJ$20*($EV63-$CI$20-($EV63-$CK$20)),IF($EV63>=$CI$20,-$CJ$20*($EV63-$CI$20),0)))+(IF($EV63>=$CK$20,-1/2*($CL$20-$CJ$20)/($CK$20-$CI$20)*(($EV63-$CI$20)^2-($EV63-$CK$20)^2)+($CL$20-$CJ$20)*($EV63-$CK$20),IF($EV63>=$CI$20,-1/2*($CL$20-$CJ$20)/($CK$20-$CI$20)*($EV63-$CI$20)^2,0))))) -> --- | CQ63: =IF($CI$20=$CK$20,"---",IF(AND($CI$20="",$CJ$20="",$CK$20="",$CL$20=""),"---",(IF($EV63>=$CK$20,-$CJ$20/2*(($EV63-$CI$20)^2-($EV63-$CK$20)^2),IF($EV63>=$CI$20,-$CJ$20/2*($EV63-$CI$20)^2,0)))+(IF($EV63>=$CK$20,-1/6*($CL$20-$CJ$20)/($CK$20-$CI$20)*(($EV63-$CI$20)^3-($EV63-$CK$20)^3)+($CL$20-$CJ$20)/2*($EV63-$CK$20)^2,IF($EV63>=$CI$20,-1/6*($CL$20-$CJ$20)/($CK$20-$CI$20)*($EV63-$CI$20)^3,0))))) -> --- | CR63: =IF($CI$20=$CK$20,"---",IF(AND($CI$20="",$CJ$20="",$CK$20="",$CL$20=""),"---",(IF($EV63>=$CK$20,-$CJ$20/(6*$FY$28*$GA$28)*(($EV63-$CI$20)^3-($EV63-$CK$20)^3),IF($EV63>=$CI$20,-$CJ$20/(6*$FY$28*$GA$28)*($EV63-$CI$20)^3,0)))+(IF($EV63>=$CK$20,-1/(24*$FY$28*$GA$28)*($CL$20-$CJ$20)/($CK$20-$CI$20)*(($EV63-$CI$20)^4-($EV63-$CK$20)^4)+($CL$20-$CJ$20)/(6*$FY$28*$GA$28)*($EV63-$CK$20)^3,IF($EV63>=$CI$20,-1/(24*$FY$28*$GA$28)*($CL$20-$CJ$20)/($CK$20-$CI$20)*($EV63-$CI$20)^4,0))))) -> --- | CS63: =IF($CI$20=$CK$20,"---",IF(AND($CI$20="",$CJ$20="",$CK$20="",$CL$20=""),"---",(IF($EV63>=$CK$20,$CJ$20/(24*$FY$28*$GA$28)*(($EV63-$CI$20)^4-($EV63-$CK$20)^4),IF($EV63>=$CI$20,$CJ$20/(24*$FY$28*$GA$28)*($EV63-$CI$20)^4,0)))+(IF($EV63>=$CK$20,1/(120*$FY$28*$GA$28)*($CL$20-$CJ$20)/($CK$20-$CI$20)*(($EV63-$CI$20)^5-($EV63-$CK$20)^5)-($CL$20-$CJ$20)/(24*$FY$28*$GA$28)*($EV63-$CK$20)^4,IF($EV63>=$CI$20,1/(120*$FY$28*$GA$28)*($CL$20-$CJ$20)/($CK$20-$CI$20)*($EV63-$CI$20)^5,0))))) -> --- | CT63: =IF($CM$20=$CO$20,"---",IF(AND($CM$20="",$CN$20="",$CO$20="",$CP$20=""),"---",(-$CN$20*($GB$28-$CM$20-($GB$28-$CO$20)))+(-1/2*($CP$20-$CN$20)/($CO$20-$CM$20)*(($GB$28-$CM$20)^2-($GB$28-$CO$20)^2)+($CP$20-$CN$20)*($GB$28-$CO$20)))) -> --- | CU63: =IF($CM$20=$CO$20,"---",IF(AND($CM$20="",$CN$20="",$CO$20="",$CP$20=""),"---",(-$CN$20/2*(($GB$28-$CM$20)^2-($GB$28-$CO$20)^2))+(-1/6*($CP$20-$CN$20)/($CO$20-$CM$20)*(($GB$28-$CM$20)^3-($GB$28-$CO$20)^3)+($CP$20-$CN$20)/2*($GB$28-$CO$20)^2))) -> --- | CV63: =IF($CM$20=$CO$20,"---",IF(AND($CM$20="",$CN$20="",$CO$20="",$CP$20=""),"---",(-$CN$20/(6*$FY$28*$GA$28)*(($GB$28-$CM$20)^3-($GB$28-$CO$20)^3))+(-1/(24*$FY$28*$GA$28)*($CP$20-$CN$20)/($CO$20-$CM$20)*(($GB$28-$CM$20)^4-($GB$28-$CO$20)^4)+($CP$20-$CN$20)/(6*$FY$28*$GA$28)*($GB$28-$CO$20)^3))) -> --- | CW63: =IF($CM$20=$CO$20,"---",IF(AND($CM$20="",$CN$20="",$CO$20="",$CP$20=""),"---",($CN$20/(24*$FY$28*$GA$28)*(($GB$28-$CM$20)^4-($GB$28-$CO$20)^4))+(1/(120*$FY$28*$GA$28)*($CP$20-$CN$20)/($CO$20-$CM$20)*(($GB$28-$CM$20)^5-($GB$28-$CO$20)^5)-($CP$20-$CN$20)/(24*$FY$28*$GA$28)*($GB$28-$CO$20)^4))) -> --- | CX63: =IF($CM$20=$CO$20,"---",IF(AND($CM$20="",$CN$20="",$CO$20="",$CP$20=""),"---",(IF($EV63>=$CO$20,-$CN$20*($EV63-$CM$20-($EV63-$CO$20)),IF($EV63>=$CM$20,-$CN$20*($EV63-$CM$20),0)))+(IF($EV63>=$CO$20,-1/2*($CP$20-$CN$20)/($CO$20-$CM$20)*(($EV63-$CM$20)^2-($EV63-$CO$20)^2)+($CP$20-$CN$20)*($EV63-$CO$20),IF($EV63>=$CM$20,-1/2*($CP$20-$CN$20)/($CO$20-$CM$20)*($EV63-$CM$20)^2,0))))) -> --- | CY63: =IF($CM$20=$CO$20,"---",IF(AND($CM$20="",$CN$20="",$CO$20="",$CP$20=""),"---",(IF($EV63>=$CO$20,-$CN$20/2*(($EV63-$CM$20)^2-($EV63-$CO$20)^2),IF($EV63>=$CM$20,-$CN$20/2*($EV63-$CM$20)^2,0)))+(IF($EV63>=$CO$20,-1/6*($CP$20-$CN$20)/($CO$20-$CM$20)*(($EV63-$CM$20)^3-($EV63-$CO$20)^3)+($CP$20-$CN$20)/2*($EV63-$CO$20)^2,IF($EV63>=$CM$20,-1/6*($CP$20-$CN$20)/($CO$20-$CM$20)*($EV63-$CM$20)^3,0))))) -> --- | CZ63: =IF($CM$20=$CO$20,"---",IF(AND($CM$20="",$CN$20="",$CO$20="",$CP$20=""),"---",(IF($EV63>=$CO$20,-$CN$20/(6*$FY$28*$GA$28)*(($EV63-$CM$20)^3-($EV63-$CO$20)^3),IF($EV63>=$CM$20,-$CN$20/(6*$FY$28*$GA$28)*($EV63-$CM$20)^3,0)))+(IF($EV63>=$CO$20,-1/(24*$FY$28*$GA$28)*($CP$20-$CN$20)/($CO$20-$CM$20)*(($EV63-$CM$20)^4-($EV63-$CO$20)^4)+($CP$20-$CN$20)/(6*$FY$28*$GA$28)*($EV63-$CO$20)^3,IF($EV63>=$CM$20,-1/(24*$FY$28*$GA$28)*($CP$20-$CN$20)/($CO$20-$CM$20)*($EV63-$CM$20)^4,0))))) -> --- | DA63: =IF($CM$20=$CO$20,"---",IF(AND($CM$20="",$CN$20="",$CO$20="",$CP$20=""),"---",(IF($EV63>=$CO$20,$CN$20/(24*$FY$28*$GA$28)*(($EV63-$CM$20)^4-($EV63-$CO$20)^4),IF($EV63>=$CM$20,$CN$20/(24*$FY$28*$GA$28)*($EV63-$CM$20)^4,0)))+(IF($EV63>=$CO$20,1/(120*$FY$28*$GA$28)*($CP$20-$CN$20)/($CO$20-$CM$20)*(($EV63-$CM$20)^5-($EV63-$CO$20)^5)-($CP$20-$CN$20)/(24*$FY$28*$GA$28)*($EV63-$CO$20)^4,IF($EV63>=$CM$20,1/(120*$FY$28*$GA$28)*($CP$20-$CN$20)/($CO$20-$CM$20)*($EV63-$CM$20)^5,0))))) -> --- | DB63: =IF($CQ$20=$CS$20,"---",IF(AND($CQ$20="",$CR$20="",$CS$20="",$CT$20=""),"---",(-$CR$20*($GB$28-$CQ$20-($GB$28-$CS$20)))+(-1/2*($CT$20-$CR$20)/($CS$20-$CQ$20)*(($GB$28-$CQ$20)^2-($GB$28-$CS$20)^2)+($CT$20-$CR$20)*($GB$28-$CS$20)))) -> --- | DC63: =IF($CQ$20=$CS$20,"---",IF(AND($CQ$20="",$CR$20="",$CS$20="",$CT$20=""),"---",(-$CR$20/2*(($GB$28-$CQ$20)^2-($GB$28-$CS$20)^2))+(-1/6*($CT$20-$CR$20)/($CS$20-$CQ$20)*(($GB$28-$CQ$20)^3-($GB$28-$CS$20)^3)+($CT$20-$CR$20)/2*($GB$28-$CS$20)^2))) -> --- | DD63: =IF($CQ$20=$CS$20,"---",IF(AND($CQ$20="",$CR$20="",$CS$20="",$CT$20=""),"---",(-$CR$20/(6*$FY$28*$GA$28)*(($GB$28-$CQ$20)^3-($GB$28-$CS$20)^3))+(-1/(24*$FY$28*$GA$28)*($CT$20-$CR$20)/($CS$20-$CQ$20)*(($GB$28-$CQ$20)^4-($GB$28-$CS$20)^4)+($CT$20-$CR$20)/(6*$FY$28*$GA$28)*($GB$28-$CS$20)^3))) -> --- | DE63: =IF($CQ$20=$CS$20,"---",IF(AND($CQ$20="",$CR$20="",$CS$20="",$CT$20=""),"---",($CR$20/(24*$FY$28*$GA$28)*(($GB$28-$CQ$20)^4-($GB$28-$CS$20)^4))+(1/(120*$FY$28*$GA$28)*($CT$20-$CR$20)/($CS$20-$CQ$20)*(($GB$28-$CQ$20)^5-($GB$28-$CS$20)^5)-($CT$20-$CR$20)/(24*$FY$28*$GA$28)*($GB$28-$CS$20)^4))) -> --- | DF63: =IF($CQ$20=$CS$20,"---",IF(AND($CQ$20="",$CR$20="",$CS$20="",$CT$20=""),"---",(IF($EV63>=$CS$20,-$CR$20*($EV63-$CQ$20-($EV63-$CS$20)),IF($EV63>=$CQ$20,-$CR$20*($EV63-$CQ$20),0)))+(IF($EV63>=$CS$20,-1/2*($CT$20-$CR$20)/($CS$20-$CQ$20)*(($EV63-$CQ$20)^2-($EV63-$CS$20)^2)+($CT$20-$CR$20)*($EV63-$CS$20),IF($EV63>=$CQ$20,-1/2*($CT$20-$CR$20)/($CS$20-$CQ$20)*($EV63-$CQ$20)^2,0))))) -> --- | DG63: =IF($CQ$20=$CS$20,"---",IF(AND($CQ$20="",$CR$20="",$CS$20="",$CT$20=""),"---",(IF($EV63>=$CS$20,-$CR$20/2*(($EV63-$CQ$20)^2-($EV63-$CS$20)^2),IF($EV63>=$CQ$20,-$CR$20/2*($EV63-$CQ$20)^2,0)))+(IF($EV63>=$CS$20,-1/6*($CT$20-$CR$20)/($CS$20-$CQ$20)*(($EV63-$CQ$20)^3-($EV63-$CS$20)^3)+($CT$20-$CR$20)/2*($EV63-$CS$20)^2,IF($EV63>=$CQ$20,-1/6*($CT$20-$CR$20)/($CS$20-$CQ$20)*($EV63-$CQ$20)^3,0))))) -> --- | DH63: =IF($CQ$20=$CS$20,"---",IF(AND($CQ$20="",$CR$20="",$CS$20="",$CT$20=""),"---",(IF($EV63>=$CS$20,-$CR$20/(6*$FY$28*$GA$28)*(($EV63-$CQ$20)^3-($EV63-$CS$20)^3),IF($EV63>=$CQ$20,-$CR$20/(6*$FY$28*$GA$28)*($EV63-$CQ$20)^3,0)))+(IF($EV63>=$CS$20,-1/(24*$FY$28*$GA$28)*($CT$20-$CR$20)/($CS$20-$CQ$20)*(($EV63-$CQ$20)^4-($EV63-$CS$20)^4)+($CT$20-$CR$20)/(6*$FY$28*$GA$28)*($EV63-$CS$20)^3,IF($EV63>=$CQ$20,-1/(24*$FY$28*$GA$28)*($CT$20-$CR$20)/($CS$20-$CQ$20)*($EV63-$CQ$20)^4,0))))) -> --- | DI63: =IF($CQ$20=$CS$20,"---",IF(AND($CQ$20="",$CR$20="",$CS$20="",$CT$20=""),"---",(IF($EV63>=$CS$20,$CR$20/(24*$FY$28*$GA$28)*(($EV63-$CQ$20)^4-($EV63-$CS$20)^4),IF($EV63>=$CQ$20,$CR$20/(24*$FY$28*$GA$28)*($EV63-$CQ$20)^4,0)))+(IF($EV63>=$CS$20,1/(120*$FY$28*$GA$28)*($CT$20-$CR$20)/($CS$20-$CQ$20)*(($EV63-$CQ$20)^5-($EV63-$CS$20)^5)-($CT$20-$CR$20)/(24*$FY$28*$GA$28)*($EV63-$CS$20)^4,IF($EV63>=$CQ$20,1/(120*$FY$28*$GA$28)*($CT$20-$CR$20)/($CS$20-$CQ$20)*($EV63-$CQ$20)^5,0))))) -> --- | DJ63: =IF($CU$20=$CW$20,"---",IF(AND($CU$20="",$CV$20="",$CW$20="",$CX$20=""),"---",(-$CV$20*($GB$28-$CU$20-($GB$28-$CW$20)))+(-1/2*($CX$20-$CV$20)/($CW$20-$CU$20)*(($GB$28-$CU$20)^2-($GB$28-$CW$20)^2)+($CX$20-$CV$20)*($GB$28-$CW$20)))) -> --- | DK63: =IF($CU$20=$CW$20,"---",IF(AND($CU$20="",$CV$20="",$CW$20="",$CX$20=""),"---",(-$CV$20/2*(($GB$28-$CU$20)^2-($GB$28-$CW$20)^2))+(-1/6*($CX$20-$CV$20)/($CW$20-$CU$20)*(($GB$28-$CU$20)^3-($GB$28-$CW$20)^3)+($CX$20-$CV$20)/2*($GB$28-$CW$20)^2))) -> --- | DL63: =IF($CU$20=$CW$20,"---",IF(AND($CU$20="",$CV$20="",$CW$20="",$CX$20=""),"---",(-$CV$20/(6*$FY$28*$GA$28)*(($GB$28-$CU$20)^3-($GB$28-$CW$20)^3))+(-1/(24*$FY$28*$GA$28)*($CX$20-$CV$20)/($CW$20-$CU$20)*(($GB$28-$CU$20)^4-($GB$28-$CW$20)^4)+($CX$20-$CV$20)/(6*$FY$28*$GA$28)*($GB$28-$CW$20)^3))) -> --- | DM63: =IF($CU$20=$CW$20,"---",IF(AND($CU$20="",$CV$20="",$CW$20="",$CX$20=""),"---",($CV$20/(24*$FY$28*$GA$28)*(($GB$28-$CU$20)^4-($GB$28-$CW$20)^4))+(1/(120*$FY$28*$GA$28)*($CX$20-$CV$20)/($CW$20-$CU$20)*(($GB$28-$CU$20)^5-($GB$28-$CW$20)^5)-($CX$20-$CV$20)/(24*$FY$28*$GA$28)*($GB$28-$CW$20)^4))) -> --- | DN63: =IF($CU$20=$CW$20,"---",IF(AND($CU$20="",$CV$20="",$CW$20="",$CX$20=""),"---",(IF($EV63>=$CW$20,-$CV$20*($EV63-$CU$20-($EV63-$CW$20)),IF($EV63>=$CU$20,-$CV$20*($EV63-$CU$20),0)))+(IF($EV63>=$CW$20,-1/2*($CX$20-$CV$20)/($CW$20-$CU$20)*(($EV63-$CU$20)^2-($EV63-$CW$20)^2)+($CX$20-$CV$20)*($EV63-$CW$20),IF($EV63>=$CU$20,-1/2*($CX$20-$CV$20)/($CW$20-$CU$20)*($EV63-$CU$20)^2,0))))) -> --- | DO63: =IF($CU$20=$CW$20,"---",IF(AND($CU$20="",$CV$20="",$CW$20="",$CX$20=""),"---",(IF($EV63>=$CW$20,-$CV$20/2*(($EV63-$CU$20)^2-($EV63-$CW$20)^2),IF($EV63>=$CU$20,-$CV$20/2*($EV63-$CU$20)^2,0)))+(IF($EV63>=$CW$20,-1/6*($CX$20-$CV$20)/($CW$20-$CU$20)*(($EV63-$CU$20)^3-($EV63-$CW$20)^3)+($CX$20-$CV$20)/2*($EV63-$CW$20)^2,IF($EV63>=$CU$20,-1/6*($CX$20-$CV$20)/($CW$20-$CU$20)*($EV63-$CU$20)^3,0))))) -> --- | DP63: =IF($CU$20=$CW$20,"---",IF(AND($CU$20="",$CV$20="",$CW$20="",$CX$20=""),"---",(IF($EV63>=$CW$20,-$CV$20/(6*$FY$28*$GA$28)*(($EV63-$CU$20)^3-($EV63-$CW$20)^3),IF($EV63>=$CU$20,-$CV$20/(6*$FY$28*$GA$28)*($EV63-$CU$20)^3,0)))+(IF($EV63>=$CW$20,-1/(24*$FY$28*$GA$28)*($CX$20-$CV$20)/($CW$20-$CU$20)*(($EV63-$CU$20)^4-($EV63-$CW$20)^4)+($CX$20-$CV$20)/(6*$FY$28*$GA$28)*($EV63-$CW$20)^3,IF($EV63>=$CU$20,-1/(24*$FY$28*$GA$28)*($CX$20-$CV$20)/($CW$20-$CU$20)*($EV63-$CU$20)^4,0))))) -> --- | DQ63: =IF($CU$20=$CW$20,"---",IF(AND($CU$20="",$CV$20="",$CW$20="",$CX$20=""),"---",(IF($EV63>=$CW$20,$CV$20/(24*$FY$28*$GA$28)*(($EV63-$CU$20)^4-($EV63-$CW$20)^4),IF($EV63>=$CU$20,$CV$20/(24*$FY$28*$GA$28)*($EV63-$CU$20)^4,0)))+(IF($EV63>=$CW$20,1/(120*$FY$28*$GA$28)*($CX$20-$CV$20)/($CW$20-$CU$20)*(($EV63-$CU$20)^5-($EV63-$CW$20)^5)-($CX$20-$CV$20)/(24*$FY$28*$GA$28)*($EV63-$CW$20)^4,IF($EV63>=$CU$20,1/(120*$FY$28*$GA$28)*($CX$20-$CV$20)/($CW$20-$CU$20)*($EV63-$CU$20)^5,0))))) -> --- | DR63: =-$CF$35+-$CH$35+-$CJ$35+-$CL$35+-$CN$35+-$CP$35+-$CR$35+-$CT$35+-$CV$35+-$CX$35 -> 0 | DS63: =-$CF$35*($GB$28-$CE$35)+-$CH$35*($GB$28-$CG$35)+-$CJ$35*($GB$28-$CI$35)+-$CL$35*($GB$28-$CK$35)+-$CN$35*($GB$28-$CM$35)+-$CP$35*($GB$28-$CO$35)+-$CR$35*($GB$28-$CQ$35)+-$CT$35*($GB$28-$CS$35)+-$CV$35*($GB$28-$CU$35)+-$CX$35*($GB$28-$CW$35) -> 0 | DT63: =-$CF$35*($GB$28-$CE$35)^2/(2*$FY$28*$GA$28)+-$CH$35*($GB$28-$CG$35)^2/(2*$FY$28*$GA$28)+-$CJ$35*($GB$28-$CI$35)^2/(2*$FY$28*$GA$28)+-$CL$35*($GB$28-$CK$35)^2/(2*$FY$28*$GA$28)+-$CN$35*($GB$28-$CM$35)^2/(2*$FY$28*$GA$28)+-$CP$35*($GB$28-$CO$35)^2/(2*$FY$28*$GA$28)+-$CR$35*($GB$28-$CQ$35)^2/(2*$FY$28*$GA$28)+-$CT$35*($GB$28-$CS$35)^2/(2*$FY$28*$GA$28)+-$CV$35*($GB$28-$CU$35)^2/(2*$FY$28*$GA$28)+-$CX$35*($GB$28-$CW$35)^2/(2*$FY$28*$GA$28) -> 0 | DU63: =$CF$35*($GB$28-$CE$35)^3/(6*$FY$28*$GA$28)+$CH$35*($GB$28-$CG$35)^3/(6*$FY$28*$GA$28)+$CJ$35*($GB$28-$CI$35)^3/(6*$FY$28*$GA$28)+$CL$35*($GB$28-$CK$35)^3/(6*$FY$28*$GA$28)+$CN$35*($GB$28-$CM$35)^3/(6*$FY$28*$GA$28)+$CP$35*($GB$28-$CO$35)^3/(6*$FY$28*$GA$28)+$CR$35*($GB$28-$CQ$35)^3/(6*$FY$28*$GA$28)+$CT$35*($GB$28-$CS$35)^3/(6*$FY$28*$GA$28)+$CV$35*($GB$28-$CU$35)^3/(6*$FY$28*$GA$28)+$CX$35*($GB$28-$CW$35)^3/(6*$FY$28*$GA$28) -> 0 | DV63: =IF($EV59>$CE$35,-$CF$35,0)+IF($EV59>$CG$35,-$CH$35,0)+IF($EV59>$CI$35,-$CJ$35,0)+IF($EV59>$CK$35,-$CL$35,0)+IF($EV59>$CM$35,-$CN$35,0)+IF($EV59>$CO$35,-$CP$35,0)+IF($EV59>$CQ$35,-$CR$35,0)+IF($EV59>$CS$35,-$CT$35,0)+IF($EV59>$CU$35,-$CV$35,0)+IF($EV59>$CW$35,-$CX$35,0) -> 0 | DW63: =IF($EV59>$CE$35,-$CF$35*($EV59-$CE$35),0)+IF($EV59>$CG$35,-$CH$35*($EV59-$CG$35),0)+IF($EV59>$CI$35,-$CJ$35*($EV59-$CI$35),0)+IF($EV59>$CK$35,-$CL$35*($EV59-$CK$35),0)+IF($EV59>$CM$35,-$CN$35*($EV59-$CM$35),0)+IF($EV59>$CO$35,-$CP$35*($EV59-$CO$35),0)+IF($EV59>$CQ$35,-$CR$35*($EV59-$CQ$35),0)+IF($EV59>$CS$35,-$CT$35*($EV59-$CS$35),0)+IF($EV59>$CU$35,-$CV$35*($EV59-$CU$35),0)+IF($EV59>$CW$35,-$CX$35*($EV59-$CW$35),0) -> 0 | DX63: =IF($EV59>$CE$35,-$CF$35*($EV59-$CE$35)^2/(2*$FY$28*$GA$28),0)+IF($EV59>$CG$35,-$CH$35*($EV59-$CG$35)^2/(2*$FY$28*$GA$28),0)+IF($EV59>$CI$35,-$CJ$35*($EV59-$CI$35)^2/(2*$FY$28*$GA$28),0)+IF($EV59>$CK$35,-$CL$35*($EV59-$CK$35)^2/(2*$FY$28*$GA$28),0)+IF($EV59>$CM$35,-$CN$35*($EV59-$CM$35)^2/(2*$FY$28*$GA$28),0)+IF($EV59>$CO$35,-$CP$35*($EV59-$CO$35)^2/(2*$FY$28*$GA$28),0)+IF($EV59>$CQ$35,-$CR$35*($EV59-$CQ$35)^2/(2*$FY$28*$GA$28),0)+IF($EV59>$CS$35,-$CT$35*($EV59-$CS$35)^2/(2*$FY$28*$GA$28),0)+IF($EV59>$CU$35,-$CV$35*($EV59-$CU$35)^2/(2*$FY$28*$GA$28),0)+IF($EV59>$CW$35,-$CX$35*($EV59-$CW$35)^2/(2*$FY$28*$GA$28),0) -> 0 | DY63: =IF($EV59>$CE$35,$CF$35*($EV59-$CE$35)^3/(6*$FY$28*$GA$28),0)+IF($EV59>$CG$35,$CH$35*($EV59-$CG$35)^3/(6*$FY$28*$GA$28),0)+IF($EV59>$CI$35,$CJ$35*($EV59-$CI$35)^3/(6*$FY$28*$GA$28),0)+IF($EV59>$CK$35,$CL$35*($EV59-$CK$35)^3/(6*$FY$28*$GA$28),0)+IF($EV59>$CM$35,$CN$35*($EV59-$CM$35)^3/(6*$FY$28*$GA$28),0)+IF($EV59>$CO$35,$CP$35*($EV59-$CO$35)^3/(6*$FY$28*$GA$28),0)+IF($EV59>$CQ$35,$CR$35*($EV59-$CQ$35)^3/(6*$FY$28*$GA$28),0)+IF($EV59>$CS$35,$CT$35*($EV59-$CS$35)^3/(6*$FY$28*$GA$28),0)+IF($EV59>$CU$35,$CV$35*($EV59-$CU$35)^3/(6*$FY$28*$GA$28),0)+IF($EV59>$CW$35,$CX$35*($EV59-$CW$35)^3/(6*$FY$28*$GA$28),0) -> 0 | DZ63: =0+0+0+0 -> 0 | EA63: =0+0+0+0 -> 0 | EB63: =0+0+0+0 -> 0 | EC63: =0+0+0+0 -> 0 | ED63: 0 | EE63: 0 | EF63: 0 | EG63: 0 | EH63: -10.6869733 | EI63: -77.78529819 | EJ63: -2.05578143e-05 | EK63: 7.171950625e-05 | EL63: 0 | EM63: 0 | EN63: 0 | EO63: 0 | EP63: =-12*$FY$28*$GA$28/$GB$28^3*$EK63-6*$FY$28*$GA$28/$GB$28^2*$EJ63 -> 4.16572717 | EQ63: =6*$FY$28*$GA$28/$GB$28^2*$EK63+2*$FY$28*$GA$28/$GB$28*$EJ63 -> -16.52708221 | ER63: =0 -> 0 | ES63: =0 -> 0 | ET63: =$EP63+$EL63 -> 4.16572717 | EU63: -16.52708221 | EV63: =0 -> 0 | EW63: Member #2(X) FEM(L): | FF63: W36x232 | FG63: 68.1 | FH63: 15000 | FI63: 468 | FJ63: 439.35 | FK63: 624347.14 | FL63: 19479.63
BE64: Applied Moments: | CC64: Member #2(X) FEM(R): | CD64: =$CD$63 -> -10.6869733 | CE64: =$CE$63 -> -77.78529819 | CF64: =$CF$63 -> -2.05578143e-05 | CG64: =$CG$63 -> 7.171950625e-05 | CH64: =IF($CE$20=$CG$20,"---",IF(AND($CE$20="",$CF$20="",$CG$20="",$CH$20=""),"---",(IF($EV64>=$CG$20,-$CF$20*($EV64-$CE$20-($EV64-$CG$20)),IF($EV64>=$CE$20,-$CF$20*($EV64-$CE$20),0)))+(IF($EV64>=$CG$20,-1/2*($CH$20-$CF$20)/($CG$20-$CE$20)*(($EV64-$CE$20)^2-($EV64-$CG$20)^2)+($CH$20-$CF$20)*($EV64-$CG$20),IF($EV64>=$CE$20,-1/2*($CH$20-$CF$20)/($CG$20-$CE$20)*($EV64-$CE$20)^2,0))))) -> -10.6869733 | CI64: =IF($CE$20=$CG$20,"---",IF(AND($CE$20="",$CF$20="",$CG$20="",$CH$20=""),"---",(IF($EV64>=$CG$20,-$CF$20/2*(($EV64-$CE$20)^2-($EV64-$CG$20)^2),IF($EV64>=$CE$20,-$CF$20/2*($EV64-$CE$20)^2,0)))+(IF($EV64>=$CG$20,-1/6*($CH$20-$CF$20)/($CG$20-$CE$20)*(($EV64-$CE$20)^3-($EV64-$CG$20)^3)+($CH$20-$CF$20)/2*($EV64-$CG$20)^2,IF($EV64>=$CE$20,-1/6*($CH$20-$CF$20)/($CG$20-$CE$20)*($EV64-$CE$20)^3,0))))) -> -77.78529819 | CJ64: =IF($CE$20=$CG$20,"---",IF(AND($CE$20="",$CF$20="",$CG$20="",$CH$20=""),"---",(IF($EV64>=$CG$20,-$CF$20/(6*$FY$28*$GA$28)*(($EV64-$CE$20)^3-($EV64-$CG$20)^3),IF($EV64>=$CE$20,-$CF$20/(6*$FY$28*$GA$28)*($EV64-$CE$20)^3,0)))+(IF($EV64>=$CG$20,-1/(24*$FY$28*$GA$28)*($CH$20-$CF$20)/($CG$20-$CE$20)*(($EV64-$CE$20)^4-($EV64-$CG$20)^4)+($CH$20-$CF$20)/(6*$FY$28*$GA$28)*($EV64-$CG$20)^3,IF($EV64>=$CE$20,-1/(24*$FY$28*$GA$28)*($CH$20-$CF$20)/($CG$20-$CE$20)*($EV64-$CE$20)^4,0))))) -> -2.055781431e-05 | CK64: =IF($CE$20=$CG$20,"---",IF(AND($CE$20="",$CF$20="",$CG$20="",$CH$20=""),"---",(IF($EV64>=$CG$20,$CF$20/(24*$FY$28*$GA$28)*(($EV64-$CE$20)^4-($EV64-$CG$20)^4),IF($EV64>=$CE$20,$CF$20/(24*$FY$28*$GA$28)*($EV64-$CE$20)^4,0)))+(IF($EV64>=$CG$20,1/(120*$FY$28*$GA$28)*($CH$20-$CF$20)/($CG$20-$CE$20)*(($EV64-$CE$20)^5-($EV64-$CG$20)^5)-($CH$20-$CF$20)/(24*$FY$28*$GA$28)*($EV64-$CG$20)^4,IF($EV64>=$CE$20,1/(120*$FY$28*$GA$28)*($CH$20-$CF$20)/($CG$20-$CE$20)*($EV64-$CE$20)^5,0))))) -> 7.171950625e-05 | CL64: =$CL$63 -> --- | CM64: =$CM$63 -> --- | CN64: =$CN$63 -> --- | CO64: =$CO$63 -> --- | CP64: =IF($CI$20=$CK$20,"---",IF(AND($CI$20="",$CJ$20="",$CK$20="",$CL$20=""),"---",(IF($EV64>=$CK$20,-$CJ$20*($EV64-$CI$20-($EV64-$CK$20)),IF($EV64>=$CI$20,-$CJ$20*($EV64-$CI$20),0)))+(IF($EV64>=$CK$20,-1/2*($CL$20-$CJ$20)/($CK$20-$CI$20)*(($EV64-$CI$20)^2-($EV64-$CK$20)^2)+($CL$20-$CJ$20)*($EV64-$CK$20),IF($EV64>=$CI$20,-1/2*($CL$20-$CJ$20)/($CK$20-$CI$20)*($EV64-$CI$20)^2,0))))) -> --- | CQ64: =IF($CI$20=$CK$20,"---",IF(AND($CI$20="",$CJ$20="",$CK$20="",$CL$20=""),"---",(IF($EV64>=$CK$20,-$CJ$20/2*(($EV64-$CI$20)^2-($EV64-$CK$20)^2),IF($EV64>=$CI$20,-$CJ$20/2*($EV64-$CI$20)^2,0)))+(IF($EV64>=$CK$20,-1/6*($CL$20-$CJ$20)/($CK$20-$CI$20)*(($EV64-$CI$20)^3-($EV64-$CK$20)^3)+($CL$20-$CJ$20)/2*($EV64-$CK$20)^2,IF($EV64>=$CI$20,-1/6*($CL$20-$CJ$20)/($CK$20-$CI$20)*($EV64-$CI$20)^3,0))))) -> --- | CR64: =IF($CI$20=$CK$20,"---",IF(AND($CI$20="",$CJ$20="",$CK$20="",$CL$20=""),"---",(IF($EV64>=$CK$20,-$CJ$20/(6*$FY$28*$GA$28)*(($EV64-$CI$20)^3-($EV64-$CK$20)^3),IF($EV64>=$CI$20,-$CJ$20/(6*$FY$28*$GA$28)*($EV64-$CI$20)^3,0)))+(IF($EV64>=$CK$20,-1/(24*$FY$28*$GA$28)*($CL$20-$CJ$20)/($CK$20-$CI$20)*(($EV64-$CI$20)^4-($EV64-$CK$20)^4)+($CL$20-$CJ$20)/(6*$FY$28*$GA$28)*($EV64-$CK$20)^3,IF($EV64>=$CI$20,-1/(24*$FY$28*$GA$28)*($CL$20-$CJ$20)/($CK$20-$CI$20)*($EV64-$CI$20)^4,0))))) -> --- | CS64: =IF($CI$20=$CK$20,"---",IF(AND($CI$20="",$CJ$20="",$CK$20="",$CL$20=""),"---",(IF($EV64>=$CK$20,$CJ$20/(24*$FY$28*$GA$28)*(($EV64-$CI$20)^4-($EV64-$CK$20)^4),IF($EV64>=$CI$20,$CJ$20/(24*$FY$28*$GA$28)*($EV64-$CI$20)^4,0)))+(IF($EV64>=$CK$20,1/(120*$FY$28*$GA$28)*($CL$20-$CJ$20)/($CK$20-$CI$20)*(($EV64-$CI$20)^5-($EV64-$CK$20)^5)-($CL$20-$CJ$20)/(24*$FY$28*$GA$28)*($EV64-$CK$20)^4,IF($EV64>=$CI$20,1/(120*$FY$28*$GA$28)*($CL$20-$CJ$20)/($CK$20-$CI$20)*($EV64-$CI$20)^5,0))))) -> --- | CT64: =$CT$63 -> --- | CU64: =$CU$63 -> --- | CV64: =$CV$63 -> --- | CW64: =$CW$63 -> --- | CX64: =IF($CM$20=$CO$20,"---",IF(AND($CM$20="",$CN$20="",$CO$20="",$CP$20=""),"---",(IF($EV64>=$CO$20,-$CN$20*($EV64-$CM$20-($EV64-$CO$20)),IF($EV64>=$CM$20,-$CN$20*($EV64-$CM$20),0)))+(IF($EV64>=$CO$20,-1/2*($CP$20-$CN$20)/($CO$20-$CM$20)*(($EV64-$CM$20)^2-($EV64-$CO$20)^2)+($CP$20-$CN$20)*($EV64-$CO$20),IF($EV64>=$CM$20,-1/2*($CP$20-$CN$20)/($CO$20-$CM$20)*($EV64-$CM$20)^2,0))))) -> --- | CY64: =IF($CM$20=$CO$20,"---",IF(AND($CM$20="",$CN$20="",$CO$20="",$CP$20=""),"---",(IF($EV64>=$CO$20,-$CN$20/2*(($EV64-$CM$20)^2-($EV64-$CO$20)^2),IF($EV64>=$CM$20,-$CN$20/2*($EV64-$CM$20)^2,0)))+(IF($EV64>=$CO$20,-1/6*($CP$20-$CN$20)/($CO$20-$CM$20)*(($EV64-$CM$20)^3-($EV64-$CO$20)^3)+($CP$20-$CN$20)/2*($EV64-$CO$20)^2,IF($EV64>=$CM$20,-1/6*($CP$20-$CN$20)/($CO$20-$CM$20)*($EV64-$CM$20)^3,0))))) -> --- | CZ64: =IF($CM$20=$CO$20,"---",IF(AND($CM$20="",$CN$20="",$CO$20="",$CP$20=""),"---",(IF($EV64>=$CO$20,-$CN$20/(6*$FY$28*$GA$28)*(($EV64-$CM$20)^3-($EV64-$CO$20)^3),IF($EV64>=$CM$20,-$CN$20/(6*$FY$28*$GA$28)*($EV64-$CM$20)^3,0)))+(IF($EV64>=$CO$20,-1/(24*$FY$28*$GA$28)*($CP$20-$CN$20)/($CO$20-$CM$20)*(($EV64-$CM$20)^4-($EV64-$CO$20)^4)+($CP$20-$CN$20)/(6*$FY$28*$GA$28)*($EV64-$CO$20)^3,IF($EV64>=$CM$20,-1/(24*$FY$28*$GA$28)*($CP$20-$CN$20)/($CO$20-$CM$20)*($EV64-$CM$20)^4,0))))) -> --- | DA64: =IF($CM$20=$CO$20,"---",IF(AND($CM$20="",$CN$20="",$CO$20="",$CP$20=""),"---",(IF($EV64>=$CO$20,$CN$20/(24*$FY$28*$GA$28)*(($EV64-$CM$20)^4-($EV64-$CO$20)^4),IF($EV64>=$CM$20,$CN$20/(24*$FY$28*$GA$28)*($EV64-$CM$20)^4,0)))+(IF($EV64>=$CO$20,1/(120*$FY$28*$GA$28)*($CP$20-$CN$20)/($CO$20-$CM$20)*(($EV64-$CM$20)^5-($EV64-$CO$20)^5)-($CP$20-$CN$20)/(24*$FY$28*$GA$28)*($EV64-$CO$20)^4,IF($EV64>=$CM$20,1/(120*$FY$28*$GA$28)*($CP$20-$CN$20)/($CO$20-$CM$20)*($EV64-$CM$20)^5,0))))) -> --- | DB64: =$DB$63 -> --- | DC64: =$DC$63 -> --- | DD64: =$DD$63 -> --- | DE64: =$DE$63 -> --- | DF64: =IF($CQ$20=$CS$20,"---",IF(AND($CQ$20="",$CR$20="",$CS$20="",$CT$20=""),"---",(IF($EV64>=$CS$20,-$CR$20*($EV64-$CQ$20-($EV64-$CS$20)),IF($EV64>=$CQ$20,-$CR$20*($EV64-$CQ$20),0)))+(IF($EV64>=$CS$20,-1/2*($CT$20-$CR$20)/($CS$20-$CQ$20)*(($EV64-$CQ$20)^2-($EV64-$CS$20)^2)+($CT$20-$CR$20)*($EV64-$CS$20),IF($EV64>=$CQ$20,-1/2*($CT$20-$CR$20)/($CS$20-$CQ$20)*($EV64-$CQ$20)^2,0))))) -> --- | DG64: =IF($CQ$20=$CS$20,"---",IF(AND($CQ$20="",$CR$20="",$CS$20="",$CT$20=""),"---",(IF($EV64>=$CS$20,-$CR$20/2*(($EV64-$CQ$20)^2-($EV64-$CS$20)^2),IF($EV64>=$CQ$20,-$CR$20/2*($EV64-$CQ$20)^2,0)))+(IF($EV64>=$CS$20,-1/6*($CT$20-$CR$20)/($CS$20-$CQ$20)*(($EV64-$CQ$20)^3-($EV64-$CS$20)^3)+($CT$20-$CR$20)/2*($EV64-$CS$20)^2,IF($EV64>=$CQ$20,-1/6*($CT$20-$CR$20)/($CS$20-$CQ$20)*($EV64-$CQ$20)^3,0))))) -> --- | DH64: =IF($CQ$20=$CS$20,"---",IF(AND($CQ$20="",$CR$20="",$CS$20="",$CT$20=""),"---",(IF($EV64>=$CS$20,-$CR$20/(6*$FY$28*$GA$28)*(($EV64-$CQ$20)^3-($EV64-$CS$20)^3),IF($EV64>=$CQ$20,-$CR$20/(6*$FY$28*$GA$28)*($EV64-$CQ$20)^3,0)))+(IF($EV64>=$CS$20,-1/(24*$FY$28*$GA$28)*($CT$20-$CR$20)/($CS$20-$CQ$20)*(($EV64-$CQ$20)^4-($EV64-$CS$20)^4)+($CT$20-$CR$20)/(6*$FY$28*$GA$28)*($EV64-$CS$20)^3,IF($EV64>=$CQ$20,-1/(24*$FY$28*$GA$28)*($CT$20-$CR$20)/($CS$20-$CQ$20)*($EV64-$CQ$20)^4,0))))) -> --- | DI64: =IF($CQ$20=$CS$20,"---",IF(AND($CQ$20="",$CR$20="",$CS$20="",$CT$20=""),"---",(IF($EV64>=$CS$20,$CR$20/(24*$FY$28*$GA$28)*(($EV64-$CQ$20)^4-($EV64-$CS$20)^4),IF($EV64>=$CQ$20,$CR$20/(24*$FY$28*$GA$28)*($EV64-$CQ$20)^4,0)))+(IF($EV64>=$CS$20,1/(120*$FY$28*$GA$28)*($CT$20-$CR$20)/($CS$20-$CQ$20)*(($EV64-$CQ$20)^5-($EV64-$CS$20)^5)-($CT$20-$CR$20)/(24*$FY$28*$GA$28)*($EV64-$CS$20)^4,IF($EV64>=$CQ$20,1/(120*$FY$28*$GA$28)*($CT$20-$CR$20)/($CS$20-$CQ$20)*($EV64-$CQ$20)^5,0))))) -> --- | DJ64: =$DJ$63 -> --- | DK64: =$DK$63 -> --- | DL64: =$DL$63 -> --- | DM64: =$DM$63 -> --- | DN64: =IF($CU$20=$CW$20,"---",IF(AND($CU$20="",$CV$20="",$CW$20="",$CX$20=""),"---",(IF($EV64>=$CW$20,-$CV$20*($EV64-$CU$20-($EV64-$CW$20)),IF($EV64>=$CU$20,-$CV$20*($EV64-$CU$20),0)))+(IF($EV64>=$CW$20,-1/2*($CX$20-$CV$20)/($CW$20-$CU$20)*(($EV64-$CU$20)^2-($EV64-$CW$20)^2)+($CX$20-$CV$20)*($EV64-$CW$20),IF($EV64>=$CU$20,-1/2*($CX$20-$CV$20)/($CW$20-$CU$20)*($EV64-$CU$20)^2,0))))) -> --- | DO64: =IF($CU$20=$CW$20,"---",IF(AND($CU$20="",$CV$20="",$CW$20="",$CX$20=""),"---",(IF($EV64>=$CW$20,-$CV$20/2*(($EV64-$CU$20)^2-($EV64-$CW$20)^2),IF($EV64>=$CU$20,-$CV$20/2*($EV64-$CU$20)^2,0)))+(IF($EV64>=$CW$20,-1/6*($CX$20-$CV$20)/($CW$20-$CU$20)*(($EV64-$CU$20)^3-($EV64-$CW$20)^3)+($CX$20-$CV$20)/2*($EV64-$CW$20)^2,IF($EV64>=$CU$20,-1/6*($CX$20-$CV$20)/($CW$20-$CU$20)*($EV64-$CU$20)^3,0))))) -> --- | DP64: =IF($CU$20=$CW$20,"---",IF(AND($CU$20="",$CV$20="",$CW$20="",$CX$20=""),"---",(IF($EV64>=$CW$20,-$CV$20/(6*$FY$28*$GA$28)*(($EV64-$CU$20)^3-($EV64-$CW$20)^3),IF($EV64>=$CU$20,-$CV$20/(6*$FY$28*$GA$28)*($EV64-$CU$20)^3,0)))+(IF($EV64>=$CW$20,-1/(24*$FY$28*$GA$28)*($CX$20-$CV$20)/($CW$20-$CU$20)*(($EV64-$CU$20)^4-($EV64-$CW$20)^4)+($CX$20-$CV$20)/(6*$FY$28*$GA$28)*($EV64-$CW$20)^3,IF($EV64>=$CU$20,-1/(24*$FY$28*$GA$28)*($CX$20-$CV$20)/($CW$20-$CU$20)*($EV64-$CU$20)^4,0))))) -> --- | DQ64: =IF($CU$20=$CW$20,"---",IF(AND($CU$20="",$CV$20="",$CW$20="",$CX$20=""),"---",(IF($EV64>=$CW$20,$CV$20/(24*$FY$28*$GA$28)*(($EV64-$CU$20)^4-($EV64-$CW$20)^4),IF($EV64>=$CU$20,$CV$20/(24*$FY$28*$GA$28)*($EV64-$CU$20)^4,0)))+(IF($EV64>=$CW$20,1/(120*$FY$28*$GA$28)*($CX$20-$CV$20)/($CW$20-$CU$20)*(($EV64-$CU$20)^5-($EV64-$CW$20)^5)-($CX$20-$CV$20)/(24*$FY$28*$GA$28)*($EV64-$CW$20)^4,IF($EV64>=$CU$20,1/(120*$FY$28*$GA$28)*($CX$20-$CV$20)/($CW$20-$CU$20)*($EV64-$CU$20)^5,0))))) -> --- | DR64: =$DR$63 -> 0 | DS64: =$DS$63 -> 0 | DT64: =$DT$63 -> 0 | DU64: =$DU$63 -> 0 | DV64: =IF($EV60>$CE$35,-$CF$35,0)+IF($EV60>$CG$35,-$CH$35,0)+IF($EV60>$CI$35,-$CJ$35,0)+IF($EV60>$CK$35,-$CL$35,0)+IF($EV60>$CM$35,-$CN$35,0)+IF($EV60>$CO$35,-$CP$35,0)+IF($EV60>$CQ$35,-$CR$35,0)+IF($EV60>$CS$35,-$CT$35,0)+IF($EV60>$CU$35,-$CV$35,0)+IF($EV60>$CW$35,-$CX$35,0) -> 0 | DW64: =IF($EV60>$CE$35,-$CF$35*($EV60-$CE$35),0)+IF($EV60>$CG$35,-$CH$35*($EV60-$CG$35),0)+IF($EV60>$CI$35,-$CJ$35*($EV60-$CI$35),0)+IF($EV60>$CK$35,-$CL$35*($EV60-$CK$35),0)+IF($EV60>$CM$35,-$CN$35*($EV60-$CM$35),0)+IF($EV60>$CO$35,-$CP$35*($EV60-$CO$35),0)+IF($EV60>$CQ$35,-$CR$35*($EV60-$CQ$35),0)+IF($EV60>$CS$35,-$CT$35*($EV60-$CS$35),0)+IF($EV60>$CU$35,-$CV$35*($EV60-$CU$35),0)+IF($EV60>$CW$35,-$CX$35*($EV60-$CW$35),0) -> 0 | DX64: =IF($EV60>$CE$35,-$CF$35*($EV60-$CE$35)^2/(2*$FY$28*$GA$28),0)+IF($EV60>$CG$35,-$CH$35*($EV60-$CG$35)^2/(2*$FY$28*$GA$28),0)+IF($EV60>$CI$35,-$CJ$35*($EV60-$CI$35)^2/(2*$FY$28*$GA$28),0)+IF($EV60>$CK$35,-$CL$35*($EV60-$CK$35)^2/(2*$FY$28*$GA$28),0)+IF($EV60>$CM$35,-$CN$35*($EV60-$CM$35)^2/(2*$FY$28*$GA$28),0)+IF($EV60>$CO$35,-$CP$35*($EV60-$CO$35)^2/(2*$FY$28*$GA$28),0)+IF($EV60>$CQ$35,-$CR$35*($EV60-$CQ$35)^2/(2*$FY$28*$GA$28),0)+IF($EV60>$CS$35,-$CT$35*($EV60-$CS$35)^2/(2*$FY$28*$GA$28),0)+IF($EV60>$CU$35,-$CV$35*($EV60-$CU$35)^2/(2*$FY$28*$GA$28),0)+IF($EV60>$CW$35,-$CX$35*($EV60-$CW$35)^2/(2*$FY$28*$GA$28),0) -> 0 | DY64: =IF($EV60>$CE$35,$CF$35*($EV60-$CE$35)^3/(6*$FY$28*$GA$28),0)+IF($EV60>$CG$35,$CH$35*($EV60-$CG$35)^3/(6*$FY$28*$GA$28),0)+IF($EV60>$CI$35,$CJ$35*($EV60-$CI$35)^3/(6*$FY$28*$GA$28),0)+IF($EV60>$CK$35,$CL$35*($EV60-$CK$35)^3/(6*$FY$28*$GA$28),0)+IF($EV60>$CM$35,$CN$35*($EV60-$CM$35)^3/(6*$FY$28*$GA$28),0)+IF($EV60>$CO$35,$CP$35*($EV60-$CO$35)^3/(6*$FY$28*$GA$28),0)+IF($EV60>$CQ$35,$CR$35*($EV60-$CQ$35)^3/(6*$FY$28*$GA$28),0)+IF($EV60>$CS$35,$CT$35*($EV60-$CS$35)^3/(6*$FY$28*$GA$28),0)+IF($EV60>$CU$35,$CV$35*($EV60-$CU$35)^3/(6*$FY$28*$GA$28),0)+IF($EV60>$CW$35,$CX$35*($EV60-$CW$35)^3/(6*$FY$28*$GA$28),0) -> 0 | DZ64: =$DZ$63 -> 0 | EA64: =$EA$63 -> 0 | EB64: =$EB$63 -> 0 | EC64: =$EC$63 -> 0 | ED64: 0 | EE64: 0 | EF64: 0 | EG64: 0 | EH64: -10.6869733 | EI64: -77.78529819 | EJ64: -2.05578143e-05 | EK64: 7.171950625e-05 | EL64: -10.6869733 | EM64: -77.78529819 | EN64: -2.055781431e-05 | EO64: 7.171950625e-05 | EP64: =$EP$63 -> 4.16572717 | EQ64: =$EQ$63 -> -16.52708221 | ER64: =$ER$63 -> 0 | ES64: =$ES$63 -> 0 | ET64: =-($EP64+$EL64) -> 6.521246131 | EU64: -20.71310319 | EV64: =$GB$28+0.0000000001 -> 17.66781025 | EW64: Member #2(X) FEM(R): | FF64: W36x230 | FG64: 67.6 | FH64: 15000 | FI64: 940 | FJ64: 436.13 | FK64: 624347.14 | FL64: 39125.75 | FW64: Applied Moments:
H65: Joint Loads | O65: Point-X (kN) | T65: Point-Y (kN) | Y65: Moment (kNm) | CC65: Member #2(X) Axial(L): | CD65: =IF($CE$21=$CG$21,"---",IF(AND($CE$21="",$CF$21="",$CG$21="",$CH$21=""),"---",(-$CF$21*($GB$28-$CE$21-($GB$28-$CG$21)))+(-1/2*($CH$21-$CF$21)/($CG$21-$CE$21)*(($GB$28-$CE$21)^2-($GB$28-$CG$21)^2)+($CH$21-$CF$21)*($GB$28-$CG$21)))) -> -26.71743325 | CE65: =IF($CE$21=$CG$21,"---",IF(AND($CE$21="",$CF$21="",$CG$21="",$CH$21=""),"---",(-$CF$21/2*(($GB$28-$CE$21)^2-($GB$28-$CG$21)^2))+(-1/6*($CH$21-$CF$21)/($CG$21-$CE$21)*(($GB$28-$CE$21)^3-($GB$28-$CG$21)^3)+($CH$21-$CF$21)/2*($GB$28-$CG$21)^2))) -> -194.4632455 | CF65: =IF($CE$21=$CG$21,"---",IF(AND($CE$21="",$CF$21="",$CG$21="",$CH$21=""),"---",(-$CF$21/(6*$FY$28*$GA$28)*(($GB$28-$CE$21)^3-($GB$28-$CG$21)^3))+(-1/(24*$FY$28*$GA$28)*($CH$21-$CF$21)/($CG$21-$CE$21)*(($GB$28-$CE$21)^4-($GB$28-$CG$21)^4)+($CH$21-$CF$21)/(6*$FY$28*$GA$28)*($GB$28-$CG$21)^3))) -> -5.139453576e-05 | CG65: =IF($CE$21=$CG$21,"---",IF(AND($CE$21="",$CF$21="",$CG$21="",$CH$21=""),"---",($CF$21/(24*$FY$28*$GA$28)*(($GB$28-$CE$21)^4-($GB$28-$CG$21)^4))+(1/(120*$FY$28*$GA$28)*($CH$21-$CF$21)/($CG$21-$CE$21)*(($GB$28-$CE$21)^5-($GB$28-$CG$21)^5)-($CH$21-$CF$21)/(24*$FY$28*$GA$28)*($GB$28-$CG$21)^4))) -> 0.0001792987656 | CH65: =IF($CE$21=$CG$21,"---",IF(AND($CE$21="",$CF$21="",$CG$21="",$CH$21=""),"---",(IF($EV65>=$CG$21,-$CF$21*($EV65-$CE$21-($EV65-$CG$21)),IF($EV65>=$CE$21,-$CF$21*($EV65-$CE$21),0)))+(IF($EV65>=$CG$21,-1/2*($CH$21-$CF$21)/($CG$21-$CE$21)*(($EV65-$CE$21)^2-($EV65-$CG$21)^2)+($CH$21-$CF$21)*($EV65-$CG$21),IF($EV65>=$CE$21,-1/2*($CH$21-$CF$21)/($CG$21-$CE$21)*($EV65-$CE$21)^2,0))))) -> 0 | CI65: =IF($CE$21=$CG$21,"---",IF(AND($CE$21="",$CF$21="",$CG$21="",$CH$21=""),"---",(IF($EV65>=$CG$21,-$CF$21/2*(($EV65-$CE$21)^2-($EV65-$CG$21)^2),IF($EV65>=$CE$21,-$CF$21/2*($EV65-$CE$21)^2,0)))+(IF($EV65>=$CG$21,-1/6*($CH$21-$CF$21)/($CG$21-$CE$21)*(($EV65-$CE$21)^3-($EV65-$CG$21)^3)+($CH$21-$CF$21)/2*($EV65-$CG$21)^2,IF($EV65>=$CE$21,-1/6*($CH$21-$CF$21)/($CG$21-$CE$21)*($EV65-$CE$21)^3,0))))) -> 0 | CJ65: =IF($CE$21=$CG$21,"---",IF(AND($CE$21="",$CF$21="",$CG$21="",$CH$21=""),"---",(IF($EV65>=$CG$21,-$CF$21/(6*$FY$28*$GA$28)*(($EV65-$CE$21)^3-($EV65-$CG$21)^3),IF($EV65>=$CE$21,-$CF$21/(6*$FY$28*$GA$28)*($EV65-$CE$21)^3,0)))+(IF($EV65>=$CG$21,-1/(24*$FY$28*$GA$28)*($CH$21-$CF$21)/($CG$21-$CE$21)*(($EV65-$CE$21)^4-($EV65-$CG$21)^4)+($CH$21-$CF$21)/(6*$FY$28*$GA$28)*($EV65-$CG$21)^3,IF($EV65>=$CE$21,-1/(24*$FY$28*$GA$28)*($CH$21-$CF$21)/($CG$21-$CE$21)*($EV65-$CE$21)^4,0))))) -> 0 | CK65: =IF($CE$21=$CG$21,"---",IF(AND($CE$21="",$CF$21="",$CG$21="",$CH$21=""),"---",(IF($EV65>=$CG$21,$CF$21/(24*$FY$28*$GA$28)*(($EV65-$CE$21)^4-($EV65-$CG$21)^4),IF($EV65>=$CE$21,$CF$21/(24*$FY$28*$GA$28)*($EV65-$CE$21)^4,0)))+(IF($EV65>=$CG$21,1/(120*$FY$28*$GA$28)*($CH$21-$CF$21)/($CG$21-$CE$21)*(($EV65-$CE$21)^5-($EV65-$CG$21)^5)-($CH$21-$CF$21)/(24*$FY$28*$GA$28)*($EV65-$CG$21)^4,IF($EV65>=$CE$21,1/(120*$FY$28*$GA$28)*($CH$21-$CF$21)/($CG$21-$CE$21)*($EV65-$CE$21)^5,0))))) -> 0 | CL65: =IF($CI$21=$CK$21,"---",IF(AND($CI$21="",$CJ$21="",$CK$21="",$CL$21=""),"---",(-$CJ$21*($GB$28-$CI$21-($GB$28-$CK$21)))+(-1/2*($CL$21-$CJ$21)/($CK$21-$CI$21)*(($GB$28-$CI$21)^2-($GB$28-$CK$21)^2)+($CL$21-$CJ$21)*($GB$28-$CK$21)))) -> --- | CM65: =IF($CI$21=$CK$21,"---",IF(AND($CI$21="",$CJ$21="",$CK$21="",$CL$21=""),"---",(-$CJ$21/2*(($GB$28-$CI$21)^2-($GB$28-$CK$21)^2))+(-1/6*($CL$21-$CJ$21)/($CK$21-$CI$21)*(($GB$28-$CI$21)^3-($GB$28-$CK$21)^3)+($CL$21-$CJ$21)/2*($GB$28-$CK$21)^2))) -> --- | CN65: =IF($CI$21=$CK$21,"---",IF(AND($CI$21="",$CJ$21="",$CK$21="",$CL$21=""),"---",(-$CJ$21/(6*$FY$28*$GA$28)*(($GB$28-$CI$21)^3-($GB$28-$CK$21)^3))+(-1/(24*$FY$28*$GA$28)*($CL$21-$CJ$21)/($CK$21-$CI$21)*(($GB$28-$CI$21)^4-($GB$28-$CK$21)^4)+($CL$21-$CJ$21)/(6*$FY$28*$GA$28)*($GB$28-$CK$21)^3))) -> --- | CO65: =IF($CI$21=$CK$21,"---",IF(AND($CI$21="",$CJ$21="",$CK$21="",$CL$21=""),"---",($CJ$21/(24*$FY$28*$GA$28)*(($GB$28-$CI$21)^4-($GB$28-$CK$21)^4))+(1/(120*$FY$28*$GA$28)*($CL$21-$CJ$21)/($CK$21-$CI$21)*(($GB$28-$CI$21)^5-($GB$28-$CK$21)^5)-($CL$21-$CJ$21)/(24*$FY$28*$GA$28)*($GB$28-$CK$21)^4))) -> --- | CP65: =IF($CI$21=$CK$21,"---",IF(AND($CI$21="",$CJ$21="",$CK$21="",$CL$21=""),"---",(IF($EV65>=$CK$21,-$CJ$21*($EV65-$CI$21-($EV65-$CK$21)),IF($EV65>=$CI$21,-$CJ$21*($EV65-$CI$21),0)))+(IF($EV65>=$CK$21,-1/2*($CL$21-$CJ$21)/($CK$21-$CI$21)*(($EV65-$CI$21)^2-($EV65-$CK$21)^2)+($CL$21-$CJ$21)*($EV65-$CK$21),IF($EV65>=$CI$21,-1/2*($CL$21-$CJ$21)/($CK$21-$CI$21)*($EV65-$CI$21)^2,0))))) -> --- | CQ65: =IF($CI$21=$CK$21,"---",IF(AND($CI$21="",$CJ$21="",$CK$21="",$CL$21=""),"---",(IF($EV65>=$CK$21,-$CJ$21/2*(($EV65-$CI$21)^2-($EV65-$CK$21)^2),IF($EV65>=$CI$21,-$CJ$21/2*($EV65-$CI$21)^2,0)))+(IF($EV65>=$CK$21,-1/6*($CL$21-$CJ$21)/($CK$21-$CI$21)*(($EV65-$CI$21)^3-($EV65-$CK$21)^3)+($CL$21-$CJ$21)/2*($EV65-$CK$21)^2,IF($EV65>=$CI$21,-1/6*($CL$21-$CJ$21)/($CK$21-$CI$21)*($EV65-$CI$21)^3,0))))) -> --- | CR65: =IF($CI$21=$CK$21,"---",IF(AND($CI$21="",$CJ$21="",$CK$21="",$CL$21=""),"---",(IF($EV65>=$CK$21,-$CJ$21/(6*$FY$28*$GA$28)*(($EV65-$CI$21)^3-($EV65-$CK$21)^3),IF($EV65>=$CI$21,-$CJ$21/(6*$FY$28*$GA$28)*($EV65-$CI$21)^3,0)))+(IF($EV65>=$CK$21,-1/(24*$FY$28*$GA$28)*($CL$21-$CJ$21)/($CK$21-$CI$21)*(($EV65-$CI$21)^4-($EV65-$CK$21)^4)+($CL$21-$CJ$21)/(6*$FY$28*$GA$28)*($EV65-$CK$21)^3,IF($EV65>=$CI$21,-1/(24*$FY$28*$GA$28)*($CL$21-$CJ$21)/($CK$21-$CI$21)*($EV65-$CI$21)^4,0))))) -> --- | CS65: =IF($CI$21=$CK$21,"---",IF(AND($CI$21="",$CJ$21="",$CK$21="",$CL$21=""),"---",(IF($EV65>=$CK$21,$CJ$21/(24*$FY$28*$GA$28)*(($EV65-$CI$21)^4-($EV65-$CK$21)^4),IF($EV65>=$CI$21,$CJ$21/(24*$FY$28*$GA$28)*($EV65-$CI$21)^4,0)))+(IF($EV65>=$CK$21,1/(120*$FY$28*$GA$28)*($CL$21-$CJ$21)/($CK$21-$CI$21)*(($EV65-$CI$21)^5-($EV65-$CK$21)^5)-($CL$21-$CJ$21)/(24*$FY$28*$GA$28)*($EV65-$CK$21)^4,IF($EV65>=$CI$21,1/(120*$FY$28*$GA$28)*($CL$21-$CJ$21)/($CK$21-$CI$21)*($EV65-$CI$21)^5,0))))) -> --- | CT65: =IF($CM$21=$CO$21,"---",IF(AND($CM$21="",$CN$21="",$CO$21="",$CP$21=""),"---",(-$CN$21*($GB$28-$CM$21-($GB$28-$CO$21)))+(-1/2*($CP$21-$CN$21)/($CO$21-$CM$21)*(($GB$28-$CM$21)^2-($GB$28-$CO$21)^2)+($CP$21-$CN$21)*($GB$28-$CO$21)))) -> --- | CU65: =IF($CM$21=$CO$21,"---",IF(AND($CM$21="",$CN$21="",$CO$21="",$CP$21=""),"---",(-$CN$21/2*(($GB$28-$CM$21)^2-($GB$28-$CO$21)^2))+(-1/6*($CP$21-$CN$21)/($CO$21-$CM$21)*(($GB$28-$CM$21)^3-($GB$28-$CO$21)^3)+($CP$21-$CN$21)/2*($GB$28-$CO$21)^2))) -> --- | CV65: =IF($CM$21=$CO$21,"---",IF(AND($CM$21="",$CN$21="",$CO$21="",$CP$21=""),"---",(-$CN$21/(6*$FY$28*$GA$28)*(($GB$28-$CM$21)^3-($GB$28-$CO$21)^3))+(-1/(24*$FY$28*$GA$28)*($CP$21-$CN$21)/($CO$21-$CM$21)*(($GB$28-$CM$21)^4-($GB$28-$CO$21)^4)+($CP$21-$CN$21)/(6*$FY$28*$GA$28)*($GB$28-$CO$21)^3))) -> --- | CW65: =IF($CM$21=$CO$21,"---",IF(AND($CM$21="",$CN$21="",$CO$21="",$CP$21=""),"---",($CN$21/(24*$FY$28*$GA$28)*(($GB$28-$CM$21)^4-($GB$28-$CO$21)^4))+(1/(120*$FY$28*$GA$28)*($CP$21-$CN$21)/($CO$21-$CM$21)*(($GB$28-$CM$21)^5-($GB$28-$CO$21)^5)-($CP$21-$CN$21)/(24*$FY$28*$GA$28)*($GB$28-$CO$21)^4))) -> --- | CX65: =IF($CM$21=$CO$21,"---",IF(AND($CM$21="",$CN$21="",$CO$21="",$CP$21=""),"---",(IF($EV65>=$CO$21,-$CN$21*($EV65-$CM$21-($EV65-$CO$21)),IF($EV65>=$CM$21,-$CN$21*($EV65-$CM$21),0)))+(IF($EV65>=$CO$21,-1/2*($CP$21-$CN$21)/($CO$21-$CM$21)*(($EV65-$CM$21)^2-($EV65-$CO$21)^2)+($CP$21-$CN$21)*($EV65-$CO$21),IF($EV65>=$CM$21,-1/2*($CP$21-$CN$21)/($CO$21-$CM$21)*($EV65-$CM$21)^2,0))))) -> --- | CY65: =IF($CM$21=$CO$21,"---",IF(AND($CM$21="",$CN$21="",$CO$21="",$CP$21=""),"---",(IF($EV65>=$CO$21,-$CN$21/2*(($EV65-$CM$21)^2-($EV65-$CO$21)^2),IF($EV65>=$CM$21,-$CN$21/2*($EV65-$CM$21)^2,0)))+(IF($EV65>=$CO$21,-1/6*($CP$21-$CN$21)/($CO$21-$CM$21)*(($EV65-$CM$21)^3-($EV65-$CO$21)^3)+($CP$21-$CN$21)/2*($EV65-$CO$21)^2,IF($EV65>=$CM$21,-1/6*($CP$21-$CN$21)/($CO$21-$CM$21)*($EV65-$CM$21)^3,0))))) -> --- | CZ65: =IF($CM$21=$CO$21,"---",IF(AND($CM$21="",$CN$21="",$CO$21="",$CP$21=""),"---",(IF($EV65>=$CO$21,-$CN$21/(6*$FY$28*$GA$28)*(($EV65-$CM$21)^3-($EV65-$CO$21)^3),IF($EV65>=$CM$21,-$CN$21/(6*$FY$28*$GA$28)*($EV65-$CM$21)^3,0)))+(IF($EV65>=$CO$21,-1/(24*$FY$28*$GA$28)*($CP$21-$CN$21)/($CO$21-$CM$21)*(($EV65-$CM$21)^4-($EV65-$CO$21)^4)+($CP$21-$CN$21)/(6*$FY$28*$GA$28)*($EV65-$CO$21)^3,IF($EV65>=$CM$21,-1/(24*$FY$28*$GA$28)*($CP$21-$CN$21)/($CO$21-$CM$21)*($EV65-$CM$21)^4,0))))) -> --- | DA65: =IF($CM$21=$CO$21,"---",IF(AND($CM$21="",$CN$21="",$CO$21="",$CP$21=""),"---",(IF($EV65>=$CO$21,$CN$21/(24*$FY$28*$GA$28)*(($EV65-$CM$21)^4-($EV65-$CO$21)^4),IF($EV65>=$CM$21,$CN$21/(24*$FY$28*$GA$28)*($EV65-$CM$21)^4,0)))+(IF($EV65>=$CO$21,1/(120*$FY$28*$GA$28)*($CP$21-$CN$21)/($CO$21-$CM$21)*(($EV65-$CM$21)^5-($EV65-$CO$21)^5)-($CP$21-$CN$21)/(24*$FY$28*$GA$28)*($EV65-$CO$21)^4,IF($EV65>=$CM$21,1/(120*$FY$28*$GA$28)*($CP$21-$CN$21)/($CO$21-$CM$21)*($EV65-$CM$21)^5,0))))) -> --- | DB65: =IF($CQ$21=$CS$21,"---",IF(AND($CQ$21="",$CR$21="",$CS$21="",$CT$21=""),"---",(-$CR$21*($GB$28-$CQ$21-($GB$28-$CS$21)))+(-1/2*($CT$21-$CR$21)/($CS$21-$CQ$21)*(($GB$28-$CQ$21)^2-($GB$28-$CS$21)^2)+($CT$21-$CR$21)*($GB$28-$CS$21)))) -> --- | DC65: =IF($CQ$21=$CS$21,"---",IF(AND($CQ$21="",$CR$21="",$CS$21="",$CT$21=""),"---",(-$CR$21/2*(($GB$28-$CQ$21)^2-($GB$28-$CS$21)^2))+(-1/6*($CT$21-$CR$21)/($CS$21-$CQ$21)*(($GB$28-$CQ$21)^3-($GB$28-$CS$21)^3)+($CT$21-$CR$21)/2*($GB$28-$CS$21)^2))) -> --- | DD65: =IF($CQ$21=$CS$21,"---",IF(AND($CQ$21="",$CR$21="",$CS$21="",$CT$21=""),"---",(-$CR$21/(6*$FY$28*$GA$28)*(($GB$28-$CQ$21)^3-($GB$28-$CS$21)^3))+(-1/(24*$FY$28*$GA$28)*($CT$21-$CR$21)/($CS$21-$CQ$21)*(($GB$28-$CQ$21)^4-($GB$28-$CS$21)^4)+($CT$21-$CR$21)/(6*$FY$28*$GA$28)*($GB$28-$CS$21)^3))) -> --- | DE65: =IF($CQ$21=$CS$21,"---",IF(AND($CQ$21="",$CR$21="",$CS$21="",$CT$21=""),"---",($CR$21/(24*$FY$28*$GA$28)*(($GB$28-$CQ$21)^4-($GB$28-$CS$21)^4))+(1/(120*$FY$28*$GA$28)*($CT$21-$CR$21)/($CS$21-$CQ$21)*(($GB$28-$CQ$21)^5-($GB$28-$CS$21)^5)-($CT$21-$CR$21)/(24*$FY$28*$GA$28)*($GB$28-$CS$21)^4))) -> --- | DF65: =IF($CQ$21=$CS$21,"---",IF(AND($CQ$21="",$CR$21="",$CS$21="",$CT$21=""),"---",(IF($EV65>=$CS$21,-$CR$21*($EV65-$CQ$21-($EV65-$CS$21)),IF($EV65>=$CQ$21,-$CR$21*($EV65-$CQ$21),0)))+(IF($EV65>=$CS$21,-1/2*($CT$21-$CR$21)/($CS$21-$CQ$21)*(($EV65-$CQ$21)^2-($EV65-$CS$21)^2)+($CT$21-$CR$21)*($EV65-$CS$21),IF($EV65>=$CQ$21,-1/2*($CT$21-$CR$21)/($CS$21-$CQ$21)*($EV65-$CQ$21)^2,0))))) -> --- | DG65: =IF($CQ$21=$CS$21,"---",IF(AND($CQ$21="",$CR$21="",$CS$21="",$CT$21=""),"---",(IF($EV65>=$CS$21,-$CR$21/2*(($EV65-$CQ$21)^2-($EV65-$CS$21)^2),IF($EV65>=$CQ$21,-$CR$21/2*($EV65-$CQ$21)^2,0)))+(IF($EV65>=$CS$21,-1/6*($CT$21-$CR$21)/($CS$21-$CQ$21)*(($EV65-$CQ$21)^3-($EV65-$CS$21)^3)+($CT$21-$CR$21)/2*($EV65-$CS$21)^2,IF($EV65>=$CQ$21,-1/6*($CT$21-$CR$21)/($CS$21-$CQ$21)*($EV65-$CQ$21)^3,0))))) -> --- | DH65: =IF($CQ$21=$CS$21,"---",IF(AND($CQ$21="",$CR$21="",$CS$21="",$CT$21=""),"---",(IF($EV65>=$CS$21,-$CR$21/(6*$FY$28*$GA$28)*(($EV65-$CQ$21)^3-($EV65-$CS$21)^3),IF($EV65>=$CQ$21,-$CR$21/(6*$FY$28*$GA$28)*($EV65-$CQ$21)^3,0)))+(IF($EV65>=$CS$21,-1/(24*$FY$28*$GA$28)*($CT$21-$CR$21)/($CS$21-$CQ$21)*(($EV65-$CQ$21)^4-($EV65-$CS$21)^4)+($CT$21-$CR$21)/(6*$FY$28*$GA$28)*($EV65-$CS$21)^3,IF($EV65>=$CQ$21,-1/(24*$FY$28*$GA$28)*($CT$21-$CR$21)/($CS$21-$CQ$21)*($EV65-$CQ$21)^4,0))))) -> --- | DI65: =IF($CQ$21=$CS$21,"---",IF(AND($CQ$21="",$CR$21="",$CS$21="",$CT$21=""),"---",(IF($EV65>=$CS$21,$CR$21/(24*$FY$28*$GA$28)*(($EV65-$CQ$21)^4-($EV65-$CS$21)^4),IF($EV65>=$CQ$21,$CR$21/(24*$FY$28*$GA$28)*($EV65-$CQ$21)^4,0)))+(IF($EV65>=$CS$21,1/(120*$FY$28*$GA$28)*($CT$21-$CR$21)/($CS$21-$CQ$21)*(($EV65-$CQ$21)^5-($EV65-$CS$21)^5)-($CT$21-$CR$21)/(24*$FY$28*$GA$28)*($EV65-$CS$21)^4,IF($EV65>=$CQ$21,1/(120*$FY$28*$GA$28)*($CT$21-$CR$21)/($CS$21-$CQ$21)*($EV65-$CQ$21)^5,0))))) -> --- | DJ65: =IF($CU$21=$CW$21,"---",IF(AND($CU$21="",$CV$21="",$CW$21="",$CX$21=""),"---",(-$CV$21*($GB$28-$CU$21-($GB$28-$CW$21)))+(-1/2*($CX$21-$CV$21)/($CW$21-$CU$21)*(($GB$28-$CU$21)^2-($GB$28-$CW$21)^2)+($CX$21-$CV$21)*($GB$28-$CW$21)))) -> --- | DK65: =IF($CU$21=$CW$21,"---",IF(AND($CU$21="",$CV$21="",$CW$21="",$CX$21=""),"---",(-$CV$21/2*(($GB$28-$CU$21)^2-($GB$28-$CW$21)^2))+(-1/6*($CX$21-$CV$21)/($CW$21-$CU$21)*(($GB$28-$CU$21)^3-($GB$28-$CW$21)^3)+($CX$21-$CV$21)/2*($GB$28-$CW$21)^2))) -> --- | DL65: =IF($CU$21=$CW$21,"---",IF(AND($CU$21="",$CV$21="",$CW$21="",$CX$21=""),"---",(-$CV$21/(6*$FY$28*$GA$28)*(($GB$28-$CU$21)^3-($GB$28-$CW$21)^3))+(-1/(24*$FY$28*$GA$28)*($CX$21-$CV$21)/($CW$21-$CU$21)*(($GB$28-$CU$21)^4-($GB$28-$CW$21)^4)+($CX$21-$CV$21)/(6*$FY$28*$GA$28)*($GB$28-$CW$21)^3))) -> --- | DM65: =IF($CU$21=$CW$21,"---",IF(AND($CU$21="",$CV$21="",$CW$21="",$CX$21=""),"---",($CV$21/(24*$FY$28*$GA$28)*(($GB$28-$CU$21)^4-($GB$28-$CW$21)^4))+(1/(120*$FY$28*$GA$28)*($CX$21-$CV$21)/($CW$21-$CU$21)*(($GB$28-$CU$21)^5-($GB$28-$CW$21)^5)-($CX$21-$CV$21)/(24*$FY$28*$GA$28)*($GB$28-$CW$21)^4))) -> --- | DN65: =IF($CU$21=$CW$21,"---",IF(AND($CU$21="",$CV$21="",$CW$21="",$CX$21=""),"---",(IF($EV65>=$CW$21,-$CV$21*($EV65-$CU$21-($EV65-$CW$21)),IF($EV65>=$CU$21,-$CV$21*($EV65-$CU$21),0)))+(IF($EV65>=$CW$21,-1/2*($CX$21-$CV$21)/($CW$21-$CU$21)*(($EV65-$CU$21)^2-($EV65-$CW$21)^2)+($CX$21-$CV$21)*($EV65-$CW$21),IF($EV65>=$CU$21,-1/2*($CX$21-$CV$21)/($CW$21-$CU$21)*($EV65-$CU$21)^2,0))))) -> --- | DO65: =IF($CU$21=$CW$21,"---",IF(AND($CU$21="",$CV$21="",$CW$21="",$CX$21=""),"---",(IF($EV65>=$CW$21,-$CV$21/2*(($EV65-$CU$21)^2-($EV65-$CW$21)^2),IF($EV65>=$CU$21,-$CV$21/2*($EV65-$CU$21)^2,0)))+(IF($EV65>=$CW$21,-1/6*($CX$21-$CV$21)/($CW$21-$CU$21)*(($EV65-$CU$21)^3-($EV65-$CW$21)^3)+($CX$21-$CV$21)/2*($EV65-$CW$21)^2,IF($EV65>=$CU$21,-1/6*($CX$21-$CV$21)/($CW$21-$CU$21)*($EV65-$CU$21)^3,0))))) -> --- | DP65: =IF($CU$21=$CW$21,"---",IF(AND($CU$21="",$CV$21="",$CW$21="",$CX$21=""),"---",(IF($EV65>=$CW$21,-$CV$21/(6*$FY$28*$GA$28)*(($EV65-$CU$21)^3-($EV65-$CW$21)^3),IF($EV65>=$CU$21,-$CV$21/(6*$FY$28*$GA$28)*($EV65-$CU$21)^3,0)))+(IF($EV65>=$CW$21,-1/(24*$FY$28*$GA$28)*($CX$21-$CV$21)/($CW$21-$CU$21)*(($EV65-$CU$21)^4-($EV65-$CW$21)^4)+($CX$21-$CV$21)/(6*$FY$28*$GA$28)*($EV65-$CW$21)^3,IF($EV65>=$CU$21,-1/(24*$FY$28*$GA$28)*($CX$21-$CV$21)/($CW$21-$CU$21)*($EV65-$CU$21)^4,0))))) -> --- | DQ65: =IF($CU$21=$CW$21,"---",IF(AND($CU$21="",$CV$21="",$CW$21="",$CX$21=""),"---",(IF($EV65>=$CW$21,$CV$21/(24*$FY$28*$GA$28)*(($EV65-$CU$21)^4-($EV65-$CW$21)^4),IF($EV65>=$CU$21,$CV$21/(24*$FY$28*$GA$28)*($EV65-$CU$21)^4,0)))+(IF($EV65>=$CW$21,1/(120*$FY$28*$GA$28)*($CX$21-$CV$21)/($CW$21-$CU$21)*(($EV65-$CU$21)^5-($EV65-$CW$21)^5)-($CX$21-$CV$21)/(24*$FY$28*$GA$28)*($EV65-$CW$21)^4,IF($EV65>=$CU$21,1/(120*$FY$28*$GA$28)*($CX$21-$CV$21)/($CW$21-$CU$21)*($EV65-$CU$21)^5,0))))) -> --- | DR65: =-$CF$36+-$CH$36+-$CJ$36+-$CL$36+-$CN$36+-$CP$36+-$CR$36+-$CT$36+-$CV$36+-$CX$36 -> 0 | DS65: =-$CF$36*($GB$28-$CE$36)+-$CH$36*($GB$28-$CG$36)+-$CJ$36*($GB$28-$CI$36)+-$CL$36*($GB$28-$CK$36)+-$CN$36*($GB$28-$CM$36)+-$CP$36*($GB$28-$CO$36)+-$CR$36*($GB$28-$CQ$36)+-$CT$36*($GB$28-$CS$36)+-$CV$36*($GB$28-$CU$36)+-$CX$36*($GB$28-$CW$36) -> 0 | DT65: =-$CF$36*($GB$28-$CE$36)^2/(2*$FY$28*$GA$28)+-$CH$36*($GB$28-$CG$36)^2/(2*$FY$28*$GA$28)+-$CJ$36*($GB$28-$CI$36)^2/(2*$FY$28*$GA$28)+-$CL$36*($GB$28-$CK$36)^2/(2*$FY$28*$GA$28)+-$CN$36*($GB$28-$CM$36)^2/(2*$FY$28*$GA$28)+-$CP$36*($GB$28-$CO$36)^2/(2*$FY$28*$GA$28)+-$CR$36*($GB$28-$CQ$36)^2/(2*$FY$28*$GA$28)+-$CT$36*($GB$28-$CS$36)^2/(2*$FY$28*$GA$28)+-$CV$36*($GB$28-$CU$36)^2/(2*$FY$28*$GA$28)+-$CX$36*($GB$28-$CW$36)^2/(2*$FY$28*$GA$28) -> 0 | DU65: =$CF$36*($GB$28-$CE$36)^3/(6*$FY$28*$GA$28)+$CH$36*($GB$28-$CG$36)^3/(6*$FY$28*$GA$28)+$CJ$36*($GB$28-$CI$36)^3/(6*$FY$28*$GA$28)+$CL$36*($GB$28-$CK$36)^3/(6*$FY$28*$GA$28)+$CN$36*($GB$28-$CM$36)^3/(6*$FY$28*$GA$28)+$CP$36*($GB$28-$CO$36)^3/(6*$FY$28*$GA$28)+$CR$36*($GB$28-$CQ$36)^3/(6*$FY$28*$GA$28)+$CT$36*($GB$28-$CS$36)^3/(6*$FY$28*$GA$28)+$CV$36*($GB$28-$CU$36)^3/(6*$FY$28*$GA$28)+$CX$36*($GB$28-$CW$36)^3/(6*$FY$28*$GA$28) -> 0 | DV65: =IF($EV59>$CE$36,-$CF$36,0)+IF($EV59>$CG$36,-$CH$36,0)+IF($EV59>$CI$36,-$CJ$36,0)+IF($EV59>$CK$36,-$CL$36,0)+IF($EV59>$CM$36,-$CN$36,0)+IF($EV59>$CO$36,-$CP$36,0)+IF($EV59>$CQ$36,-$CR$36,0)+IF($EV59>$CS$36,-$CT$36,0)+IF($EV59>$CU$36,-$CV$36,0)+IF($EV59>$CW$36,-$CX$36,0) -> 0 | DW65: =IF($EV59>$CE$36,-$CF$36*($EV59-$CE$36),0)+IF($EV59>$CG$36,-$CH$36*($EV59-$CG$36),0)+IF($EV59>$CI$36,-$CJ$36*($EV59-$CI$36),0)+IF($EV59>$CK$36,-$CL$36*($EV59-$CK$36),0)+IF($EV59>$CM$36,-$CN$36*($EV59-$CM$36),0)+IF($EV59>$CO$36,-$CP$36*($EV59-$CO$36),0)+IF($EV59>$CQ$36,-$CR$36*($EV59-$CQ$36),0)+IF($EV59>$CS$36,-$CT$36*($EV59-$CS$36),0)+IF($EV59>$CU$36,-$CV$36*($EV59-$CU$36),0)+IF($EV59>$CW$36,-$CX$36*($EV59-$CW$36),0) -> 0 | DX65: =IF($EV59>$CE$36,-$CF$36*($EV59-$CE$36)^2/(2*$FY$28*$GA$28),0)+IF($EV59>$CG$36,-$CH$36*($EV59-$CG$36)^2/(2*$FY$28*$GA$28),0)+IF($EV59>$CI$36,-$CJ$36*($EV59-$CI$36)^2/(2*$FY$28*$GA$28),0)+IF($EV59>$CK$36,-$CL$36*($EV59-$CK$36)^2/(2*$FY$28*$GA$28),0)+IF($EV59>$CM$36,-$CN$36*($EV59-$CM$36)^2/(2*$FY$28*$GA$28),0)+IF($EV59>$CO$36,-$CP$36*($EV59-$CO$36)^2/(2*$FY$28*$GA$28),0)+IF($EV59>$CQ$36,-$CR$36*($EV59-$CQ$36)^2/(2*$FY$28*$GA$28),0)+IF($EV59>$CS$36,-$CT$36*($EV59-$CS$36)^2/(2*$FY$28*$GA$28),0)+IF($EV59>$CU$36,-$CV$36*($EV59-$CU$36)^2/(2*$FY$28*$GA$28),0)+IF($EV59>$CW$36,-$CX$36*($EV59-$CW$36)^2/(2*$FY$28*$GA$28),0) -> 0 | DY65: =IF($EV59>$CE$36,$CF$36*($EV59-$CE$36)^3/(6*$FY$28*$GA$28),0)+IF($EV59>$CG$36,$CH$36*($EV59-$CG$36)^3/(6*$FY$28*$GA$28),0)+IF($EV59>$CI$36,$CJ$36*($EV59-$CI$36)^3/(6*$FY$28*$GA$28),0)+IF($EV59>$CK$36,$CL$36*($EV59-$CK$36)^3/(6*$FY$28*$GA$28),0)+IF($EV59>$CM$36,$CN$36*($EV59-$CM$36)^3/(6*$FY$28*$GA$28),0)+IF($EV59>$CO$36,$CP$36*($EV59-$CO$36)^3/(6*$FY$28*$GA$28),0)+IF($EV59>$CQ$36,$CR$36*($EV59-$CQ$36)^3/(6*$FY$28*$GA$28),0)+IF($EV59>$CS$36,$CT$36*($EV59-$CS$36)^3/(6*$FY$28*$GA$28),0)+IF($EV59>$CU$36,$CV$36*($EV59-$CU$36)^3/(6*$FY$28*$GA$28),0)+IF($EV59>$CW$36,$CX$36*($EV59-$CW$36)^3/(6*$FY$28*$GA$28),0) -> 0 | DZ65: =0+0+0+0 -> 0 | EA65: =0+0+0+0 -> 0 | EB65: =0+0+0+0 -> 0 | EC65: =0+0+0+0 -> 0 | ED65: 0 | EE65: 0 | EF65: 0 | EG65: 0 | EH65: -26.71743325 | EI65: -194.4632455 | EJ65: -5.139453576e-05 | EK65: 0.0001792987656 | EL65: 0 | EM65: 0 | EN65: 0 | EO65: 0 | EP65: =-12*$FY$28*$GA$28/$GB$28^3*$EK65-6*$FY$28*$GA$28/$GB$28^2*$EJ65 -> 10.41431793 | EQ65: =6*$FY$28*$GA$28/$GB$28^2*$EK65+2*$FY$28*$GA$28/$GB$28*$EJ65 -> -41.31770554 | ER65: =0 -> 0 | ES65: =0 -> 0 | ET65: =$EP65+$EL65 -> 10.41431793 | EU65: -41.31770554 | EV65: =0 -> 0 | EW65: Member #2(X) Axial(L): | FF65: W36x210 | FG65: 61.8 | FH65: 13200 | FI65: 411 | FJ65: 398.71 | FK65: 549425.48 | FL65: 17107.11
H66: Joint 1 - Dead | O66: 10 | T66: 20 | Y66: 15 | BE66: Member No. | BG66: Moment #1 | BI66: Moment #2 | BK66: Moment #3 | BM66: Moment #4 | BO66: Moment #5 | CC66: Member #2(X) Axial(R): | CD66: =$CD$65 -> -26.71743325 | CE66: =$CE$65 -> -194.4632455 | CF66: =$CF$65 -> -5.139453576e-05 | CG66: =$CG$65 -> 0.0001792987656 | CH66: =IF($CE$21=$CG$21,"---",IF(AND($CE$21="",$CF$21="",$CG$21="",$CH$21=""),"---",(IF($EV66>=$CG$21,-$CF$21*($EV66-$CE$21-($EV66-$CG$21)),IF($EV66>=$CE$21,-$CF$21*($EV66-$CE$21),0)))+(IF($EV66>=$CG$21,-1/2*($CH$21-$CF$21)/($CG$21-$CE$21)*(($EV66-$CE$21)^2-($EV66-$CG$21)^2)+($CH$21-$CF$21)*($EV66-$CG$21),IF($EV66>=$CE$21,-1/2*($CH$21-$CF$21)/($CG$21-$CE$21)*($EV66-$CE$21)^2,0))))) -> -26.71743325 | CI66: =IF($CE$21=$CG$21,"---",IF(AND($CE$21="",$CF$21="",$CG$21="",$CH$21=""),"---",(IF($EV66>=$CG$21,-$CF$21/2*(($EV66-$CE$21)^2-($EV66-$CG$21)^2),IF($EV66>=$CE$21,-$CF$21/2*($EV66-$CE$21)^2,0)))+(IF($EV66>=$CG$21,-1/6*($CH$21-$CF$21)/($CG$21-$CE$21)*(($EV66-$CE$21)^3-($EV66-$CG$21)^3)+($CH$21-$CF$21)/2*($EV66-$CG$21)^2,IF($EV66>=$CE$21,-1/6*($CH$21-$CF$21)/($CG$21-$CE$21)*($EV66-$CE$21)^3,0))))) -> -194.4632455 | CJ66: =IF($CE$21=$CG$21,"---",IF(AND($CE$21="",$CF$21="",$CG$21="",$CH$21=""),"---",(IF($EV66>=$CG$21,-$CF$21/(6*$FY$28*$GA$28)*(($EV66-$CE$21)^3-($EV66-$CG$21)^3),IF($EV66>=$CE$21,-$CF$21/(6*$FY$28*$GA$28)*($EV66-$CE$21)^3,0)))+(IF($EV66>=$CG$21,-1/(24*$FY$28*$GA$28)*($CH$21-$CF$21)/($CG$21-$CE$21)*(($EV66-$CE$21)^4-($EV66-$CG$21)^4)+($CH$21-$CF$21)/(6*$FY$28*$GA$28)*($EV66-$CG$21)^3,IF($EV66>=$CE$21,-1/(24*$FY$28*$GA$28)*($CH$21-$CF$21)/($CG$21-$CE$21)*($EV66-$CE$21)^4,0))))) -> -5.139453576e-05 | CK66: =IF($CE$21=$CG$21,"---",IF(AND($CE$21="",$CF$21="",$CG$21="",$CH$21=""),"---",(IF($EV66>=$CG$21,$CF$21/(24*$FY$28*$GA$28)*(($EV66-$CE$21)^4-($EV66-$CG$21)^4),IF($EV66>=$CE$21,$CF$21/(24*$FY$28*$GA$28)*($EV66-$CE$21)^4,0)))+(IF($EV66>=$CG$21,1/(120*$FY$28*$GA$28)*($CH$21-$CF$21)/($CG$21-$CE$21)*(($EV66-$CE$21)^5-($EV66-$CG$21)^5)-($CH$21-$CF$21)/(24*$FY$28*$GA$28)*($EV66-$CG$21)^4,IF($EV66>=$CE$21,1/(120*$FY$28*$GA$28)*($CH$21-$CF$21)/($CG$21-$CE$21)*($EV66-$CE$21)^5,0))))) -> 0.0001792987656 | CL66: =$CL$65 -> --- | CM66: =$CM$65 -> --- | CN66: =$CN$65 -> --- | CO66: =$CO$65 -> --- | CP66: =IF($CI$21=$CK$21,"---",IF(AND($CI$21="",$CJ$21="",$CK$21="",$CL$21=""),"---",(IF($EV66>=$CK$21,-$CJ$21*($EV66-$CI$21-($EV66-$CK$21)),IF($EV66>=$CI$21,-$CJ$21*($EV66-$CI$21),0)))+(IF($EV66>=$CK$21,-1/2*($CL$21-$CJ$21)/($CK$21-$CI$21)*(($EV66-$CI$21)^2-($EV66-$CK$21)^2)+($CL$21-$CJ$21)*($EV66-$CK$21),IF($EV66>=$CI$21,-1/2*($CL$21-$CJ$21)/($CK$21-$CI$21)*($EV66-$CI$21)^2,0))))) -> --- | CQ66: =IF($CI$21=$CK$21,"---",IF(AND($CI$21="",$CJ$21="",$CK$21="",$CL$21=""),"---",(IF($EV66>=$CK$21,-$CJ$21/2*(($EV66-$CI$21)^2-($EV66-$CK$21)^2),IF($EV66>=$CI$21,-$CJ$21/2*($EV66-$CI$21)^2,0)))+(IF($EV66>=$CK$21,-1/6*($CL$21-$CJ$21)/($CK$21-$CI$21)*(($EV66-$CI$21)^3-($EV66-$CK$21)^3)+($CL$21-$CJ$21)/2*($EV66-$CK$21)^2,IF($EV66>=$CI$21,-1/6*($CL$21-$CJ$21)/($CK$21-$CI$21)*($EV66-$CI$21)^3,0))))) -> --- | CR66: =IF($CI$21=$CK$21,"---",IF(AND($CI$21="",$CJ$21="",$CK$21="",$CL$21=""),"---",(IF($EV66>=$CK$21,-$CJ$21/(6*$FY$28*$GA$28)*(($EV66-$CI$21)^3-($EV66-$CK$21)^3),IF($EV66>=$CI$21,-$CJ$21/(6*$FY$28*$GA$28)*($EV66-$CI$21)^3,0)))+(IF($EV66>=$CK$21,-1/(24*$FY$28*$GA$28)*($CL$21-$CJ$21)/($CK$21-$CI$21)*(($EV66-$CI$21)^4-($EV66-$CK$21)^4)+($CL$21-$CJ$21)/(6*$FY$28*$GA$28)*($EV66-$CK$21)^3,IF($EV66>=$CI$21,-1/(24*$FY$28*$GA$28)*($CL$21-$CJ$21)/($CK$21-$CI$21)*($EV66-$CI$21)^4,0))))) -> --- | CS66: =IF($CI$21=$CK$21,"---",IF(AND($CI$21="",$CJ$21="",$CK$21="",$CL$21=""),"---",(IF($EV66>=$CK$21,$CJ$21/(24*$FY$28*$GA$28)*(($EV66-$CI$21)^4-($EV66-$CK$21)^4),IF($EV66>=$CI$21,$CJ$21/(24*$FY$28*$GA$28)*($EV66-$CI$21)^4,0)))+(IF($EV66>=$CK$21,1/(120*$FY$28*$GA$28)*($CL$21-$CJ$21)/($CK$21-$CI$21)*(($EV66-$CI$21)^5-($EV66-$CK$21)^5)-($CL$21-$CJ$21)/(24*$FY$28*$GA$28)*($EV66-$CK$21)^4,IF($EV66>=$CI$21,1/(120*$FY$28*$GA$28)*($CL$21-$CJ$21)/($CK$21-$CI$21)*($EV66-$CI$21)^5,0))))) -> --- | CT66: =$CT$65 -> --- | CU66: =$CU$65 -> --- | CV66: =$CV$65 -> --- | CW66: =$CW$65 -> --- | CX66: =IF($CM$21=$CO$21,"---",IF(AND($CM$21="",$CN$21="",$CO$21="",$CP$21=""),"---",(IF($EV66>=$CO$21,-$CN$21*($EV66-$CM$21-($EV66-$CO$21)),IF($EV66>=$CM$21,-$CN$21*($EV66-$CM$21),0)))+(IF($EV66>=$CO$21,-1/2*($CP$21-$CN$21)/($CO$21-$CM$21)*(($EV66-$CM$21)^2-($EV66-$CO$21)^2)+($CP$21-$CN$21)*($EV66-$CO$21),IF($EV66>=$CM$21,-1/2*($CP$21-$CN$21)/($CO$21-$CM$21)*($EV66-$CM$21)^2,0))))) -> --- | CY66: =IF($CM$21=$CO$21,"---",IF(AND($CM$21="",$CN$21="",$CO$21="",$CP$21=""),"---",(IF($EV66>=$CO$21,-$CN$21/2*(($EV66-$CM$21)^2-($EV66-$CO$21)^2),IF($EV66>=$CM$21,-$CN$21/2*($EV66-$CM$21)^2,0)))+(IF($EV66>=$CO$21,-1/6*($CP$21-$CN$21)/($CO$21-$CM$21)*(($EV66-$CM$21)^3-($EV66-$CO$21)^3)+($CP$21-$CN$21)/2*($EV66-$CO$21)^2,IF($EV66>=$CM$21,-1/6*($CP$21-$CN$21)/($CO$21-$CM$21)*($EV66-$CM$21)^3,0))))) -> --- | CZ66: =IF($CM$21=$CO$21,"---",IF(AND($CM$21="",$CN$21="",$CO$21="",$CP$21=""),"---",(IF($EV66>=$CO$21,-$CN$21/(6*$FY$28*$GA$28)*(($EV66-$CM$21)^3-($EV66-$CO$21)^3),IF($EV66>=$CM$21,-$CN$21/(6*$FY$28*$GA$28)*($EV66-$CM$21)^3,0)))+(IF($EV66>=$CO$21,-1/(24*$FY$28*$GA$28)*($CP$21-$CN$21)/($CO$21-$CM$21)*(($EV66-$CM$21)^4-($EV66-$CO$21)^4)+($CP$21-$CN$21)/(6*$FY$28*$GA$28)*($EV66-$CO$21)^3,IF($EV66>=$CM$21,-1/(24*$FY$28*$GA$28)*($CP$21-$CN$21)/($CO$21-$CM$21)*($EV66-$CM$21)^4,0))))) -> --- | DA66: =IF($CM$21=$CO$21,"---",IF(AND($CM$21="",$CN$21="",$CO$21="",$CP$21=""),"---",(IF($EV66>=$CO$21,$CN$21/(24*$FY$28*$GA$28)*(($EV66-$CM$21)^4-($EV66-$CO$21)^4),IF($EV66>=$CM$21,$CN$21/(24*$FY$28*$GA$28)*($EV66-$CM$21)^4,0)))+(IF($EV66>=$CO$21,1/(120*$FY$28*$GA$28)*($CP$21-$CN$21)/($CO$21-$CM$21)*(($EV66-$CM$21)^5-($EV66-$CO$21)^5)-($CP$21-$CN$21)/(24*$FY$28*$GA$28)*($EV66-$CO$21)^4,IF($EV66>=$CM$21,1/(120*$FY$28*$GA$28)*($CP$21-$CN$21)/($CO$21-$CM$21)*($EV66-$CM$21)^5,0))))) -> --- | DB66: =$DB$65 -> --- | DC66: =$DC$65 -> --- | DD66: =$DD$65 -> --- | DE66: =$DE$65 -> --- | DF66: =IF($CQ$21=$CS$21,"---",IF(AND($CQ$21="",$CR$21="",$CS$21="",$CT$21=""),"---",(IF($EV66>=$CS$21,-$CR$21*($EV66-$CQ$21-($EV66-$CS$21)),IF($EV66>=$CQ$21,-$CR$21*($EV66-$CQ$21),0)))+(IF($EV66>=$CS$21,-1/2*($CT$21-$CR$21)/($CS$21-$CQ$21)*(($EV66-$CQ$21)^2-($EV66-$CS$21)^2)+($CT$21-$CR$21)*($EV66-$CS$21),IF($EV66>=$CQ$21,-1/2*($CT$21-$CR$21)/($CS$21-$CQ$21)*($EV66-$CQ$21)^2,0))))) -> --- | DG66: =IF($CQ$21=$CS$21,"---",IF(AND($CQ$21="",$CR$21="",$CS$21="",$CT$21=""),"---",(IF($EV66>=$CS$21,-$CR$21/2*(($EV66-$CQ$21)^2-($EV66-$CS$21)^2),IF($EV66>=$CQ$21,-$CR$21/2*($EV66-$CQ$21)^2,0)))+(IF($EV66>=$CS$21,-1/6*($CT$21-$CR$21)/($CS$21-$CQ$21)*(($EV66-$CQ$21)^3-($EV66-$CS$21)^3)+($CT$21-$CR$21)/2*($EV66-$CS$21)^2,IF($EV66>=$CQ$21,-1/6*($CT$21-$CR$21)/($CS$21-$CQ$21)*($EV66-$CQ$21)^3,0))))) -> --- | DH66: =IF($CQ$21=$CS$21,"---",IF(AND($CQ$21="",$CR$21="",$CS$21="",$CT$21=""),"---",(IF($EV66>=$CS$21,-$CR$21/(6*$FY$28*$GA$28)*(($EV66-$CQ$21)^3-($EV66-$CS$21)^3),IF($EV66>=$CQ$21,-$CR$21/(6*$FY$28*$GA$28)*($EV66-$CQ$21)^3,0)))+(IF($EV66>=$CS$21,-1/(24*$FY$28*$GA$28)*($CT$21-$CR$21)/($CS$21-$CQ$21)*(($EV66-$CQ$21)^4-($EV66-$CS$21)^4)+($CT$21-$CR$21)/(6*$FY$28*$GA$28)*($EV66-$CS$21)^3,IF($EV66>=$CQ$21,-1/(24*$FY$28*$GA$28)*($CT$21-$CR$21)/($CS$21-$CQ$21)*($EV66-$CQ$21)^4,0))))) -> --- | DI66: =IF($CQ$21=$CS$21,"---",IF(AND($CQ$21="",$CR$21="",$CS$21="",$CT$21=""),"---",(IF($EV66>=$CS$21,$CR$21/(24*$FY$28*$GA$28)*(($EV66-$CQ$21)^4-($EV66-$CS$21)^4),IF($EV66>=$CQ$21,$CR$21/(24*$FY$28*$GA$28)*($EV66-$CQ$21)^4,0)))+(IF($EV66>=$CS$21,1/(120*$FY$28*$GA$28)*($CT$21-$CR$21)/($CS$21-$CQ$21)*(($EV66-$CQ$21)^5-($EV66-$CS$21)^5)-($CT$21-$CR$21)/(24*$FY$28*$GA$28)*($EV66-$CS$21)^4,IF($EV66>=$CQ$21,1/(120*$FY$28*$GA$28)*($CT$21-$CR$21)/($CS$21-$CQ$21)*($EV66-$CQ$21)^5,0))))) -> --- | DJ66: =$DJ$65 -> --- | DK66: =$DK$65 -> --- | DL66: =$DL$65 -> --- | DM66: =$DM$65 -> --- | DN66: =IF($CU$21=$CW$21,"---",IF(AND($CU$21="",$CV$21="",$CW$21="",$CX$21=""),"---",(IF($EV66>=$CW$21,-$CV$21*($EV66-$CU$21-($EV66-$CW$21)),IF($EV66>=$CU$21,-$CV$21*($EV66-$CU$21),0)))+(IF($EV66>=$CW$21,-1/2*($CX$21-$CV$21)/($CW$21-$CU$21)*(($EV66-$CU$21)^2-($EV66-$CW$21)^2)+($CX$21-$CV$21)*($EV66-$CW$21),IF($EV66>=$CU$21,-1/2*($CX$21-$CV$21)/($CW$21-$CU$21)*($EV66-$CU$21)^2,0))))) -> --- | DO66: =IF($CU$21=$CW$21,"---",IF(AND($CU$21="",$CV$21="",$CW$21="",$CX$21=""),"---",(IF($EV66>=$CW$21,-$CV$21/2*(($EV66-$CU$21)^2-($EV66-$CW$21)^2),IF($EV66>=$CU$21,-$CV$21/2*($EV66-$CU$21)^2,0)))+(IF($EV66>=$CW$21,-1/6*($CX$21-$CV$21)/($CW$21-$CU$21)*(($EV66-$CU$21)^3-($EV66-$CW$21)^3)+($CX$21-$CV$21)/2*($EV66-$CW$21)^2,IF($EV66>=$CU$21,-1/6*($CX$21-$CV$21)/($CW$21-$CU$21)*($EV66-$CU$21)^3,0))))) -> --- | DP66: =IF($CU$21=$CW$21,"---",IF(AND($CU$21="",$CV$21="",$CW$21="",$CX$21=""),"---",(IF($EV66>=$CW$21,-$CV$21/(6*$FY$28*$GA$28)*(($EV66-$CU$21)^3-($EV66-$CW$21)^3),IF($EV66>=$CU$21,-$CV$21/(6*$FY$28*$GA$28)*($EV66-$CU$21)^3,0)))+(IF($EV66>=$CW$21,-1/(24*$FY$28*$GA$28)*($CX$21-$CV$21)/($CW$21-$CU$21)*(($EV66-$CU$21)^4-($EV66-$CW$21)^4)+($CX$21-$CV$21)/(6*$FY$28*$GA$28)*($EV66-$CW$21)^3,IF($EV66>=$CU$21,-1/(24*$FY$28*$GA$28)*($CX$21-$CV$21)/($CW$21-$CU$21)*($EV66-$CU$21)^4,0))))) -> --- | DQ66: =IF($CU$21=$CW$21,"---",IF(AND($CU$21="",$CV$21="",$CW$21="",$CX$21=""),"---",(IF($EV66>=$CW$21,$CV$21/(24*$FY$28*$GA$28)*(($EV66-$CU$21)^4-($EV66-$CW$21)^4),IF($EV66>=$CU$21,$CV$21/(24*$FY$28*$GA$28)*($EV66-$CU$21)^4,0)))+(IF($EV66>=$CW$21,1/(120*$FY$28*$GA$28)*($CX$21-$CV$21)/($CW$21-$CU$21)*(($EV66-$CU$21)^5-($EV66-$CW$21)^5)-($CX$21-$CV$21)/(24*$FY$28*$GA$28)*($EV66-$CW$21)^4,IF($EV66>=$CU$21,1/(120*$FY$28*$GA$28)*($CX$21-$CV$21)/($CW$21-$CU$21)*($EV66-$CU$21)^5,0))))) -> --- | DR66: =$DR$65 -> 0 | DS66: =$DS$65 -> 0 | DT66: =$DT$65 -> 0 | DU66: =$DU$65 -> 0 | DV66: =IF($EV60>$CE$36,-$CF$36,0)+IF($EV60>$CG$36,-$CH$36,0)+IF($EV60>$CI$36,-$CJ$36,0)+IF($EV60>$CK$36,-$CL$36,0)+IF($EV60>$CM$36,-$CN$36,0)+IF($EV60>$CO$36,-$CP$36,0)+IF($EV60>$CQ$36,-$CR$36,0)+IF($EV60>$CS$36,-$CT$36,0)+IF($EV60>$CU$36,-$CV$36,0)+IF($EV60>$CW$36,-$CX$36,0) -> 0 | DW66: =IF($EV60>$CE$36,-$CF$36*($EV60-$CE$36),0)+IF($EV60>$CG$36,-$CH$36*($EV60-$CG$36),0)+IF($EV60>$CI$36,-$CJ$36*($EV60-$CI$36),0)+IF($EV60>$CK$36,-$CL$36*($EV60-$CK$36),0)+IF($EV60>$CM$36,-$CN$36*($EV60-$CM$36),0)+IF($EV60>$CO$36,-$CP$36*($EV60-$CO$36),0)+IF($EV60>$CQ$36,-$CR$36*($EV60-$CQ$36),0)+IF($EV60>$CS$36,-$CT$36*($EV60-$CS$36),0)+IF($EV60>$CU$36,-$CV$36*($EV60-$CU$36),0)+IF($EV60>$CW$36,-$CX$36*($EV60-$CW$36),0) -> 0 | DX66: =IF($EV60>$CE$36,-$CF$36*($EV60-$CE$36)^2/(2*$FY$28*$GA$28),0)+IF($EV60>$CG$36,-$CH$36*($EV60-$CG$36)^2/(2*$FY$28*$GA$28),0)+IF($EV60>$CI$36,-$CJ$36*($EV60-$CI$36)^2/(2*$FY$28*$GA$28),0)+IF($EV60>$CK$36,-$CL$36*($EV60-$CK$36)^2/(2*$FY$28*$GA$28),0)+IF($EV60>$CM$36,-$CN$36*($EV60-$CM$36)^2/(2*$FY$28*$GA$28),0)+IF($EV60>$CO$36,-$CP$36*($EV60-$CO$36)^2/(2*$FY$28*$GA$28),0)+IF($EV60>$CQ$36,-$CR$36*($EV60-$CQ$36)^2/(2*$FY$28*$GA$28),0)+IF($EV60>$CS$36,-$CT$36*($EV60-$CS$36)^2/(2*$FY$28*$GA$28),0)+IF($EV60>$CU$36,-$CV$36*($EV60-$CU$36)^2/(2*$FY$28*$GA$28),0)+IF($EV60>$CW$36,-$CX$36*($EV60-$CW$36)^2/(2*$FY$28*$GA$28),0) -> 0 | DY66: =IF($EV60>$CE$36,$CF$36*($EV60-$CE$36)^3/(6*$FY$28*$GA$28),0)+IF($EV60>$CG$36,$CH$36*($EV60-$CG$36)^3/(6*$FY$28*$GA$28),0)+IF($EV60>$CI$36,$CJ$36*($EV60-$CI$36)^3/(6*$FY$28*$GA$28),0)+IF($EV60>$CK$36,$CL$36*($EV60-$CK$36)^3/(6*$FY$28*$GA$28),0)+IF($EV60>$CM$36,$CN$36*($EV60-$CM$36)^3/(6*$FY$28*$GA$28),0)+IF($EV60>$CO$36,$CP$36*($EV60-$CO$36)^3/(6*$FY$28*$GA$28),0)+IF($EV60>$CQ$36,$CR$36*($EV60-$CQ$36)^3/(6*$FY$28*$GA$28),0)+IF($EV60>$CS$36,$CT$36*($EV60-$CS$36)^3/(6*$FY$28*$GA$28),0)+IF($EV60>$CU$36,$CV$36*($EV60-$CU$36)^3/(6*$FY$28*$GA$28),0)+IF($EV60>$CW$36,$CX$36*($EV60-$CW$36)^3/(6*$FY$28*$GA$28),0) -> 0 | DZ66: =$DZ$65 -> 0 | EA66: =$EA$65 -> 0 | EB66: =$EB$65 -> 0 | EC66: =$EC$65 -> 0 | ED66: 0 | EE66: 0 | EF66: 0 | EG66: 0 | EH66: -26.71743325 | EI66: -194.4632455 | EJ66: -5.139453576e-05 | EK66: 0.0001792987656 | EL66: -26.71743325 | EM66: -194.4632455 | EN66: -5.139453576e-05 | EO66: 0.0001792987656 | EP66: =$EP$65 -> 10.41431793 | EQ66: =$EQ$65 -> -41.31770554 | ER66: =$ER$65 -> 0 | ES66: =$ES$65 -> 0 | ET66: =-($EP66+$EL66) -> 16.30311533 | EU66: -51.78275798 | EV66: =$GB$28+0.0000000001 -> 17.66781025 | EW66: Member #2(X) Axial(R): | FF66: W36x194 | FG66: 57 | FH66: 12100 | FI66: 375 | FJ66: 367.74 | FK66: 503640.02 | FL66: 15608.68 | FW66: Member No. | FY66: Moment #1 | GA66: Moment #2 | GC66: Moment #3 | GE66: Moment #4 | GG66: Moment #5
H67: Joint 1 - Imposed | BG67: c/L | BH67: M (kN-m) | BI67: c/L | BJ67: M (kN-m) | BK67: c/L | BL67: M (kN-m) | BM67: c/L | BN67: M (kN-m) | BO67: c/L | BP67: M (kN-m) | CC67: Member #3(Y) FEM(L): | CD67: =IF($CE$22=$CG$22,"---",IF(AND($CE$22="",$CF$22="",$CG$22="",$CH$22=""),"---",(-$CF$22*($GB$29-$CE$22-($GB$29-$CG$22)))+(-1/2*($CH$22-$CF$22)/($CG$22-$CE$22)*(($GB$29-$CE$22)^2-($GB$29-$CG$22)^2)+($CH$22-$CF$22)*($GB$29-$CG$22)))) -> --- | CE67: =IF($CE$22=$CG$22,"---",IF(AND($CE$22="",$CF$22="",$CG$22="",$CH$22=""),"---",(-$CF$22/2*(($GB$29-$CE$22)^2-($GB$29-$CG$22)^2))+(-1/6*($CH$22-$CF$22)/($CG$22-$CE$22)*(($GB$29-$CE$22)^3-($GB$29-$CG$22)^3)+($CH$22-$CF$22)/2*($GB$29-$CG$22)^2))) -> --- | CF67: =IF($CE$22=$CG$22,"---",IF(AND($CE$22="",$CF$22="",$CG$22="",$CH$22=""),"---",(-$CF$22/(6*$FY$29*$GA$29)*(($GB$29-$CE$22)^3-($GB$29-$CG$22)^3))+(-1/(24*$FY$29*$GA$29)*($CH$22-$CF$22)/($CG$22-$CE$22)*(($GB$29-$CE$22)^4-($GB$29-$CG$22)^4)+($CH$22-$CF$22)/(6*$FY$29*$GA$29)*($GB$29-$CG$22)^3))) -> --- | CG67: =IF($CE$22=$CG$22,"---",IF(AND($CE$22="",$CF$22="",$CG$22="",$CH$22=""),"---",($CF$22/(24*$FY$29*$GA$29)*(($GB$29-$CE$22)^4-($GB$29-$CG$22)^4))+(1/(120*$FY$29*$GA$29)*($CH$22-$CF$22)/($CG$22-$CE$22)*(($GB$29-$CE$22)^5-($GB$29-$CG$22)^5)-($CH$22-$CF$22)/(24*$FY$29*$GA$29)*($GB$29-$CG$22)^4))) -> --- | CH67: =IF($CE$22=$CG$22,"---",IF(AND($CE$22="",$CF$22="",$CG$22="",$CH$22=""),"---",(IF($EV67>=$CG$22,-$CF$22*($EV67-$CE$22-($EV67-$CG$22)),IF($EV67>=$CE$22,-$CF$22*($EV67-$CE$22),0)))+(IF($EV67>=$CG$22,-1/2*($CH$22-$CF$22)/($CG$22-$CE$22)*(($EV67-$CE$22)^2-($EV67-$CG$22)^2)+($CH$22-$CF$22)*($EV67-$CG$22),IF($EV67>=$CE$22,-1/2*($CH$22-$CF$22)/($CG$22-$CE$22)*($EV67-$CE$22)^2,0))))) -> --- | CI67: =IF($CE$22=$CG$22,"---",IF(AND($CE$22="",$CF$22="",$CG$22="",$CH$22=""),"---",(IF($EV67>=$CG$22,-$CF$22/2*(($EV67-$CE$22)^2-($EV67-$CG$22)^2),IF($EV67>=$CE$22,-$CF$22/2*($EV67-$CE$22)^2,0)))+(IF($EV67>=$CG$22,-1/6*($CH$22-$CF$22)/($CG$22-$CE$22)*(($EV67-$CE$22)^3-($EV67-$CG$22)^3)+($CH$22-$CF$22)/2*($EV67-$CG$22)^2,IF($EV67>=$CE$22,-1/6*($CH$22-$CF$22)/($CG$22-$CE$22)*($EV67-$CE$22)^3,0))))) -> --- | CJ67: =IF($CE$22=$CG$22,"---",IF(AND($CE$22="",$CF$22="",$CG$22="",$CH$22=""),"---",(IF($EV67>=$CG$22,-$CF$22/(6*$FY$29*$GA$29)*(($EV67-$CE$22)^3-($EV67-$CG$22)^3),IF($EV67>=$CE$22,-$CF$22/(6*$FY$29*$GA$29)*($EV67-$CE$22)^3,0)))+(IF($EV67>=$CG$22,-1/(24*$FY$29*$GA$29)*($CH$22-$CF$22)/($CG$22-$CE$22)*(($EV67-$CE$22)^4-($EV67-$CG$22)^4)+($CH$22-$CF$22)/(6*$FY$29*$GA$29)*($EV67-$CG$22)^3,IF($EV67>=$CE$22,-1/(24*$FY$29*$GA$29)*($CH$22-$CF$22)/($CG$22-$CE$22)*($EV67-$CE$22)^4,0))))) -> --- | CK67: =IF($CE$22=$CG$22,"---",IF(AND($CE$22="",$CF$22="",$CG$22="",$CH$22=""),"---",(IF($EV67>=$CG$22,$CF$22/(24*$FY$29*$GA$29)*(($EV67-$CE$22)^4-($EV67-$CG$22)^4),IF($EV67>=$CE$22,$CF$22/(24*$FY$29*$GA$29)*($EV67-$CE$22)^4,0)))+(IF($EV67>=$CG$22,1/(120*$FY$29*$GA$29)*($CH$22-$CF$22)/($CG$22-$CE$22)*(($EV67-$CE$22)^5-($EV67-$CG$22)^5)-($CH$22-$CF$22)/(24*$FY$29*$GA$29)*($EV67-$CG$22)^4,IF($EV67>=$CE$22,1/(120*$FY$29*$GA$29)*($CH$22-$CF$22)/($CG$22-$CE$22)*($EV67-$CE$22)^5,0))))) -> --- | CL67: =IF($CI$22=$CK$22,"---",IF(AND($CI$22="",$CJ$22="",$CK$22="",$CL$22=""),"---",(-$CJ$22*($GB$29-$CI$22-($GB$29-$CK$22)))+(-1/2*($CL$22-$CJ$22)/($CK$22-$CI$22)*(($GB$29-$CI$22)^2-($GB$29-$CK$22)^2)+($CL$22-$CJ$22)*($GB$29-$CK$22)))) -> 21.91664446 | CM67: =IF($CI$22=$CK$22,"---",IF(AND($CI$22="",$CJ$22="",$CK$22="",$CL$22=""),"---",(-$CJ$22/2*(($GB$29-$CI$22)^2-($GB$29-$CK$22)^2))+(-1/6*($CL$22-$CJ$22)/($CK$22-$CI$22)*(($GB$29-$CI$22)^3-($GB$29-$CK$22)^3)+($CL$22-$CJ$22)/2*($GB$29-$CK$22)^2))) -> 207.4571542 | CN67: =IF($CI$22=$CK$22,"---",IF(AND($CI$22="",$CJ$22="",$CK$22="",$CL$22=""),"---",(-$CJ$22/(6*$FY$29*$GA$29)*(($GB$29-$CI$22)^3-($GB$29-$CK$22)^3))+(-1/(24*$FY$29*$GA$29)*($CL$22-$CJ$22)/($CK$22-$CI$22)*(($GB$29-$CI$22)^4-($GB$29-$CK$22)^4)+($CL$22-$CJ$22)/(6*$FY$29*$GA$29)*($GB$29-$CK$22)^3))) -> 5.871685402e-05 | CO67: =IF($CI$22=$CK$22,"---",IF(AND($CI$22="",$CJ$22="",$CK$22="",$CL$22=""),"---",($CJ$22/(24*$FY$29*$GA$29)*(($GB$29-$CI$22)^4-($GB$29-$CK$22)^4))+(1/(120*$FY$29*$GA$29)*($CL$22-$CJ$22)/($CK$22-$CI$22)*(($GB$29-$CI$22)^5-($GB$29-$CK$22)^5)-($CL$22-$CJ$22)/(24*$FY$29*$GA$29)*($GB$29-$CK$22)^4))) -> -0.0002594376959 | CP67: =IF($CI$22=$CK$22,"---",IF(AND($CI$22="",$CJ$22="",$CK$22="",$CL$22=""),"---",(IF($EV67>=$CK$22,-$CJ$22*($EV67-$CI$22-($EV67-$CK$22)),IF($EV67>=$CI$22,-$CJ$22*($EV67-$CI$22),0)))+(IF($EV67>=$CK$22,-1/2*($CL$22-$CJ$22)/($CK$22-$CI$22)*(($EV67-$CI$22)^2-($EV67-$CK$22)^2)+($CL$22-$CJ$22)*($EV67-$CK$22),IF($EV67>=$CI$22,-1/2*($CL$22-$CJ$22)/($CK$22-$CI$22)*($EV67-$CI$22)^2,0))))) -> 0 | CQ67: =IF($CI$22=$CK$22,"---",IF(AND($CI$22="",$CJ$22="",$CK$22="",$CL$22=""),"---",(IF($EV67>=$CK$22,-$CJ$22/2*(($EV67-$CI$22)^2-($EV67-$CK$22)^2),IF($EV67>=$CI$22,-$CJ$22/2*($EV67-$CI$22)^2,0)))+(IF($EV67>=$CK$22,-1/6*($CL$22-$CJ$22)/($CK$22-$CI$22)*(($EV67-$CI$22)^3-($EV67-$CK$22)^3)+($CL$22-$CJ$22)/2*($EV67-$CK$22)^2,IF($EV67>=$CI$22,-1/6*($CL$22-$CJ$22)/($CK$22-$CI$22)*($EV67-$CI$22)^3,0))))) -> 0 | CR67: =IF($CI$22=$CK$22,"---",IF(AND($CI$22="",$CJ$22="",$CK$22="",$CL$22=""),"---",(IF($EV67>=$CK$22,-$CJ$22/(6*$FY$29*$GA$29)*(($EV67-$CI$22)^3-($EV67-$CK$22)^3),IF($EV67>=$CI$22,-$CJ$22/(6*$FY$29*$GA$29)*($EV67-$CI$22)^3,0)))+(IF($EV67>=$CK$22,-1/(24*$FY$29*$GA$29)*($CL$22-$CJ$22)/($CK$22-$CI$22)*(($EV67-$CI$22)^4-($EV67-$CK$22)^4)+($CL$22-$CJ$22)/(6*$FY$29*$GA$29)*($EV67-$CK$22)^3,IF($EV67>=$CI$22,-1/(24*$FY$29*$GA$29)*($CL$22-$CJ$22)/($CK$22-$CI$22)*($EV67-$CI$22)^4,0))))) -> 0 | CS67: =IF($CI$22=$CK$22,"---",IF(AND($CI$22="",$CJ$22="",$CK$22="",$CL$22=""),"---",(IF($EV67>=$CK$22,$CJ$22/(24*$FY$29*$GA$29)*(($EV67-$CI$22)^4-($EV67-$CK$22)^4),IF($EV67>=$CI$22,$CJ$22/(24*$FY$29*$GA$29)*($EV67-$CI$22)^4,0)))+(IF($EV67>=$CK$22,1/(120*$FY$29*$GA$29)*($CL$22-$CJ$22)/($CK$22-$CI$22)*(($EV67-$CI$22)^5-($EV67-$CK$22)^5)-($CL$22-$CJ$22)/(24*$FY$29*$GA$29)*($EV67-$CK$22)^4,IF($EV67>=$CI$22,1/(120*$FY$29*$GA$29)*($CL$22-$CJ$22)/($CK$22-$CI$22)*($EV67-$CI$22)^5,0))))) -> 0 | CT67: =IF($CM$22=$CO$22,"---",IF(AND($CM$22="",$CN$22="",$CO$22="",$CP$22=""),"---",(-$CN$22*($GB$29-$CM$22-($GB$29-$CO$22)))+(-1/2*($CP$22-$CN$22)/($CO$22-$CM$22)*(($GB$29-$CM$22)^2-($GB$29-$CO$22)^2)+($CP$22-$CN$22)*($GB$29-$CO$22)))) -> --- | CU67: =IF($CM$22=$CO$22,"---",IF(AND($CM$22="",$CN$22="",$CO$22="",$CP$22=""),"---",(-$CN$22/2*(($GB$29-$CM$22)^2-($GB$29-$CO$22)^2))+(-1/6*($CP$22-$CN$22)/($CO$22-$CM$22)*(($GB$29-$CM$22)^3-($GB$29-$CO$22)^3)+($CP$22-$CN$22)/2*($GB$29-$CO$22)^2))) -> --- | CV67: =IF($CM$22=$CO$22,"---",IF(AND($CM$22="",$CN$22="",$CO$22="",$CP$22=""),"---",(-$CN$22/(6*$FY$29*$GA$29)*(($GB$29-$CM$22)^3-($GB$29-$CO$22)^3))+(-1/(24*$FY$29*$GA$29)*($CP$22-$CN$22)/($CO$22-$CM$22)*(($GB$29-$CM$22)^4-($GB$29-$CO$22)^4)+($CP$22-$CN$22)/(6*$FY$29*$GA$29)*($GB$29-$CO$22)^3))) -> --- | CW67: =IF($CM$22=$CO$22,"---",IF(AND($CM$22="",$CN$22="",$CO$22="",$CP$22=""),"---",($CN$22/(24*$FY$29*$GA$29)*(($GB$29-$CM$22)^4-($GB$29-$CO$22)^4))+(1/(120*$FY$29*$GA$29)*($CP$22-$CN$22)/($CO$22-$CM$22)*(($GB$29-$CM$22)^5-($GB$29-$CO$22)^5)-($CP$22-$CN$22)/(24*$FY$29*$GA$29)*($GB$29-$CO$22)^4))) -> --- | CX67: =IF($CM$22=$CO$22,"---",IF(AND($CM$22="",$CN$22="",$CO$22="",$CP$22=""),"---",(IF($EV67>=$CO$22,-$CN$22*($EV67-$CM$22-($EV67-$CO$22)),IF($EV67>=$CM$22,-$CN$22*($EV67-$CM$22),0)))+(IF($EV67>=$CO$22,-1/2*($CP$22-$CN$22)/($CO$22-$CM$22)*(($EV67-$CM$22)^2-($EV67-$CO$22)^2)+($CP$22-$CN$22)*($EV67-$CO$22),IF($EV67>=$CM$22,-1/2*($CP$22-$CN$22)/($CO$22-$CM$22)*($EV67-$CM$22)^2,0))))) -> --- | CY67: =IF($CM$22=$CO$22,"---",IF(AND($CM$22="",$CN$22="",$CO$22="",$CP$22=""),"---",(IF($EV67>=$CO$22,-$CN$22/2*(($EV67-$CM$22)^2-($EV67-$CO$22)^2),IF($EV67>=$CM$22,-$CN$22/2*($EV67-$CM$22)^2,0)))+(IF($EV67>=$CO$22,-1/6*($CP$22-$CN$22)/($CO$22-$CM$22)*(($EV67-$CM$22)^3-($EV67-$CO$22)^3)+($CP$22-$CN$22)/2*($EV67-$CO$22)^2,IF($EV67>=$CM$22,-1/6*($CP$22-$CN$22)/($CO$22-$CM$22)*($EV67-$CM$22)^3,0))))) -> --- | CZ67: =IF($CM$22=$CO$22,"---",IF(AND($CM$22="",$CN$22="",$CO$22="",$CP$22=""),"---",(IF($EV67>=$CO$22,-$CN$22/(6*$FY$29*$GA$29)*(($EV67-$CM$22)^3-($EV67-$CO$22)^3),IF($EV67>=$CM$22,-$CN$22/(6*$FY$29*$GA$29)*($EV67-$CM$22)^3,0)))+(IF($EV67>=$CO$22,-1/(24*$FY$29*$GA$29)*($CP$22-$CN$22)/($CO$22-$CM$22)*(($EV67-$CM$22)^4-($EV67-$CO$22)^4)+($CP$22-$CN$22)/(6*$FY$29*$GA$29)*($EV67-$CO$22)^3,IF($EV67>=$CM$22,-1/(24*$FY$29*$GA$29)*($CP$22-$CN$22)/($CO$22-$CM$22)*($EV67-$CM$22)^4,0))))) -> --- | DA67: =IF($CM$22=$CO$22,"---",IF(AND($CM$22="",$CN$22="",$CO$22="",$CP$22=""),"---",(IF($EV67>=$CO$22,$CN$22/(24*$FY$29*$GA$29)*(($EV67-$CM$22)^4-($EV67-$CO$22)^4),IF($EV67>=$CM$22,$CN$22/(24*$FY$29*$GA$29)*($EV67-$CM$22)^4,0)))+(IF($EV67>=$CO$22,1/(120*$FY$29*$GA$29)*($CP$22-$CN$22)/($CO$22-$CM$22)*(($EV67-$CM$22)^5-($EV67-$CO$22)^5)-($CP$22-$CN$22)/(24*$FY$29*$GA$29)*($EV67-$CO$22)^4,IF($EV67>=$CM$22,1/(120*$FY$29*$GA$29)*($CP$22-$CN$22)/($CO$22-$CM$22)*($EV67-$CM$22)^5,0))))) -> --- | DB67: =IF($CQ$22=$CS$22,"---",IF(AND($CQ$22="",$CR$22="",$CS$22="",$CT$22=""),"---",(-$CR$22*($GB$29-$CQ$22-($GB$29-$CS$22)))+(-1/2*($CT$22-$CR$22)/($CS$22-$CQ$22)*(($GB$29-$CQ$22)^2-($GB$29-$CS$22)^2)+($CT$22-$CR$22)*($GB$29-$CS$22)))) -> --- | DC67: =IF($CQ$22=$CS$22,"---",IF(AND($CQ$22="",$CR$22="",$CS$22="",$CT$22=""),"---",(-$CR$22/2*(($GB$29-$CQ$22)^2-($GB$29-$CS$22)^2))+(-1/6*($CT$22-$CR$22)/($CS$22-$CQ$22)*(($GB$29-$CQ$22)^3-($GB$29-$CS$22)^3)+($CT$22-$CR$22)/2*($GB$29-$CS$22)^2))) -> --- | DD67: =IF($CQ$22=$CS$22,"---",IF(AND($CQ$22="",$CR$22="",$CS$22="",$CT$22=""),"---",(-$CR$22/(6*$FY$29*$GA$29)*(($GB$29-$CQ$22)^3-($GB$29-$CS$22)^3))+(-1/(24*$FY$29*$GA$29)*($CT$22-$CR$22)/($CS$22-$CQ$22)*(($GB$29-$CQ$22)^4-($GB$29-$CS$22)^4)+($CT$22-$CR$22)/(6*$FY$29*$GA$29)*($GB$29-$CS$22)^3))) -> --- | DE67: =IF($CQ$22=$CS$22,"---",IF(AND($CQ$22="",$CR$22="",$CS$22="",$CT$22=""),"---",($CR$22/(24*$FY$29*$GA$29)*(($GB$29-$CQ$22)^4-($GB$29-$CS$22)^4))+(1/(120*$FY$29*$GA$29)*($CT$22-$CR$22)/($CS$22-$CQ$22)*(($GB$29-$CQ$22)^5-($GB$29-$CS$22)^5)-($CT$22-$CR$22)/(24*$FY$29*$GA$29)*($GB$29-$CS$22)^4))) -> --- | DF67: =IF($CQ$22=$CS$22,"---",IF(AND($CQ$22="",$CR$22="",$CS$22="",$CT$22=""),"---",(IF($EV67>=$CS$22,-$CR$22*($EV67-$CQ$22-($EV67-$CS$22)),IF($EV67>=$CQ$22,-$CR$22*($EV67-$CQ$22),0)))+(IF($EV67>=$CS$22,-1/2*($CT$22-$CR$22)/($CS$22-$CQ$22)*(($EV67-$CQ$22)^2-($EV67-$CS$22)^2)+($CT$22-$CR$22)*($EV67-$CS$22),IF($EV67>=$CQ$22,-1/2*($CT$22-$CR$22)/($CS$22-$CQ$22)*($EV67-$CQ$22)^2,0))))) -> --- | DG67: =IF($CQ$22=$CS$22,"---",IF(AND($CQ$22="",$CR$22="",$CS$22="",$CT$22=""),"---",(IF($EV67>=$CS$22,-$CR$22/2*(($EV67-$CQ$22)^2-($EV67-$CS$22)^2),IF($EV67>=$CQ$22,-$CR$22/2*($EV67-$CQ$22)^2,0)))+(IF($EV67>=$CS$22,-1/6*($CT$22-$CR$22)/($CS$22-$CQ$22)*(($EV67-$CQ$22)^3-($EV67-$CS$22)^3)+($CT$22-$CR$22)/2*($EV67-$CS$22)^2,IF($EV67>=$CQ$22,-1/6*($CT$22-$CR$22)/($CS$22-$CQ$22)*($EV67-$CQ$22)^3,0))))) -> --- | DH67: =IF($CQ$22=$CS$22,"---",IF(AND($CQ$22="",$CR$22="",$CS$22="",$CT$22=""),"---",(IF($EV67>=$CS$22,-$CR$22/(6*$FY$29*$GA$29)*(($EV67-$CQ$22)^3-($EV67-$CS$22)^3),IF($EV67>=$CQ$22,-$CR$22/(6*$FY$29*$GA$29)*($EV67-$CQ$22)^3,0)))+(IF($EV67>=$CS$22,-1/(24*$FY$29*$GA$29)*($CT$22-$CR$22)/($CS$22-$CQ$22)*(($EV67-$CQ$22)^4-($EV67-$CS$22)^4)+($CT$22-$CR$22)/(6*$FY$29*$GA$29)*($EV67-$CS$22)^3,IF($EV67>=$CQ$22,-1/(24*$FY$29*$GA$29)*($CT$22-$CR$22)/($CS$22-$CQ$22)*($EV67-$CQ$22)^4,0))))) -> --- | DI67: =IF($CQ$22=$CS$22,"---",IF(AND($CQ$22="",$CR$22="",$CS$22="",$CT$22=""),"---",(IF($EV67>=$CS$22,$CR$22/(24*$FY$29*$GA$29)*(($EV67-$CQ$22)^4-($EV67-$CS$22)^4),IF($EV67>=$CQ$22,$CR$22/(24*$FY$29*$GA$29)*($EV67-$CQ$22)^4,0)))+(IF($EV67>=$CS$22,1/(120*$FY$29*$GA$29)*($CT$22-$CR$22)/($CS$22-$CQ$22)*(($EV67-$CQ$22)^5-($EV67-$CS$22)^5)-($CT$22-$CR$22)/(24*$FY$29*$GA$29)*($EV67-$CS$22)^4,IF($EV67>=$CQ$22,1/(120*$FY$29*$GA$29)*($CT$22-$CR$22)/($CS$22-$CQ$22)*($EV67-$CQ$22)^5,0))))) -> --- | DJ67: =IF($CU$22=$CW$22,"---",IF(AND($CU$22="",$CV$22="",$CW$22="",$CX$22=""),"---",(-$CV$22*($GB$29-$CU$22-($GB$29-$CW$22)))+(-1/2*($CX$22-$CV$22)/($CW$22-$CU$22)*(($GB$29-$CU$22)^2-($GB$29-$CW$22)^2)+($CX$22-$CV$22)*($GB$29-$CW$22)))) -> --- | DK67: =IF($CU$22=$CW$22,"---",IF(AND($CU$22="",$CV$22="",$CW$22="",$CX$22=""),"---",(-$CV$22/2*(($GB$29-$CU$22)^2-($GB$29-$CW$22)^2))+(-1/6*($CX$22-$CV$22)/($CW$22-$CU$22)*(($GB$29-$CU$22)^3-($GB$29-$CW$22)^3)+($CX$22-$CV$22)/2*($GB$29-$CW$22)^2))) -> --- | DL67: =IF($CU$22=$CW$22,"---",IF(AND($CU$22="",$CV$22="",$CW$22="",$CX$22=""),"---",(-$CV$22/(6*$FY$29*$GA$29)*(($GB$29-$CU$22)^3-($GB$29-$CW$22)^3))+(-1/(24*$FY$29*$GA$29)*($CX$22-$CV$22)/($CW$22-$CU$22)*(($GB$29-$CU$22)^4-($GB$29-$CW$22)^4)+($CX$22-$CV$22)/(6*$FY$29*$GA$29)*($GB$29-$CW$22)^3))) -> --- | DM67: =IF($CU$22=$CW$22,"---",IF(AND($CU$22="",$CV$22="",$CW$22="",$CX$22=""),"---",($CV$22/(24*$FY$29*$GA$29)*(($GB$29-$CU$22)^4-($GB$29-$CW$22)^4))+(1/(120*$FY$29*$GA$29)*($CX$22-$CV$22)/($CW$22-$CU$22)*(($GB$29-$CU$22)^5-($GB$29-$CW$22)^5)-($CX$22-$CV$22)/(24*$FY$29*$GA$29)*($GB$29-$CW$22)^4))) -> --- | DN67: =IF($CU$22=$CW$22,"---",IF(AND($CU$22="",$CV$22="",$CW$22="",$CX$22=""),"---",(IF($EV67>=$CW$22,-$CV$22*($EV67-$CU$22-($EV67-$CW$22)),IF($EV67>=$CU$22,-$CV$22*($EV67-$CU$22),0)))+(IF($EV67>=$CW$22,-1/2*($CX$22-$CV$22)/($CW$22-$CU$22)*(($EV67-$CU$22)^2-($EV67-$CW$22)^2)+($CX$22-$CV$22)*($EV67-$CW$22),IF($EV67>=$CU$22,-1/2*($CX$22-$CV$22)/($CW$22-$CU$22)*($EV67-$CU$22)^2,0))))) -> --- | DO67: =IF($CU$22=$CW$22,"---",IF(AND($CU$22="",$CV$22="",$CW$22="",$CX$22=""),"---",(IF($EV67>=$CW$22,-$CV$22/2*(($EV67-$CU$22)^2-($EV67-$CW$22)^2),IF($EV67>=$CU$22,-$CV$22/2*($EV67-$CU$22)^2,0)))+(IF($EV67>=$CW$22,-1/6*($CX$22-$CV$22)/($CW$22-$CU$22)*(($EV67-$CU$22)^3-($EV67-$CW$22)^3)+($CX$22-$CV$22)/2*($EV67-$CW$22)^2,IF($EV67>=$CU$22,-1/6*($CX$22-$CV$22)/($CW$22-$CU$22)*($EV67-$CU$22)^3,0))))) -> --- | DP67: =IF($CU$22=$CW$22,"---",IF(AND($CU$22="",$CV$22="",$CW$22="",$CX$22=""),"---",(IF($EV67>=$CW$22,-$CV$22/(6*$FY$29*$GA$29)*(($EV67-$CU$22)^3-($EV67-$CW$22)^3),IF($EV67>=$CU$22,-$CV$22/(6*$FY$29*$GA$29)*($EV67-$CU$22)^3,0)))+(IF($EV67>=$CW$22,-1/(24*$FY$29*$GA$29)*($CX$22-$CV$22)/($CW$22-$CU$22)*(($EV67-$CU$22)^4-($EV67-$CW$22)^4)+($CX$22-$CV$22)/(6*$FY$29*$GA$29)*($EV67-$CW$22)^3,IF($EV67>=$CU$22,-1/(24*$FY$29*$GA$29)*($CX$22-$CV$22)/($CW$22-$CU$22)*($EV67-$CU$22)^4,0))))) -> --- | DQ67: =IF($CU$22=$CW$22,"---",IF(AND($CU$22="",$CV$22="",$CW$22="",$CX$22=""),"---",(IF($EV67>=$CW$22,$CV$22/(24*$FY$29*$GA$29)*(($EV67-$CU$22)^4-($EV67-$CW$22)^4),IF($EV67>=$CU$22,$CV$22/(24*$FY$29*$GA$29)*($EV67-$CU$22)^4,0)))+(IF($EV67>=$CW$22,1/(120*$FY$29*$GA$29)*($CX$22-$CV$22)/($CW$22-$CU$22)*(($EV67-$CU$22)^5-($EV67-$CW$22)^5)-($CX$22-$CV$22)/(24*$FY$29*$GA$29)*($EV67-$CW$22)^4,IF($EV67>=$CU$22,1/(120*$FY$29*$GA$29)*($CX$22-$CV$22)/($CW$22-$CU$22)*($EV67-$CU$22)^5,0))))) -> --- | DR67: =-$CF$37+-$CH$37+-$CJ$37+-$CL$37+-$CN$37+-$CP$37+-$CR$37+-$CT$37+-$CV$37+-$CX$37 -> 7.305543824 | DS67: =-$CF$37*($GB$29-$CE$37)+-$CH$37*($GB$29-$CG$37)+-$CJ$37*($GB$29-$CI$37)+-$CL$37*($GB$29-$CK$37)+-$CN$37*($GB$29-$CM$37)+-$CP$37*($GB$29-$CO$37)+-$CR$37*($GB$29-$CQ$37)+-$CT$37*($GB$29-$CS$37)+-$CV$37*($GB$29-$CU$37)+-$CX$37*($GB$29-$CW$37) -> 57.16822006 | DT67: =-$CF$37*($GB$29-$CE$37)^2/(2*$FY$29*$GA$29)+-$CH$37*($GB$29-$CG$37)^2/(2*$FY$29*$GA$29)+-$CJ$37*($GB$29-$CI$37)^2/(2*$FY$29*$GA$29)+-$CL$37*($GB$29-$CK$37)^2/(2*$FY$29*$GA$29)+-$CN$37*($GB$29-$CM$37)^2/(2*$FY$29*$GA$29)+-$CP$37*($GB$29-$CO$37)^2/(2*$FY$29*$GA$29)+-$CR$37*($GB$29-$CQ$37)^2/(2*$FY$29*$GA$29)+-$CT$37*($GB$29-$CS$37)^2/(2*$FY$29*$GA$29)+-$CV$37*($GB$29-$CU$37)^2/(2*$FY$29*$GA$29)+-$CX$37*($GB$29-$CW$37)^2/(2*$FY$29*$GA$29) -> 1.069870578e-05 | DU67: =$CF$37*($GB$29-$CE$37)^3/(6*$FY$29*$GA$29)+$CH$37*($GB$29-$CG$37)^3/(6*$FY$29*$GA$29)+$CJ$37*($GB$29-$CI$37)^3/(6*$FY$29*$GA$29)+$CL$37*($GB$29-$CK$37)^3/(6*$FY$29*$GA$29)+$CN$37*($GB$29-$CM$37)^3/(6*$FY$29*$GA$29)+$CP$37*($GB$29-$CO$37)^3/(6*$FY$29*$GA$29)+$CR$37*($GB$29-$CQ$37)^3/(6*$FY$29*$GA$29)+$CT$37*($GB$29-$CS$37)^3/(6*$FY$29*$GA$29)+$CV$37*($GB$29-$CU$37)^3/(6*$FY$29*$GA$29)+$CX$37*($GB$29-$CW$37)^3/(6*$FY$29*$GA$29) -> -2.790693301e-05 | DV67: =IF($EV67>$CE$37,-$CF$37,0)+IF($EV67>$CG$37,-$CH$37,0)+IF($EV67>$CI$37,-$CJ$37,0)+IF($EV67>$CK$37,-$CL$37,0)+IF($EV67>$CM$37,-$CN$37,0)+IF($EV67>$CO$37,-$CP$37,0)+IF($EV67>$CQ$37,-$CR$37,0)+IF($EV67>$CS$37,-$CT$37,0)+IF($EV67>$CU$37,-$CV$37,0)+IF($EV67>$CW$37,-$CX$37,0) -> 0 | DW67: =IF($EV67>$CE$37,-$CF$37*($EV67-$CE$37),0)+IF($EV67>$CG$37,-$CH$37*($EV67-$CG$37),0)+IF($EV67>$CI$37,-$CJ$37*($EV67-$CI$37),0)+IF($EV67>$CK$37,-$CL$37*($EV67-$CK$37),0)+IF($EV67>$CM$37,-$CN$37*($EV67-$CM$37),0)+IF($EV67>$CO$37,-$CP$37*($EV67-$CO$37),0)+IF($EV67>$CQ$37,-$CR$37*($EV67-$CQ$37),0)+IF($EV67>$CS$37,-$CT$37*($EV67-$CS$37),0)+IF($EV67>$CU$37,-$CV$37*($EV67-$CU$37),0)+IF($EV67>$CW$37,-$CX$37*($EV67-$CW$37),0) -> 0 | DX67: =IF($EV67>$CE$37,-$CF$37*($EV67-$CE$37)^2/(2*$FY$29*$GA$29),0)+IF($EV67>$CG$37,-$CH$37*($EV67-$CG$37)^2/(2*$FY$29*$GA$29),0)+IF($EV67>$CI$37,-$CJ$37*($EV67-$CI$37)^2/(2*$FY$29*$GA$29),0)+IF($EV67>$CK$37,-$CL$37*($EV67-$CK$37)^2/(2*$FY$29*$GA$29),0)+IF($EV67>$CM$37,-$CN$37*($EV67-$CM$37)^2/(2*$FY$29*$GA$29),0)+IF($EV67>$CO$37,-$CP$37*($EV67-$CO$37)^2/(2*$FY$29*$GA$29),0)+IF($EV67>$CQ$37,-$CR$37*($EV67-$CQ$37)^2/(2*$FY$29*$GA$29),0)+IF($EV67>$CS$37,-$CT$37*($EV67-$CS$37)^2/(2*$FY$29*$GA$29),0)+IF($EV67>$CU$37,-$CV$37*($EV67-$CU$37)^2/(2*$FY$29*$GA$29),0)+IF($EV67>$CW$37,-$CX$37*($EV67-$CW$37)^2/(2*$FY$29*$GA$29),0) -> 0 | DY67: =IF($EV67>$CE$37,$CF$37*($EV67-$CE$37)^3/(6*$FY$29*$GA$29),0)+IF($EV67>$CG$37,$CH$37*($EV67-$CG$37)^3/(6*$FY$29*$GA$29),0)+IF($EV67>$CI$37,$CJ$37*($EV67-$CI$37)^3/(6*$FY$29*$GA$29),0)+IF($EV67>$CK$37,$CL$37*($EV67-$CK$37)^3/(6*$FY$29*$GA$29),0)+IF($EV67>$CM$37,$CN$37*($EV67-$CM$37)^3/(6*$FY$29*$GA$29),0)+IF($EV67>$CO$37,$CP$37*($EV67-$CO$37)^3/(6*$FY$29*$GA$29),0)+IF($EV67>$CQ$37,$CR$37*($EV67-$CQ$37)^3/(6*$FY$29*$GA$29),0)+IF($EV67>$CS$37,$CT$37*($EV67-$CS$37)^3/(6*$FY$29*$GA$29),0)+IF($EV67>$CU$37,$CV$37*($EV67-$CU$37)^3/(6*$FY$29*$GA$29),0)+IF($EV67>$CW$37,$CX$37*($EV67-$CW$37)^3/(6*$FY$29*$GA$29),0) -> 0 | DZ67: =0+0+0+0 -> 0 | EA67: =-$CF$49+-$CH$49+-$CJ$49+-$CL$49+-$CN$49 -> 0 | EB67: =-$CF$49*($GB$29-$CE$49)/($FY$29*$GA$29)+-$CH$49*($GB$29-$CG$49)/($FY$29*$GA$29)+-$CJ$49*($GB$29-$CI$49)/($FY$29*$GA$29)+-$CL$49*($GB$29-$CK$49)/($FY$29*$GA$29)+-$CN$49*($GB$29-$CM$49)/($FY$29*$GA$29) -> 0 | EC67: =$CF$49*($GB$29-$CE$49)^2/(2*$FY$29*$GA$29)+$CH$49*($GB$29-$CG$49)^2/(2*$FY$29*$GA$29)+$CJ$49*($GB$29-$CI$49)^2/(2*$FY$29*$GA$29)+$CL$49*($GB$29-$CK$49)^2/(2*$FY$29*$GA$29)+$CN$49*($GB$29-$CM$49)^2/(2*$FY$29*$GA$29) -> 0 | ED67: =IF($EV67>=IF($CE$49=$GB$29,$CE$49+0.000000001,$CE$49),0,0)+IF($EV67>=IF($CG$49=$GB$29,$CG$49+0.000000001,$CG$49),0,0)+IF($EV67>=IF($CI$49=$GB$29,$CI$49+0.000000001,$CI$49),0,0)+IF($EV67>=IF($CK$49=$GB$29,$CK$49+0.000000001,$CK$49),0,0)+IF($EV67>=IF($CM$49=$GB$29,$CM$49+0.000000001,$CM$49),0,0) -> 0 | EE67: =IF($EV67>=IF($CE$49=$GB$29,$CE$49+0.000000001,$CE$49),-$CF$49,0)+IF($EV67>=IF($CG$49=$GB$29,$CG$49+0.000000001,$CG$49),-$CH$49,0)+IF($EV67>=IF($CI$49=$GB$29,$CI$49+0.000000001,$CI$49),-$CJ$49,0)+IF($EV67>=IF($CK$49=$GB$29,$CK$49+0.000000001,$CK$49),-$CL$49,0)+IF($EV67>=IF($CM$49=$GB$29,$CM$49+0.000000001,$CM$49),-$CN$49,0) -> 0 | EF67: =IF($EV67>=IF($CE$49=$GB$29,$CE$49+0.000000001,$CE$49),-$CF$49*($EV67-$CE$49)/($FY$29*$GA$29),0)+IF($EV67>=IF($CG$49=$GB$29,$CG$49+0.000000001,$CG$49),-$CH$49*($EV67-$CG$49)/($FY$29*$GA$29),0)+IF($EV67>=IF($CI$49=$GB$29,$CI$49+0.000000001,$CI$49),-$CJ$49*($EV67-$CI$49)/($FY$29*$GA$29),0)+IF($EV67>=IF($CK$49=$GB$29,$CK$49+0.000000001,$CK$49),-$CL$49*($EV67-$CK$49)/($FY$29*$GA$29),0)+IF($EV67>=IF($CM$49=$GB$29,$CM$49+0.000000001,$CM$49),-$CN$49*($EV67-$CM$49)/($FY$29*$GA$29),0) -> 0 | EG67: =IF($EV67>=IF($CE$49=$GB$29,$CE$49+0.000000001,$CE$49),$CF$49*($EV67-$CE$49)^2/(2*$FY$29*$GA$29),0)+IF($EV67>=IF($CG$49=$GB$29,$CG$49+0.000000001,$CG$49),$CH$49*($EV67-$CG$49)^2/(2*$FY$29*$GA$29),0)+IF($EV67>=IF($CI$49=$GB$29,$CI$49+0.000000001,$CI$49),$CJ$49*($EV67-$CI$49)^2/(2*$FY$29*$GA$29),0)+IF($EV67>=IF($CK$49=$GB$29,$CK$49+0.000000001,$CK$49),$CL$49*($EV67-$CK$49)^2/(2*$FY$29*$GA$29),0)+IF($EV67>=IF($CM$49=$GB$29,$CM$49+0.000000001,$CM$49),$CN$49*($EV67-$CM$49)^2/(2*$FY$29*$GA$29),0) -> 0 | EH67: 29.22218829 | EI67: 264.6253742 | EJ67: 6.94155598e-05 | EK67: -0.0002873446289 | EL67: 0 | EM67: 0 | EN67: 0 | EO67: 0 | EP67: =-12*$FY$29*$GA$29/$GB$29^3*$EK67-6*$FY$29*$GA$29/$GB$29^2*$EJ67 -> -14.82406993 | EQ67: =6*$FY$29*$GA$29/$GB$29^2*$EK67+2*$FY$29*$GA$29/$GB$29*$EJ67 -> 48.81159855 | ER67: =0 -> 0 | ES67: =0 -> 0 | ET67: =$EP67+$EL67 -> -14.82406993 | EU67: 48.81159855 | EV67: =0 -> 0 | EW67: Member #3(Y) FEM(L): | FF67: W36x182 | FG67: 53.6 | FH67: 11300 | FI67: 347 | FJ67: 345.81 | FK67: 470341.51 | FL67: 14443.23 | FY67: c/L | FZ67: M (ft-kips) | GA67: c/L | GB67: M (ft-kips) | GC67: c/L | GD67: M (ft-kips) | GE67: c/L | GF67: M (ft-kips) | GG67: c/L | GH67: M (ft-kips)
H68: Joint 2 - Dead | BE68: 1 | BG68: =P143/AB24 -> 0 | BH68: =IF($P$141="Dead",R143*$S$62,R143*$S$63) -> 0 | BI68: =T143/AB24 -> 0 | BJ68: =IF($T$141="Dead",V143*$S$62,V143*$S$63) -> 0 | BK68: =X143/AB24 -> 0 | BL68: =IF($X$141="Dead",Z143*$S$62,Z143*$S$63) -> 0 | BM68: =P151/AB24 -> 0 | BN68: =IF($P$149="Dead",R151*$S$62,R151*$S$63) -> 0 | BO68: =T151/AB24 -> 0 | BP68: =IF($T$149="Dead",V151*$S$62,V151*$S$63) -> 0 | CC68: Member #3(Y) FEM(R): | CD68: =$CD$67 -> --- | CE68: =$CE$67 -> --- | CF68: =$CF$67 -> --- | CG68: =$CG$67 -> --- | CH68: =IF($CE$22=$CG$22,"---",IF(AND($CE$22="",$CF$22="",$CG$22="",$CH$22=""),"---",(IF($EV68>=$CG$22,-$CF$22*($EV68-$CE$22-($EV68-$CG$22)),IF($EV68>=$CE$22,-$CF$22*($EV68-$CE$22),0)))+(IF($EV68>=$CG$22,-1/2*($CH$22-$CF$22)/($CG$22-$CE$22)*(($EV68-$CE$22)^2-($EV68-$CG$22)^2)+($CH$22-$CF$22)*($EV68-$CG$22),IF($EV68>=$CE$22,-1/2*($CH$22-$CF$22)/($CG$22-$CE$22)*($EV68-$CE$22)^2,0))))) -> --- | CI68: =IF($CE$22=$CG$22,"---",IF(AND($CE$22="",$CF$22="",$CG$22="",$CH$22=""),"---",(IF($EV68>=$CG$22,-$CF$22/2*(($EV68-$CE$22)^2-($EV68-$CG$22)^2),IF($EV68>=$CE$22,-$CF$22/2*($EV68-$CE$22)^2,0)))+(IF($EV68>=$CG$22,-1/6*($CH$22-$CF$22)/($CG$22-$CE$22)*(($EV68-$CE$22)^3-($EV68-$CG$22)^3)+($CH$22-$CF$22)/2*($EV68-$CG$22)^2,IF($EV68>=$CE$22,-1/6*($CH$22-$CF$22)/($CG$22-$CE$22)*($EV68-$CE$22)^3,0))))) -> --- | CJ68: =IF($CE$22=$CG$22,"---",IF(AND($CE$22="",$CF$22="",$CG$22="",$CH$22=""),"---",(IF($EV68>=$CG$22,-$CF$22/(6*$FY$29*$GA$29)*(($EV68-$CE$22)^3-($EV68-$CG$22)^3),IF($EV68>=$CE$22,-$CF$22/(6*$FY$29*$GA$29)*($EV68-$CE$22)^3,0)))+(IF($EV68>=$CG$22,-1/(24*$FY$29*$GA$29)*($CH$22-$CF$22)/($CG$22-$CE$22)*(($EV68-$CE$22)^4-($EV68-$CG$22)^4)+($CH$22-$CF$22)/(6*$FY$29*$GA$29)*($EV68-$CG$22)^3,IF($EV68>=$CE$22,-1/(24*$FY$29*$GA$29)*($CH$22-$CF$22)/($CG$22-$CE$22)*($EV68-$CE$22)^4,0))))) -> --- | CK68: =IF($CE$22=$CG$22,"---",IF(AND($CE$22="",$CF$22="",$CG$22="",$CH$22=""),"---",(IF($EV68>=$CG$22,$CF$22/(24*$FY$29*$GA$29)*(($EV68-$CE$22)^4-($EV68-$CG$22)^4),IF($EV68>=$CE$22,$CF$22/(24*$FY$29*$GA$29)*($EV68-$CE$22)^4,0)))+(IF($EV68>=$CG$22,1/(120*$FY$29*$GA$29)*($CH$22-$CF$22)/($CG$22-$CE$22)*(($EV68-$CE$22)^5-($EV68-$CG$22)^5)-($CH$22-$CF$22)/(24*$FY$29*$GA$29)*($EV68-$CG$22)^4,IF($EV68>=$CE$22,1/(120*$FY$29*$GA$29)*($CH$22-$CF$22)/($CG$22-$CE$22)*($EV68-$CE$22)^5,0))))) -> --- | CL68: =$CL$67 -> 21.91664446 | CM68: =$CM$67 -> 207.4571542 | CN68: =$CN$67 -> 5.871685402e-05 | CO68: =$CO$67 -> -0.0002594376959 | CP68: =IF($CI$22=$CK$22,"---",IF(AND($CI$22="",$CJ$22="",$CK$22="",$CL$22=""),"---",(IF($EV68>=$CK$22,-$CJ$22*($EV68-$CI$22-($EV68-$CK$22)),IF($EV68>=$CI$22,-$CJ$22*($EV68-$CI$22),0)))+(IF($EV68>=$CK$22,-1/2*($CL$22-$CJ$22)/($CK$22-$CI$22)*(($EV68-$CI$22)^2-($EV68-$CK$22)^2)+($CL$22-$CJ$22)*($EV68-$CK$22),IF($EV68>=$CI$22,-1/2*($CL$22-$CJ$22)/($CK$22-$CI$22)*($EV68-$CI$22)^2,0))))) -> 21.91664446 | CQ68: =IF($CI$22=$CK$22,"---",IF(AND($CI$22="",$CJ$22="",$CK$22="",$CL$22=""),"---",(IF($EV68>=$CK$22,-$CJ$22/2*(($EV68-$CI$22)^2-($EV68-$CK$22)^2),IF($EV68>=$CI$22,-$CJ$22/2*($EV68-$CI$22)^2,0)))+(IF($EV68>=$CK$22,-1/6*($CL$22-$CJ$22)/($CK$22-$CI$22)*(($EV68-$CI$22)^3-($EV68-$CK$22)^3)+($CL$22-$CJ$22)/2*($EV68-$CK$22)^2,IF($EV68>=$CI$22,-1/6*($CL$22-$CJ$22)/($CK$22-$CI$22)*($EV68-$CI$22)^3,0))))) -> 207.4571542 | CR68: =IF($CI$22=$CK$22,"---",IF(AND($CI$22="",$CJ$22="",$CK$22="",$CL$22=""),"---",(IF($EV68>=$CK$22,-$CJ$22/(6*$FY$29*$GA$29)*(($EV68-$CI$22)^3-($EV68-$CK$22)^3),IF($EV68>=$CI$22,-$CJ$22/(6*$FY$29*$GA$29)*($EV68-$CI$22)^3,0)))+(IF($EV68>=$CK$22,-1/(24*$FY$29*$GA$29)*($CL$22-$CJ$22)/($CK$22-$CI$22)*(($EV68-$CI$22)^4-($EV68-$CK$22)^4)+($CL$22-$CJ$22)/(6*$FY$29*$GA$29)*($EV68-$CK$22)^3,IF($EV68>=$CI$22,-1/(24*$FY$29*$GA$29)*($CL$22-$CJ$22)/($CK$22-$CI$22)*($EV68-$CI$22)^4,0))))) -> 5.871685402e-05 | CS68: =IF($CI$22=$CK$22,"---",IF(AND($CI$22="",$CJ$22="",$CK$22="",$CL$22=""),"---",(IF($EV68>=$CK$22,$CJ$22/(24*$FY$29*$GA$29)*(($EV68-$CI$22)^4-($EV68-$CK$22)^4),IF($EV68>=$CI$22,$CJ$22/(24*$FY$29*$GA$29)*($EV68-$CI$22)^4,0)))+(IF($EV68>=$CK$22,1/(120*$FY$29*$GA$29)*($CL$22-$CJ$22)/($CK$22-$CI$22)*(($EV68-$CI$22)^5-($EV68-$CK$22)^5)-($CL$22-$CJ$22)/(24*$FY$29*$GA$29)*($EV68-$CK$22)^4,IF($EV68>=$CI$22,1/(120*$FY$29*$GA$29)*($CL$22-$CJ$22)/($CK$22-$CI$22)*($EV68-$CI$22)^5,0))))) -> -0.0002594376959 | CT68: =$CT$67 -> --- | CU68: =$CU$67 -> --- | CV68: =$CV$67 -> --- | CW68: =$CW$67 -> --- | CX68: =IF($CM$22=$CO$22,"---",IF(AND($CM$22="",$CN$22="",$CO$22="",$CP$22=""),"---",(IF($EV68>=$CO$22,-$CN$22*($EV68-$CM$22-($EV68-$CO$22)),IF($EV68>=$CM$22,-$CN$22*($EV68-$CM$22),0)))+(IF($EV68>=$CO$22,-1/2*($CP$22-$CN$22)/($CO$22-$CM$22)*(($EV68-$CM$22)^2-($EV68-$CO$22)^2)+($CP$22-$CN$22)*($EV68-$CO$22),IF($EV68>=$CM$22,-1/2*($CP$22-$CN$22)/($CO$22-$CM$22)*($EV68-$CM$22)^2,0))))) -> --- | CY68: =IF($CM$22=$CO$22,"---",IF(AND($CM$22="",$CN$22="",$CO$22="",$CP$22=""),"---",(IF($EV68>=$CO$22,-$CN$22/2*(($EV68-$CM$22)^2-($EV68-$CO$22)^2),IF($EV68>=$CM$22,-$CN$22/2*($EV68-$CM$22)^2,0)))+(IF($EV68>=$CO$22,-1/6*($CP$22-$CN$22)/($CO$22-$CM$22)*(($EV68-$CM$22)^3-($EV68-$CO$22)^3)+($CP$22-$CN$22)/2*($EV68-$CO$22)^2,IF($EV68>=$CM$22,-1/6*($CP$22-$CN$22)/($CO$22-$CM$22)*($EV68-$CM$22)^3,0))))) -> --- | CZ68: =IF($CM$22=$CO$22,"---",IF(AND($CM$22="",$CN$22="",$CO$22="",$CP$22=""),"---",(IF($EV68>=$CO$22,-$CN$22/(6*$FY$29*$GA$29)*(($EV68-$CM$22)^3-($EV68-$CO$22)^3),IF($EV68>=$CM$22,-$CN$22/(6*$FY$29*$GA$29)*($EV68-$CM$22)^3,0)))+(IF($EV68>=$CO$22,-1/(24*$FY$29*$GA$29)*($CP$22-$CN$22)/($CO$22-$CM$22)*(($EV68-$CM$22)^4-($EV68-$CO$22)^4)+($CP$22-$CN$22)/(6*$FY$29*$GA$29)*($EV68-$CO$22)^3,IF($EV68>=$CM$22,-1/(24*$FY$29*$GA$29)*($CP$22-$CN$22)/($CO$22-$CM$22)*($EV68-$CM$22)^4,0))))) -> --- | DA68: =IF($CM$22=$CO$22,"---",IF(AND($CM$22="",$CN$22="",$CO$22="",$CP$22=""),"---",(IF($EV68>=$CO$22,$CN$22/(24*$FY$29*$GA$29)*(($EV68-$CM$22)^4-($EV68-$CO$22)^4),IF($EV68>=$CM$22,$CN$22/(24*$FY$29*$GA$29)*($EV68-$CM$22)^4,0)))+(IF($EV68>=$CO$22,1/(120*$FY$29*$GA$29)*($CP$22-$CN$22)/($CO$22-$CM$22)*(($EV68-$CM$22)^5-($EV68-$CO$22)^5)-($CP$22-$CN$22)/(24*$FY$29*$GA$29)*($EV68-$CO$22)^4,IF($EV68>=$CM$22,1/(120*$FY$29*$GA$29)*($CP$22-$CN$22)/($CO$22-$CM$22)*($EV68-$CM$22)^5,0))))) -> --- | DB68: =$DB$67 -> --- | DC68: =$DC$67 -> --- | DD68: =$DD$67 -> --- | DE68: =$DE$67 -> --- | DF68: =IF($CQ$22=$CS$22,"---",IF(AND($CQ$22="",$CR$22="",$CS$22="",$CT$22=""),"---",(IF($EV68>=$CS$22,-$CR$22*($EV68-$CQ$22-($EV68-$CS$22)),IF($EV68>=$CQ$22,-$CR$22*($EV68-$CQ$22),0)))+(IF($EV68>=$CS$22,-1/2*($CT$22-$CR$22)/($CS$22-$CQ$22)*(($EV68-$CQ$22)^2-($EV68-$CS$22)^2)+($CT$22-$CR$22)*($EV68-$CS$22),IF($EV68>=$CQ$22,-1/2*($CT$22-$CR$22)/($CS$22-$CQ$22)*($EV68-$CQ$22)^2,0))))) -> --- | DG68: =IF($CQ$22=$CS$22,"---",IF(AND($CQ$22="",$CR$22="",$CS$22="",$CT$22=""),"---",(IF($EV68>=$CS$22,-$CR$22/2*(($EV68-$CQ$22)^2-($EV68-$CS$22)^2),IF($EV68>=$CQ$22,-$CR$22/2*($EV68-$CQ$22)^2,0)))+(IF($EV68>=$CS$22,-1/6*($CT$22-$CR$22)/($CS$22-$CQ$22)*(($EV68-$CQ$22)^3-($EV68-$CS$22)^3)+($CT$22-$CR$22)/2*($EV68-$CS$22)^2,IF($EV68>=$CQ$22,-1/6*($CT$22-$CR$22)/($CS$22-$CQ$22)*($EV68-$CQ$22)^3,0))))) -> --- | DH68: =IF($CQ$22=$CS$22,"---",IF(AND($CQ$22="",$CR$22="",$CS$22="",$CT$22=""),"---",(IF($EV68>=$CS$22,-$CR$22/(6*$FY$29*$GA$29)*(($EV68-$CQ$22)^3-($EV68-$CS$22)^3),IF($EV68>=$CQ$22,-$CR$22/(6*$FY$29*$GA$29)*($EV68-$CQ$22)^3,0)))+(IF($EV68>=$CS$22,-1/(24*$FY$29*$GA$29)*($CT$22-$CR$22)/($CS$22-$CQ$22)*(($EV68-$CQ$22)^4-($EV68-$CS$22)^4)+($CT$22-$CR$22)/(6*$FY$29*$GA$29)*($EV68-$CS$22)^3,IF($EV68>=$CQ$22,-1/(24*$FY$29*$GA$29)*($CT$22-$CR$22)/($CS$22-$CQ$22)*($EV68-$CQ$22)^4,0))))) -> --- | DI68: =IF($CQ$22=$CS$22,"---",IF(AND($CQ$22="",$CR$22="",$CS$22="",$CT$22=""),"---",(IF($EV68>=$CS$22,$CR$22/(24*$FY$29*$GA$29)*(($EV68-$CQ$22)^4-($EV68-$CS$22)^4),IF($EV68>=$CQ$22,$CR$22/(24*$FY$29*$GA$29)*($EV68-$CQ$22)^4,0)))+(IF($EV68>=$CS$22,1/(120*$FY$29*$GA$29)*($CT$22-$CR$22)/($CS$22-$CQ$22)*(($EV68-$CQ$22)^5-($EV68-$CS$22)^5)-($CT$22-$CR$22)/(24*$FY$29*$GA$29)*($EV68-$CS$22)^4,IF($EV68>=$CQ$22,1/(120*$FY$29*$GA$29)*($CT$22-$CR$22)/($CS$22-$CQ$22)*($EV68-$CQ$22)^5,0))))) -> --- | DJ68: =$DJ$67 -> --- | DK68: =$DK$67 -> --- | DL68: =$DL$67 -> --- | DM68: =$DM$67 -> --- | DN68: =IF($CU$22=$CW$22,"---",IF(AND($CU$22="",$CV$22="",$CW$22="",$CX$22=""),"---",(IF($EV68>=$CW$22,-$CV$22*($EV68-$CU$22-($EV68-$CW$22)),IF($EV68>=$CU$22,-$CV$22*($EV68-$CU$22),0)))+(IF($EV68>=$CW$22,-1/2*($CX$22-$CV$22)/($CW$22-$CU$22)*(($EV68-$CU$22)^2-($EV68-$CW$22)^2)+($CX$22-$CV$22)*($EV68-$CW$22),IF($EV68>=$CU$22,-1/2*($CX$22-$CV$22)/($CW$22-$CU$22)*($EV68-$CU$22)^2,0))))) -> --- | DO68: =IF($CU$22=$CW$22,"---",IF(AND($CU$22="",$CV$22="",$CW$22="",$CX$22=""),"---",(IF($EV68>=$CW$22,-$CV$22/2*(($EV68-$CU$22)^2-($EV68-$CW$22)^2),IF($EV68>=$CU$22,-$CV$22/2*($EV68-$CU$22)^2,0)))+(IF($EV68>=$CW$22,-1/6*($CX$22-$CV$22)/($CW$22-$CU$22)*(($EV68-$CU$22)^3-($EV68-$CW$22)^3)+($CX$22-$CV$22)/2*($EV68-$CW$22)^2,IF($EV68>=$CU$22,-1/6*($CX$22-$CV$22)/($CW$22-$CU$22)*($EV68-$CU$22)^3,0))))) -> --- | DP68: =IF($CU$22=$CW$22,"---",IF(AND($CU$22="",$CV$22="",$CW$22="",$CX$22=""),"---",(IF($EV68>=$CW$22,-$CV$22/(6*$FY$29*$GA$29)*(($EV68-$CU$22)^3-($EV68-$CW$22)^3),IF($EV68>=$CU$22,-$CV$22/(6*$FY$29*$GA$29)*($EV68-$CU$22)^3,0)))+(IF($EV68>=$CW$22,-1/(24*$FY$29*$GA$29)*($CX$22-$CV$22)/($CW$22-$CU$22)*(($EV68-$CU$22)^4-($EV68-$CW$22)^4)+($CX$22-$CV$22)/(6*$FY$29*$GA$29)*($EV68-$CW$22)^3,IF($EV68>=$CU$22,-1/(24*$FY$29*$GA$29)*($CX$22-$CV$22)/($CW$22-$CU$22)*($EV68-$CU$22)^4,0))))) -> --- | DQ68: =IF($CU$22=$CW$22,"---",IF(AND($CU$22="",$CV$22="",$CW$22="",$CX$22=""),"---",(IF($EV68>=$CW$22,$CV$22/(24*$FY$29*$GA$29)*(($EV68-$CU$22)^4-($EV68-$CW$22)^4),IF($EV68>=$CU$22,$CV$22/(24*$FY$29*$GA$29)*($EV68-$CU$22)^4,0)))+(IF($EV68>=$CW$22,1/(120*$FY$29*$GA$29)*($CX$22-$CV$22)/($CW$22-$CU$22)*(($EV68-$CU$22)^5-($EV68-$CW$22)^5)-($CX$22-$CV$22)/(24*$FY$29*$GA$29)*($EV68-$CW$22)^4,IF($EV68>=$CU$22,1/(120*$FY$29*$GA$29)*($CX$22-$CV$22)/($CW$22-$CU$22)*($EV68-$CU$22)^5,0))))) -> --- | DR68: =$DR$67 -> 7.305543824 | DS68: =$DS$67 -> 57.16822006 | DT68: =$DT$67 -> 1.069870578e-05 | DU68: =$DU$67 -> -2.790693301e-05 | DV68: =IF($EV68>$CE$37,-$CF$37,0)+IF($EV68>$CG$37,-$CH$37,0)+IF($EV68>$CI$37,-$CJ$37,0)+IF($EV68>$CK$37,-$CL$37,0)+IF($EV68>$CM$37,-$CN$37,0)+IF($EV68>$CO$37,-$CP$37,0)+IF($EV68>$CQ$37,-$CR$37,0)+IF($EV68>$CS$37,-$CT$37,0)+IF($EV68>$CU$37,-$CV$37,0)+IF($EV68>$CW$37,-$CX$37,0) -> 7.305543824 | DW68: =IF($EV68>$CE$37,-$CF$37*($EV68-$CE$37),0)+IF($EV68>$CG$37,-$CH$37*($EV68-$CG$37),0)+IF($EV68>$CI$37,-$CJ$37*($EV68-$CI$37),0)+IF($EV68>$CK$37,-$CL$37*($EV68-$CK$37),0)+IF($EV68>$CM$37,-$CN$37*($EV68-$CM$37),0)+IF($EV68>$CO$37,-$CP$37*($EV68-$CO$37),0)+IF($EV68>$CQ$37,-$CR$37*($EV68-$CQ$37),0)+IF($EV68>$CS$37,-$CT$37*($EV68-$CS$37),0)+IF($EV68>$CU$37,-$CV$37*($EV68-$CU$37),0)+IF($EV68>$CW$37,-$CX$37*($EV68-$CW$37),0) -> 57.16822006 | DX68: =IF($EV68>$CE$37,-$CF$37*($EV68-$CE$37)^2/(2*$FY$29*$GA$29),0)+IF($EV68>$CG$37,-$CH$37*($EV68-$CG$37)^2/(2*$FY$29*$GA$29),0)+IF($EV68>$CI$37,-$CJ$37*($EV68-$CI$37)^2/(2*$FY$29*$GA$29),0)+IF($EV68>$CK$37,-$CL$37*($EV68-$CK$37)^2/(2*$FY$29*$GA$29),0)+IF($EV68>$CM$37,-$CN$37*($EV68-$CM$37)^2/(2*$FY$29*$GA$29),0)+IF($EV68>$CO$37,-$CP$37*($EV68-$CO$37)^2/(2*$FY$29*$GA$29),0)+IF($EV68>$CQ$37,-$CR$37*($EV68-$CQ$37)^2/(2*$FY$29*$GA$29),0)+IF($EV68>$CS$37,-$CT$37*($EV68-$CS$37)^2/(2*$FY$29*$GA$29),0)+IF($EV68>$CU$37,-$CV$37*($EV68-$CU$37)^2/(2*$FY$29*$GA$29),0)+IF($EV68>$CW$37,-$CX$37*($EV68-$CW$37)^2/(2*$FY$29*$GA$29),0) -> 1.069870578e-05 | DY68: =IF($EV68>$CE$37,$CF$37*($EV68-$CE$37)^3/(6*$FY$29*$GA$29),0)+IF($EV68>$CG$37,$CH$37*($EV68-$CG$37)^3/(6*$FY$29*$GA$29),0)+IF($EV68>$CI$37,$CJ$37*($EV68-$CI$37)^3/(6*$FY$29*$GA$29),0)+IF($EV68>$CK$37,$CL$37*($EV68-$CK$37)^3/(6*$FY$29*$GA$29),0)+IF($EV68>$CM$37,$CN$37*($EV68-$CM$37)^3/(6*$FY$29*$GA$29),0)+IF($EV68>$CO$37,$CP$37*($EV68-$CO$37)^3/(6*$FY$29*$GA$29),0)+IF($EV68>$CQ$37,$CR$37*($EV68-$CQ$37)^3/(6*$FY$29*$GA$29),0)+IF($EV68>$CS$37,$CT$37*($EV68-$CS$37)^3/(6*$FY$29*$GA$29),0)+IF($EV68>$CU$37,$CV$37*($EV68-$CU$37)^3/(6*$FY$29*$GA$29),0)+IF($EV68>$CW$37,$CX$37*($EV68-$CW$37)^3/(6*$FY$29*$GA$29),0) -> -2.790693301e-05 | DZ68: =$DZ$67 -> 0 | EA68: =$EA$67 -> 0 | EB68: =$EB$67 -> 0 | EC68: =$EC$67 -> 0 | ED68: =IF($EV68>=IF($CE$49=$GB$29,$CE$49+0.000000001,$CE$49),0,0)+IF($EV68>=IF($CG$49=$GB$29,$CG$49+0.000000001,$CG$49),0,0)+IF($EV68>=IF($CI$49=$GB$29,$CI$49+0.000000001,$CI$49),0,0)+IF($EV68>=IF($CK$49=$GB$29,$CK$49+0.000000001,$CK$49),0,0)+IF($EV68>=IF($CM$49=$GB$29,$CM$49+0.000000001,$CM$49),0,0) -> 0 | EE68: =IF($EV68>=IF($CE$49=$GB$29,$CE$49+0.000000001,$CE$49),-$CF$49,0)+IF($EV68>=IF($CG$49=$GB$29,$CG$49+0.000000001,$CG$49),-$CH$49,0)+IF($EV68>=IF($CI$49=$GB$29,$CI$49+0.000000001,$CI$49),-$CJ$49,0)+IF($EV68>=IF($CK$49=$GB$29,$CK$49+0.000000001,$CK$49),-$CL$49,0)+IF($EV68>=IF($CM$49=$GB$29,$CM$49+0.000000001,$CM$49),-$CN$49,0) -> 0 | EF68: =IF($EV68>=IF($CE$49=$GB$29,$CE$49+0.000000001,$CE$49),-$CF$49*($EV68-$CE$49)/($FY$29*$GA$29),0)+IF($EV68>=IF($CG$49=$GB$29,$CG$49+0.000000001,$CG$49),-$CH$49*($EV68-$CG$49)/($FY$29*$GA$29),0)+IF($EV68>=IF($CI$49=$GB$29,$CI$49+0.000000001,$CI$49),-$CJ$49*($EV68-$CI$49)/($FY$29*$GA$29),0)+IF($EV68>=IF($CK$49=$GB$29,$CK$49+0.000000001,$CK$49),-$CL$49*($EV68-$CK$49)/($FY$29*$GA$29),0)+IF($EV68>=IF($CM$49=$GB$29,$CM$49+0.000000001,$CM$49),-$CN$49*($EV68-$CM$49)/($FY$29*$GA$29),0) -> 0 | EG68: =IF($EV68>=IF($CE$49=$GB$29,$CE$49+0.000000001,$CE$49),$CF$49*($EV68-$CE$49)^2/(2*$FY$29*$GA$29),0)+IF($EV68>=IF($CG$49=$GB$29,$CG$49+0.000000001,$CG$49),$CH$49*($EV68-$CG$49)^2/(2*$FY$29*$GA$29),0)+IF($EV68>=IF($CI$49=$GB$29,$CI$49+0.000000001,$CI$49),$CJ$49*($EV68-$CI$49)^2/(2*$FY$29*$GA$29),0)+IF($EV68>=IF($CK$49=$GB$29,$CK$49+0.000000001,$CK$49),$CL$49*($EV68-$CK$49)^2/(2*$FY$29*$GA$29),0)+IF($EV68>=IF($CM$49=$GB$29,$CM$49+0.000000001,$CM$49),$CN$49*($EV68-$CM$49)^2/(2*$FY$29*$GA$29),0) -> 0 | EH68: 29.22218829 | EI68: 264.6253742 | EJ68: 6.94155598e-05 | EK68: -0.0002873446289 | EL68: 29.22218829 | EM68: 264.6253742 | EN68: 6.94155598e-05 | EO68: -0.0002873446289 | EP68: =$EP$67 -> -14.82406993 | EQ68: =$EQ$67 -> 48.81159855 | ER68: =$ER$67 -> 0 | ES68: =$ES$67 -> 0 | ET68: =-($EP68+$EL68) -> -14.39811836 | EU68: 51.5281181 | EV68: =$GB$29+0.0000000001 -> 17.66781025 | EW68: Member #3(Y) FEM(R): | FF68: W36x170 | FG68: 50.1 | FH68: 10500 | FI68: 320 | FJ68: 323.23 | FK68: 437043 | FL68: 13319.41 | FW68: 1 | FY68: =BG68 -> 0 | FZ68: =BH68*0.737562 -> 0 | GA68: =BI68 -> 0 | GB68: =BJ68*0.737562 -> 0 | GC68: =BK68 -> 0 | GD68: =BL68*0.737562 -> 0 | GE68: =BM68 -> 0 | GF68: =BN68*0.737562 -> 0 | GG68: =BO68 -> 0 | GH68: =BP68*0.737562 -> 0
H69: Joint 2 - Imposed | O69: 10 | T69: 15 | Y69: 10 | BE69: 2 | BG69: =P144/AB25 -> 0 | BH69: =IF($P$141="Dead",R144*$S$62,R144*$S$63) -> 0 | BI69: =T144/AB25 -> 0 | BJ69: =IF($T$141="Dead",V144*$S$62,V144*$S$63) -> 0 | BK69: =X144/AB25 -> 0 | BL69: =IF($X$141="Dead",Z144*$S$62,Z144*$S$63) -> 0 | BM69: =P152/AB25 -> 0 | BN69: =IF($P$149="Dead",R152*$S$62,R152*$S$63) -> 0 | BO69: =T152/AB25 -> 0 | BP69: =IF($T$149="Dead",V152*$S$62,V152*$S$63) -> 0 | CC69: Member #3(Y) Axial(L): | CD69: =IF($CE$23=$CG$23,"---",IF(AND($CE$23="",$CF$23="",$CG$23="",$CH$23=""),"---",(-$CF$23*($GB$29-$CE$23-($GB$29-$CG$23)))+(-1/2*($CH$23-$CF$23)/($CG$23-$CE$23)*(($GB$29-$CE$23)^2-($GB$29-$CG$23)^2)+($CH$23-$CF$23)*($GB$29-$CG$23)))) -> --- | CE69: =IF($CE$23=$CG$23,"---",IF(AND($CE$23="",$CF$23="",$CG$23="",$CH$23=""),"---",(-$CF$23/2*(($GB$29-$CE$23)^2-($GB$29-$CG$23)^2))+(-1/6*($CH$23-$CF$23)/($CG$23-$CE$23)*(($GB$29-$CE$23)^3-($GB$29-$CG$23)^3)+($CH$23-$CF$23)/2*($GB$29-$CG$23)^2))) -> --- | CF69: =IF($CE$23=$CG$23,"---",IF(AND($CE$23="",$CF$23="",$CG$23="",$CH$23=""),"---",(-$CF$23/(6*$FY$29*$GA$29)*(($GB$29-$CE$23)^3-($GB$29-$CG$23)^3))+(-1/(24*$FY$29*$GA$29)*($CH$23-$CF$23)/($CG$23-$CE$23)*(($GB$29-$CE$23)^4-($GB$29-$CG$23)^4)+($CH$23-$CF$23)/(6*$FY$29*$GA$29)*($GB$29-$CG$23)^3))) -> --- | CG69: =IF($CE$23=$CG$23,"---",IF(AND($CE$23="",$CF$23="",$CG$23="",$CH$23=""),"---",($CF$23/(24*$FY$29*$GA$29)*(($GB$29-$CE$23)^4-($GB$29-$CG$23)^4))+(1/(120*$FY$29*$GA$29)*($CH$23-$CF$23)/($CG$23-$CE$23)*(($GB$29-$CE$23)^5-($GB$29-$CG$23)^5)-($CH$23-$CF$23)/(24*$FY$29*$GA$29)*($GB$29-$CG$23)^4))) -> --- | CH69: =IF($CE$23=$CG$23,"---",IF(AND($CE$23="",$CF$23="",$CG$23="",$CH$23=""),"---",(IF($EV69>=$CG$23,-$CF$23*($EV69-$CE$23-($EV69-$CG$23)),IF($EV69>=$CE$23,-$CF$23*($EV69-$CE$23),0)))+(IF($EV69>=$CG$23,-1/2*($CH$23-$CF$23)/($CG$23-$CE$23)*(($EV69-$CE$23)^2-($EV69-$CG$23)^2)+($CH$23-$CF$23)*($EV69-$CG$23),IF($EV69>=$CE$23,-1/2*($CH$23-$CF$23)/($CG$23-$CE$23)*($EV69-$CE$23)^2,0))))) -> --- | CI69: =IF($CE$23=$CG$23,"---",IF(AND($CE$23="",$CF$23="",$CG$23="",$CH$23=""),"---",(IF($EV69>=$CG$23,-$CF$23/2*(($EV69-$CE$23)^2-($EV69-$CG$23)^2),IF($EV69>=$CE$23,-$CF$23/2*($EV69-$CE$23)^2,0)))+(IF($EV69>=$CG$23,-1/6*($CH$23-$CF$23)/($CG$23-$CE$23)*(($EV69-$CE$23)^3-($EV69-$CG$23)^3)+($CH$23-$CF$23)/2*($EV69-$CG$23)^2,IF($EV69>=$CE$23,-1/6*($CH$23-$CF$23)/($CG$23-$CE$23)*($EV69-$CE$23)^3,0))))) -> --- | CJ69: =IF($CE$23=$CG$23,"---",IF(AND($CE$23="",$CF$23="",$CG$23="",$CH$23=""),"---",(IF($EV69>=$CG$23,-$CF$23/(6*$FY$29*$GA$29)*(($EV69-$CE$23)^3-($EV69-$CG$23)^3),IF($EV69>=$CE$23,-$CF$23/(6*$FY$29*$GA$29)*($EV69-$CE$23)^3,0)))+(IF($EV69>=$CG$23,-1/(24*$FY$29*$GA$29)*($CH$23-$CF$23)/($CG$23-$CE$23)*(($EV69-$CE$23)^4-($EV69-$CG$23)^4)+($CH$23-$CF$23)/(6*$FY$29*$GA$29)*($EV69-$CG$23)^3,IF($EV69>=$CE$23,-1/(24*$FY$29*$GA$29)*($CH$23-$CF$23)/($CG$23-$CE$23)*($EV69-$CE$23)^4,0))))) -> --- | CK69: =IF($CE$23=$CG$23,"---",IF(AND($CE$23="",$CF$23="",$CG$23="",$CH$23=""),"---",(IF($EV69>=$CG$23,$CF$23/(24*$FY$29*$GA$29)*(($EV69-$CE$23)^4-($EV69-$CG$23)^4),IF($EV69>=$CE$23,$CF$23/(24*$FY$29*$GA$29)*($EV69-$CE$23)^4,0)))+(IF($EV69>=$CG$23,1/(120*$FY$29*$GA$29)*($CH$23-$CF$23)/($CG$23-$CE$23)*(($EV69-$CE$23)^5-($EV69-$CG$23)^5)-($CH$23-$CF$23)/(24*$FY$29*$GA$29)*($EV69-$CG$23)^4,IF($EV69>=$CE$23,1/(120*$FY$29*$GA$29)*($CH$23-$CF$23)/($CG$23-$CE$23)*($EV69-$CE$23)^5,0))))) -> --- | CL69: =IF($CI$23=$CK$23,"---",IF(AND($CI$23="",$CJ$23="",$CK$23="",$CL$23=""),"---",(-$CJ$23*($GB$29-$CI$23-($GB$29-$CK$23)))+(-1/2*($CL$23-$CJ$23)/($CK$23-$CI$23)*(($GB$29-$CI$23)^2-($GB$29-$CK$23)^2)+($CL$23-$CJ$23)*($GB$29-$CK$23)))) -> -8.766657786 | CM69: =IF($CI$23=$CK$23,"---",IF(AND($CI$23="",$CJ$23="",$CK$23="",$CL$23=""),"---",(-$CJ$23/2*(($GB$29-$CI$23)^2-($GB$29-$CK$23)^2))+(-1/6*($CL$23-$CJ$23)/($CK$23-$CI$23)*(($GB$29-$CI$23)^3-($GB$29-$CK$23)^3)+($CL$23-$CJ$23)/2*($GB$29-$CK$23)^2))) -> -82.98286167 | CN69: =IF($CI$23=$CK$23,"---",IF(AND($CI$23="",$CJ$23="",$CK$23="",$CL$23=""),"---",(-$CJ$23/(6*$FY$29*$GA$29)*(($GB$29-$CI$23)^3-($GB$29-$CK$23)^3))+(-1/(24*$FY$29*$GA$29)*($CL$23-$CJ$23)/($CK$23-$CI$23)*(($GB$29-$CI$23)^4-($GB$29-$CK$23)^4)+($CL$23-$CJ$23)/(6*$FY$29*$GA$29)*($GB$29-$CK$23)^3))) -> -2.348674161e-05 | CO69: =IF($CI$23=$CK$23,"---",IF(AND($CI$23="",$CJ$23="",$CK$23="",$CL$23=""),"---",($CJ$23/(24*$FY$29*$GA$29)*(($GB$29-$CI$23)^4-($GB$29-$CK$23)^4))+(1/(120*$FY$29*$GA$29)*($CL$23-$CJ$23)/($CK$23-$CI$23)*(($GB$29-$CI$23)^5-($GB$29-$CK$23)^5)-($CL$23-$CJ$23)/(24*$FY$29*$GA$29)*($GB$29-$CK$23)^4))) -> 0.0001037750783 | CP69: =IF($CI$23=$CK$23,"---",IF(AND($CI$23="",$CJ$23="",$CK$23="",$CL$23=""),"---",(IF($EV69>=$CK$23,-$CJ$23*($EV69-$CI$23-($EV69-$CK$23)),IF($EV69>=$CI$23,-$CJ$23*($EV69-$CI$23),0)))+(IF($EV69>=$CK$23,-1/2*($CL$23-$CJ$23)/($CK$23-$CI$23)*(($EV69-$CI$23)^2-($EV69-$CK$23)^2)+($CL$23-$CJ$23)*($EV69-$CK$23),IF($EV69>=$CI$23,-1/2*($CL$23-$CJ$23)/($CK$23-$CI$23)*($EV69-$CI$23)^2,0))))) -> 0 | CQ69: =IF($CI$23=$CK$23,"---",IF(AND($CI$23="",$CJ$23="",$CK$23="",$CL$23=""),"---",(IF($EV69>=$CK$23,-$CJ$23/2*(($EV69-$CI$23)^2-($EV69-$CK$23)^2),IF($EV69>=$CI$23,-$CJ$23/2*($EV69-$CI$23)^2,0)))+(IF($EV69>=$CK$23,-1/6*($CL$23-$CJ$23)/($CK$23-$CI$23)*(($EV69-$CI$23)^3-($EV69-$CK$23)^3)+($CL$23-$CJ$23)/2*($EV69-$CK$23)^2,IF($EV69>=$CI$23,-1/6*($CL$23-$CJ$23)/($CK$23-$CI$23)*($EV69-$CI$23)^3,0))))) -> 0 | CR69: =IF($CI$23=$CK$23,"---",IF(AND($CI$23="",$CJ$23="",$CK$23="",$CL$23=""),"---",(IF($EV69>=$CK$23,-$CJ$23/(6*$FY$29*$GA$29)*(($EV69-$CI$23)^3-($EV69-$CK$23)^3),IF($EV69>=$CI$23,-$CJ$23/(6*$FY$29*$GA$29)*($EV69-$CI$23)^3,0)))+(IF($EV69>=$CK$23,-1/(24*$FY$29*$GA$29)*($CL$23-$CJ$23)/($CK$23-$CI$23)*(($EV69-$CI$23)^4-($EV69-$CK$23)^4)+($CL$23-$CJ$23)/(6*$FY$29*$GA$29)*($EV69-$CK$23)^3,IF($EV69>=$CI$23,-1/(24*$FY$29*$GA$29)*($CL$23-$CJ$23)/($CK$23-$CI$23)*($EV69-$CI$23)^4,0))))) -> 0 | CS69: =IF($CI$23=$CK$23,"---",IF(AND($CI$23="",$CJ$23="",$CK$23="",$CL$23=""),"---",(IF($EV69>=$CK$23,$CJ$23/(24*$FY$29*$GA$29)*(($EV69-$CI$23)^4-($EV69-$CK$23)^4),IF($EV69>=$CI$23,$CJ$23/(24*$FY$29*$GA$29)*($EV69-$CI$23)^4,0)))+(IF($EV69>=$CK$23,1/(120*$FY$29*$GA$29)*($CL$23-$CJ$23)/($CK$23-$CI$23)*(($EV69-$CI$23)^5-($EV69-$CK$23)^5)-($CL$23-$CJ$23)/(24*$FY$29*$GA$29)*($EV69-$CK$23)^4,IF($EV69>=$CI$23,1/(120*$FY$29*$GA$29)*($CL$23-$CJ$23)/($CK$23-$CI$23)*($EV69-$CI$23)^5,0))))) -> 0 | CT69: =IF($CM$23=$CO$23,"---",IF(AND($CM$23="",$CN$23="",$CO$23="",$CP$23=""),"---",(-$CN$23*($GB$29-$CM$23-($GB$29-$CO$23)))+(-1/2*($CP$23-$CN$23)/($CO$23-$CM$23)*(($GB$29-$CM$23)^2-($GB$29-$CO$23)^2)+($CP$23-$CN$23)*($GB$29-$CO$23)))) -> --- | CU69: =IF($CM$23=$CO$23,"---",IF(AND($CM$23="",$CN$23="",$CO$23="",$CP$23=""),"---",(-$CN$23/2*(($GB$29-$CM$23)^2-($GB$29-$CO$23)^2))+(-1/6*($CP$23-$CN$23)/($CO$23-$CM$23)*(($GB$29-$CM$23)^3-($GB$29-$CO$23)^3)+($CP$23-$CN$23)/2*($GB$29-$CO$23)^2))) -> --- | CV69: =IF($CM$23=$CO$23,"---",IF(AND($CM$23="",$CN$23="",$CO$23="",$CP$23=""),"---",(-$CN$23/(6*$FY$29*$GA$29)*(($GB$29-$CM$23)^3-($GB$29-$CO$23)^3))+(-1/(24*$FY$29*$GA$29)*($CP$23-$CN$23)/($CO$23-$CM$23)*(($GB$29-$CM$23)^4-($GB$29-$CO$23)^4)+($CP$23-$CN$23)/(6*$FY$29*$GA$29)*($GB$29-$CO$23)^3))) -> --- | CW69: =IF($CM$23=$CO$23,"---",IF(AND($CM$23="",$CN$23="",$CO$23="",$CP$23=""),"---",($CN$23/(24*$FY$29*$GA$29)*(($GB$29-$CM$23)^4-($GB$29-$CO$23)^4))+(1/(120*$FY$29*$GA$29)*($CP$23-$CN$23)/($CO$23-$CM$23)*(($GB$29-$CM$23)^5-($GB$29-$CO$23)^5)-($CP$23-$CN$23)/(24*$FY$29*$GA$29)*($GB$29-$CO$23)^4))) -> --- | CX69: =IF($CM$23=$CO$23,"---",IF(AND($CM$23="",$CN$23="",$CO$23="",$CP$23=""),"---",(IF($EV69>=$CO$23,-$CN$23*($EV69-$CM$23-($EV69-$CO$23)),IF($EV69>=$CM$23,-$CN$23*($EV69-$CM$23),0)))+(IF($EV69>=$CO$23,-1/2*($CP$23-$CN$23)/($CO$23-$CM$23)*(($EV69-$CM$23)^2-($EV69-$CO$23)^2)+($CP$23-$CN$23)*($EV69-$CO$23),IF($EV69>=$CM$23,-1/2*($CP$23-$CN$23)/($CO$23-$CM$23)*($EV69-$CM$23)^2,0))))) -> --- | CY69: =IF($CM$23=$CO$23,"---",IF(AND($CM$23="",$CN$23="",$CO$23="",$CP$23=""),"---",(IF($EV69>=$CO$23,-$CN$23/2*(($EV69-$CM$23)^2-($EV69-$CO$23)^2),IF($EV69>=$CM$23,-$CN$23/2*($EV69-$CM$23)^2,0)))+(IF($EV69>=$CO$23,-1/6*($CP$23-$CN$23)/($CO$23-$CM$23)*(($EV69-$CM$23)^3-($EV69-$CO$23)^3)+($CP$23-$CN$23)/2*($EV69-$CO$23)^2,IF($EV69>=$CM$23,-1/6*($CP$23-$CN$23)/($CO$23-$CM$23)*($EV69-$CM$23)^3,0))))) -> --- | CZ69: =IF($CM$23=$CO$23,"---",IF(AND($CM$23="",$CN$23="",$CO$23="",$CP$23=""),"---",(IF($EV69>=$CO$23,-$CN$23/(6*$FY$29*$GA$29)*(($EV69-$CM$23)^3-($EV69-$CO$23)^3),IF($EV69>=$CM$23,-$CN$23/(6*$FY$29*$GA$29)*($EV69-$CM$23)^3,0)))+(IF($EV69>=$CO$23,-1/(24*$FY$29*$GA$29)*($CP$23-$CN$23)/($CO$23-$CM$23)*(($EV69-$CM$23)^4-($EV69-$CO$23)^4)+($CP$23-$CN$23)/(6*$FY$29*$GA$29)*($EV69-$CO$23)^3,IF($EV69>=$CM$23,-1/(24*$FY$29*$GA$29)*($CP$23-$CN$23)/($CO$23-$CM$23)*($EV69-$CM$23)^4,0))))) -> --- | DA69: =IF($CM$23=$CO$23,"---",IF(AND($CM$23="",$CN$23="",$CO$23="",$CP$23=""),"---",(IF($EV69>=$CO$23,$CN$23/(24*$FY$29*$GA$29)*(($EV69-$CM$23)^4-($EV69-$CO$23)^4),IF($EV69>=$CM$23,$CN$23/(24*$FY$29*$GA$29)*($EV69-$CM$23)^4,0)))+(IF($EV69>=$CO$23,1/(120*$FY$29*$GA$29)*($CP$23-$CN$23)/($CO$23-$CM$23)*(($EV69-$CM$23)^5-($EV69-$CO$23)^5)-($CP$23-$CN$23)/(24*$FY$29*$GA$29)*($EV69-$CO$23)^4,IF($EV69>=$CM$23,1/(120*$FY$29*$GA$29)*($CP$23-$CN$23)/($CO$23-$CM$23)*($EV69-$CM$23)^5,0))))) -> --- | DB69: =IF($CQ$23=$CS$23,"---",IF(AND($CQ$23="",$CR$23="",$CS$23="",$CT$23=""),"---",(-$CR$23*($GB$29-$CQ$23-($GB$29-$CS$23)))+(-1/2*($CT$23-$CR$23)/($CS$23-$CQ$23)*(($GB$29-$CQ$23)^2-($GB$29-$CS$23)^2)+($CT$23-$CR$23)*($GB$29-$CS$23)))) -> --- | DC69: =IF($CQ$23=$CS$23,"---",IF(AND($CQ$23="",$CR$23="",$CS$23="",$CT$23=""),"---",(-$CR$23/2*(($GB$29-$CQ$23)^2-($GB$29-$CS$23)^2))+(-1/6*($CT$23-$CR$23)/($CS$23-$CQ$23)*(($GB$29-$CQ$23)^3-($GB$29-$CS$23)^3)+($CT$23-$CR$23)/2*($GB$29-$CS$23)^2))) -> --- | DD69: =IF($CQ$23=$CS$23,"---",IF(AND($CQ$23="",$CR$23="",$CS$23="",$CT$23=""),"---",(-$CR$23/(6*$FY$29*$GA$29)*(($GB$29-$CQ$23)^3-($GB$29-$CS$23)^3))+(-1/(24*$FY$29*$GA$29)*($CT$23-$CR$23)/($CS$23-$CQ$23)*(($GB$29-$CQ$23)^4-($GB$29-$CS$23)^4)+($CT$23-$CR$23)/(6*$FY$29*$GA$29)*($GB$29-$CS$23)^3))) -> --- | DE69: =IF($CQ$23=$CS$23,"---",IF(AND($CQ$23="",$CR$23="",$CS$23="",$CT$23=""),"---",($CR$23/(24*$FY$29*$GA$29)*(($GB$29-$CQ$23)^4-($GB$29-$CS$23)^4))+(1/(120*$FY$29*$GA$29)*($CT$23-$CR$23)/($CS$23-$CQ$23)*(($GB$29-$CQ$23)^5-($GB$29-$CS$23)^5)-($CT$23-$CR$23)/(24*$FY$29*$GA$29)*($GB$29-$CS$23)^4))) -> --- | DF69: =IF($CQ$23=$CS$23,"---",IF(AND($CQ$23="",$CR$23="",$CS$23="",$CT$23=""),"---",(IF($EV69>=$CS$23,-$CR$23*($EV69-$CQ$23-($EV69-$CS$23)),IF($EV69>=$CQ$23,-$CR$23*($EV69-$CQ$23),0)))+(IF($EV69>=$CS$23,-1/2*($CT$23-$CR$23)/($CS$23-$CQ$23)*(($EV69-$CQ$23)^2-($EV69-$CS$23)^2)+($CT$23-$CR$23)*($EV69-$CS$23),IF($EV69>=$CQ$23,-1/2*($CT$23-$CR$23)/($CS$23-$CQ$23)*($EV69-$CQ$23)^2,0))))) -> --- | DG69: =IF($CQ$23=$CS$23,"---",IF(AND($CQ$23="",$CR$23="",$CS$23="",$CT$23=""),"---",(IF($EV69>=$CS$23,-$CR$23/2*(($EV69-$CQ$23)^2-($EV69-$CS$23)^2),IF($EV69>=$CQ$23,-$CR$23/2*($EV69-$CQ$23)^2,0)))+(IF($EV69>=$CS$23,-1/6*($CT$23-$CR$23)/($CS$23-$CQ$23)*(($EV69-$CQ$23)^3-($EV69-$CS$23)^3)+($CT$23-$CR$23)/2*($EV69-$CS$23)^2,IF($EV69>=$CQ$23,-1/6*($CT$23-$CR$23)/($CS$23-$CQ$23)*($EV69-$CQ$23)^3,0))))) -> --- | DH69: =IF($CQ$23=$CS$23,"---",IF(AND($CQ$23="",$CR$23="",$CS$23="",$CT$23=""),"---",(IF($EV69>=$CS$23,-$CR$23/(6*$FY$29*$GA$29)*(($EV69-$CQ$23)^3-($EV69-$CS$23)^3),IF($EV69>=$CQ$23,-$CR$23/(6*$FY$29*$GA$29)*($EV69-$CQ$23)^3,0)))+(IF($EV69>=$CS$23,-1/(24*$FY$29*$GA$29)*($CT$23-$CR$23)/($CS$23-$CQ$23)*(($EV69-$CQ$23)^4-($EV69-$CS$23)^4)+($CT$23-$CR$23)/(6*$FY$29*$GA$29)*($EV69-$CS$23)^3,IF($EV69>=$CQ$23,-1/(24*$FY$29*$GA$29)*($CT$23-$CR$23)/($CS$23-$CQ$23)*($EV69-$CQ$23)^4,0))))) -> --- | DI69: =IF($CQ$23=$CS$23,"---",IF(AND($CQ$23="",$CR$23="",$CS$23="",$CT$23=""),"---",(IF($EV69>=$CS$23,$CR$23/(24*$FY$29*$GA$29)*(($EV69-$CQ$23)^4-($EV69-$CS$23)^4),IF($EV69>=$CQ$23,$CR$23/(24*$FY$29*$GA$29)*($EV69-$CQ$23)^4,0)))+(IF($EV69>=$CS$23,1/(120*$FY$29*$GA$29)*($CT$23-$CR$23)/($CS$23-$CQ$23)*(($EV69-$CQ$23)^5-($EV69-$CS$23)^5)-($CT$23-$CR$23)/(24*$FY$29*$GA$29)*($EV69-$CS$23)^4,IF($EV69>=$CQ$23,1/(120*$FY$29*$GA$29)*($CT$23-$CR$23)/($CS$23-$CQ$23)*($EV69-$CQ$23)^5,0))))) -> --- | DJ69: =IF($CU$23=$CW$23,"---",IF(AND($CU$23="",$CV$23="",$CW$23="",$CX$23=""),"---",(-$CV$23*($GB$29-$CU$23-($GB$29-$CW$23)))+(-1/2*($CX$23-$CV$23)/($CW$23-$CU$23)*(($GB$29-$CU$23)^2-($GB$29-$CW$23)^2)+($CX$23-$CV$23)*($GB$29-$CW$23)))) -> --- | DK69: =IF($CU$23=$CW$23,"---",IF(AND($CU$23="",$CV$23="",$CW$23="",$CX$23=""),"---",(-$CV$23/2*(($GB$29-$CU$23)^2-($GB$29-$CW$23)^2))+(-1/6*($CX$23-$CV$23)/($CW$23-$CU$23)*(($GB$29-$CU$23)^3-($GB$29-$CW$23)^3)+($CX$23-$CV$23)/2*($GB$29-$CW$23)^2))) -> --- | DL69: =IF($CU$23=$CW$23,"---",IF(AND($CU$23="",$CV$23="",$CW$23="",$CX$23=""),"---",(-$CV$23/(6*$FY$29*$GA$29)*(($GB$29-$CU$23)^3-($GB$29-$CW$23)^3))+(-1/(24*$FY$29*$GA$29)*($CX$23-$CV$23)/($CW$23-$CU$23)*(($GB$29-$CU$23)^4-($GB$29-$CW$23)^4)+($CX$23-$CV$23)/(6*$FY$29*$GA$29)*($GB$29-$CW$23)^3))) -> --- | DM69: =IF($CU$23=$CW$23,"---",IF(AND($CU$23="",$CV$23="",$CW$23="",$CX$23=""),"---",($CV$23/(24*$FY$29*$GA$29)*(($GB$29-$CU$23)^4-($GB$29-$CW$23)^4))+(1/(120*$FY$29*$GA$29)*($CX$23-$CV$23)/($CW$23-$CU$23)*(($GB$29-$CU$23)^5-($GB$29-$CW$23)^5)-($CX$23-$CV$23)/(24*$FY$29*$GA$29)*($GB$29-$CW$23)^4))) -> --- | DN69: =IF($CU$23=$CW$23,"---",IF(AND($CU$23="",$CV$23="",$CW$23="",$CX$23=""),"---",(IF($EV69>=$CW$23,-$CV$23*($EV69-$CU$23-($EV69-$CW$23)),IF($EV69>=$CU$23,-$CV$23*($EV69-$CU$23),0)))+(IF($EV69>=$CW$23,-1/2*($CX$23-$CV$23)/($CW$23-$CU$23)*(($EV69-$CU$23)^2-($EV69-$CW$23)^2)+($CX$23-$CV$23)*($EV69-$CW$23),IF($EV69>=$CU$23,-1/2*($CX$23-$CV$23)/($CW$23-$CU$23)*($EV69-$CU$23)^2,0))))) -> --- | DO69: =IF($CU$23=$CW$23,"---",IF(AND($CU$23="",$CV$23="",$CW$23="",$CX$23=""),"---",(IF($EV69>=$CW$23,-$CV$23/2*(($EV69-$CU$23)^2-($EV69-$CW$23)^2),IF($EV69>=$CU$23,-$CV$23/2*($EV69-$CU$23)^2,0)))+(IF($EV69>=$CW$23,-1/6*($CX$23-$CV$23)/($CW$23-$CU$23)*(($EV69-$CU$23)^3-($EV69-$CW$23)^3)+($CX$23-$CV$23)/2*($EV69-$CW$23)^2,IF($EV69>=$CU$23,-1/6*($CX$23-$CV$23)/($CW$23-$CU$23)*($EV69-$CU$23)^3,0))))) -> --- | DP69: =IF($CU$23=$CW$23,"---",IF(AND($CU$23="",$CV$23="",$CW$23="",$CX$23=""),"---",(IF($EV69>=$CW$23,-$CV$23/(6*$FY$29*$GA$29)*(($EV69-$CU$23)^3-($EV69-$CW$23)^3),IF($EV69>=$CU$23,-$CV$23/(6*$FY$29*$GA$29)*($EV69-$CU$23)^3,0)))+(IF($EV69>=$CW$23,-1/(24*$FY$29*$GA$29)*($CX$23-$CV$23)/($CW$23-$CU$23)*(($EV69-$CU$23)^4-($EV69-$CW$23)^4)+($CX$23-$CV$23)/(6*$FY$29*$GA$29)*($EV69-$CW$23)^3,IF($EV69>=$CU$23,-1/(24*$FY$29*$GA$29)*($CX$23-$CV$23)/($CW$23-$CU$23)*($EV69-$CU$23)^4,0))))) -> --- | DQ69: =IF($CU$23=$CW$23,"---",IF(AND($CU$23="",$CV$23="",$CW$23="",$CX$23=""),"---",(IF($EV69>=$CW$23,$CV$23/(24*$FY$29*$GA$29)*(($EV69-$CU$23)^4-($EV69-$CW$23)^4),IF($EV69>=$CU$23,$CV$23/(24*$FY$29*$GA$29)*($EV69-$CU$23)^4,0)))+(IF($EV69>=$CW$23,1/(120*$FY$29*$GA$29)*($CX$23-$CV$23)/($CW$23-$CU$23)*(($EV69-$CU$23)^5-($EV69-$CW$23)^5)-($CX$23-$CV$23)/(24*$FY$29*$GA$29)*($EV69-$CW$23)^4,IF($EV69>=$CU$23,1/(120*$FY$29*$GA$29)*($CX$23-$CV$23)/($CW$23-$CU$23)*($EV69-$CU$23)^5,0))))) -> --- | DR69: =-$CF$38+-$CH$38+-$CJ$38+-$CL$38+-$CN$38+-$CP$38+-$CR$38+-$CT$38+-$CV$38+-$CX$38 -> -2.92221753 | DS69: =-$CF$38*($GB$29-$CE$38)+-$CH$38*($GB$29-$CG$38)+-$CJ$38*($GB$29-$CI$38)+-$CL$38*($GB$29-$CK$38)+-$CN$38*($GB$29-$CM$38)+-$CP$38*($GB$29-$CO$38)+-$CR$38*($GB$29-$CQ$38)+-$CT$38*($GB$29-$CS$38)+-$CV$38*($GB$29-$CU$38)+-$CX$38*($GB$29-$CW$38) -> -22.86728802 | DT69: =-$CF$38*($GB$29-$CE$38)^2/(2*$FY$29*$GA$29)+-$CH$38*($GB$29-$CG$38)^2/(2*$FY$29*$GA$29)+-$CJ$38*($GB$29-$CI$38)^2/(2*$FY$29*$GA$29)+-$CL$38*($GB$29-$CK$38)^2/(2*$FY$29*$GA$29)+-$CN$38*($GB$29-$CM$38)^2/(2*$FY$29*$GA$29)+-$CP$38*($GB$29-$CO$38)^2/(2*$FY$29*$GA$29)+-$CR$38*($GB$29-$CQ$38)^2/(2*$FY$29*$GA$29)+-$CT$38*($GB$29-$CS$38)^2/(2*$FY$29*$GA$29)+-$CV$38*($GB$29-$CU$38)^2/(2*$FY$29*$GA$29)+-$CX$38*($GB$29-$CW$38)^2/(2*$FY$29*$GA$29) -> -4.279482312e-06 | DU69: =$CF$38*($GB$29-$CE$38)^3/(6*$FY$29*$GA$29)+$CH$38*($GB$29-$CG$38)^3/(6*$FY$29*$GA$29)+$CJ$38*($GB$29-$CI$38)^3/(6*$FY$29*$GA$29)+$CL$38*($GB$29-$CK$38)^3/(6*$FY$29*$GA$29)+$CN$38*($GB$29-$CM$38)^3/(6*$FY$29*$GA$29)+$CP$38*($GB$29-$CO$38)^3/(6*$FY$29*$GA$29)+$CR$38*($GB$29-$CQ$38)^3/(6*$FY$29*$GA$29)+$CT$38*($GB$29-$CS$38)^3/(6*$FY$29*$GA$29)+$CV$38*($GB$29-$CU$38)^3/(6*$FY$29*$GA$29)+$CX$38*($GB$29-$CW$38)^3/(6*$FY$29*$GA$29) -> 1.11627732e-05 | DV69: =IF($EV67>$CE$38,-$CF$38,0)+IF($EV67>$CG$38,-$CH$38,0)+IF($EV67>$CI$38,-$CJ$38,0)+IF($EV67>$CK$38,-$CL$38,0)+IF($EV67>$CM$38,-$CN$38,0)+IF($EV67>$CO$38,-$CP$38,0)+IF($EV67>$CQ$38,-$CR$38,0)+IF($EV67>$CS$38,-$CT$38,0)+IF($EV67>$CU$38,-$CV$38,0)+IF($EV67>$CW$38,-$CX$38,0) -> 0 | DW69: =IF($EV67>$CE$38,-$CF$38*($EV67-$CE$38),0)+IF($EV67>$CG$38,-$CH$38*($EV67-$CG$38),0)+IF($EV67>$CI$38,-$CJ$38*($EV67-$CI$38),0)+IF($EV67>$CK$38,-$CL$38*($EV67-$CK$38),0)+IF($EV67>$CM$38,-$CN$38*($EV67-$CM$38),0)+IF($EV67>$CO$38,-$CP$38*($EV67-$CO$38),0)+IF($EV67>$CQ$38,-$CR$38*($EV67-$CQ$38),0)+IF($EV67>$CS$38,-$CT$38*($EV67-$CS$38),0)+IF($EV67>$CU$38,-$CV$38*($EV67-$CU$38),0)+IF($EV67>$CW$38,-$CX$38*($EV67-$CW$38),0) -> 0 | DX69: =IF($EV67>$CE$38,-$CF$38*($EV67-$CE$38)^2/(2*$FY$29*$GA$29),0)+IF($EV67>$CG$38,-$CH$38*($EV67-$CG$38)^2/(2*$FY$29*$GA$29),0)+IF($EV67>$CI$38,-$CJ$38*($EV67-$CI$38)^2/(2*$FY$29*$GA$29),0)+IF($EV67>$CK$38,-$CL$38*($EV67-$CK$38)^2/(2*$FY$29*$GA$29),0)+IF($EV67>$CM$38,-$CN$38*($EV67-$CM$38)^2/(2*$FY$29*$GA$29),0)+IF($EV67>$CO$38,-$CP$38*($EV67-$CO$38)^2/(2*$FY$29*$GA$29),0)+IF($EV67>$CQ$38,-$CR$38*($EV67-$CQ$38)^2/(2*$FY$29*$GA$29),0)+IF($EV67>$CS$38,-$CT$38*($EV67-$CS$38)^2/(2*$FY$29*$GA$29),0)+IF($EV67>$CU$38,-$CV$38*($EV67-$CU$38)^2/(2*$FY$29*$GA$29),0)+IF($EV67>$CW$38,-$CX$38*($EV67-$CW$38)^2/(2*$FY$29*$GA$29),0) -> 0 | DY69: =IF($EV67>$CE$38,$CF$38*($EV67-$CE$38)^3/(6*$FY$29*$GA$29),0)+IF($EV67>$CG$38,$CH$38*($EV67-$CG$38)^3/(6*$FY$29*$GA$29),0)+IF($EV67>$CI$38,$CJ$38*($EV67-$CI$38)^3/(6*$FY$29*$GA$29),0)+IF($EV67>$CK$38,$CL$38*($EV67-$CK$38)^3/(6*$FY$29*$GA$29),0)+IF($EV67>$CM$38,$CN$38*($EV67-$CM$38)^3/(6*$FY$29*$GA$29),0)+IF($EV67>$CO$38,$CP$38*($EV67-$CO$38)^3/(6*$FY$29*$GA$29),0)+IF($EV67>$CQ$38,$CR$38*($EV67-$CQ$38)^3/(6*$FY$29*$GA$29),0)+IF($EV67>$CS$38,$CT$38*($EV67-$CS$38)^3/(6*$FY$29*$GA$29),0)+IF($EV67>$CU$38,$CV$38*($EV67-$CU$38)^3/(6*$FY$29*$GA$29),0)+IF($EV67>$CW$38,$CX$38*($EV67-$CW$38)^3/(6*$FY$29*$GA$29),0) -> 0 | DZ69: =0+0+0+0 -> 0 | EA69: 0 | EB69: 0 | EC69: 0 | ED69: 0 | EE69: 0 | EF69: 0 | EG69: 0 | EH69: -11.68887532 | EI69: -105.8501497 | EJ69: -2.776622392e-05 | EK69: 0.0001149378516 | EL69: 0 | EM69: 0 | EN69: 0 | EO69: 0 | EP69: =-12*$FY$29*$GA$29/$GB$29^3*$EK69-6*$FY$29*$GA$29/$GB$29^2*$EJ69 -> 5.929627971 | EQ69: =6*$FY$29*$GA$29/$GB$29^2*$EK69+2*$FY$29*$GA$29/$GB$29*$EJ69 -> -19.52463942 | ER69: =0 -> 0 | ES69: =0 -> 0 | ET69: =$EP69+$EL69 -> 5.929627971 | EU69: -19.52463942 | EV69: =0 -> 0 | EW69: Member #3(Y) Axial(L): | FF69: W36x160 | FG69: 47 | FH69: 9760 | FI69: 295 | FJ69: 303.23 | FK69: 406241.87 | FL69: 12278.83 | FW69: 2 | FY69: =BG69 -> 0 | FZ69: =BH69*0.737562 -> 0 | GA69: =BI69 -> 0 | GB69: =BJ69*0.737562 -> 0 | GC69: =BK69 -> 0 | GD69: =BL69*0.737562 -> 0 | GE69: =BM69 -> 0 | GF69: =BN69*0.737562 -> 0 | GG69: =BO69 -> 0 | GH69: =BP69*0.737562 -> 0
H70: Joint 3 - Dead | BE70: 3 | BG70: =P145/AB26 -> 0 | BH70: =IF($P$141="Dead",R145*$S$62,R145*$S$63) -> 0 | BI70: 0 | BJ70: =IF($T$141="Dead",V145*$S$62,V145*$S$63) -> 0 | BK70: 0 | BL70: =IF($X$141="Dead",Z145*$S$62,Z145*$S$63) -> 0 | BM70: 0 | BN70: =IF($P$149="Dead",R153*$S$62,R153*$S$63) -> 0 | BO70: 0 | BP70: =IF($T$149="Dead",V153*$S$62,V153*$S$63) -> 0 | CC70: Member #3(Y) Axial(R): | CD70: =$CD$69 -> --- | CE70: =$CE$69 -> --- | CF70: =$CF$69 -> --- | CG70: =$CG$69 -> --- | CH70: =IF($CE$23=$CG$23,"---",IF(AND($CE$23="",$CF$23="",$CG$23="",$CH$23=""),"---",(IF($EV70>=$CG$23,-$CF$23*($EV70-$CE$23-($EV70-$CG$23)),IF($EV70>=$CE$23,-$CF$23*($EV70-$CE$23),0)))+(IF($EV70>=$CG$23,-1/2*($CH$23-$CF$23)/($CG$23-$CE$23)*(($EV70-$CE$23)^2-($EV70-$CG$23)^2)+($CH$23-$CF$23)*($EV70-$CG$23),IF($EV70>=$CE$23,-1/2*($CH$23-$CF$23)/($CG$23-$CE$23)*($EV70-$CE$23)^2,0))))) -> --- | CI70: =IF($CE$23=$CG$23,"---",IF(AND($CE$23="",$CF$23="",$CG$23="",$CH$23=""),"---",(IF($EV70>=$CG$23,-$CF$23/2*(($EV70-$CE$23)^2-($EV70-$CG$23)^2),IF($EV70>=$CE$23,-$CF$23/2*($EV70-$CE$23)^2,0)))+(IF($EV70>=$CG$23,-1/6*($CH$23-$CF$23)/($CG$23-$CE$23)*(($EV70-$CE$23)^3-($EV70-$CG$23)^3)+($CH$23-$CF$23)/2*($EV70-$CG$23)^2,IF($EV70>=$CE$23,-1/6*($CH$23-$CF$23)/($CG$23-$CE$23)*($EV70-$CE$23)^3,0))))) -> --- | CJ70: =IF($CE$23=$CG$23,"---",IF(AND($CE$23="",$CF$23="",$CG$23="",$CH$23=""),"---",(IF($EV70>=$CG$23,-$CF$23/(6*$FY$29*$GA$29)*(($EV70-$CE$23)^3-($EV70-$CG$23)^3),IF($EV70>=$CE$23,-$CF$23/(6*$FY$29*$GA$29)*($EV70-$CE$23)^3,0)))+(IF($EV70>=$CG$23,-1/(24*$FY$29*$GA$29)*($CH$23-$CF$23)/($CG$23-$CE$23)*(($EV70-$CE$23)^4-($EV70-$CG$23)^4)+($CH$23-$CF$23)/(6*$FY$29*$GA$29)*($EV70-$CG$23)^3,IF($EV70>=$CE$23,-1/(24*$FY$29*$GA$29)*($CH$23-$CF$23)/($CG$23-$CE$23)*($EV70-$CE$23)^4,0))))) -> --- | CK70: =IF($CE$23=$CG$23,"---",IF(AND($CE$23="",$CF$23="",$CG$23="",$CH$23=""),"---",(IF($EV70>=$CG$23,$CF$23/(24*$FY$29*$GA$29)*(($EV70-$CE$23)^4-($EV70-$CG$23)^4),IF($EV70>=$CE$23,$CF$23/(24*$FY$29*$GA$29)*($EV70-$CE$23)^4,0)))+(IF($EV70>=$CG$23,1/(120*$FY$29*$GA$29)*($CH$23-$CF$23)/($CG$23-$CE$23)*(($EV70-$CE$23)^5-($EV70-$CG$23)^5)-($CH$23-$CF$23)/(24*$FY$29*$GA$29)*($EV70-$CG$23)^4,IF($EV70>=$CE$23,1/(120*$FY$29*$GA$29)*($CH$23-$CF$23)/($CG$23-$CE$23)*($EV70-$CE$23)^5,0))))) -> --- | CL70: =$CL$69 -> -8.766657786 | CM70: =$CM$69 -> -82.98286167 | CN70: =$CN$69 -> -2.348674161e-05 | CO70: =$CO$69 -> 0.0001037750783 | CP70: =IF($CI$23=$CK$23,"---",IF(AND($CI$23="",$CJ$23="",$CK$23="",$CL$23=""),"---",(IF($EV70>=$CK$23,-$CJ$23*($EV70-$CI$23-($EV70-$CK$23)),IF($EV70>=$CI$23,-$CJ$23*($EV70-$CI$23),0)))+(IF($EV70>=$CK$23,-1/2*($CL$23-$CJ$23)/($CK$23-$CI$23)*(($EV70-$CI$23)^2-($EV70-$CK$23)^2)+($CL$23-$CJ$23)*($EV70-$CK$23),IF($EV70>=$CI$23,-1/2*($CL$23-$CJ$23)/($CK$23-$CI$23)*($EV70-$CI$23)^2,0))))) -> -8.766657786 | CQ70: =IF($CI$23=$CK$23,"---",IF(AND($CI$23="",$CJ$23="",$CK$23="",$CL$23=""),"---",(IF($EV70>=$CK$23,-$CJ$23/2*(($EV70-$CI$23)^2-($EV70-$CK$23)^2),IF($EV70>=$CI$23,-$CJ$23/2*($EV70-$CI$23)^2,0)))+(IF($EV70>=$CK$23,-1/6*($CL$23-$CJ$23)/($CK$23-$CI$23)*(($EV70-$CI$23)^3-($EV70-$CK$23)^3)+($CL$23-$CJ$23)/2*($EV70-$CK$23)^2,IF($EV70>=$CI$23,-1/6*($CL$23-$CJ$23)/($CK$23-$CI$23)*($EV70-$CI$23)^3,0))))) -> -82.98286167 | CR70: =IF($CI$23=$CK$23,"---",IF(AND($CI$23="",$CJ$23="",$CK$23="",$CL$23=""),"---",(IF($EV70>=$CK$23,-$CJ$23/(6*$FY$29*$GA$29)*(($EV70-$CI$23)^3-($EV70-$CK$23)^3),IF($EV70>=$CI$23,-$CJ$23/(6*$FY$29*$GA$29)*($EV70-$CI$23)^3,0)))+(IF($EV70>=$CK$23,-1/(24*$FY$29*$GA$29)*($CL$23-$CJ$23)/($CK$23-$CI$23)*(($EV70-$CI$23)^4-($EV70-$CK$23)^4)+($CL$23-$CJ$23)/(6*$FY$29*$GA$29)*($EV70-$CK$23)^3,IF($EV70>=$CI$23,-1/(24*$FY$29*$GA$29)*($CL$23-$CJ$23)/($CK$23-$CI$23)*($EV70-$CI$23)^4,0))))) -> -2.348674161e-05 | CS70: =IF($CI$23=$CK$23,"---",IF(AND($CI$23="",$CJ$23="",$CK$23="",$CL$23=""),"---",(IF($EV70>=$CK$23,$CJ$23/(24*$FY$29*$GA$29)*(($EV70-$CI$23)^4-($EV70-$CK$23)^4),IF($EV70>=$CI$23,$CJ$23/(24*$FY$29*$GA$29)*($EV70-$CI$23)^4,0)))+(IF($EV70>=$CK$23,1/(120*$FY$29*$GA$29)*($CL$23-$CJ$23)/($CK$23-$CI$23)*(($EV70-$CI$23)^5-($EV70-$CK$23)^5)-($CL$23-$CJ$23)/(24*$FY$29*$GA$29)*($EV70-$CK$23)^4,IF($EV70>=$CI$23,1/(120*$FY$29*$GA$29)*($CL$23-$CJ$23)/($CK$23-$CI$23)*($EV70-$CI$23)^5,0))))) -> 0.0001037750783 | CT70: =$CT$69 -> --- | CU70: =$CU$69 -> --- | CV70: =$CV$69 -> --- | CW70: =$CW$69 -> --- | CX70: =IF($CM$23=$CO$23,"---",IF(AND($CM$23="",$CN$23="",$CO$23="",$CP$23=""),"---",(IF($EV70>=$CO$23,-$CN$23*($EV70-$CM$23-($EV70-$CO$23)),IF($EV70>=$CM$23,-$CN$23*($EV70-$CM$23),0)))+(IF($EV70>=$CO$23,-1/2*($CP$23-$CN$23)/($CO$23-$CM$23)*(($EV70-$CM$23)^2-($EV70-$CO$23)^2)+($CP$23-$CN$23)*($EV70-$CO$23),IF($EV70>=$CM$23,-1/2*($CP$23-$CN$23)/($CO$23-$CM$23)*($EV70-$CM$23)^2,0))))) -> --- | CY70: =IF($CM$23=$CO$23,"---",IF(AND($CM$23="",$CN$23="",$CO$23="",$CP$23=""),"---",(IF($EV70>=$CO$23,-$CN$23/2*(($EV70-$CM$23)^2-($EV70-$CO$23)^2),IF($EV70>=$CM$23,-$CN$23/2*($EV70-$CM$23)^2,0)))+(IF($EV70>=$CO$23,-1/6*($CP$23-$CN$23)/($CO$23-$CM$23)*(($EV70-$CM$23)^3-($EV70-$CO$23)^3)+($CP$23-$CN$23)/2*($EV70-$CO$23)^2,IF($EV70>=$CM$23,-1/6*($CP$23-$CN$23)/($CO$23-$CM$23)*($EV70-$CM$23)^3,0))))) -> --- | CZ70: =IF($CM$23=$CO$23,"---",IF(AND($CM$23="",$CN$23="",$CO$23="",$CP$23=""),"---",(IF($EV70>=$CO$23,-$CN$23/(6*$FY$29*$GA$29)*(($EV70-$CM$23)^3-($EV70-$CO$23)^3),IF($EV70>=$CM$23,-$CN$23/(6*$FY$29*$GA$29)*($EV70-$CM$23)^3,0)))+(IF($EV70>=$CO$23,-1/(24*$FY$29*$GA$29)*($CP$23-$CN$23)/($CO$23-$CM$23)*(($EV70-$CM$23)^4-($EV70-$CO$23)^4)+($CP$23-$CN$23)/(6*$FY$29*$GA$29)*($EV70-$CO$23)^3,IF($EV70>=$CM$23,-1/(24*$FY$29*$GA$29)*($CP$23-$CN$23)/($CO$23-$CM$23)*($EV70-$CM$23)^4,0))))) -> --- | DA70: =IF($CM$23=$CO$23,"---",IF(AND($CM$23="",$CN$23="",$CO$23="",$CP$23=""),"---",(IF($EV70>=$CO$23,$CN$23/(24*$FY$29*$GA$29)*(($EV70-$CM$23)^4-($EV70-$CO$23)^4),IF($EV70>=$CM$23,$CN$23/(24*$FY$29*$GA$29)*($EV70-$CM$23)^4,0)))+(IF($EV70>=$CO$23,1/(120*$FY$29*$GA$29)*($CP$23-$CN$23)/($CO$23-$CM$23)*(($EV70-$CM$23)^5-($EV70-$CO$23)^5)-($CP$23-$CN$23)/(24*$FY$29*$GA$29)*($EV70-$CO$23)^4,IF($EV70>=$CM$23,1/(120*$FY$29*$GA$29)*($CP$23-$CN$23)/($CO$23-$CM$23)*($EV70-$CM$23)^5,0))))) -> --- | DB70: =$DB$69 -> --- | DC70: =$DC$69 -> --- | DD70: =$DD$69 -> --- | DE70: =$DE$69 -> --- | DF70: =IF($CQ$23=$CS$23,"---",IF(AND($CQ$23="",$CR$23="",$CS$23="",$CT$23=""),"---",(IF($EV70>=$CS$23,-$CR$23*($EV70-$CQ$23-($EV70-$CS$23)),IF($EV70>=$CQ$23,-$CR$23*($EV70-$CQ$23),0)))+(IF($EV70>=$CS$23,-1/2*($CT$23-$CR$23)/($CS$23-$CQ$23)*(($EV70-$CQ$23)^2-($EV70-$CS$23)^2)+($CT$23-$CR$23)*($EV70-$CS$23),IF($EV70>=$CQ$23,-1/2*($CT$23-$CR$23)/($CS$23-$CQ$23)*($EV70-$CQ$23)^2,0))))) -> --- | DG70: =IF($CQ$23=$CS$23,"---",IF(AND($CQ$23="",$CR$23="",$CS$23="",$CT$23=""),"---",(IF($EV70>=$CS$23,-$CR$23/2*(($EV70-$CQ$23)^2-($EV70-$CS$23)^2),IF($EV70>=$CQ$23,-$CR$23/2*($EV70-$CQ$23)^2,0)))+(IF($EV70>=$CS$23,-1/6*($CT$23-$CR$23)/($CS$23-$CQ$23)*(($EV70-$CQ$23)^3-($EV70-$CS$23)^3)+($CT$23-$CR$23)/2*($EV70-$CS$23)^2,IF($EV70>=$CQ$23,-1/6*($CT$23-$CR$23)/($CS$23-$CQ$23)*($EV70-$CQ$23)^3,0))))) -> --- | DH70: =IF($CQ$23=$CS$23,"---",IF(AND($CQ$23="",$CR$23="",$CS$23="",$CT$23=""),"---",(IF($EV70>=$CS$23,-$CR$23/(6*$FY$29*$GA$29)*(($EV70-$CQ$23)^3-($EV70-$CS$23)^3),IF($EV70>=$CQ$23,-$CR$23/(6*$FY$29*$GA$29)*($EV70-$CQ$23)^3,0)))+(IF($EV70>=$CS$23,-1/(24*$FY$29*$GA$29)*($CT$23-$CR$23)/($CS$23-$CQ$23)*(($EV70-$CQ$23)^4-($EV70-$CS$23)^4)+($CT$23-$CR$23)/(6*$FY$29*$GA$29)*($EV70-$CS$23)^3,IF($EV70>=$CQ$23,-1/(24*$FY$29*$GA$29)*($CT$23-$CR$23)/($CS$23-$CQ$23)*($EV70-$CQ$23)^4,0))))) -> --- | DI70: =IF($CQ$23=$CS$23,"---",IF(AND($CQ$23="",$CR$23="",$CS$23="",$CT$23=""),"---",(IF($EV70>=$CS$23,$CR$23/(24*$FY$29*$GA$29)*(($EV70-$CQ$23)^4-($EV70-$CS$23)^4),IF($EV70>=$CQ$23,$CR$23/(24*$FY$29*$GA$29)*($EV70-$CQ$23)^4,0)))+(IF($EV70>=$CS$23,1/(120*$FY$29*$GA$29)*($CT$23-$CR$23)/($CS$23-$CQ$23)*(($EV70-$CQ$23)^5-($EV70-$CS$23)^5)-($CT$23-$CR$23)/(24*$FY$29*$GA$29)*($EV70-$CS$23)^4,IF($EV70>=$CQ$23,1/(120*$FY$29*$GA$29)*($CT$23-$CR$23)/($CS$23-$CQ$23)*($EV70-$CQ$23)^5,0))))) -> --- | DJ70: =$DJ$69 -> --- | DK70: =$DK$69 -> --- | DL70: =$DL$69 -> --- | DM70: =$DM$69 -> --- | DN70: =IF($CU$23=$CW$23,"---",IF(AND($CU$23="",$CV$23="",$CW$23="",$CX$23=""),"---",(IF($EV70>=$CW$23,-$CV$23*($EV70-$CU$23-($EV70-$CW$23)),IF($EV70>=$CU$23,-$CV$23*($EV70-$CU$23),0)))+(IF($EV70>=$CW$23,-1/2*($CX$23-$CV$23)/($CW$23-$CU$23)*(($EV70-$CU$23)^2-($EV70-$CW$23)^2)+($CX$23-$CV$23)*($EV70-$CW$23),IF($EV70>=$CU$23,-1/2*($CX$23-$CV$23)/($CW$23-$CU$23)*($EV70-$CU$23)^2,0))))) -> --- | DO70: =IF($CU$23=$CW$23,"---",IF(AND($CU$23="",$CV$23="",$CW$23="",$CX$23=""),"---",(IF($EV70>=$CW$23,-$CV$23/2*(($EV70-$CU$23)^2-($EV70-$CW$23)^2),IF($EV70>=$CU$23,-$CV$23/2*($EV70-$CU$23)^2,0)))+(IF($EV70>=$CW$23,-1/6*($CX$23-$CV$23)/($CW$23-$CU$23)*(($EV70-$CU$23)^3-($EV70-$CW$23)^3)+($CX$23-$CV$23)/2*($EV70-$CW$23)^2,IF($EV70>=$CU$23,-1/6*($CX$23-$CV$23)/($CW$23-$CU$23)*($EV70-$CU$23)^3,0))))) -> --- | DP70: =IF($CU$23=$CW$23,"---",IF(AND($CU$23="",$CV$23="",$CW$23="",$CX$23=""),"---",(IF($EV70>=$CW$23,-$CV$23/(6*$FY$29*$GA$29)*(($EV70-$CU$23)^3-($EV70-$CW$23)^3),IF($EV70>=$CU$23,-$CV$23/(6*$FY$29*$GA$29)*($EV70-$CU$23)^3,0)))+(IF($EV70>=$CW$23,-1/(24*$FY$29*$GA$29)*($CX$23-$CV$23)/($CW$23-$CU$23)*(($EV70-$CU$23)^4-($EV70-$CW$23)^4)+($CX$23-$CV$23)/(6*$FY$29*$GA$29)*($EV70-$CW$23)^3,IF($EV70>=$CU$23,-1/(24*$FY$29*$GA$29)*($CX$23-$CV$23)/($CW$23-$CU$23)*($EV70-$CU$23)^4,0))))) -> --- | DQ70: =IF($CU$23=$CW$23,"---",IF(AND($CU$23="",$CV$23="",$CW$23="",$CX$23=""),"---",(IF($EV70>=$CW$23,$CV$23/(24*$FY$29*$GA$29)*(($EV70-$CU$23)^4-($EV70-$CW$23)^4),IF($EV70>=$CU$23,$CV$23/(24*$FY$29*$GA$29)*($EV70-$CU$23)^4,0)))+(IF($EV70>=$CW$23,1/(120*$FY$29*$GA$29)*($CX$23-$CV$23)/($CW$23-$CU$23)*(($EV70-$CU$23)^5-($EV70-$CW$23)^5)-($CX$23-$CV$23)/(24*$FY$29*$GA$29)*($EV70-$CW$23)^4,IF($EV70>=$CU$23,1/(120*$FY$29*$GA$29)*($CX$23-$CV$23)/($CW$23-$CU$23)*($EV70-$CU$23)^5,0))))) -> --- | DR70: =$DR$69 -> -2.92221753 | DS70: =$DS$69 -> -22.86728802 | DT70: =$DT$69 -> -4.279482312e-06 | DU70: =$DU$69 -> 1.11627732e-05 | DV70: =IF($EV68>$CE$38,-$CF$38,0)+IF($EV68>$CG$38,-$CH$38,0)+IF($EV68>$CI$38,-$CJ$38,0)+IF($EV68>$CK$38,-$CL$38,0)+IF($EV68>$CM$38,-$CN$38,0)+IF($EV68>$CO$38,-$CP$38,0)+IF($EV68>$CQ$38,-$CR$38,0)+IF($EV68>$CS$38,-$CT$38,0)+IF($EV68>$CU$38,-$CV$38,0)+IF($EV68>$CW$38,-$CX$38,0) -> -2.92221753 | DW70: =IF($EV68>$CE$38,-$CF$38*($EV68-$CE$38),0)+IF($EV68>$CG$38,-$CH$38*($EV68-$CG$38),0)+IF($EV68>$CI$38,-$CJ$38*($EV68-$CI$38),0)+IF($EV68>$CK$38,-$CL$38*($EV68-$CK$38),0)+IF($EV68>$CM$38,-$CN$38*($EV68-$CM$38),0)+IF($EV68>$CO$38,-$CP$38*($EV68-$CO$38),0)+IF($EV68>$CQ$38,-$CR$38*($EV68-$CQ$38),0)+IF($EV68>$CS$38,-$CT$38*($EV68-$CS$38),0)+IF($EV68>$CU$38,-$CV$38*($EV68-$CU$38),0)+IF($EV68>$CW$38,-$CX$38*($EV68-$CW$38),0) -> -22.86728802 | DX70: =IF($EV68>$CE$38,-$CF$38*($EV68-$CE$38)^2/(2*$FY$29*$GA$29),0)+IF($EV68>$CG$38,-$CH$38*($EV68-$CG$38)^2/(2*$FY$29*$GA$29),0)+IF($EV68>$CI$38,-$CJ$38*($EV68-$CI$38)^2/(2*$FY$29*$GA$29),0)+IF($EV68>$CK$38,-$CL$38*($EV68-$CK$38)^2/(2*$FY$29*$GA$29),0)+IF($EV68>$CM$38,-$CN$38*($EV68-$CM$38)^2/(2*$FY$29*$GA$29),0)+IF($EV68>$CO$38,-$CP$38*($EV68-$CO$38)^2/(2*$FY$29*$GA$29),0)+IF($EV68>$CQ$38,-$CR$38*($EV68-$CQ$38)^2/(2*$FY$29*$GA$29),0)+IF($EV68>$CS$38,-$CT$38*($EV68-$CS$38)^2/(2*$FY$29*$GA$29),0)+IF($EV68>$CU$38,-$CV$38*($EV68-$CU$38)^2/(2*$FY$29*$GA$29),0)+IF($EV68>$CW$38,-$CX$38*($EV68-$CW$38)^2/(2*$FY$29*$GA$29),0) -> -4.279482312e-06 | DY70: =IF($EV68>$CE$38,$CF$38*($EV68-$CE$38)^3/(6*$FY$29*$GA$29),0)+IF($EV68>$CG$38,$CH$38*($EV68-$CG$38)^3/(6*$FY$29*$GA$29),0)+IF($EV68>$CI$38,$CJ$38*($EV68-$CI$38)^3/(6*$FY$29*$GA$29),0)+IF($EV68>$CK$38,$CL$38*($EV68-$CK$38)^3/(6*$FY$29*$GA$29),0)+IF($EV68>$CM$38,$CN$38*($EV68-$CM$38)^3/(6*$FY$29*$GA$29),0)+IF($EV68>$CO$38,$CP$38*($EV68-$CO$38)^3/(6*$FY$29*$GA$29),0)+IF($EV68>$CQ$38,$CR$38*($EV68-$CQ$38)^3/(6*$FY$29*$GA$29),0)+IF($EV68>$CS$38,$CT$38*($EV68-$CS$38)^3/(6*$FY$29*$GA$29),0)+IF($EV68>$CU$38,$CV$38*($EV68-$CU$38)^3/(6*$FY$29*$GA$29),0)+IF($EV68>$CW$38,$CX$38*($EV68-$CW$38)^3/(6*$FY$29*$GA$29),0) -> 1.11627732e-05 | DZ70: =$DZ$69 -> 0 | EA70: =$EA$69 -> 0 | EB70: =$EB$69 -> 0 | EC70: =$EC$69 -> 0 | ED70: =0+0+0+0 -> 0 | EE70: 0 | EF70: 0 | EG70: 0 | EH70: -11.68887532 | EI70: -105.8501497 | EJ70: -2.776622392e-05 | EK70: 0.0001149378516 | EL70: -11.68887532 | EM70: -105.8501497 | EN70: -2.776622392e-05 | EO70: 0.0001149378516 | EP70: =$EP$69 -> 5.929627971 | EQ70: =$EQ$69 -> -19.52463942 | ER70: =$ER$69 -> 0 | ES70: =$ES$69 -> 0 | ET70: =-($EP70+$EL70) -> 5.759247345 | EU70: -20.61124724 | EV70: =$GB$29+0.0000000001 -> 17.66781025 | EW70: Member #3(Y) Axial(R): | FF70: W36x150 | FG70: 44.2 | FH70: 9040 | FI70: 270 | FJ70: 285.16 | FK70: 376273.21 | FL70: 11238.25 | FW70: 3 | FY70: =BG70 -> 0 | FZ70: =BH70*0.737562 -> 0 | GA70: =BI70 -> 0 | GB70: =BJ70*0.737562 -> 0 | GC70: =BK70 -> 0 | GD70: =BL70*0.737562 -> 0 | GE70: =BM70 -> 0 | GF70: =BN70*0.737562 -> 0 | GG70: =BO70 -> 0 | GH70: =BP70*0.737562 -> 0
